Workbook

Sheet PQA
Q1: 2015.1 - v4
A2: STRATEGIC ACCOUNT CONFIDENTIAL PRICE QUOTE APPROVAL
A4: WSCA Multi_MBG Iowa + 1.25%
A6: EAM: | B6: Tom Dames | G6: Contract Length | L6: DATE: | N6: 2016-07-25
G7: Agreement
A8: DIRECTOR | B8: Tammie Hinds | K8: WITHDRAWAL DATE | N8: =N6+60 -> 2016-09-23
A10: SEGMENT | B10: Government | G10: Rolling Avg: | H10: NA | I10: Prior History | J10: NA | K10: MYBID RECORD #
K11: Parent #
K14: ANALYST: L. Ervin
A18: COMMENTS | C18: Date: | D18: 2016-06-16
B20: I will communicate that it will run from 2/8/2016 thru 2/4/2017 with a 3.5% GRI on 2/6/2017.
C22: The New Multi MBG IDAHO Proposed Air and Ground Rates are 1.25% above the curenet NASPO Multi MBG RFP Offer.
C27: A customized. $ 3.58 Minimum has also been established for the Multi MBG Rates
C31: The International Rates are the same as the current Exclusive Rates. (No Change)
C35: 3.5% Annual Rate Increase on all Domestic & Iternational Services both transprtation and discounted accessorial charges.
W99: Percent Off | X99: Published | Y99: All Shippers | Z99: Tier ByAcct #
W100: Custom | X100: Multi Tier | Y100: Attach. A | Z100: Tier 7
X101: Tier Plus | Y101: Attach. B | Z101: Tier 6
X102: Tier | Y102: Attach. C | Z102: Tier 5
X103: Custom Rates | Z103: Tier 4
X104: Flat % Off | Z104: Tier 3
X105: Per lb. Rate | Z105: Tier 2
X106: N/A | Z106: Tier 2
Z107: N/A

Sheet Accessorial Conversion File (hidden)
A1: 2016 | D1: 2016 Accessorial Matrix - Applies to Daily Rate
A2: Domestic Accessorials | D2: Domestic | E2: Current | F2: 2016 Pub | G2: RFP-Adjustment
A3: Accessorials | B3: Incentives | D3: Additional Handling | E3: =B12 -> 8.854241 | F3: 10.5
D4: Address Corrections- Ground | E4: =B6 -> 11.737728 | F4: 13
A5: Export - Certificate of Origin | B5: 10 | D5: Address Corrections- Air | E5: =B6 -> 11.737728 | F5: 13
A6: Address Corrections (Grd & Air) | B6: 11.737728 | D6: Address Corrections (Maximum per Shipment) | E6: List | F6: 91
A7: Domestic - Custom Delivery Confirmation - No Signature Response | B7: 2 | D7: Carbon Neutral Surcharge - Ground | E7: List | F7: 0.05
A8: Domestic - Custom Delivery Confirmation - Signature Response | B8: 3.729174 | D8: Carbon Neutral Surcharge - Air | E8: List | F8: 0.2
A9: Domestic - Custom Delivery Confirmation Signature Response - Non Compliant | B9: 3.729174 | D9: Chargeback for Consignee Billing Shipments | E9: =B40 -> 11.737728 | F9: 13
A10: Domestic - Custom Delivery Confirmation - Adult Signature Required | B10: 4.799019 | D10: C.O.D.s | E10: =B13 -> 11.452436 | F10: 12.5
A11: Domestic - Custom Delivery Confirmation - Adult Signature Required - Non Compliant | B11: 4.799019 | D11: Delivery Area Surcharge - Air Commercial | F11: 2.45
A12: Domestic - Additional Handling Charge | B12: 8.854241 | D12: Delivery Area Surcharge - Ground Commercial | F12: 2.3
A13: C. O. D.s | B13: 11.452436 | D13: Delivery Area Surcharge - Air Extended Commercial | F13: 2.45
A14: Residential Surcharge - Domestic Delivery of Air Services* and 3 Day Select | B14: 1.59 | D14: Delivery Area Surcharge - Ground Extended Commercial | F14: 2.3
A15: Residential Surcharge - Domestic Delivery of Ground Service | B15: 1.34 | D15: Delivery Area Surcharge - Ground Residential | F15: 3.15
A16: Domestic - Print Label Charge | B16: 0.5 | D16: Delivery Area Surcharge - Air Residential | F16: 3.7
A17: Domestic - Print and Mail Label Charge | B17: 2.25 | D17: Delivery Area Surcharge - Air Extended Residential | F17: 4
A18: Domestic - Electronic Label Charge | B18: 1 | D18: Delivery Area Surcharge - Ground Extended Residential | F18: 4
A19: Fax Proof of Delivery | B19: 3 | D19: Delivery Area Surcharge - Hundredweight | E19: List | F19: $12.30 per shipment
A20: Domestic - Dry Ice | B20: 5 | D20: Delivery Change Request - Phone | F20: 6
A21: Reroute (Phone Request) | B21: 16.006919 | D21: Delivery Change Request - Web | F21: 5
A22: Reroute (Web Request) | B22: 11.737728 | D22: Delivery Confirmation Response | E22: List | F22: 2
A23: Reschedule Delivery (Phone Request) | B23: 16.006919 | D23: Delivery Confirmation Response - Signature Required | E23: =B8 -> 3.729174 | F23: 4.25
A24: Reschedule Delivery (Web Request) | B24: 11.737728 | D24: Delivery Confirmation Response - Adult Signature Required | E24: =B10 -> 4.799019 | F24: 5.25
A25: Return to Sender (Phone Request) | B25: 16.006919 | D25: Delivery Intercept - Phone Request (Redirect, Return, or Future Del) | F25: 18.7
A26: Return to Sender (Web Request) | B26: 11.737728 | D26: Delivery Intercept - Web Request (Redirect, Return, or Future Del) | F26: 12.9
A27: Domestic - Large Package Surcharge | B27: 57.272369 | D27: My Choice - upgrade fee | F27: 3.5
A28: Domestic - Lookup Surcharge | B28: 11.452436 | D28: Dimensional Weight Factor | E28: List | F28: 166
A29: Domestic - Saturday Delivery | B29: 5.328847 | D29: Direct Delivery Only | E29: 100% off | F29: 2
A30: Saturday Pickup Charge | B30: 5.328847 | D30: Dry Ice | E30: List | F30: 5
A31: Domestic - HazMat Class 1-8 Air C Fee | B31: 39.054437 | D31: Early AM Out of Territory | E31: List | F31: 10
A32: Domestic - HazMat Class 1-8 Ground Fee | B32: 28.641279 | D32: Early AM Premium | E32: List | F32: 30
A33: Domestic - HazMat Class 1-8 Air Fee | B33: 39.054437 | D33: Excessive Tracking, Tracing, & Refund Requests | F33: 3
A34: Domestic - HazMat Class 9 Cargo Quantity Fee | B34: 39.054437 | D34: Hazardous Materials Surcharge, Air | E34: =B33 -> 39.054437 | F34: 42.5
A35: Domestic - HazMat Class 9 Ground Fee | B35: 28.641279 | D35: Hazardous Materials Surcharge, Ground | E35: =B35 -> 28.641279 | F35: 30
A36: Domestic - HazMat Class 9 Air Fee | B36: 39.054437 | D36: Declared Value | E36: $0.82 per $100 ($2.46 Min.) | F36: $0.90 per $100 ($2.70 Min.)
A37: Domestic - HazMat Class 9 Air Lithium C Fee | B37: 39.054437 | D37: Large Package Surcharge | E37: =B27 -> 57.272369 | F37: 67.5
A38: Domestic - HazMat Class 9 Ground Lithium Fee | B38: 28.641279 | D38: Missing/Invalid Account # Charge | E38: =B28 -> 11.452436 | F38: 13
A39: Domestic - HazMat Class 9 Air Lithium | B39: 39.054437 | D39: On Call Pickup -- Same Day | E39: 1 | F39: 6.7
A40: Chargeback For Consignee Billing Shipments | B40: 11.737728 | D40: On Call Pickup -- Future Day | E40: 1 | F40: 5.65
A41: Domestic - Three Pickup Attempts Label Charge | B41: 7.468537 | D41: On-Call Pickup Residential Surcharge | E41: 1 | F41: 3.25
A42: Domestic - One Pickup Attempt Label Charge | B42: 5.328847 | D42: On-Call Pickup Area Surcharge - Residential | E42: 1 | F42: 3.15
A43: Weekly Late Payment Charge | B43: 83.40% Off Effective Rates | D43: On-Call Pickup Area Surcharge - Extended Residential | F43: 4
A44: Monthly Late Payment Charge | B44: 83.40% Off Effective Rates | D44: On-Call Pickup Remote Surcharge - Alaska | F44: 22.5
A45: Domestic - Consignee Initiated Delivery Change | B45: 6.245857 | D45: On-Call Pickup Remote Surcharge - Hawaii | F45: 6.75
A46: Request Deliver to UPS Access PointTM - Phone | D46: Over Maximum Limits | F46: 110
A47: Domestic - Consignee Initiated Delivery Change Request Deliver to UPS Access PointTM - Web | B47: 5.206579 | D47: Proof of Delivery- (Fax or Mail) | E47: List | F47: 3
A48: Domestic - Consignee Initiated Delivery Change Request Deliver Package to Original Residential Address - Phone | B48: 6.245857 | D48: Quantum View Notify | E48: List | F48: 0
A49: Domestic - Consignee Initiated Delivery Change Request Deliver Package to Original Residential Address - Web | B49: 5.206579 | D49: Remote Area Surcharge - Alaska | F49: 22.5
A50: Domestic - Consignee Initiated Delivery Change Request Reroute - Phone Request | B50: 6.245857 | D50: Remote Area Surcharge -Hawaii | F50: 6.75
A51: Domestic - Consignee Initiated Delivery Change Request Reroute - Web Request | B51: 5.206579 | D51: Residential Surcharge - Ground | E51: =B15 -> 1.34 | F51: 3.25
A52: Domestic - Consignee Initiated Delivery Change Request Reschedule Delivery - Web Request | B52: 5.206579 | D52: Residential Surcharge - Air | E52: =B14 -> 1.59 | F52: 3.65
A53: Domestic - Consignee Initiated Delivery Change Request Reschedule Delivery - Phone Request | B53: 6.245857 | D53: Residential Differential - Hundredweight | E53: List | F53: $31.60 per shipment
A54: International Accessorials | D54: Residential Surcharge - WWEF | E54: List | F54: $125.00 per shipment
A55: Export - Transborder & Worldwide Three Pickup Attempts Label Charge | B55: 7.468537 | D55: Saturday Pickup | E55: =B30 -> 5.328847 | F55: 16
A56: Export - Duty and Tax Forwarding Surcharge | B56: 15 | D56: Saturday Delivery | E56: =B29 -> 5.328847 | F56: 16
A57: Export - Transborder & Worldwide One Pickup Attempt Label Charge | B57: 5.328847 | D57: Ship Notification (fax) | E57: List | F57: 0
A58: Export - Residential SurchargeEF | B58: 3.199346 | D58: Third Party Billing Service | E58: List | F58: 0.025
A59: Export - HazMat Class 1-8 Air C FeeEF Shipment Minimum - $7.15 Rate | B59: 60.920031 | D59: UPS Returns: Print Return Label | E59: List | F59: 0.5
A60: Export - HazMat Class 1-8 Ground Fee - Shipment Minimum - $4.00 Rate | B60: 35.6615 | D60: UPS Returns: Electronic Return Label | E60: List | F60: 1
A61: Export - HazMat Class 1-8 Air FeeEF Shipment Minimum - $7.15 Rate | B61: 60.920031 | D61: UPS Returns: Print & Mail Return Label | E61: List | F61: 2.25
A62: Export - HazMat Class 9 Cargo Quantity FeeEF Shipment Minimum - $7.15 Rate | B62: 60.920031 | D62: UPS Returns Plus: 1 UPS Pickup Attempt | E62: =B42 -> 5.328847 | F62: 5.65
A63: Export - HazMat Class 9 Ground Fee - Shipment Minimum - $4.00 Rate | B63: 35.6615 | D63: UPS Returns Plus: 3 UPS Pickup Attempts | E63: =B41 -> 7.468537 | F63: 7.7
A64: Export - HazMat Class 9 Air FeeEF Shipment Minimum - $7.15 Rate | B64: 60.920031 | D64: UPS Returns Plus: Call Tag | E64: List | F64: 8
A65: Export - HazMat Class 9 Air Lithium C FeeEF Shipment Minimum - $7.15 Rate | B65: 60.920031 | D65: Verbal Confirmation of Delivery | E65: List | F65: 3
A66: Export - HazMat Class 9 Ground Lithium Fee - Shipment Minimum - $4.00 Rate | B66: 35.6615 | D66: Weekly Service Charges:
A67: Export - HazMat Class 9 Air LithiumEF Shipment Minimum - $7.15 Rate | B67: 60.920031 | D67: Daily Pickup ($0.00-$74.99 Billed) | F67: 25
A68: UPS Worldwide Express FreightSM-Export- Oversize Pallet Handling Surcharge: Bill Shipper & Bill Third Party - Rate per pallet | B68: 52.626185 | D68: Daily Pickup ( $75+ Billed) | F68: 12.5
A69: Export - Large Package Surcharge | B69: 57.272369 | D69: Daily On Route ($0.00-$74.99 Billed) | F69: 23
A70: Import - Duty and Tax Forwarding Surcharge | B70: 15 | D70: Daily On Route ( $75+ Billed) | F70: 11.5
A71: Import - Residential SurchargeEF | B71: 3.199346 | D71: UPS Smart Pickup | F71: 11.5
A72: Import - Saturday DeliveryEF | B72: 15.619737 | D72: Day-Specific Pickup- 4 Days ($0.00-$74.99 Billed) | F72: 23
A73: Import - HazMat Class 1-8 Air C FeeEF - Shipment Minimum - $7.15 Rate | B73: 60.920031 | D73: Day-Specific Pickup- 4 Days ( $75+ Billed) | F73: 11.5
A74: Import - HazMat Class 1-8 Ground Fee - Shipment Minimum - $4.00 Rate | B74: 35.6615 | D74: Day-Specific Pickup- 3 Days ($0.00-$74.99 Billed) | F74: 16.65
A75: Import - HazMat Class 1-8 Air FeeEF Shipment Minimum - $7.15 Rate | B75: 60.920031 | D75: Day-Specific Pickup- 3 Days ( $75+ Billed) | F75: 11.5
A76: Import - HazMat Class 9 Cargo Quantity FeeEF Shipment Minimum - $7.15 Rate | B76: 60.920031 | D76: Day-Specific Pickup- 1 or 2 Days | F76: 11.5
A77: Import - HazMat Class 9 Ground Fee - Shipment Minimum - $4.00 Rate | B77: 35.6615 | D77: Printer Lease Fee | F77: 3
A78: Import - HazMat Class 9 Air FeeEF Shipment Minimum - $7.15 Rate | B78: 60.920031 | D78: International | F78: 2016
A79: Import - HazMat Class 9 Air Lithium C FeeEF Shipment Minimum - $7.15 Rate | B79: 60.920031 | D79: Bill Duty/Tax & Shipping Charges to Shipper (Import & Export) | E79: List | F79: 15
A80: Import - HazMat Class 9 Ground Lithium Fee - Shipment Minimum - $4.00 Rate | B80: 35.6615 | D80: Carbon Neutral Surcharge - International Express | E80: List | F80: 0.75
A81: Import - HazMat Class 9 Air LithiumEF Shipment Minimum - $7.15 Rate | B81: 60.920031 | D81: Carbon Neutral Surcharge - International Standard | E81: List | F81: 0.1
A82: Import - Export VAT | B82: 15 | D82: Certificate of Origin | E82: List | F82: 10
A83: UPS Worldwide Express FreightSM-Import- Oversize Pallet Handling Surcharge: Bill Receiver & Bill Third Party - Rate per pallet | B83: 52.626185 | D83: Currency Conversion Rate | E83: List | F83: 0.0075
A84: Import - Commercial Invoice Removal Fee | B84: 20 | D84: Delivery Area Surcharge (Import services) | F84: 2
A85: Import - Large Package Surcharge | B85: 57.272369 | D85: Delivery Area Surcharge - Extended (Import services) | F85: 2
A86: Import - Late Payment Fee | B86: 83.40% Off Effective Rates | D86: Remote Area Surcharge (Import services / Hawaii) | F86: 6.75
A87: Pickup Accessorials | D87: Remote Area Surcharge - Extended (Import services / Alaska) | F87: 22.5
A88: Daily Pickup | B88: 1 | D88: Delivered Duty Paid, V.A.T. Unpaid | E88: List | F88: 15
A89: UPS Smart Pickup ® | B89: 1 | D89: Dimensional Weight Factor | F89: 139
A90: Day-Specific Pickup 1 Day | B90: 1 | D90: Extended Area Surcharge (Export services) | F90: Greater of $30 or $0.30 per pound
A91: Day-Specific Pickup 2 Days | B91: 1 | D91: Remote Area Surcharge (Export Services) | F91: Greater of $30 or $0.30 per pound
A92: Day-Specific Pickup 3 Days | B92: 1 | D92: Freight Collect Refusal - International | F92: 13
A93: Day-Specific Pickup 4 Days | B93: 1 | D93: International Dangerous Goods - Standard to/from CA | E93: =B74 -> 35.6615 | F93: $37.00 per shipment or $4.25 per pkg
A94: Daily On-Route Pickup | B94: 1 | D94: International Dangerous Goods - Small Package | E94: =B73 -> 60.920031 | F94: $66.25 per shipment or $7.95 per pkg
A95: UPS On-Call Pickup ® - Same Day - Phone | B95: 1 | D95: International Dangerous Goods - WWEF | F95: $66.25 per shipment or $0.36 per pound
A96: UPS On-Call Pickup ® - Same Day - Web | B96: 1 | D96: Large Package Surcharge (Import & Export) | E96: =B85 -> 57.272369 | F96: 67.5
A97: UPS On-Call Pickup® - Future Day - Phone | B97: 1 | D97: Saturday Delivery | E97: =B72 -> 15.619737 | F97: 16
A98: UPS On-Call Pickup® - Future Day - Web | B98: 1 | D98: Residential Surcharge - Standard to / from Canada and Standard from Mexico | F98: 3.25
A99: UPS On-Call Pickup®- Ground Returns - Same Day - Phone | B99: 1 | D99: Residential Surcharge - From all other origins | F99: 3.65
A100: UPS On-Call Pickup® - Ground Returns - Same Day-Web | B100: 1 | D100: Worldwide Express Plus Surcharge | F100: 40
A101: UPS On-Call Pickup® - Ground Returns - Future Day - Phone | B101: 1 | D101: Import Control CI Removal Charge | E101: List | F101: 20
A102: UPS On-Call Pickup® - Ground Returns - Future Day - Web | B102: 1 | D102: Residential Surcharge (Shipment) | E102: List | F102: 125
A103: UPS On-Call Pickup® - Air Returns - Same Day - Phone | B103: 1 | D103: Carbon Neutral (Pallet) | E103: List | F103: 20
A104: UPS On-Call Pickup® - Air Returns - Same Day - Web | B104: 1 | D104: Oversized Pallet Handling Surcharge | E104: =B83 -> 52.626185 | F104: 110
A105: UPS On-Call Pickup® - Air Returns - Future Day - Phone | B105: 1 | D105: Entry Preparation Charge - UPS Standard from Canada
A106: UPS On-Call Pickup® - Air Returns - Future Day - Web | B106: 1 | D106: Value for Duty ($0.00 to $200.00) | F106: 0
A107: UPS On-Call Pickup® - Alternate Address - Same Day - Phone | B107: 1 | D107: Value for Duty ($200.01 to $1,250.00) | F107: 27.5
A108: UPS On-Call Pickup® - Alternate Address - Same Day-Web | B108: 1 | D108: Value for Duty ($1,250.01 to $2,500.00) | F108: 39
A109: UPS On-Call Pickup® - Alternate Address - Future Day - Phone | B109: 1 | D109: Value for Duty (Each additional $1,000.00 or part thereof) | F109: 1.9
A110: UPS On-Call Pickup® - Alternate Address - Future Day - Web | B110: 1 | D110: Disbursement Fee minimum | F110: 9
A111: Residential Pickup Surcharge | B111: 1.334759 | D111: Other Government Agency (OGA) Clearance | F111: 22
A112: Pickup Area Surcharge - Residential | B112: 2.863109 | D112: Complex Entries | F112: 22
A113: Pickup Area Surcharge - Extended Residential | B113: 3.46426
A114: Pickup Remote Area Surcharge - Alaska Residential | B114: 15.619737
A115: Pickup Remote Area Surcharge - Hawaii Residential | B115: 6.1134

Sheet Domestic Accessorials (hidden)
A1: 2016
A2: Domestic Accessorials
A3: Accessorials | B3: Incentives | C3: Current Incentives | D3: 2015 1.89% Rate increase | E3: 0.0189
A4: Export - Certificate of Origin | B4: 10 | C4: 10 | D4: 10
A5: Address Corrections (Grd & Air) | B5: 11.737728 | C5: 11.52 | D5: =C5+(C5*$E$3) -> 11.737728
A6: Domestic - Custom Delivery Confirmation - No Signature Response | B6: 2 | C6: 2.04 | D6: 2
A7: Domestic - Custom Delivery Confirmation - Signature Response | B7: 3.729174 | C7: 3.66 | D7: =C7+(C7*$E$3) -> 3.729174
A8: Domestic - Custom Delivery Confirmation Signature Response - Non Compliant | B8: 3.729174 | C8: 3.66 | D8: =C8+(C8*$E$3) -> 3.729174
A9: Domestic - Custom Delivery Confirmation - Adult Signature Required | B9: 4.799019 | C9: 4.71 | D9: 4.799019
A10: Domestic - Custom Delivery Confirmation - Adult Signature Required - Non Compliant | B10: 4.799019 | C10: 4.71 | D10: 4.799019
A11: Domestic - Additional Handling Charge | B11: 8.854241 | C11: 8.69 | D11: 8.854241
A12: C. O. D.s | B12: 11.452436 | C12: 11.24 | D12: 11.452436
A13: Residential Surcharge - Domestic Delivery of Air Services* and 3 Day Select | B13: 1.59 | C13: 1.56 | D13: 1.589484
A14: Residential Surcharge - Domestic Delivery of Ground Service | B14: 1.34 | C14: 1.31 | D14: 1.334759
A15: Domestic - Print Label Charge | B15: 0.5 | C15: 0.5 | D15: 0.5
A16: Domestic - Print and Mail Label Charge | B16: 2.25 | C16: 2.25 | D16: 2.25
A17: Domestic - Electronic Label Charge | B17: 1 | C17: 1 | D17: 1
A18: Fax Proof of Delivery | B18: 3 | C18: 3 | D18: 3
A19: Domestic - Dry Ice | B19: 5 | C19: 5 | D19: 5
A20: Reroute (Phone Request) | B20: 16.006919 | C20: 15.71 | D20: =C20+(C20*$E$3) -> 16.006919
A21: Reroute (Web Request) | B21: 11.737728 | C21: 11.52 | D21: =C21+(C21*$E$3) -> 11.737728
A22: Reschedule Delivery (Phone Request) | B22: 16.006919 | C22: 15.71 | D22: 16.006919
A23: Reschedule Delivery (Web Request) | B23: 11.737728 | C23: 11.52 | D23: 11.737728
A24: Return to Sender (Phone Request) | B24: 16.006919 | C24: 15.71 | D24: 16.006919
A25: Return to Sender (Web Request) | B25: 11.737728 | C25: 11.52 | D25: 11.737728
A26: Domestic - Large Package Surcharge | B26: 57.272369 | C26: 56.21 | D26: 57.272369
A27: Domestic - Lookup Surcharge | B27: 11.452436 | C27: 11.24 | D27: 11.452436
A28: Domestic - Saturday Delivery | B28: 5.328847 | C28: 5.23 | D28: 5.328847
A29: Saturday Pickup Charge | B29: 5.328847 | C29: 5.23 | D29: 5.328847
A30: Domestic - HazMat Class 1-8 Air C Fee | B30: 39.054437 | C30: 38.33 | D30: 39.054437
A31: Domestic - HazMat Class 1-8 Ground Fee | B31: 28.641279 | C31: 28.11 | D31: 28.641279
A32: Domestic - HazMat Class 1-8 Air Fee | B32: 39.054437 | C32: 38.33 | D32: 39.054437
A33: Domestic - HazMat Class 9 Cargo Quantity Fee | B33: 39.054437 | C33: 38.33 | D33: 39.054437
A34: Domestic - HazMat Class 9 Ground Fee | B34: 28.641279 | C34: 28.11 | D34: 28.641279
A35: Domestic - HazMat Class 9 Air Fee | B35: 39.054437 | C35: 38.33 | D35: 39.054437
A36: Domestic - HazMat Class 9 Air Lithium C Fee | B36: 39.054437 | C36: 38.33 | D36: 39.054437
A37: Domestic - HazMat Class 9 Ground Lithium Fee | B37: 28.641279 | C37: 28.11 | D37: 28.641279
A38: Domestic - HazMat Class 9 Air Lithium | B38: 39.054437 | C38: 38.33 | D38: 39.054437
A39: Chargeback For Consignee Billing Shipments | B39: 11.737728 | C39: 11.52 | D39: 11.737728
A40: Domestic - Three Pickup Attempts Label Charge | B40: 7.468537 | C40: 7.33 | D40: 7.468537
A41: Domestic - One Pickup Attempt Label Charge | B41: 5.328847 | C41: 5.23 | D41: 5.328847
A42: Weekly Late Payment Charge | B42: 83.40% Off Effective Rates | D42: 83.40% Off Effective Rates
A43: Monthly Late Payment Charge | B43: 83.40% Off Effective Rates | D43: 83.40% Off Effective Rates
A44: Domestic - Consignee Initiated Delivery Change | B44: 6.245857 | C44: 6.13 | D44: =C44+(C44*$E$3) -> 6.245857
A45: Request Deliver to UPS Access PointTM - Phone
A46: Domestic - Consignee Initiated Delivery Change Request Deliver to UPS Access PointTM - Web | B46: 5.206579 | C46: 5.11 | D46: =C46+(C46*$E$3) -> 5.206579
A47: Domestic - Consignee Initiated Delivery Change Request Deliver Package to Original Residential Address - Phone | B47: 6.245857 | C47: 6.13 | D47: =C47+(C47*$E$3) -> 6.245857
A48: Domestic - Consignee Initiated Delivery Change Request Deliver Package to Original Residential Address - Web | B48: 5.206579 | C48: 5.11 | D48: 5.206579
A49: Domestic - Consignee Initiated Delivery Change Request Reroute - Phone Request | B49: 6.245857 | C49: 6.13 | D49: 6.245857
A50: Domestic - Consignee Initiated Delivery Change Request Reroute - Web Request | B50: 5.206579 | C50: 5.11 | D50: 5.206579
A51: Domestic - Consignee Initiated Delivery Change Request Reschedule Delivery - Web Request | B51: 5.206579 | C51: 5.11 | D51: 5.206579
A52: Domestic - Consignee Initiated Delivery Change Request Reschedule Delivery - Phone Request | B52: 6.245857 | C52: 6.13 | D52: 6.245857

Sheet International Accessorials (hidden)
A1: 2016
A2: International Accessorials | C2: curr incen | D2: 2015 1.89% Increase
A3: Export - Transborder & Worldwide Three Pickup Attempts Label Charge | B3: 7.468537 | C3: 7.33 | D3: =C3+(C3*1.89%) -> 7.468537
A4: Export - Duty and Tax Forwarding Surcharge | B4: 15 | C4: 15 | D4: 15
A5: Export - Transborder & Worldwide One Pickup Attempt Label Charge | B5: 5.328847 | C5: 5.23 | D5: =C5+(C5*1.89%) -> 5.328847
A6: Export - Residential SurchargeEF | B6: 3.199346 | C6: 3.14 | D6: 3.199346
A7: Export - HazMat Class 1-8 Air C FeeEF Shipment Minimum - $7.15 Rate | B7: 60.920031 | C7: 59.79 | D7: 60.920031
A8: Export - HazMat Class 1-8 Ground Fee - Shipment Minimum - $4.00 Rate | B8: 35.6615 | C8: 35 | D8: 35.6615
A9: Export - HazMat Class 1-8 Air FeeEF Shipment Minimum - $7.15 Rate | B9: 60.920031 | C9: 59.79 | D9: 60.920031
A10: Export - HazMat Class 9 Cargo Quantity FeeEF Shipment Minimum - $7.15 Rate | B10: 60.920031 | C10: 59.79 | D10: 60.920031
A11: Export - HazMat Class 9 Ground Fee - Shipment Minimum - $4.00 Rate | B11: 35.6615 | C11: 35 | D11: 35.6615
A12: Export - HazMat Class 9 Air FeeEF Shipment Minimum - $7.15 Rate | B12: 60.920031 | C12: 59.79 | D12: 60.920031
A13: Export - HazMat Class 9 Air Lithium C FeeEF Shipment Minimum - $7.15 Rate | B13: 60.920031 | C13: 59.79 | D13: 60.920031
A14: Export - HazMat Class 9 Ground Lithium Fee - Shipment Minimum - $4.00 Rate | B14: 35.6615 | C14: 35 | D14: 35.6615
A15: Export - HazMat Class 9 Air LithiumEF Shipment Minimum - $7.15 Rate | B15: 60.920031 | C15: 59.79 | D15: 60.920031
A16: UPS Worldwide Express FreightSM-Export- Oversize Pallet Handling Surcharge: Bill Shipper & Bill Third Party - Rate per pallet | B16: 52.626185 | C16: 51.65 | D16: 52.626185
A17: Export - Large Package Surcharge | B17: 57.272369 | C17: 56.21 | D17: 57.272369
A18: Import - Duty and Tax Forwarding Surcharge | B18: 15 | C18: 15 | D18: 15
A19: Import - Residential SurchargeEF | B19: 3.199346 | C19: 3.14 | D19: 3.199346
A20: Import - Saturday DeliveryEF | B20: 15.619737 | C20: 15.33 | D20: 15.619737
A21: Import - HazMat Class 1-8 Air C FeeEF - Shipment Minimum - $7.15 Rate | B21: 60.920031 | C21: 59.79 | D21: =C21+(C21*1.89%) -> 60.920031
A22: Import - HazMat Class 1-8 Ground Fee - Shipment Minimum - $4.00 Rate | B22: 35.6615 | C22: 35 | D22: 35.6615
A23: Import - HazMat Class 1-8 Air FeeEF Shipment Minimum - $7.15 Rate | B23: 60.920031 | C23: 59.79 | D23: 60.920031
A24: Import - HazMat Class 9 Cargo Quantity FeeEF Shipment Minimum - $7.15 Rate | B24: 60.920031 | C24: 59.79 | D24: 60.920031
A25: Import - HazMat Class 9 Ground Fee - Shipment Minimum - $4.00 Rate | B25: 35.6615 | C25: 35 | D25: 35.6615
A26: Import - HazMat Class 9 Air FeeEF Shipment Minimum - $7.15 Rate | B26: 60.920031 | C26: 59.79 | D26: 60.920031
A27: Import - HazMat Class 9 Air Lithium C FeeEF Shipment Minimum - $7.15 Rate | B27: 60.920031 | C27: 59.79 | D27: 60.920031
A28: Import - HazMat Class 9 Ground Lithium Fee - Shipment Minimum - $4.00 Rate | B28: 35.6615 | C28: 35 | D28: 35.6615
A29: Import - HazMat Class 9 Air LithiumEF Shipment Minimum - $7.15 Rate | B29: 60.920031 | C29: 59.79 | D29: 60.920031
A30: Import - Export VAT | B30: 15 | C30: 15 | D30: 15
A31: UPS Worldwide Express FreightSM-Import- Oversize Pallet Handling Surcharge: Bill Receiver & Bill Third Party - Rate per pallet | B31: 52.626185 | C31: 51.65 | D31: 52.626185
A32: Import - Commercial Invoice Removal Fee | B32: 20 | C32: 20 | D32: 20
A33: Import - Large Package Surcharge | B33: 57.272369 | C33: 56.21 | D33: 57.272369
A34: Import - Late Payment Fee | B34: 83.40% Off Effective Rates | D34: 83.40% Off Effective s
A36: Accessorials | B36: Incentives | C36: Incentives | D36: Incentives
A37: National - Direct Delivery Only | B37: 100.00% Off Effective Rates | D37: 100.00% Off Effective Rates
A38: Export - Direct Delivery Only | B38: 100.00% Off Effective Rates | D38: 100.00% Off Effective Rates
A39: Import - Direct Delivery Only | B39: 100.00% Off Effective Rates | D39: 100.00% Off Effective Rates

Sheet Pick Up Accessorials (hidden)
A1: 2016
A2: Pickup Accessorials
A3: Daily Pickup | B3: 1
A4: UPS Smart Pickup ® | B4: 1
A5: Day-Specific Pickup 1 Day | B5: 1
A6: Day-Specific Pickup 2 Days | B6: 1
A7: Day-Specific Pickup 3 Days | B7: 1
A8: Day-Specific Pickup 4 Days | B8: 1
A9: Daily On-Route Pickup | B9: 1
A10: UPS On-Call Pickup ® - Same Day - Phone | B10: 1
A11: UPS On-Call Pickup ® - Same Day - Web | B11: 1
A12: UPS On-Call Pickup® - Future Day - Phone | B12: 1
A13: UPS On-Call Pickup® - Future Day - Web | B13: 1
A14: UPS On-Call Pickup®- Ground Returns - Same Day - Phone | B14: 1
A15: UPS On-Call Pickup® - Ground Returns - Same Day-Web | B15: 1
A16: UPS On-Call Pickup® - Ground Returns - Future Day - Phone | B16: 1
A17: UPS On-Call Pickup® - Ground Returns - Future Day - Web | B17: 1
A18: UPS On-Call Pickup® - Air Returns - Same Day - Phone | B18: 1
A19: UPS On-Call Pickup® - Air Returns - Same Day - Web | B19: 1
A20: UPS On-Call Pickup® - Air Returns - Future Day - Phone | B20: 1
A21: UPS On-Call Pickup® - Air Returns - Future Day - Web | B21: 1
A22: UPS On-Call Pickup® - Alternate Address - Same Day - Phone | B22: 1
A23: UPS On-Call Pickup® - Alternate Address - Same Day-Web | B23: 1
A24: UPS On-Call Pickup® - Alternate Address - Future Day - Phone | B24: 1
A25: UPS On-Call Pickup® - Alternate Address - Future Day - Web | B25: 1
A26: Residential Pickup Surcharge | B26: 1.334759
A27: Pickup Area Surcharge - Residential | B27: 2.863109
A28: Pickup Area Surcharge - Extended Residential | B28: 3.46426
A29: Pickup Remote Area Surcharge - Alaska Residential | B29: 15.619737
A30: Pickup Remote Area Surcharge - Hawaii Residential | B30: 6.1134

Sheet 2016 Accessorial Matrix
A1: 2016 Accessorial Matrix - Applies to Daily Rate | B1: WSCA
A2: Domestic | B2: Incentive
A3: Additional Handling | B3: 8.45
A4: Address Corrections- Ground | B4: 11.737728
A5: Address Corrections- Air | B5: 11.737728
A6: Address Corrections (Maximum per Shipment) | B6: 84
A7: Carbon Neutral Surcharge - Ground | B7: List
A8: Carbon Neutral Surcharge - Air | B8: List
A9: Chargeback for Consignee Billing Shipments | B9: 11.737728
A10: C.O.D.s | B10: 11.452436
A11: Delivery Area Surcharge - Air Commercial | B11: 2.14
A12: Delivery Area Surcharge - Ground Commercial | B12: 2.08
A13: Delivery Area Surcharge - Air Extended Commercial | B13: 2.14
A14: Delivery Area Surcharge - Ground Extended Commercial | B14: 2.08
A15: Delivery Area Surcharge - Ground Residential | B15: 2.86
A16: Delivery Area Surcharge - Air Residential | B16: 3.2
A17: Delivery Area Surcharge - Air Extended Residential | B17: 3.46
A18: Delivery Area Surcharge - Ground Extended Residential | B18: 3.46
A19: Delivery Area Surcharge - Hundredweight | B19: List
A20: Delivery Change Request - Phone | B20: 3
A21: Delivery Change Request - Web | B21: 2.5
A22: Delivery Confirmation Response | B22: 1
A23: Delivery Confirmation Response - Signature Required | B23: 3.729174
A24: Delivery Confirmation Response - Adult Signature Required | B24: 4.799019
A25: Delivery Intercept - Phone Request (Redirect, Return, or Future Del) | B25: 16.006919
A26: Delivery Intercept - Web Request (Redirect, Return, or Future Del) | B26: 11.737728
A27: My Choice - upgrade fee | B27: List
A28: Dimensional Weight Factor | B28: List
A29: Direct Delivery Only ( National,Export, & Import) | B29: 100% off
A30: Dry Ice | B30: List
A31: Early AM Out of Territory | B31: List
A32: Early AM Premium | B32: List
A33: Excessive Tracking, Tracing, & Refund Requests | B33: List
A34: Hazardous Materials Surcharge, Air | B34: 39.054437
A35: Hazardous Materials Surcharge, Ground | B35: 28.641279
A36: Declared Value | B36: $0.82 per $100 ($2.46 Min.)
A37: Large Package Surcharge | B37: 57.272369
A38: Missing/Invalid Account # Charge | B38: 11.452436
A39: On Call Pickup -- Same Day | B39: 1
A40: On Call Pickup -- Future Day | B40: 1
A41: On-Call Pickup Residential Surcharge | B41: 1.334759
A42: On-Call Pickup Area Surcharge - Residential | B42: 2.863109
A43: On-Call Pickup Area Surcharge - Extended Residential | B43: 3.46426
A44: On-Call Pickup Remote Surcharge - Alaska | B44: 15.619737
A45: On-Call Pickup Remote Surcharge - Hawaii
A46: Over Maximum Limits | B46: List
A47: Proof of Delivery- (Fax or Mail) | B47: List
A48: Quantum View Notify | B48: List
A49: Remote Area Surcharge - Alaska | B49: List
A50: Remote Area Surcharge -Hawaii | B50: List
A51: Residential Surcharge - Ground | B51: 1.34
A52: Residential Surcharge - Air | B52: 1.59
A53: Residential Differential - Hundredweight | B53: List
A54: Residential Surcharge - WWEF | B54: List
A55: Saturday Pickup | B55: 5.328847
A56: Saturday Delivery | B56: 5.328847
A57: Ship Notification (fax) | B57: List
A58: Third Party Billing Service | B58: List
A59: UPS Returns: Print Return Label | B59: List
A60: UPS Returns: Electronic Return Label | B60: List
A61: UPS Returns: Print & Mail Return Label | B61: List
A62: UPS Returns Plus: 1 UPS Pickup Attempt | B62: 5.328847
A63: UPS Returns Plus: 3 UPS Pickup Attempts | B63: 7.468537
A64: UPS Returns Plus: Call Tag | B64: List
A65: Verbal Confirmation of Delivery | B65: List
A66: Weekly Service Charges:
A67: Daily Pickup ($0.00-$74.99 Billed) | B67: 100% off
A68: Daily Pickup ( $75+ Billed) | B68: 100% off
A69: Daily On Route ($0.00-$74.99 Billed) | B69: 100% off
A70: Daily On Route ( $75+ Billed) | B70: 100% off
A71: UPS Smart Pickup | B71: 100% off
A72: Day-Specific Pickup- 4 Days ($0.00-$74.99 Billed) | B72: 100% off
A73: Day-Specific Pickup- 4 Days ( $75+ Billed) | B73: 100% off
A74: Day-Specific Pickup- 3 Days ($0.00-$74.99 Billed) | B74: 100% off
A75: Day-Specific Pickup- 3 Days ( $75+ Billed) | B75: 100% off
A76: Day-Specific Pickup- 1 or 2 Days | B76: 100% off
A77: Printer Lease Fee | B77: List
A78: International
A79: Bill Duty/Tax & Shipping Charges to Shipper (Import & Export) | B79: List
A80: Carbon Neutral Surcharge - International Express | B80: List
A81: Carbon Neutral Surcharge - International Standard | B81: List
A82: Certificate of Origin | B82: List
A83: Currency Conversion Rate | B83: List
A84: Delivery Area Surcharge (Import services) | B84: List
A85: Delivery Area Surcharge - Extended (Import services) | B85: List
A86: Remote Area Surcharge (Import services / Hawaii) | B86: List
A87: Remote Area Surcharge - Extended (Import services / Alaska) | B87: List
A88: Delivered Duty Paid, V.A.T. Unpaid | B88: List
A89: Dimensional Weight Factor | B89: List
A90: Extended Area Surcharge (Export services) | B90: List
A91: Remote Area Surcharge (Export Services) | B91: List
A92: Freight Collect Refusal - International | B92: List
A93: International Dangerous Goods - Standard to/from CA | B93: 35.6615
A94: International Dangerous Goods - Small Package | B94: 60.920031
A95: International Dangerous Goods - WWEF | B95: List
A96: Large Package Surcharge (Import & Export) | B96: 57.272369
A97: Saturday Delivery | B97: 15.619737
A98: Residential Surcharge - Standard to / from Canada and Standard from Mexico | B98: List
A99: Residential Surcharge - From all other origins | B99: 3.199346
A100: Worldwide Express Plus Surcharge | B100: List
A101: Import Control CI Removal Charge | B101: List
A102: Residential Surcharge (Shipment) | B102: List
A103: Carbon Neutral (Pallet) | B103: List
A104: Oversized Pallet Handling Surcharge | B104: 52.626185
A105: Entry Preparation Charge - UPS Standard from Canada
A106: Value for Duty ($0.00 to $200.00) | B106: List
A107: Value for Duty ($200.01 to $1,250.00) | B107: List
A108: Value for Duty ($1,250.01 to $2,500.00) | B108: List
A109: Value for Duty (Each additional $1,000.00 or part thereof) | B109: List
A110: Disbursement Fee minimum | B110: List
A111: Other Government Agency (OGA) Clearance | B111: List
A112: Complex Entries | B112: List
A113: Export - Transborder & Worldwide Three Pickup Attempts Label Charge | B113: 7.468537
A114: Export - Transborder & Worldwide One Pickup Attempt Label Charge | B114: 5.328847
A115: Import - Late Payment Fee | B115: 83.40% Off Effective Rates
A116: Weekly Late Payment Charge | B116: 83.40% Off Effective Rates
A117: Monthly Late Payment Charge | B117: 83.40% Off Effective Rates

Sheet Grd FSC & Language
A1: % off 2015 Locked index
A3: Ground Fuel Surcharge Discount
A5: UPS shall provide to Customer a discount of thirty-five percent (35.0%) off the applicable Ground Fuel Surcharge as set forth in the table, below, for the Term of this Agreement. Any changes to the table below, with the exception of additional surcharges above what is shown in the table, shall be mutually agreed to by both Customer and UPS. [Insert applicable List table] The discount shall apply to the following services:
A7: UPS® Ground
A8: UPS StandardTM to Canada and UPS StandardTM to Mexico
A9: UPS StandardTM from Canada and UPS StandardTM from Mexico

Sheet Air FSC & Language
A1: % off 2015 Locked index
A3: Air and International Fuel Surcharge Discount
A5: UPS shall provide to Customer a discount of thirty-five percent (35.0%) off the applicable International and Air Fuel Surcharge as set forth in the table, below, for the Term of this Agreement. Any changes to the table below, with the exception of additional surcharges above what is shown in the table, shall be mutually agreed to by both Customer and UPS. [Insert applicable List table] The discount shall apply to the following services:
A7: UPS US domestic air services include: UPS Next Day Air® Early A.M. ®; UPS Next Day Air®; UPS Next Day Saver®; UPS 2nd Day Air A.M. ®; UPS 2nd Day Air®; and UPS 3 Day Select®
A9: UPS US international export services include: UPS Worldwide Express Plus® - Export; UPS Worldwide Express® - Export; UPS Worldwide Express Freight® - Export; UPS Worldwide Saver® - Export; and UPS Worldwide Expedited Services® - Export
A11: UPS US international import services include: UPS Worldwide Express Plus® - Import; UPS Worldwide Express® - Import; UPS Worldwide Express Freight® - Import; UPS Worldwide Saver® - Import; UPS Worldwide Expedited® Service - Import and UPS 3 Day Select® from Canada

Sheet FSC Cap Language
A1: Ground Air & International
A2: Fuel Surcharge Rate Cap
A3: UPS agrees to limit the Fuel Surcharge to 7.0% of all transportation charges for the term of this Agreement. Customer will not be billed a Fuel Surcharge greater than the published Fuel Surcharge for any time period and will not be billed a Fuel Surcharge if the published Fuel Surcharge is 0.0%.

Sheet NDA
A1: UPS Next Day Air Service | M1: UPS Next Day Air Service | Q1: Residential Surcharg | T1: 1.59
A2: - Commercial | M2: -Residential
A3: (Per Package Rates from 48 State Origin) | M3: (Per Package Rates from 48 State Origin)
A4: Rates below do not include Residential Surcharge | M4: Rates Include Residential Surcharge
A5: Lbs. | B5: Zone 102 | C5: Zone 103 | D5: Zone 104 | E5: Zone 105 | F5: Zone 106 | G5: Zone 107 | H5: Zone 108 | I5: Zone 124 | J5: Zone 125 | K5: Zone 126 | M5: Lbs. | N5: Zone 102 | O5: Zone 103 | P5: Zone 104 | Q5: Zone 105 | R5: Zone 106 | S5: Zone 107 | T5: Zone 108 | U5: Zone 124 | V5: Zone 125 | W5: Zone 126
A6: Letter | B6: 5.9 | C6: 5.9 | D6: 6.79 | E6: 7.3 | F6: 7.36 | G6: 8.11 | H6: 8.24 | I6: 8.78 | J6: 8.78 | K6: 9.22 | M6: Letter | N6: 7.51 | O6: 7.51 | P6: 8.4 | Q6: 8.91 | R6: 8.97 | S6: 9.72 | T6: 9.85 | U6: 10.39 | V6: 10.39 | W6: 10.83
A7: 1 | B7: 5.91 | C7: 7.92 | D7: 10.12 | E7: 11.24 | F7: 12.2 | G7: 13.03 | H7: 13.39 | I7: 13.79 | J7: 13.79 | K7: 13.81 | M7: 1 | N7: 7.52 | O7: 9.53 | P7: 11.73 | Q7: 12.85 | R7: 13.81 | S7: 14.64 | T7: 15 | U7: 15.4 | V7: 15.4 | W7: 15.42
A8: 2 | B8: 6.03 | C8: 8.55 | D8: 11.4 | E8: 12.43 | F8: 13.79 | G8: 14.37 | H8: 14.95 | I8: 15.06 | J8: 15.06 | K8: 15.07 | M8: 2 | N8: 7.64 | O8: 10.16 | P8: 13.01 | Q8: 14.04 | R8: 15.4 | S8: 15.98 | T8: 16.56 | U8: 16.67 | V8: 16.67 | W8: 16.68
A9: 3 | B9: 6.79 | C9: 9.16 | D9: 12.63 | E9: 13.78 | F9: 15.27 | G9: 15.79 | H9: 16.35 | I9: 16.8 | J9: 16.8 | K9: 18.86 | M9: 3 | N9: 8.4 | O9: 10.77 | P9: 14.24 | Q9: 15.39 | R9: 16.88 | S9: 17.4 | T9: 17.96 | U9: 18.41 | V9: 18.41 | W9: 20.47
A10: 4 | B10: 7.32 | C10: 9.6 | D10: 13.69 | E10: 15.07 | F10: 16.68 | G10: 17.2 | H10: 17.87 | I10: 18.35 | J10: 18.35 | K10: 20.56 | M10: 4 | N10: 8.93 | O10: 11.21 | P10: 15.3 | Q10: 16.68 | R10: 18.29 | S10: 18.81 | T10: 19.48 | U10: 19.96 | V10: 19.96 | W10: 22.17
A11: 5 | B11: 7.39 | C11: 10.01 | D11: 14.96 | E11: 16.49 | F11: 18.08 | G11: 18.62 | H11: 19.29 | I11: 19.86 | J11: 19.86 | K11: 22.14 | M11: 5 | N11: 9 | O11: 11.62 | P11: 16.57 | Q11: 18.1 | R11: 19.69 | S11: 20.23 | T11: 20.9 | U11: 21.47 | V11: 21.47 | W11: 23.75
A12: 6 | B12: 8.19 | C12: 10.57 | D12: 16.19 | E12: 17.76 | F12: 19.59 | G12: 19.93 | H12: 20.78 | I12: 21.27 | J12: 21.27 | K12: 23.84 | M12: 6 | N12: 9.8 | O12: 12.17 | P12: 17.8 | Q12: 19.37 | R12: 21.2 | S12: 21.54 | T12: 22.39 | U12: 22.88 | V12: 22.88 | W12: 25.45
A13: 7 | B13: 8.57 | C13: 11.09 | D13: 17.31 | E13: 19.09 | F13: 20.99 | G13: 21.47 | H13: 22.2 | I13: 22.69 | J13: 22.69 | K13: 25.52 | M13: 7 | N13: 10.18 | O13: 12.7 | P13: 18.92 | Q13: 20.7 | R13: 22.6 | S13: 23.08 | T13: 23.81 | U13: 24.3 | V13: 24.3 | W13: 27.13
A14: 8 | B14: 8.65 | C14: 11.64 | D14: 18.42 | E14: 20.31 | F14: 22.38 | G14: 22.97 | H14: 23.63 | I14: 24.07 | J14: 24.07 | K14: 26.78 | M14: 8 | N14: 10.26 | O14: 13.25 | P14: 20.03 | Q14: 21.92 | R14: 23.99 | S14: 24.58 | T14: 25.24 | U14: 25.68 | V14: 25.68 | W14: 28.39
A15: 9 | B15: 8.76 | C15: 12.07 | D15: 19.48 | E15: 21.63 | F15: 23.78 | G15: 24.47 | H15: 25.15 | I15: 25.6 | J15: 25.6 | K15: 28.53 | M15: 9 | N15: 10.37 | O15: 13.68 | P15: 21.09 | Q15: 23.24 | R15: 25.39 | S15: 26.08 | T15: 26.76 | U15: 27.21 | V15: 27.21 | W15: 30.14
A16: 10 | B16: 8.77 | C16: 12.08 | D16: 20.38 | E16: 22.76 | F16: 23.79 | G16: 24.49 | H16: 25.81 | I16: 27.11 | J16: 27.11 | K16: 28.55 | M16: 10 | N16: 10.38 | O16: 13.69 | P16: 21.99 | Q16: 24.37 | R16: 25.4 | S16: 26.1 | T16: 27.42 | U16: 28.72 | V16: 28.72 | W16: 30.16
A17: 11 | B17: 9.68 | C17: 13.25 | D17: 21.45 | E17: 23.98 | F17: 26.58 | G17: 27.43 | H17: 28.07 | I17: 28.62 | J17: 28.62 | K17: 31.56 | M17: 11 | N17: 11.29 | O17: 14.86 | P17: 23.06 | Q17: 25.59 | R17: 28.19 | S17: 29.04 | T17: 29.68 | U17: 30.23 | V17: 30.23 | W17: 33.17
A18: 12 | B18: 10.08 | C18: 13.79 | D18: 22.61 | E18: 25.11 | F18: 27.88 | G18: 28.92 | H18: 29.58 | I18: 30.02 | J18: 30.02 | K18: 32.29 | M18: 12 | N18: 11.69 | O18: 15.4 | P18: 24.22 | Q18: 26.72 | R18: 29.49 | S18: 30.53 | T18: 31.19 | U18: 31.63 | V18: 31.63 | W18: 33.9
A19: 13 | B19: 10.22 | C19: 14.3 | D19: 23.68 | E19: 26.25 | F19: 29.01 | G19: 30.46 | H19: 31.01 | I19: 31.53 | J19: 31.53 | K19: 33.22 | M19: 13 | N19: 11.83 | O19: 15.91 | P19: 25.29 | Q19: 27.86 | R19: 30.62 | S19: 32.07 | T19: 32.62 | U19: 33.14 | V19: 33.14 | W19: 34.83
A20: 14 | B20: 10.64 | C20: 14.85 | D20: 24.9 | E20: 27.36 | F20: 30.14 | G20: 31.78 | H20: 32.52 | I20: 32.93 | J20: 32.93 | K20: 34.16 | M20: 14 | N20: 12.25 | O20: 16.46 | P20: 26.51 | Q20: 28.97 | R20: 31.75 | S20: 33.39 | T20: 34.13 | U20: 34.54 | V20: 34.54 | W20: 35.77
A21: 15 | B21: 10.76 | C21: 15.24 | D21: 25.74 | E21: 28.46 | F21: 30.16 | G21: 32.81 | H21: 33.77 | I21: 33.95 | J21: 33.95 | K21: 35.03 | M21: 15 | N21: 12.37 | O21: 16.85 | P21: 27.35 | Q21: 30.07 | R21: 31.77 | S21: 34.42 | T21: 35.38 | U21: 35.56 | V21: 35.56 | W21: 36.64
A22: 16 | B22: 11.2 | C22: 15.91 | D22: 26.97 | E22: 29.53 | F22: 32.27 | G22: 33.66 | H22: 34.61 | I22: 35.29 | J22: 35.29 | K22: 36.6 | M22: 16 | N22: 12.8 | O22: 17.52 | P22: 28.57 | Q22: 31.14 | R22: 33.88 | S22: 35.27 | T22: 36.22 | U22: 36.9 | V22: 36.9 | W22: 38.21
A23: 17 | B23: 11.65 | C23: 16.44 | D23: 27.74 | E23: 30.46 | F23: 33.01 | G23: 34.41 | H23: 35.37 | I23: 36.08 | J23: 36.08 | K23: 37.64 | M23: 17 | N23: 13.26 | O23: 18.05 | P23: 29.35 | Q23: 32.07 | R23: 34.62 | S23: 36.02 | T23: 36.98 | U23: 37.69 | V23: 37.69 | W23: 39.25
A24: 18 | B24: 12.05 | C24: 16.97 | D24: 28.58 | E24: 31.1 | F24: 33.75 | G24: 35.18 | H24: 36.3 | I24: 36.97 | J24: 36.97 | K24: 39.17 | M24: 18 | N24: 13.66 | O24: 18.58 | P24: 30.19 | Q24: 32.71 | R24: 35.36 | S24: 36.79 | T24: 37.91 | U24: 38.58 | V24: 38.58 | W24: 40.78
A25: 19 | B25: 12.29 | C25: 17.42 | D25: 29.25 | E25: 31.76 | F25: 34.51 | G25: 35.96 | H25: 37.26 | I25: 38.2 | J25: 38.2 | K25: 40.23 | M25: 19 | N25: 13.9 | O25: 19.03 | P25: 30.86 | Q25: 33.37 | R25: 36.12 | S25: 37.57 | T25: 38.87 | U25: 39.81 | V25: 39.81 | W25: 41.84
A26: 20 | B26: 12.3 | C26: 17.65 | D26: 29.99 | E26: 32.52 | F26: 35.27 | G26: 36.8 | H26: 38.11 | I26: 38.96 | J26: 38.96 | K26: 42.9 | M26: 20 | N26: 13.91 | O26: 19.26 | P26: 31.6 | Q26: 34.13 | R26: 36.88 | S26: 38.41 | T26: 39.72 | U26: 40.57 | V26: 40.57 | W26: 44.51
A27: 21 | B27: 12.95 | C27: 18.34 | D27: 30.64 | E27: 33.36 | F27: 35.99 | G27: 37.53 | H27: 39.15 | I27: 39.85 | J27: 39.85 | K27: 44.09 | M27: 21 | N27: 14.56 | O27: 19.95 | P27: 32.25 | Q27: 34.97 | R27: 37.6 | S27: 39.14 | T27: 40.76 | U27: 41.46 | V27: 41.46 | W27: 45.7
A28: 22 | B28: 13.33 | C28: 18.75 | D28: 31.37 | E28: 34.1 | F28: 36.75 | G28: 38.41 | H28: 40 | I28: 40.73 | J28: 40.73 | K28: 45.11 | M28: 22 | N28: 14.94 | O28: 20.36 | P28: 32.98 | Q28: 35.71 | R28: 38.36 | S28: 40.02 | T28: 41.61 | U28: 42.34 | V28: 42.34 | W28: 46.72
A29: 23 | B29: 13.59 | C29: 19.14 | D29: 32.13 | E29: 34.95 | F29: 37.6 | G29: 39.22 | H29: 40.95 | I29: 41.84 | J29: 41.84 | K29: 45.84 | M29: 23 | N29: 15.2 | O29: 20.75 | P29: 33.74 | Q29: 36.56 | R29: 39.21 | S29: 40.83 | T29: 42.56 | U29: 43.45 | V29: 43.45 | W29: 47.45
A30: 24 | B30: 13.89 | C30: 19.48 | D30: 32.99 | E30: 35.83 | F30: 38.59 | G30: 40.08 | H30: 41.77 | I30: 42.64 | J30: 42.64 | K30: 46.74 | M30: 24 | N30: 15.5 | O30: 21.09 | P30: 34.6 | Q30: 37.44 | R30: 40.2 | S30: 41.69 | T30: 43.38 | U30: 44.25 | V30: 44.25 | W30: 48.35
A31: 25 | B31: 14 | C31: 19.58 | D31: 33.82 | E31: 36.57 | F31: 39 | G31: 41.06 | H31: 42.64 | I31: 43.96 | J31: 43.96 | K31: 47.02 | M31: 25 | N31: 15.61 | O31: 21.19 | P31: 35.43 | Q31: 38.18 | R31: 40.61 | S31: 42.67 | T31: 44.25 | U31: 45.57 | V31: 45.57 | W31: 48.63
A32: 26 | B32: 14.55 | C32: 20.33 | D32: 34.75 | E32: 37.46 | F32: 40.67 | G32: 42.11 | H32: 43.53 | I32: 44.64 | J32: 44.64 | K32: 48.53 | M32: 26 | N32: 16.16 | O32: 21.94 | P32: 36.36 | Q32: 39.07 | R32: 42.28 | S32: 43.72 | T32: 45.14 | U32: 46.25 | V32: 46.25 | W32: 50.14
A33: 27 | B33: 14.82 | C33: 20.71 | D33: 35.61 | E33: 38.53 | F33: 41.8 | G33: 43.01 | H33: 44.36 | I33: 45.56 | J33: 45.56 | K33: 49.36 | M33: 27 | N33: 16.43 | O33: 22.32 | P33: 37.22 | Q33: 40.14 | R33: 43.41 | S33: 44.62 | T33: 45.97 | U33: 47.17 | V33: 47.17 | W33: 50.96
A34: 28 | B34: 15.2 | C34: 21.17 | D34: 36.55 | E34: 39.64 | F34: 42.65 | G34: 43.87 | H34: 45.3 | I34: 46.4 | J34: 46.4 | K34: 50.4 | M34: 28 | N34: 16.81 | O34: 22.78 | P34: 38.16 | Q34: 41.25 | R34: 44.26 | S34: 45.48 | T34: 46.91 | U34: 48.01 | V34: 48.01 | W34: 52.01
A35: 29 | B35: 15.36 | C35: 21.52 | D35: 37.48 | E35: 40.48 | F35: 43.56 | G35: 44.83 | H35: 46.26 | I35: 47.16 | J35: 47.16 | K35: 51.55 | M35: 29 | N35: 16.97 | O35: 23.13 | P35: 39.09 | Q35: 42.09 | R35: 45.17 | S35: 46.44 | T35: 47.87 | U35: 48.77 | V35: 48.77 | W35: 53.16
A36: 30 | B36: 15.37 | C36: 21.54 | D36: 38.23 | E36: 41.4 | F36: 43.57 | G36: 45.68 | H36: 46.57 | I36: 48.01 | J36: 48.01 | K36: 51.74 | M36: 30 | N36: 16.98 | O36: 23.15 | P36: 39.84 | Q36: 43.01 | R36: 45.18 | S36: 47.29 | T36: 48.18 | U36: 49.62 | V36: 49.62 | W36: 53.35
A37: 31 | B37: 16.06 | C37: 22.33 | D37: 39.05 | E37: 42.35 | F37: 45.33 | G37: 46.62 | H37: 48.14 | I37: 48.88 | J37: 48.88 | K37: 53.43 | M37: 31 | N37: 17.67 | O37: 23.94 | P37: 40.66 | Q37: 43.96 | R37: 46.94 | S37: 48.23 | T37: 49.75 | U37: 50.49 | V37: 50.49 | W37: 55.04
A38: 32 | B38: 16.51 | C38: 22.84 | D38: 39.92 | E38: 43.3 | F38: 46.26 | G38: 47.55 | H38: 49.06 | I38: 49.79 | J38: 49.79 | K38: 54.58 | M38: 32 | N38: 18.12 | O38: 24.45 | P38: 41.53 | Q38: 44.91 | R38: 47.87 | S38: 49.16 | T38: 50.67 | U38: 51.4 | V38: 51.4 | W38: 56.19
A39: 33 | B39: 16.9 | C39: 23.42 | D39: 40.67 | E39: 44.22 | F39: 47.21 | G39: 48.61 | H39: 50.17 | I39: 50.92 | J39: 50.92 | K39: 55.76 | M39: 33 | N39: 18.51 | O39: 25.03 | P39: 42.28 | Q39: 45.83 | R39: 48.82 | S39: 50.22 | T39: 51.78 | U39: 52.53 | V39: 52.53 | W39: 57.37
A40: 34 | B40: 17.27 | C40: 23.78 | D40: 41.61 | E40: 45.16 | F40: 48.22 | G40: 49.65 | H40: 51.22 | I40: 51.96 | J40: 51.96 | K40: 56.82 | M40: 34 | N40: 18.88 | O40: 25.39 | P40: 43.22 | Q40: 46.77 | R40: 49.83 | S40: 51.26 | T40: 52.83 | U40: 53.57 | V40: 53.57 | W40: 58.43
A41: 35 | B41: 17.64 | C41: 24.23 | D41: 42.53 | E41: 46.11 | F41: 49.14 | G41: 50.71 | H41: 52.23 | I41: 53.02 | J41: 53.02 | K41: 57.96 | M41: 35 | N41: 19.25 | O41: 25.84 | P41: 44.14 | Q41: 47.72 | R41: 50.75 | S41: 52.32 | T41: 53.84 | U41: 54.63 | V41: 54.63 | W41: 59.57
A42: 36 | B42: 18.23 | C42: 24.6 | D42: 43.45 | E42: 47.03 | F42: 50.1 | G42: 51.82 | H42: 53.25 | I42: 54.03 | J42: 54.03 | K42: 59.23 | M42: 36 | N42: 19.84 | O42: 26.21 | P42: 45.06 | Q42: 48.64 | R42: 51.71 | S42: 53.43 | T42: 54.86 | U42: 55.64 | V42: 55.64 | W42: 60.84
A43: 37 | B43: 18.24 | C43: 25.3 | D43: 44.3 | E43: 47.99 | F43: 51.11 | G43: 52.97 | H43: 54.36 | I43: 55.18 | J43: 55.18 | K43: 60.19 | M43: 37 | N43: 19.85 | O43: 26.91 | P43: 45.91 | Q43: 49.6 | R43: 52.72 | S43: 54.58 | T43: 55.97 | U43: 56.79 | V43: 56.79 | W43: 61.8
A44: 38 | B44: 18.53 | C44: 25.71 | D44: 45.08 | E44: 48.84 | F44: 52.08 | G44: 54.21 | H44: 55.39 | I44: 56.21 | J44: 56.21 | K44: 61.37 | M44: 38 | N44: 20.14 | O44: 27.32 | P44: 46.69 | Q44: 50.45 | R44: 53.69 | S44: 55.82 | T44: 57 | U44: 57.82 | V44: 57.82 | W44: 62.98
A45: 39 | B45: 19.14 | C45: 26.15 | D45: 45.92 | E45: 49.75 | F45: 53.06 | G45: 55.32 | H45: 56.49 | I45: 57.32 | J45: 57.32 | K45: 61.39 | M45: 39 | N45: 20.75 | O45: 27.76 | P45: 47.53 | Q45: 51.36 | R45: 54.67 | S45: 56.93 | T45: 58.1 | U45: 58.93 | V45: 58.93 | W45: 63
A46: 40 | B46: 19.15 | C46: 26.59 | D46: 46.76 | E46: 50.69 | F46: 54 | G46: 56.39 | H46: 57.64 | I46: 58.47 | J46: 58.47 | K46: 61.4 | M46: 40 | N46: 20.76 | O46: 28.2 | P46: 48.37 | Q46: 52.3 | R46: 55.61 | S46: 58 | T46: 59.25 | U46: 60.08 | V46: 60.08 | W46: 63.01
A47: 41 | B47: 19.78 | C47: 27.14 | D47: 47.59 | E47: 51.65 | F47: 55.04 | G47: 57.31 | H47: 58.71 | I47: 59.6 | J47: 59.6 | K47: 65.23 | M47: 41 | N47: 21.39 | O47: 28.75 | P47: 49.2 | Q47: 53.26 | R47: 56.65 | S47: 58.92 | T47: 60.32 | U47: 61.21 | V47: 61.21 | W47: 66.84
A48: 42 | B48: 20.07 | C48: 27.69 | D48: 48.53 | E48: 52.58 | F48: 56.16 | G48: 58.64 | H48: 59.92 | I48: 60.83 | J48: 60.83 | K48: 66.26 | M48: 42 | N48: 21.68 | O48: 29.3 | P48: 50.14 | Q48: 54.19 | R48: 57.77 | S48: 60.25 | T48: 61.53 | U48: 62.44 | V48: 62.44 | W48: 67.87
A49: 43 | B49: 20.59 | C49: 28.2 | D49: 49.49 | E49: 53.51 | F49: 57.2 | G49: 59.59 | H49: 61.15 | I49: 62.05 | J49: 62.05 | K49: 67.34 | M49: 43 | N49: 22.2 | O49: 29.81 | P49: 51.1 | Q49: 55.12 | R49: 58.81 | S49: 61.2 | T49: 62.76 | U49: 63.66 | V49: 63.66 | W49: 68.95
A50: 44 | B50: 21.06 | C50: 28.76 | D50: 50.32 | E50: 54.45 | F50: 58.21 | G50: 60.63 | H50: 62.45 | I50: 63.39 | J50: 63.39 | K50: 68.61 | M50: 44 | N50: 22.67 | O50: 30.37 | P50: 51.93 | Q50: 56.06 | R50: 59.82 | S50: 62.24 | T50: 64.06 | U50: 65 | V50: 65 | W50: 70.22
A51: 45 | B51: 21.5 | C51: 29.36 | D51: 51.22 | E51: 55.38 | F51: 59.34 | G51: 61.69 | H51: 63.45 | I51: 64.39 | J51: 64.39 | K51: 69.9 | M51: 45 | N51: 23.11 | O51: 30.97 | P51: 52.83 | Q51: 56.99 | R51: 60.95 | S51: 63.3 | T51: 65.06 | U51: 66 | V51: 66 | W51: 71.51
A52: 46 | B52: 21.91 | C52: 29.99 | D52: 52.12 | E52: 56.32 | F52: 60.47 | G52: 62.75 | H52: 64.57 | I52: 65.53 | J52: 65.53 | K52: 70.8 | M52: 46 | N52: 23.52 | O52: 31.6 | P52: 53.73 | Q52: 57.93 | R52: 62.08 | S52: 64.36 | T52: 66.18 | U52: 67.14 | V52: 67.14 | W52: 72.4
A53: 47 | B53: 22.29 | C53: 30.63 | D53: 53.03 | E53: 57.17 | F53: 61.58 | G53: 63.65 | H53: 65.59 | I53: 66.58 | J53: 66.58 | K53: 70.82 | M53: 47 | N53: 23.9 | O53: 32.24 | P53: 54.64 | Q53: 58.78 | R53: 63.19 | S53: 65.26 | T53: 67.2 | U53: 68.19 | V53: 68.19 | W53: 72.43
A54: 48 | B54: 22.43 | C54: 31.23 | D54: 53.79 | E54: 58.11 | F54: 62.7 | G54: 64.81 | H54: 66.81 | I54: 67.81 | J54: 67.81 | K54: 72.38 | M54: 48 | N54: 24.04 | O54: 32.84 | P54: 55.4 | Q54: 59.72 | R54: 64.31 | S54: 66.41 | T54: 68.42 | U54: 69.42 | V54: 69.42 | W54: 73.98
A55: 49 | B55: 22.61 | C55: 31.95 | D55: 54.55 | E55: 58.28 | F55: 62.72 | G55: 65.84 | H55: 68 | I55: 69.01 | J55: 69.01 | K55: 72.4 | M55: 49 | N55: 24.22 | O55: 33.56 | P55: 56.16 | Q55: 59.89 | R55: 64.33 | S55: 67.45 | T55: 69.61 | U55: 70.62 | V55: 70.62 | W55: 74.01
A56: 50 | B56: 22.62 | C56: 31.99 | D56: 54.57 | E56: 58.3 | F56: 62.73 | G56: 65.85 | H56: 68.02 | I56: 69.02 | J56: 69.02 | K56: 72.41 | M56: 50 | N56: 24.23 | O56: 33.6 | P56: 56.18 | Q56: 59.91 | R56: 64.34 | S56: 67.46 | T56: 69.63 | U56: 70.63 | V56: 70.63 | W56: 74.02
A57: 51 | B57: 23.84 | C57: 33.29 | D57: 56.28 | E57: 60.91 | F57: 66.15 | G57: 68.12 | H57: 70.61 | I57: 71.64 | J57: 71.64 | K57: 74.82 | M57: 51 | N57: 25.45 | O57: 34.9 | P57: 57.89 | Q57: 62.52 | R57: 67.76 | S57: 69.73 | T57: 72.22 | U57: 73.25 | V57: 73.25 | W57: 76.43
A58: 52 | B58: 24.2 | C58: 33.99 | D58: 57.16 | E58: 61.84 | F58: 67.26 | G58: 69.24 | H58: 71.99 | I58: 73.07 | J58: 73.07 | K58: 77.31 | M58: 52 | N58: 25.81 | O58: 35.6 | P58: 58.77 | Q58: 63.45 | R58: 68.87 | S58: 70.85 | T58: 73.6 | U58: 74.68 | V58: 74.68 | W58: 78.92
A59: 53 | B59: 24.67 | C59: 34.55 | D59: 58.03 | E59: 62.87 | F59: 68.47 | G59: 70.37 | H59: 73.2 | I59: 74.31 | J59: 74.31 | K59: 77.33 | M59: 53 | N59: 26.28 | O59: 36.16 | P59: 59.64 | Q59: 64.48 | R59: 70.08 | S59: 71.98 | T59: 74.81 | U59: 75.92 | V59: 75.92 | W59: 78.94
A60: 54 | B60: 25.08 | C60: 35.24 | D60: 58.99 | E60: 63.8 | F60: 69.5 | G60: 71.73 | H60: 74.59 | I60: 75.69 | J60: 75.69 | K60: 79.45 | M60: 54 | N60: 26.69 | O60: 36.85 | P60: 60.6 | Q60: 65.41 | R60: 71.11 | S60: 73.34 | T60: 76.2 | U60: 77.3 | V60: 77.3 | W60: 81.06
A61: 55 | B61: 25.45 | C61: 35.88 | D61: 60.03 | E61: 64.67 | F61: 70.56 | G61: 72.92 | H61: 75.69 | I61: 76.84 | J61: 76.84 | K61: 82.02 | M61: 55 | N61: 27.06 | O61: 37.49 | P61: 61.64 | Q61: 66.28 | R61: 72.17 | S61: 74.53 | T61: 77.3 | U61: 78.45 | V61: 78.45 | W61: 83.63
A62: 56 | B62: 25.92 | C62: 36.57 | D62: 61.13 | E62: 65.42 | F62: 71.66 | G62: 74.28 | H62: 76.91 | I62: 78.07 | J62: 78.07 | K62: 82.04 | M62: 56 | N62: 27.53 | O62: 38.18 | P62: 62.74 | Q62: 67.03 | R62: 73.27 | S62: 75.89 | T62: 78.52 | U62: 79.68 | V62: 79.68 | W62: 83.65
A63: 57 | B63: 26.41 | C63: 37.2 | D63: 62.23 | E63: 66.59 | F63: 72.7 | G63: 75.49 | H63: 78.23 | I63: 79.38 | J63: 79.38 | K63: 84.43 | M63: 57 | N63: 28.02 | O63: 38.81 | P63: 63.84 | Q63: 68.2 | R63: 74.31 | S63: 77.1 | T63: 79.84 | U63: 80.99 | V63: 80.99 | W63: 86.04
A64: 58 | B64: 26.99 | C64: 37.82 | D64: 63.36 | E64: 67.5 | F64: 73.81 | G64: 76.84 | H64: 79.61 | I64: 80.79 | J64: 80.79 | K64: 84.45 | M64: 58 | N64: 28.6 | O64: 39.43 | P64: 64.97 | Q64: 69.11 | R64: 75.42 | S64: 78.45 | T64: 81.22 | U64: 82.4 | V64: 82.4 | W64: 86.06
A65: 59 | B65: 27.37 | C65: 38.45 | D65: 64.46 | E65: 68.33 | F65: 74.93 | G65: 78.04 | H65: 81.02 | I65: 82.22 | J65: 82.22 | K65: 85.71 | M65: 59 | N65: 28.98 | O65: 40.06 | P65: 66.07 | Q65: 69.94 | R65: 76.54 | S65: 79.65 | T65: 82.63 | U65: 83.83 | V65: 83.83 | W65: 87.32
A66: 60 | B66: 27.66 | C66: 38.72 | D66: 65.52 | E66: 69.49 | F66: 76.13 | G66: 79.38 | H66: 81.99 | I66: 83.2 | J66: 83.2 | K66: 86.8 | M66: 60 | N66: 29.27 | O66: 40.33 | P66: 67.13 | Q66: 71.1 | R66: 77.74 | S66: 80.99 | T66: 83.6 | U66: 84.81 | V66: 84.81 | W66: 88.41
A67: 61 | B67: 28.4 | C67: 39.78 | D67: 66.63 | E67: 70.37 | F67: 77.34 | G67: 80.6 | H67: 82.01 | I67: 85.04 | J67: 85.04 | K67: 90.19 | M67: 61 | N67: 30.01 | O67: 41.39 | P67: 68.24 | Q67: 71.98 | R67: 78.95 | S67: 82.21 | T67: 83.62 | U67: 86.65 | V67: 86.65 | W67: 91.8
A68: 62 | B68: 29.08 | C68: 40.5 | D68: 67.66 | E68: 71.71 | F68: 78.55 | G68: 81.92 | H68: 85.08 | I68: 86.34 | J68: 86.34 | K68: 91.25 | M68: 62 | N68: 30.69 | O68: 42.11 | P68: 69.27 | Q68: 73.32 | R68: 80.16 | S68: 83.53 | T68: 86.69 | U68: 87.95 | V68: 87.95 | W68: 92.86
A69: 63 | B69: 29.57 | C69: 41.29 | D69: 68.8 | E69: 72.75 | F69: 79.84 | G69: 83.34 | H69: 86.48 | I69: 87.77 | J69: 87.77 | K69: 92.38 | M69: 63 | N69: 31.18 | O69: 42.9 | P69: 70.41 | Q69: 74.36 | R69: 81.45 | S69: 84.95 | T69: 88.09 | U69: 89.38 | V69: 89.38 | W69: 93.99
A70: 64 | B70: 30.13 | C70: 42.11 | D70: 69.92 | E70: 73.97 | F70: 81.17 | G70: 84.78 | H70: 87.88 | I70: 89.17 | J70: 89.17 | K70: 94.48 | M70: 64 | N70: 31.74 | O70: 43.72 | P70: 71.53 | Q70: 75.58 | R70: 82.78 | S70: 86.39 | T70: 89.49 | U70: 90.78 | V70: 90.78 | W70: 96.09
A71: 65 | B71: 30.31 | C71: 42.91 | D71: 70.94 | E71: 75.16 | F71: 82.47 | G71: 86.29 | H71: 89.06 | I71: 89.19 | J71: 89.19 | K71: 94.5 | M71: 65 | N71: 31.92 | O71: 44.52 | P71: 72.55 | Q71: 76.77 | R71: 84.07 | S71: 87.9 | T71: 90.67 | U71: 90.8 | V71: 90.8 | W71: 96.11
A72: 66 | B72: 31.2 | C72: 43.69 | D72: 72.08 | E72: 76.38 | F72: 83.76 | G72: 87.7 | H72: 90.67 | I72: 92.01 | J72: 92.01 | K72: 96.3 | M72: 66 | N72: 32.81 | O72: 45.3 | P72: 73.69 | Q72: 77.99 | R72: 85.37 | S72: 89.31 | T72: 92.27 | U72: 93.62 | V72: 93.62 | W72: 97.91
A73: 67 | B73: 31.34 | C73: 44.52 | D73: 73.11 | E73: 77.71 | F73: 85.18 | G73: 89.21 | H73: 92.23 | I73: 93.61 | J73: 93.61 | K73: 97.9 | M73: 67 | N73: 32.95 | O73: 46.13 | P73: 74.72 | Q73: 79.32 | R73: 86.79 | S73: 90.82 | T73: 93.84 | U73: 95.22 | V73: 95.22 | W73: 99.51
A74: 68 | B74: 32.33 | C74: 45.3 | D74: 74.23 | E74: 79.01 | F74: 86.48 | G74: 89.23 | H74: 93.72 | I74: 95.11 | J74: 95.11 | K74: 99.96 | M74: 68 | N74: 33.93 | O74: 46.91 | P74: 75.84 | Q74: 80.62 | R74: 88.09 | S74: 90.84 | T74: 95.33 | U74: 96.72 | V74: 96.72 | W74: 101.57
A75: 69 | B75: 32.81 | C75: 46.11 | D75: 75.34 | E75: 80.32 | F75: 86.5 | G75: 89.67 | H75: 95.3 | I75: 96.72 | J75: 96.72 | K75: 101.58 | M75: 69 | N75: 34.42 | O75: 47.72 | P75: 76.95 | Q75: 81.93 | R75: 88.11 | S75: 91.28 | T75: 96.91 | U75: 98.33 | V75: 98.33 | W75: 103.19
A76: 70 | B76: 32.82 | C76: 46.46 | D76: 75.35 | E76: 81.55 | F76: 87.8 | G76: 90.79 | H76: 96.6 | I76: 98.03 | J76: 98.03 | K76: 103.06 | M76: 70 | N76: 34.43 | O76: 48.07 | P76: 76.96 | Q76: 83.16 | R76: 89.41 | S76: 92.4 | T76: 98.21 | U76: 99.64 | V76: 99.64 | W76: 104.67
A77: 71 | B77: 33.95 | C77: 47.78 | D77: 77.52 | E77: 82.86 | F77: 88.21 | G77: 92.04 | H77: 98.35 | I77: 99.8 | J77: 99.8 | K77: 104.59 | M77: 71 | N77: 35.56 | O77: 49.38 | P77: 79.13 | Q77: 84.47 | R77: 89.82 | S77: 93.65 | T77: 99.96 | U77: 101.41 | V77: 101.41 | W77: 106.2
A78: 72 | B78: 34.25 | C78: 48.17 | D78: 77.53 | E78: 84.18 | F78: 89.28 | G78: 93.24 | H78: 98.37 | I78: 99.82 | J78: 99.82 | K78: 106.58 | M78: 72 | N78: 35.86 | O78: 49.78 | P78: 79.14 | Q78: 85.79 | R78: 90.89 | S78: 94.85 | T78: 99.98 | U78: 101.43 | V78: 101.43 | W78: 108.19
A79: 73 | B79: 34.26 | C79: 49.49 | D79: 77.56 | E79: 84.19 | F79: 90.5 | G79: 94.71 | H79: 100.09 | I79: 101.54 | J79: 101.54 | K79: 109.53 | M79: 73 | N79: 35.87 | O79: 51.1 | P79: 79.17 | Q79: 85.8 | R79: 92.11 | S79: 96.32 | T79: 101.7 | U79: 103.15 | V79: 103.15 | W79: 111.14
A80: 74 | B80: 34.27 | C80: 50.29 | D80: 78.56 | E80: 86.78 | F80: 91.93 | G80: 98.57 | H80: 100.54 | I80: 101.56 | J80: 101.56 | K80: 109.54 | M80: 74 | N80: 35.88 | O80: 51.9 | P80: 80.17 | Q80: 88.39 | R80: 93.53 | S80: 100.18 | T80: 102.15 | U80: 103.17 | V80: 103.17 | W80: 111.15
A81: 75 | B81: 34.29 | C81: 50.72 | D81: 80.79 | E81: 86.8 | F81: 92.63 | G81: 99.92 | H81: 101.56 | I81: 101.57 | J81: 101.57 | K81: 109.56 | M81: 75 | N81: 35.9 | O81: 52.33 | P81: 82.4 | Q81: 88.41 | R81: 94.24 | S81: 101.53 | T81: 103.17 | U81: 103.18 | V81: 103.18 | W81: 111.17
A82: 76 | B82: 36.43 | C82: 51.97 | D82: 82.94 | E82: 89.31 | F82: 94.44 | G82: 99.92 | H82: 105.23 | I82: 105.81 | J82: 105.81 | K82: 114.39 | M82: 76 | N82: 38.03 | O82: 53.58 | P82: 84.55 | Q82: 90.92 | R82: 96.05 | S82: 101.53 | T82: 106.84 | U82: 107.42 | V82: 107.42 | W82: 116
A83: 77 | B83: 36.45 | C83: 52.3 | D83: 83.31 | E83: 89.33 | F83: 95.68 | G83: 100.54 | H83: 105.44 | I83: 108.21 | J83: 108.21 | K83: 114.4 | M83: 77 | N83: 38.06 | O83: 53.91 | P83: 84.92 | Q83: 90.94 | R83: 97.29 | S83: 102.15 | T83: 107.05 | U83: 109.82 | V83: 109.82 | W83: 116.01
A84: 78 | B84: 36.45 | C84: 52.6 | D84: 83.32 | E84: 89.8 | F84: 96.87 | G84: 101.86 | H84: 107.07 | I84: 109.62 | J84: 109.62 | K84: 115.38 | M84: 78 | N84: 38.06 | O84: 54.21 | P84: 84.93 | Q84: 91.41 | R84: 98.48 | S84: 103.47 | T84: 108.68 | U84: 111.23 | V84: 111.23 | W84: 116.99
A85: 79 | B85: 36.46 | C85: 53.81 | D85: 83.61 | E85: 92.36 | F85: 98.12 | G85: 103.26 | H85: 108.63 | I85: 111.03 | J85: 111.03 | K85: 117.57 | M85: 79 | N85: 38.07 | O85: 55.42 | P85: 85.22 | Q85: 93.97 | R85: 99.73 | S85: 104.87 | T85: 110.24 | U85: 112.64 | V85: 112.64 | W85: 119.18
A86: 80 | B86: 36.48 | C86: 53.82 | D86: 84.26 | E86: 92.45 | F86: 98.63 | G86: 104.81 | H86: 109.61 | I86: 112.45 | J86: 112.45 | K86: 118.65 | M86: 80 | N86: 38.09 | O86: 55.43 | P86: 85.87 | Q86: 94.06 | R86: 100.24 | S86: 106.42 | T86: 111.22 | U86: 114.06 | V86: 114.06 | W86: 120.26
A87: 81 | B87: 38.93 | C87: 54.88 | D87: 85.28 | E87: 93.58 | F87: 100.21 | G87: 106.18 | H87: 111.34 | I87: 112.47 | J87: 112.47 | K87: 118.97 | M87: 81 | N87: 40.54 | O87: 56.49 | P87: 86.89 | Q87: 95.19 | R87: 101.82 | S87: 107.79 | T87: 112.95 | U87: 114.08 | V87: 114.08 | W87: 120.58
A88: 82 | B88: 39.55 | C88: 56.64 | D88: 88.13 | E88: 96.46 | F88: 100.94 | G88: 107.7 | H88: 113.48 | I88: 115.16 | J88: 115.16 | K88: 122.75 | M88: 82 | N88: 41.16 | O88: 58.25 | P88: 89.74 | Q88: 98.07 | R88: 102.55 | S88: 109.31 | T88: 115.09 | U88: 116.77 | V88: 116.77 | W88: 124.36
A89: 83 | B89: 40.01 | C89: 57.32 | D89: 88.28 | E89: 96.46 | F89: 102.84 | G89: 109.23 | H89: 114.23 | I89: 115.49 | J89: 115.49 | K89: 122.78 | M89: 83 | N89: 41.62 | O89: 58.93 | P89: 89.89 | Q89: 98.07 | R89: 104.45 | S89: 110.84 | T89: 115.84 | U89: 117.1 | V89: 117.1 | W89: 124.39
A90: 84 | B90: 40.03 | C90: 57.41 | D90: 89.23 | E90: 97.11 | F90: 102.86 | G90: 110.81 | H90: 115.49 | I90: 115.53 | J90: 115.53 | K90: 122.79 | M90: 84 | N90: 41.64 | O90: 59.02 | P90: 90.84 | Q90: 98.72 | R90: 104.47 | S90: 112.42 | T90: 117.1 | U90: 117.14 | V90: 117.14 | W90: 124.4
A91: 85 | B91: 40.04 | C91: 58.12 | D91: 90.67 | E91: 99.91 | F91: 105.3 | G91: 112.25 | H91: 116.91 | I91: 117.01 | J91: 117.01 | K91: 125.56 | M91: 85 | N91: 41.65 | O91: 59.73 | P91: 92.27 | Q91: 101.52 | R91: 106.91 | S91: 113.86 | T91: 118.52 | U91: 118.62 | V91: 118.62 | W91: 127.17
A92: 86 | B92: 41.33 | C92: 58.85 | D92: 92.59 | E92: 99.92 | F92: 105.32 | G92: 113.64 | H92: 118.3 | I92: 119.51 | J92: 119.51 | K92: 125.58 | M92: 86 | N92: 42.94 | O92: 60.46 | P92: 94.2 | Q92: 101.53 | R92: 106.93 | S92: 115.25 | T92: 119.91 | U92: 121.12 | V92: 121.12 | W92: 127.19
A93: 87 | B93: 41.35 | C93: 60.1 | D93: 94.02 | E93: 100.88 | F93: 105.32 | G93: 115.23 | H93: 119.61 | I93: 120.84 | J93: 120.84 | K93: 129.61 | M93: 87 | N93: 42.96 | O93: 61.71 | P93: 95.63 | Q93: 102.49 | R93: 106.93 | S93: 116.84 | T93: 121.22 | U93: 122.45 | V93: 122.45 | W93: 131.22
A94: 88 | B94: 41.36 | C94: 60.24 | D94: 94.94 | E94: 101.97 | F94: 108.4 | G94: 116.51 | H94: 121.84 | I94: 122.53 | J94: 122.53 | K94: 129.63 | M94: 88 | N94: 42.97 | O94: 61.85 | P94: 96.55 | Q94: 103.58 | R94: 110.01 | S94: 118.12 | T94: 123.45 | U94: 124.14 | V94: 124.14 | W94: 131.24
A95: 89 | B95: 41.38 | C95: 60.25 | D95: 96.87 | E95: 103.05 | F95: 113.83 | G95: 117.82 | H95: 122.48 | I95: 124.71 | J95: 124.71 | K95: 133.48 | M95: 89 | N95: 42.99 | O95: 61.86 | P95: 98.48 | Q95: 104.66 | R95: 115.44 | S95: 119.43 | T95: 124.09 | U95: 126.32 | V95: 126.32 | W95: 135.09
A96: 90 | B96: 41.39 | C96: 60.26 | D96: 98.44 | E96: 104.18 | F96: 113.84 | G96: 119.1 | H96: 123.78 | I96: 124.74 | J96: 124.74 | K96: 135.23 | M96: 90 | N96: 43 | O96: 61.87 | P96: 100.05 | Q96: 105.79 | R96: 115.45 | S96: 120.71 | T96: 125.38 | U96: 126.35 | V96: 126.35 | W96: 136.84
A97: 91 | B97: 43.79 | C97: 62.86 | D97: 99.76 | E97: 105.49 | F97: 116.34 | G97: 120.47 | H97: 125.15 | I97: 127.91 | J97: 127.91 | K97: 137.77 | M97: 91 | N97: 45.4 | O97: 64.47 | P97: 101.37 | Q97: 107.09 | R97: 117.95 | S97: 122.08 | T97: 126.76 | U97: 129.52 | V97: 129.52 | W97: 139.38
A98: 92 | B98: 43.82 | C98: 62.87 | D98: 101.08 | E98: 106.94 | F98: 116.37 | G98: 122.53 | H98: 126.92 | I98: 129.31 | J98: 129.31 | K98: 139.01 | M98: 92 | N98: 45.43 | O98: 64.48 | P98: 102.69 | Q98: 108.55 | R98: 117.98 | S98: 124.14 | T98: 128.53 | U98: 130.92 | V98: 130.92 | W98: 140.62
A99: 93 | B99: 43.83 | C99: 63.08 | D99: 102.28 | E99: 108.24 | F99: 116.38 | G99: 123.86 | H99: 127.95 | I99: 130.7 | J99: 130.7 | K99: 139.03 | M99: 93 | N99: 45.44 | O99: 64.69 | P99: 103.89 | Q99: 109.85 | R99: 117.99 | S99: 125.47 | T99: 129.56 | U99: 132.31 | V99: 132.31 | W99: 140.64
A100: 94 | B100: 43.84 | C100: 63.71 | D100: 103.53 | E100: 109.47 | F100: 116.67 | G100: 124.48 | H100: 129.24 | I100: 132.03 | J100: 132.03 | K100: 142.56 | M100: 94 | N100: 45.45 | O100: 65.32 | P100: 105.14 | Q100: 111.08 | R100: 118.28 | S100: 126.09 | T100: 130.85 | U100: 133.64 | V100: 133.64 | W100: 144.17
A101: 95 | B101: 43.84 | C101: 63.72 | D101: 104.49 | E101: 110.68 | F101: 117.99 | G101: 125.68 | H101: 130.7 | I101: 132.04 | J101: 132.04 | K101: 142.57 | M101: 95 | N101: 45.45 | O101: 65.33 | P101: 106.1 | Q101: 112.29 | R101: 119.6 | S101: 127.29 | T101: 132.31 | U101: 133.65 | V101: 133.65 | W101: 144.18
A102: 96 | B102: 46.4 | C102: 66.23 | D102: 105.63 | E102: 111.89 | F102: 119.29 | G102: 127.06 | H102: 132.01 | I102: 132.06 | J102: 132.06 | K102: 142.59 | M102: 96 | N102: 48.01 | O102: 67.84 | P102: 107.24 | Q102: 113.5 | R102: 120.9 | S102: 128.67 | T102: 133.62 | U102: 133.67 | V102: 133.67 | W102: 144.2
A103: 97 | B103: 46.81 | C103: 66.32 | D103: 106.7 | E103: 113.24 | F103: 122.8 | G103: 129.23 | H103: 134.29 | I103: 135.02 | J103: 135.02 | K103: 142.6 | M103: 97 | N103: 48.42 | O103: 67.93 | P103: 108.31 | Q103: 114.85 | R103: 124.41 | S103: 130.84 | T103: 135.9 | U103: 136.63 | V103: 136.63 | W103: 144.21
A104: 98 | B104: 46.84 | C104: 67.04 | D104: 107.83 | E104: 113.25 | F104: 122.82 | G104: 129.72 | H104: 134.83 | I104: 135.16 | J104: 135.16 | K104: 148.47 | M104: 98 | N104: 48.45 | O104: 68.65 | P104: 109.44 | Q104: 114.86 | R104: 124.43 | S104: 131.33 | T104: 136.44 | U104: 136.77 | V104: 136.77 | W104: 150.08
A105: 99 | B105: 47.81 | C105: 67.11 | D105: 108.71 | E105: 115.66 | F105: 123.04 | G105: 131.11 | H105: 136.21 | I105: 136.63 | J105: 136.63 | K105: 151.43 | M105: 99 | N105: 49.42 | O105: 68.72 | P105: 110.32 | Q105: 117.27 | R105: 124.65 | S105: 132.72 | T105: 137.82 | U105: 138.24 | V105: 138.24 | W105: 153.04
A106: 100 | B106: 48.21 | C106: 68.42 | D106: 109.43 | E106: 116.89 | F106: 127.4 | G106: 132.67 | H106: 137.66 | I106: 139.87 | J106: 139.87 | K106: 151.44 | M106: 100 | N106: 49.82 | O106: 70.03 | P106: 111.04 | Q106: 118.5 | R106: 129.01 | S106: 134.28 | T106: 139.27 | U106: 141.48 | V106: 141.48 | W106: 153.05
A107: 101 | B107: 48.67 | C107: 69.09 | D107: 110.54 | E107: 118.04 | F107: 128.68 | G107: 134 | H107: 139.03 | I107: 141.27 | J107: 141.27 | K107: 152.98 | M107: 101 | N107: 50.28 | O107: 70.7 | P107: 112.15 | Q107: 119.65 | R107: 130.29 | S107: 135.61 | T107: 140.64 | U107: 142.88 | V107: 142.88 | W107: 154.59
A108: 102 | B108: 49.16 | C108: 69.78 | D108: 111.6 | E108: 119.22 | F108: 129.94 | G108: 135.32 | H108: 140.4 | I108: 142.66 | J108: 142.66 | K108: 154.51 | M108: 102 | N108: 50.77 | O108: 71.39 | P108: 113.21 | Q108: 120.83 | R108: 131.55 | S108: 136.93 | T108: 142.01 | U108: 144.27 | V108: 144.27 | W108: 156.12
A109: 103 | B109: 49.64 | C109: 70.46 | D109: 112.7 | E109: 120.39 | F109: 131.23 | G109: 136.64 | H109: 141.79 | I109: 144.07 | J109: 144.07 | K109: 156.04 | M109: 103 | N109: 51.25 | O109: 72.07 | P109: 114.31 | Q109: 122 | R109: 132.84 | S109: 138.25 | T109: 143.4 | U109: 145.68 | V109: 145.68 | W109: 157.65
A110: 104 | B110: 50.12 | C110: 71.16 | D110: 113.8 | E110: 121.54 | F110: 132.5 | G110: 137.98 | H110: 143.16 | I110: 145.46 | J110: 145.46 | K110: 157.57 | M110: 104 | N110: 51.73 | O110: 72.77 | P110: 115.41 | Q110: 123.15 | R110: 134.11 | S110: 139.59 | T110: 144.77 | U110: 147.07 | V110: 147.07 | W110: 159.18
A111: 105 | B111: 50.6 | C111: 71.83 | D111: 114.9 | E111: 122.72 | F111: 133.77 | G111: 139.3 | H111: 144.53 | I111: 146.87 | J111: 146.87 | K111: 159.11 | M111: 105 | N111: 52.21 | O111: 73.44 | P111: 116.51 | Q111: 124.33 | R111: 135.38 | S111: 140.91 | T111: 146.14 | U111: 148.48 | V111: 148.48 | W111: 160.72
A112: 106 | B112: 51.09 | C112: 72.52 | D112: 115.98 | E112: 123.9 | F112: 135.05 | G112: 140.63 | H112: 145.92 | I112: 148.26 | J112: 148.26 | K112: 160.64 | M112: 106 | N112: 52.7 | O112: 74.13 | P112: 117.59 | Q112: 125.51 | R112: 136.66 | S112: 142.24 | T112: 147.53 | U112: 149.87 | V112: 149.87 | W112: 162.25
A113: 107 | B113: 51.58 | C113: 73.2 | D113: 117.08 | E113: 125.07 | F113: 136.33 | G113: 141.95 | H113: 147.29 | I113: 149.67 | J113: 149.67 | K113: 162.16 | M113: 107 | N113: 53.19 | O113: 74.81 | P113: 118.69 | Q113: 126.68 | R113: 137.94 | S113: 143.56 | T113: 148.9 | U113: 151.28 | V113: 151.28 | W113: 163.77
A114: 108 | B114: 52.04 | C114: 73.88 | D114: 118.18 | E114: 126.24 | F114: 137.59 | G114: 143.27 | H114: 148.65 | I114: 151.06 | J114: 151.06 | K114: 163.7 | M114: 108 | N114: 53.65 | O114: 75.49 | P114: 119.79 | Q114: 127.85 | R114: 139.2 | S114: 144.88 | T114: 150.26 | U114: 152.67 | V114: 152.67 | W114: 165.31
A115: 109 | B115: 52.53 | C115: 74.57 | D115: 119.28 | E115: 127.4 | F115: 138.87 | G115: 144.61 | H115: 150.04 | I115: 152.46 | J115: 152.46 | K115: 165.23 | M115: 109 | N115: 54.14 | O115: 76.18 | P115: 120.89 | Q115: 129.01 | R115: 140.48 | S115: 146.22 | T115: 151.65 | U115: 154.07 | V115: 154.07 | W115: 166.84
A116: 110 | B116: 53.02 | C116: 75.25 | D116: 120.36 | E116: 128.57 | F116: 140.14 | G116: 145.93 | H116: 151.41 | I116: 153.86 | J116: 153.86 | K116: 166.77 | M116: 110 | N116: 54.63 | O116: 76.86 | P116: 121.97 | Q116: 130.18 | R116: 141.75 | S116: 147.54 | T116: 153.02 | U116: 155.47 | V116: 155.47 | W116: 168.38
A117: 111 | B117: 53.49 | C117: 75.94 | D117: 121.46 | E117: 129.74 | F117: 141.42 | G117: 147.25 | H117: 152.8 | I117: 155.26 | J117: 155.26 | K117: 168.3 | M117: 111 | N117: 55.1 | O117: 77.55 | P117: 123.07 | Q117: 131.35 | R117: 143.03 | S117: 148.86 | T117: 154.41 | U117: 156.87 | V117: 156.87 | W117: 169.91
A118: 112 | B118: 53.98 | C118: 76.62 | D118: 122.56 | E118: 130.9 | F118: 142.68 | G118: 148.58 | H118: 154.17 | I118: 156.66 | J118: 156.66 | K118: 169.83 | M118: 112 | N118: 55.59 | O118: 78.23 | P118: 124.17 | Q118: 132.51 | R118: 144.29 | S118: 150.19 | T118: 155.78 | U118: 158.27 | V118: 158.27 | W118: 171.44
A119: 113 | B119: 54.47 | C119: 77.31 | D119: 123.66 | E119: 132.07 | F119: 143.98 | G119: 149.9 | H119: 155.55 | I119: 158.06 | J119: 158.06 | K119: 171.36 | M119: 113 | N119: 56.08 | O119: 78.92 | P119: 125.27 | Q119: 133.68 | R119: 145.59 | S119: 151.51 | T119: 157.16 | U119: 159.67 | V119: 159.67 | W119: 172.97
A120: 114 | B120: 54.95 | C120: 77.99 | D120: 124.75 | E120: 133.25 | F120: 145.25 | G120: 151.24 | H120: 156.93 | I120: 159.46 | J120: 159.46 | K120: 172.89 | M120: 114 | N120: 56.56 | O120: 79.6 | P120: 126.36 | Q120: 134.86 | R120: 146.86 | S120: 152.85 | T120: 158.54 | U120: 161.07 | V120: 161.07 | W120: 174.5
A121: 115 | B121: 55.43 | C121: 78.67 | D121: 125.84 | E121: 134.41 | F121: 146.52 | G121: 152.56 | H121: 158.3 | I121: 160.86 | J121: 160.86 | K121: 174.42 | M121: 115 | N121: 57.04 | O121: 80.28 | P121: 127.45 | Q121: 136.02 | R121: 148.13 | S121: 154.17 | T121: 159.91 | U121: 162.47 | V121: 162.47 | W121: 176.03
A122: 116 | B122: 55.9 | C122: 79.37 | D122: 126.95 | E122: 135.58 | F122: 147.79 | G122: 153.88 | H122: 159.68 | I122: 162.23 | J122: 162.23 | K122: 175.96 | M122: 116 | N122: 57.51 | O122: 80.98 | P122: 128.56 | Q122: 137.19 | R122: 149.4 | S122: 155.49 | T122: 161.29 | U122: 163.84 | V122: 163.84 | W122: 177.57
A123: 117 | B123: 56.39 | C123: 80.04 | D123: 128.02 | E123: 136.76 | F123: 149.08 | G123: 155.21 | H123: 161.05 | I123: 163.64 | J123: 163.64 | K123: 177.49 | M123: 117 | N123: 58 | O123: 81.65 | P123: 129.63 | Q123: 138.37 | R123: 150.69 | S123: 156.82 | T123: 162.66 | U123: 165.25 | V123: 165.25 | W123: 179.1
A124: 118 | B124: 56.86 | C124: 80.73 | D124: 129.12 | E124: 137.92 | F124: 150.34 | G124: 156.55 | H124: 162.43 | I124: 165.03 | J124: 165.03 | K124: 179.03 | M124: 118 | N124: 58.47 | O124: 82.34 | P124: 130.73 | Q124: 139.53 | R124: 151.95 | S124: 158.16 | T124: 164.04 | U124: 166.64 | V124: 166.64 | W124: 180.64
A125: 119 | B125: 57.35 | C125: 81.4 | D125: 130.22 | E125: 139.08 | F125: 151.62 | G125: 157.89 | H125: 163.8 | I125: 166.44 | J125: 166.44 | K125: 180.55 | M125: 119 | N125: 58.96 | O125: 83.01 | P125: 131.83 | Q125: 140.69 | R125: 153.23 | S125: 159.5 | T125: 165.41 | U125: 168.05 | V125: 168.05 | W125: 182.16
A126: 120 | B126: 57.83 | C126: 82.09 | D126: 131.32 | E126: 140.26 | F126: 152.89 | G126: 159.21 | H126: 165.19 | I126: 167.83 | J126: 167.83 | K126: 182.08 | M126: 120 | N126: 59.44 | O126: 83.7 | P126: 132.93 | Q126: 141.87 | R126: 154.5 | S126: 160.82 | T126: 166.8 | U126: 169.44 | V126: 169.44 | W126: 183.69
A127: 121 | B127: 58.33 | C127: 82.79 | D127: 132.4 | E127: 141.42 | F127: 154.16 | G127: 160.53 | H127: 166.55 | I127: 169.24 | J127: 169.24 | K127: 183.62 | M127: 121 | N127: 59.94 | O127: 84.4 | P127: 134.01 | Q127: 143.03 | R127: 155.77 | S127: 162.14 | T127: 168.16 | U127: 170.85 | V127: 170.85 | W127: 185.23
A128: 122 | B128: 58.79 | C128: 83.47 | D128: 133.5 | E128: 142.59 | F128: 155.43 | G128: 161.86 | H128: 167.95 | I128: 170.63 | J128: 170.63 | K128: 185.15 | M128: 122 | N128: 60.4 | O128: 85.08 | P128: 135.11 | Q128: 144.2 | R128: 157.04 | S128: 163.47 | T128: 169.56 | U128: 172.24 | V128: 172.24 | W128: 186.76
A129: 123 | B129: 59.28 | C129: 84.15 | D129: 134.59 | E129: 143.77 | F129: 156.7 | G129: 163.18 | H129: 169.31 | I129: 172.04 | J129: 172.04 | K129: 186.68 | M129: 123 | N129: 60.89 | O129: 85.76 | P129: 136.2 | Q129: 145.38 | R129: 158.31 | S129: 164.79 | T129: 170.92 | U129: 173.65 | V129: 173.65 | W129: 188.29
A130: 124 | B130: 59.77 | C130: 84.82 | D130: 135.69 | E130: 144.93 | F130: 157.99 | G130: 164.51 | H130: 170.68 | I130: 173.44 | J130: 173.44 | K130: 188.21 | M130: 124 | N130: 61.38 | O130: 86.43 | P130: 137.3 | Q130: 146.54 | R130: 159.6 | S130: 166.12 | T130: 172.29 | U130: 175.05 | V130: 175.05 | W130: 189.82
A131: 125 | B131: 60.24 | C131: 85.52 | D131: 136.78 | E131: 146.09 | F131: 159.25 | G131: 165.84 | H131: 172.07 | I131: 174.83 | J131: 174.83 | K131: 189.75 | M131: 125 | N131: 61.85 | O131: 87.13 | P131: 138.39 | Q131: 147.7 | R131: 160.86 | S131: 167.45 | T131: 173.68 | U131: 176.44 | V131: 176.44 | W131: 191.36
A132: 126 | B132: 60.73 | C132: 86.19 | D132: 137.88 | E132: 147.28 | F132: 160.53 | G132: 167.16 | H132: 173.44 | I132: 176.24 | J132: 176.24 | K132: 191.29 | M132: 126 | N132: 62.34 | O132: 87.8 | P132: 139.49 | Q132: 148.89 | R132: 162.14 | S132: 168.77 | T132: 175.05 | U132: 177.85 | V132: 177.85 | W132: 192.9
A133: 127 | B133: 61.21 | C133: 86.89 | D133: 138.97 | E133: 148.44 | F133: 161.8 | G133: 168.49 | H133: 174.82 | I133: 177.63 | J133: 177.63 | K133: 192.8 | M133: 127 | N133: 62.82 | O133: 88.5 | P133: 140.58 | Q133: 150.05 | R133: 163.41 | S133: 170.1 | T133: 176.43 | U133: 179.24 | V133: 179.24 | W133: 194.41
A134: 128 | B134: 61.7 | C134: 87.57 | D134: 140.07 | E134: 149.6 | F134: 163.08 | G134: 169.82 | H134: 176.19 | I134: 179.04 | J134: 179.04 | K134: 194.34 | M134: 128 | N134: 63.31 | O134: 89.18 | P134: 141.68 | Q134: 151.21 | R134: 164.69 | S134: 171.42 | T134: 177.8 | U134: 180.65 | V134: 180.65 | W134: 195.95
A135: 129 | B135: 62.17 | C135: 88.26 | D135: 141.17 | E135: 150.78 | F135: 164.34 | G135: 171.14 | H135: 177.58 | I135: 180.43 | J135: 180.43 | K135: 195.87 | M135: 129 | N135: 63.78 | O135: 89.87 | P135: 142.78 | Q135: 152.39 | R135: 165.95 | S135: 172.75 | T135: 179.19 | U135: 182.04 | V135: 182.04 | W135: 197.48
A136: 130 | B136: 62.66 | C136: 88.94 | D136: 142.24 | E136: 151.95 | F136: 165.62 | G136: 172.47 | H136: 178.94 | I136: 181.84 | J136: 181.84 | K136: 197.41 | M136: 130 | N136: 64.27 | O136: 90.55 | P136: 143.85 | Q136: 153.56 | R136: 167.23 | S136: 174.08 | T136: 180.55 | U136: 183.45 | V136: 183.45 | W136: 199.02
A137: 131 | B137: 63.13 | C137: 89.63 | D137: 143.35 | E137: 153.11 | F137: 166.9 | G137: 173.79 | H137: 180.33 | I137: 183.23 | J137: 183.23 | K137: 198.94 | M137: 131 | N137: 64.74 | O137: 91.24 | P137: 144.96 | Q137: 154.72 | R137: 168.51 | S137: 175.4 | T137: 181.94 | U137: 184.84 | V137: 184.84 | W137: 200.55
A138: 132 | B138: 63.61 | C138: 90.3 | D138: 144.43 | E138: 154.28 | F138: 168.17 | G138: 175.12 | H138: 181.7 | I138: 184.62 | J138: 184.62 | K138: 200.47 | M138: 132 | N138: 65.22 | O138: 91.91 | P138: 146.04 | Q138: 155.89 | R138: 169.78 | S138: 176.73 | T138: 183.31 | U138: 186.23 | V138: 186.23 | W138: 202.08
A139: 133 | B139: 64.09 | C139: 90.97 | D139: 145.54 | E139: 155.45 | F139: 169.44 | G139: 176.45 | H139: 183.08 | I139: 186.02 | J139: 186.02 | K139: 202.01 | M139: 133 | N139: 65.7 | O139: 92.58 | P139: 147.15 | Q139: 157.06 | R139: 171.05 | S139: 178.06 | T139: 184.69 | U139: 187.63 | V139: 187.63 | W139: 203.62
A140: 134 | B140: 64.59 | C140: 91.68 | D140: 146.62 | E140: 156.61 | F140: 170.73 | G140: 177.77 | H140: 184.45 | I140: 187.42 | J140: 187.42 | K140: 203.53 | M140: 134 | N140: 66.2 | O140: 93.29 | P140: 148.23 | Q140: 158.22 | R140: 172.34 | S140: 179.38 | T140: 186.06 | U140: 189.03 | V140: 189.03 | W140: 205.14
A141: 135 | B141: 65.07 | C141: 92.36 | D141: 147.72 | E141: 157.78 | F141: 171.99 | G141: 179.1 | H141: 185.83 | I141: 188.82 | J141: 188.82 | K141: 205.06 | M141: 135 | N141: 66.68 | O141: 93.97 | P141: 149.33 | Q141: 159.39 | R141: 173.6 | S141: 180.71 | T141: 187.44 | U141: 190.43 | V141: 190.43 | W141: 206.67
A142: 136 | B142: 65.55 | C142: 93.04 | D142: 148.8 | E142: 158.96 | F142: 173.27 | G142: 180.42 | H142: 187.21 | I142: 190.22 | J142: 190.22 | K142: 206.6 | M142: 136 | N142: 67.16 | O142: 94.65 | P142: 150.41 | Q142: 160.57 | R142: 174.88 | S142: 182.03 | T142: 188.82 | U142: 191.83 | V142: 191.83 | W142: 208.21
A143: 137 | B143: 66.03 | C143: 93.72 | D143: 149.9 | E143: 160.13 | F143: 174.53 | G143: 181.75 | H143: 188.58 | I143: 191.62 | J143: 191.62 | K143: 208.13 | M143: 137 | N143: 67.64 | O143: 95.33 | P143: 151.51 | Q143: 161.74 | R143: 176.14 | S143: 183.36 | T143: 190.19 | U143: 193.23 | V143: 193.23 | W143: 209.74
A144: 138 | B144: 66.51 | C144: 94.42 | D144: 151 | E144: 161.31 | F144: 175.83 | G144: 183.09 | H144: 189.96 | I144: 193.02 | J144: 193.02 | K144: 209.67 | M144: 138 | N144: 68.12 | O144: 96.03 | P144: 152.61 | Q144: 162.92 | R144: 177.44 | S144: 184.7 | T144: 191.57 | U144: 194.63 | V144: 194.63 | W144: 211.28
A145: 139 | B145: 66.98 | C145: 95.1 | D145: 152.1 | E145: 162.46 | F145: 177.09 | G145: 184.41 | H145: 191.34 | I145: 194.42 | J145: 194.42 | K145: 211.19 | M145: 139 | N145: 68.59 | O145: 96.71 | P145: 153.71 | Q145: 164.07 | R145: 178.7 | S145: 186.02 | T145: 192.95 | U145: 196.03 | V145: 196.03 | W145: 212.8
A146: 140 | B146: 67.47 | C146: 95.77 | D146: 153.18 | E146: 163.63 | F146: 178.37 | G146: 185.74 | H146: 192.7 | I146: 195.82 | J146: 195.82 | K146: 212.73 | M146: 140 | N146: 69.08 | O146: 97.38 | P146: 154.79 | Q146: 165.24 | R146: 179.98 | S146: 187.35 | T146: 194.31 | U146: 197.43 | V146: 197.43 | W146: 214.34
A147: 141 | B147: 67.95 | C147: 96.46 | D147: 154.28 | E147: 164.81 | F147: 179.65 | G147: 187.06 | H147: 194.1 | I147: 197.21 | J147: 197.21 | K147: 214.26 | M147: 141 | N147: 69.56 | O147: 98.07 | P147: 155.89 | Q147: 166.42 | R147: 181.26 | S147: 188.67 | T147: 195.7 | U147: 198.82 | V147: 198.82 | W147: 215.87
A148: 142 | B148: 68.44 | C148: 97.14 | D148: 155.39 | E148: 165.96 | F148: 180.92 | G148: 188.38 | H148: 195.46 | I148: 198.62 | J148: 198.62 | K148: 215.79 | M148: 142 | N148: 70.05 | O148: 98.75 | P148: 157 | Q148: 167.57 | R148: 182.53 | S148: 189.99 | T148: 197.07 | U148: 200.23 | V148: 200.23 | W148: 217.4
A149: 143 | B149: 68.92 | C149: 97.83 | D149: 156.48 | E149: 167.13 | F149: 182.19 | G149: 189.72 | H149: 196.85 | I149: 200.01 | J149: 200.01 | K149: 217.32 | M149: 143 | N149: 70.53 | O149: 99.44 | P149: 158.09 | Q149: 168.74 | R149: 183.8 | S149: 191.33 | T149: 198.46 | U149: 201.62 | V149: 201.62 | W149: 218.93
A150: 144 | B150: 69.4 | C150: 98.51 | D150: 157.57 | E150: 168.31 | F150: 183.48 | G150: 191.04 | H150: 198.22 | I150: 201.42 | J150: 201.42 | K150: 218.85 | M150: 144 | N150: 71.01 | O150: 100.12 | P150: 159.18 | Q150: 169.92 | R150: 185.09 | S150: 192.65 | T150: 199.83 | U150: 203.03 | V150: 203.03 | W150: 220.46
A151: 145 | B151: 69.9 | C151: 99.21 | D151: 158.66 | E151: 169.47 | F151: 184.74 | G151: 192.37 | H151: 199.61 | I151: 202.81 | J151: 202.81 | K151: 220.39 | M151: 145 | N151: 71.51 | O151: 100.82 | P151: 160.27 | Q151: 171.08 | R151: 186.35 | S151: 193.98 | T151: 201.22 | U151: 204.42 | V151: 204.42 | W151: 222
A152: 146 | B152: 70.35 | C152: 99.88 | D152: 159.77 | E152: 170.63 | F152: 186 | G152: 193.69 | H152: 200.97 | I152: 204.22 | J152: 204.22 | K152: 221.93 | M152: 146 | N152: 71.96 | O152: 101.49 | P152: 161.38 | Q152: 172.24 | R152: 187.61 | S152: 195.3 | T152: 202.58 | U152: 205.83 | V152: 205.83 | W152: 223.54
A153: 147 | B153: 70.85 | C153: 100.56 | D153: 160.86 | E153: 171.82 | F153: 187.28 | G153: 195.01 | H153: 202.34 | I153: 205.61 | J153: 205.61 | K153: 223.45 | M153: 147 | N153: 72.46 | O153: 102.17 | P153: 162.47 | Q153: 173.43 | R153: 188.89 | S153: 196.62 | T153: 203.95 | U153: 207.22 | V153: 207.22 | W153: 225.06
A154: 148 | B154: 71.33 | C154: 101.25 | D154: 161.95 | E154: 172.99 | F154: 188.56 | G154: 196.35 | H154: 203.73 | I154: 207.01 | J154: 207.01 | K154: 224.98 | M154: 148 | N154: 72.94 | O154: 102.86 | P154: 163.56 | Q154: 174.6 | R154: 190.17 | S154: 197.96 | T154: 205.34 | U154: 208.62 | V154: 208.62 | W154: 226.59
A155: 149 | B155: 71.81 | C155: 101.93 | D155: 163.04 | E155: 174.14 | F155: 189.83 | G155: 197.67 | H155: 205.09 | I155: 208.39 | J155: 208.39 | K155: 226.51 | M155: 149 | N155: 73.42 | O155: 103.54 | P155: 164.65 | Q155: 175.75 | R155: 191.44 | S155: 199.28 | T155: 206.7 | U155: 210 | V155: 210 | W155: 228.12
A156: 150 | B156: 72.29 | C156: 102.61 | D156: 164.15 | E156: 175.32 | F156: 191.1 | G156: 198.99 | H156: 206.48 | I156: 209.79 | J156: 209.79 | K156: 228.05 | M156: 150 | N156: 73.9 | O156: 104.22 | P156: 165.76 | Q156: 176.93 | R156: 192.71 | S156: 200.6 | T156: 208.09 | U156: 211.4 | V156: 211.4 | W156: 229.66
A157: 151+ | B157: 0.47 | C157: 0.67 | D157: 1.07 | E157: 1.15 | F157: 1.25 | G157: 1.3 | H157: 1.35 | I157: 1.37 | J157: 1.37 | K157: 1.49 | M157: 151+ | N157: 2.05 | O157: 2.25 | P157: 2.65 | Q157: 2.72 | R157: 2.83 | S157: 2.88 | T157: 2.93 | U157: 2.95 | V157: 2.95 | W157: 3.06

Sheet Sheet1 (hidden)
A1: UPS Next Day Air Service | M1: UPS Next Day Air Service | Q1: CURRENT | AA1: UPS Next Day Air Service | AM1: UPS Next Day Saver Service | AV1: UPS Next Day Saver Service | AZ1: Current | BE1: UPS Next Day Saver Service
A2: - Commercial | M2: - Commercial | AA2: -Residential | AM2: - Commercial | AV2: - Commercial | BE2: - Residential
A3: (Per Package Rates from 48 State Origin) | M3: (Per Package Rates from 48 State Origin) | AA3: (Per Package Rates from 48 State Origin) | AM3: (Per Package Rates from 48 State Origin) | AV3: (Per Package Rates from 48 State Origin) | BE3: (Per Package Rates from 48 State Origin)
A4: Rates below do not include Residential Surcharge | M4: Rates below do not include Residential Surcharge | AM4: Rates below do not include Residential Surcharge | AV4: Rates below do not include Residential Surcharge
AT5: 0.05 | BL5: 0.05
AO6: 5.614 | AP6: 6.454 | AQ6: 6.944 | AR6: 7 | AS6: 7.7 | AT6: 7.826 | BH6: 0.376 | BI6: 0.256 | BJ6: 0.24 | BK6: 0 | BL6: 0.244
A7: Lbs. | B7: Zone 102 | C7: Zone 103 | D7: Zone 104 | E7: Zone 105 | F7: Zone 106 | G7: Zone 107 | H7: Zone 108 | I7: Zone 124 | J7: Zone 125 | K7: Zone 126 | M7: Lbs. | N7: Zone 102 | O7: Zone 103 | P7: Zone 104 | Q7: Zone 105 | R7: Zone 106 | S7: Zone 107 | T7: Zone 108 | U7: Zone 124 | V7: Zone 125 | W7: Zone 126 | AA7: Lbs. | AB7: Zone 102 | AC7: Zone 103 | AD7: Zone 104 | AE7: Zone 105 | AF7: Zone 106 | AG7: Zone 107 | AH7: Zone 108 | AI7: Zone 124 | AJ7: Zone 125 | AK7: Zone 126 | AM7: Lbs. | AN7: Zone 132 | AO7: Zone 133 | AP7: Zone 134 | AQ7: Zone 135 | AR7: Zone 136 | AS7: Zone 137 | AT7: Zone 138 | AV7: Lbs. | AW7: Zone 132 | AX7: Zone 133 | AY7: Zone 134 | AZ7: Zone 135 | BA7: Zone 136 | BB7: Zone 137 | BC7: Zone 138 | BE7: Lbs. | BF7: Zone 132 | BG7: Zone 133 | BH7: Zone 134 | BI7: Zone 135 | BJ7: Zone 136 | BK7: Zone 137 | BL7: Zone 138
A8: Letter | B8: 5.6 | C8: 5.6 | D8: 6.454 | E8: 6.944 | F8: 7 | G8: 7.7 | H8: 7.826 | I8: 8.344 | J8: 8.344 | K8: 8.764 | M8: Letter | N8: 5.6 | O8: 5.6 | P8: 6.454 | Q8: 6.944 | R8: 7 | S8: 7.7 | T8: 7.826 | U8: 8.344 | V8: 8.344 | W8: 8.764 | AA8: Letter | AB8: =B8+1.5 -> 7.1 | AC8: 7.1 | AD8: 7.954 | AE8: 8.444 | AF8: 8.5 | AG8: 9.2 | AH8: 9.326 | AI8: 9.844 | AJ8: 9.844 | AK8: 10.264 | AM8: Letter | AN8: 5.59 | AO8: 5.59 | AP8: =AP6-$AT$5 -> 6.404 | AQ8: =AQ6-$AT$5 -> 6.894 | AR8: =AR6-$AT$5 -> 6.95 | AS8: =AS6-$AT$5 -> 7.65 | AT8: =AT6-$AT$5 -> 7.776 | AV8: Letter | AW8: 5.45 | AX8: 5.45 | AY8: 6.66 | AZ8: 7.02 | BA8: 7.065 | BB8: 7.515 | BC8: 7.875 | BE8: Letter | BF8: =AN8+1.5 -> 7.09 | BG8: 7.09 | BH8: 7.904 | BI8: 8.394 | BJ8: 8.45 | BK8: 9.15 | BL8: 9.276
A9: 1 | B9: 5.614 | C9: 7.532 | D9: 9.618 | E9: 10.682 | F9: 11.592 | G9: 12.39 | H9: 12.726 | I9: 13.104 | J9: 13.104 | K9: 13.118 | M9: 1 | N9: 5.614 | O9: 7.532 | P9: 9.618 | Q9: 10.682 | R9: 11.592 | S9: 12.39 | T9: 12.726 | U9: 13.104 | V9: 13.104 | W9: 13.118 | AA9: 1 | AB9: 7.114 | AC9: 9.032 | AD9: 11.118 | AE9: 12.182 | AF9: 13.092 | AG9: 13.89 | AH9: 14.226 | AI9: 14.604 | AJ9: 14.604 | AK9: 14.618 | AM9: 1 | AN9: =AO6-AT5 -> 5.564 | AO9: 5.64 | AP9: 6.87 | AQ9: 7.28 | AR9: 7.33 | AS9: 7.79 | AT9: 8.2 | AV9: 1 | AW9: 5.5 | AX9: 5.5 | AY9: 6.7 | AZ9: 7.1 | BA9: 7.15 | BB9: 7.6 | BC9: 8 | BE9: 1 | BF9: 7.064 | BG9: 7.14 | BH9: 8.37 | BI9: 8.78 | BJ9: 8.83 | BK9: 9.29 | BL9: 9.7
A10: 2 | B10: 5.726 | C10: 8.134 | D10: 10.836 | E10: 11.816 | F10: 13.104 | G10: 13.65 | H10: 14.21 | I10: 14.308 | J10: 14.308 | K10: 14.322 | M10: 2 | N10: 5.726 | O10: 8.134 | P10: 10.836 | Q10: 11.816 | R10: 13.104 | S10: 13.65 | T10: 14.21 | U10: 14.308 | V10: 14.308 | W10: 14.322 | AA10: 2 | AB10: 7.226 | AC10: 9.634 | AD10: 12.336 | AE10: 13.316 | AF10: 14.604 | AG10: 15.15 | AH10: 15.71 | AI10: 15.808 | AJ10: 15.808 | AK10: 15.822 | AM10: 2 | AN10: 5.64 | AO10: 6.41 | AP10: 8.03 | AQ10: 8.9 | AR10: 9.67 | AS10: 10.31 | AT10: 10.6 | AV10: 2 | AW10: 5.5 | AX10: 6.2505 | AY10: 7.8375 | AZ10: 8.6875 | BA10: 9.4375 | BB10: 10.0625 | BC10: 10.3375 | BE10: 2 | BF10: 7.14 | BG10: 7.91 | BH10: 9.53 | BI10: 10.4 | BJ10: 11.17 | BK10: 11.81 | BL10: 12.1
A11: 3 | B11: 6.454 | C11: 8.708 | D11: 11.998 | E11: 13.09 | F11: 14.518 | G11: 15.008 | H11: 15.54 | I11: 15.974 | J11: 15.974 | K11: 17.92 | M11: 3 | N11: 6.454 | O11: 8.708 | P11: 11.998 | Q11: 13.09 | R11: 14.518 | S11: 15.008 | T11: 15.54 | U11: 15.974 | V11: 15.974 | W11: 17.92 | AA11: 3 | AB11: 7.954 | AC11: 10.208 | AD11: 13.498 | AE11: 14.59 | AF11: 16.018 | AG11: 16.508 | AH11: 17.04 | AI11: 17.474 | AJ11: 17.474 | AK11: 19.42 | AM11: 3 | AN11: 5.64 | AO11: 6.78 | AP11: 9.06 | AQ11: 9.85 | AR11: 10.92 | AS11: 11.35 | AT11: 11.83 | AV11: 3 | AW11: 5.5 | AX11: 6.615 | AY11: 8.8375 | AZ11: 9.6125 | BA11: 10.65 | BB11: 11.075 | BC11: 11.5375 | BE11: 3 | BF11: 7.14 | BG11: 8.28 | BH11: 10.56 | BI11: 11.35 | BJ11: 12.42 | BK11: 12.85 | BL11: 13.33
A12: 4 | B12: 6.958 | C12: 9.128 | D12: 13.006 | E12: 14.322 | F12: 15.848 | G12: 16.338 | H12: 16.982 | I12: 17.444 | J12: 17.444 | K12: 19.544 | M12: 4 | N12: 6.958 | O12: 9.128 | P12: 13.006 | Q12: 14.322 | R12: 15.848 | S12: 16.338 | T12: 16.982 | U12: 17.444 | V12: 17.444 | W12: 19.544 | AA12: 4 | AB12: 8.458 | AC12: 10.628 | AD12: 14.506 | AE12: 15.822 | AF12: 17.348 | AG12: 17.838 | AH12: 18.482 | AI12: 18.944 | AJ12: 18.944 | AK12: 21.044 | AM12: 4 | AN12: 5.64 | AO12: 7.18 | AP12: 10.03 | AQ12: 10.92 | AR12: 12.11 | AS12: 12.49 | AT12: 12.92 | AV12: 4 | AW12: 5.5 | AX12: 7.0065 | AY12: 9.7875 | AZ12: 10.65 | BA12: 11.8125 | BB12: 12.1875 | BC12: 12.6 | BE12: 4 | BF12: 7.14 | BG12: 8.68 | BH12: 11.53 | BI12: 12.42 | BJ12: 13.61 | BK12: 13.99 | BL12: 14.42
A13: 5 | B13: 7.028 | C13: 9.506 | D13: 14.224 | E13: 15.666 | F13: 17.192 | G13: 17.696 | H13: 18.326 | I13: 18.872 | J13: 18.872 | K13: 21.042 | M13: 5 | N13: 7.028 | O13: 9.506 | P13: 14.224 | Q13: 15.666 | R13: 17.192 | S13: 17.696 | T13: 18.326 | U13: 18.872 | V13: 18.872 | W13: 21.042 | AA13: 5 | AB13: 8.528 | AC13: 11.006 | AD13: 15.724 | AE13: 17.166 | AF13: 18.692 | AG13: 19.196 | AH13: 19.826 | AI13: 20.372 | AJ13: 20.372 | AK13: 22.542 | AM13: 5 | AN13: 5.84 | AO13: 7.65 | AP13: 10.88 | AQ13: 11.97 | AR13: 13.21 | AS13: 13.59 | AT13: 14.13 | AV13: 5 | AW13: 5.697 | AX13: 7.4655 | AY13: 10.6125 | AZ13: 11.675 | BA13: 12.8875 | BB13: 13.2625 | BC13: 13.7875 | BE13: 5 | BF13: 7.34 | BG13: 9.15 | BH13: 12.38 | BI13: 13.47 | BJ13: 14.71 | BK13: 15.09 | BL13: 15.63
A14: 6 | B14: 7.784 | C14: 10.038 | D14: 15.386 | E14: 16.884 | F14: 18.62 | G14: 18.942 | H14: 19.754 | I14: 20.216 | J14: 20.216 | K14: 22.652 | M14: 6 | N14: 7.784 | O14: 10.038 | P14: 15.386 | Q14: 16.884 | R14: 18.62 | S14: 18.942 | T14: 19.754 | U14: 20.216 | V14: 20.216 | W14: 22.652 | AA14: 6 | AB14: 9.284 | AC14: 11.538 | AD14: 16.886 | AE14: 18.384 | AF14: 20.12 | AG14: 20.442 | AH14: 21.254 | AI14: 21.716 | AJ14: 21.716 | AK14: 24.152 | AM14: 6 | AN14: 6.01 | AO14: 7.76 | AP14: 11.89 | AQ14: 13 | AR14: 14.11 | AS14: 14.49 | AT14: 15 | AV14: 6 | AW14: 5.859 | AX14: 7.5735 | AY14: 11.6 | AZ14: 12.6875 | BA14: 13.7625 | BB14: 14.1375 | BC14: 14.6375 | BE14: 6 | BF14: 7.51 | BG14: 9.26 | BH14: 13.39 | BI14: 14.5 | BJ14: 15.61 | BK14: 15.99 | BL14: 16.5
A15: 7 | B15: 8.148 | C15: 10.542 | D15: 16.45 | E15: 18.144 | F15: 19.936 | G15: 20.398 | H15: 21.098 | I15: 21.56 | J15: 21.56 | K15: 24.248 | M15: 7 | N15: 8.148 | O15: 10.542 | P15: 16.45 | Q15: 18.144 | R15: 19.936 | S15: 20.398 | T15: 21.098 | U15: 21.56 | V15: 21.56 | W15: 24.248 | AA15: 7 | AB15: 9.648 | AC15: 12.042 | AD15: 17.95 | AE15: 19.644 | AF15: 21.436 | AG15: 21.898 | AH15: 22.598 | AI15: 23.06 | AJ15: 23.06 | AK15: 25.748 | AM15: 7 | AN15: 6.35 | AO15: 8.73 | AP15: 12.86 | AQ15: 13.86 | AR15: 15.29 | AS15: 15.52 | AT15: 16.18 | AV15: 7 | AW15: 6.1965 | AX15: 8.5185 | AY15: 12.55 | AZ15: 13.525 | BA15: 14.9125 | BB15: 15.1375 | BC15: 15.7875 | BE15: 7 | BF15: 7.85 | BG15: 10.23 | BH15: 14.36 | BI15: 15.36 | BJ15: 16.79 | BK15: 17.02 | BL15: 17.68
A16: 8 | B16: 8.218 | C16: 11.06 | D16: 17.514 | E16: 19.306 | F16: 21.266 | G16: 21.826 | H16: 22.456 | I16: 22.876 | J16: 22.876 | K16: 25.452 | M16: 8 | N16: 8.218 | O16: 11.06 | P16: 17.514 | Q16: 19.306 | R16: 21.266 | S16: 21.826 | T16: 22.456 | U16: 22.876 | V16: 22.876 | W16: 25.452 | AA16: 8 | AB16: 9.718 | AC16: 12.56 | AD16: 19.014 | AE16: 20.806 | AF16: 22.766 | AG16: 23.326 | AH16: 23.956 | AI16: 24.376 | AJ16: 24.376 | AK16: 26.952 | AM16: 8 | AN16: 6.48 | AO16: 9.11 | AP16: 13.76 | AQ16: 15.05 | AR16: 16.35 | AS16: 16.69 | AT16: 17.28 | AV16: 8 | AW16: 6.318 | AX16: 8.883 | AY16: 13.425 | AZ16: 14.6875 | BA16: 15.95 | BB16: 16.2875 | BC16: 16.8625 | BE16: 8 | BF16: 7.98 | BG16: 10.61 | BH16: 15.26 | BI16: 16.55 | BJ16: 17.85 | BK16: 18.19 | BL16: 18.78
A17: 9 | B17: 8.316 | C17: 11.466 | D17: 18.508 | E17: 20.552 | F17: 22.596 | G17: 23.254 | H17: 23.898 | I17: 24.332 | J17: 24.332 | K17: 27.118 | M17: 9 | N17: 8.316 | O17: 11.466 | P17: 18.508 | Q17: 20.552 | R17: 22.596 | S17: 23.254 | T17: 23.898 | U17: 24.332 | V17: 24.332 | W17: 27.118 | AA17: 9 | AB17: 9.816 | AC17: 12.966 | AD17: 20.008 | AE17: 22.052 | AF17: 24.096 | AG17: 24.754 | AH17: 25.398 | AI17: 25.832 | AJ17: 25.832 | AK17: 28.618 | AM17: 9 | AN17: 6.81 | AO17: 9.37 | AP17: 14.66 | AQ17: 16.03 | AR17: 17.46 | AS17: 17.87 | AT17: 18.39 | AV17: 9 | AW17: 6.642 | AX17: 9.1395 | AY17: 14.3 | AZ17: 15.6375 | BA17: 17.0375 | BB17: 17.4375 | BC17: 17.9375 | BE17: 9 | BF17: 8.31 | BG17: 10.87 | BH17: 16.16 | BI17: 17.53 | BJ17: 18.96 | BK17: 19.37 | BL17: 19.89
A18: 10 | B18: 8.33 | C18: 11.48 | D18: 19.362 | E18: 21.63 | F18: 22.61 | G18: 23.268 | H18: 24.528 | I18: 25.76 | J18: 25.76 | K18: 27.132 | M18: 10 | N18: 8.33 | O18: 11.48 | P18: 19.362 | Q18: 21.63 | R18: 22.61 | S18: 23.268 | T18: 24.528 | U18: 25.76 | V18: 25.76 | W18: 27.132 | AA18: 10 | AB18: 9.83 | AC18: 12.98 | AD18: 20.862 | AE18: 23.13 | AF18: 24.11 | AG18: 24.768 | AH18: 26.028 | AI18: 27.26 | AJ18: 27.26 | AK18: 28.632 | AM18: 10 | AN18: 7.17 | AO18: 9.78 | AP18: 15.48 | AQ18: 17.07 | AR18: 18.54 | AS18: 19.04 | AT18: 19.56 | AV18: 10 | AW18: 6.993 | AX18: 9.5445 | AY18: 15.1 | AZ18: 16.65 | BA18: 18.0875 | BB18: 18.575 | BC18: 19.0875 | BE18: 10 | BF18: 8.67 | BG18: 11.28 | BH18: 16.98 | BI18: 18.57 | BJ18: 20.04 | BK18: 20.54 | BL18: 21.06
A19: 11 | B19: 9.198 | C19: 12.586 | D19: 20.384 | E19: 22.792 | F19: 25.256 | G19: 26.068 | H19: 26.684 | I19: 27.202 | J19: 27.202 | K19: 29.988 | M19: 11 | N19: 9.198 | O19: 12.586 | P19: 20.384 | Q19: 22.792 | R19: 25.256 | S19: 26.068 | T19: 26.684 | U19: 27.202 | V19: 27.202 | W19: 29.988 | AA19: 11 | AB19: 10.698 | AC19: 14.086 | AD19: 21.884 | AE19: 24.292 | AF19: 26.756 | AG19: 27.568 | AH19: 28.184 | AI19: 28.702 | AJ19: 28.702 | AK19: 31.488 | AM19: 11 | AN19: 7.32 | AO19: 10.17 | AP19: 16.2 | AQ19: 17.96 | AR19: 19.64 | AS19: 20.15 | AT19: 20.73 | AV19: 11 | AW19: 7.1415 | AX19: 9.9225 | AY19: 15.8 | AZ19: 17.525 | BA19: 19.1625 | BB19: 19.6625 | BC19: 20.225 | BE19: 11 | BF19: 8.82 | BG19: 11.67 | BH19: 17.7 | BI19: 19.46 | BJ19: 21.14 | BK19: 21.65 | BL19: 22.23
A20: 12 | B20: 9.576 | C20: 13.104 | D20: 21.476 | E20: 23.856 | F20: 26.502 | G20: 27.482 | H20: 28.112 | I20: 28.532 | J20: 28.532 | K20: 30.688 | M20: 12 | N20: 9.576 | O20: 13.104 | P20: 21.476 | Q20: 23.856 | R20: 26.502 | S20: 27.482 | T20: 28.112 | U20: 28.532 | V20: 28.532 | W20: 30.688 | AA20: 12 | AB20: 11.076 | AC20: 14.604 | AD20: 22.976 | AE20: 25.356 | AF20: 28.002 | AG20: 28.982 | AH20: 29.612 | AI20: 30.032 | AJ20: 30.032 | AK20: 32.188 | AM20: 12 | AN20: 7.58 | AO20: 10.61 | AP20: 17.04 | AQ20: 18.95 | AR20: 20.73 | AS20: 21.33 | AT20: 21.85 | AV20: 12 | AW20: 7.398 | AX20: 10.3545 | AY20: 16.625 | AZ20: 18.4875 | BA20: 20.225 | BB20: 20.8125 | BC20: 21.3125 | BE20: 12 | BF20: 9.08 | BG20: 12.11 | BH20: 18.54 | BI20: 20.45 | BJ20: 22.23 | BK20: 22.83 | BL20: 23.35
A21: 13 | B21: 9.716 | C21: 13.594 | D21: 22.498 | E21: 24.948 | F21: 27.566 | G21: 28.938 | H21: 29.47 | I21: 29.96 | J21: 29.96 | K21: 31.57 | M21: 13 | N21: 9.716 | O21: 13.594 | P21: 22.498 | Q21: 24.948 | R21: 27.566 | S21: 28.938 | T21: 29.47 | U21: 29.96 | V21: 29.96 | W21: 31.57 | AA21: 13 | AB21: 11.216 | AC21: 15.094 | AD21: 23.998 | AE21: 26.448 | AF21: 29.066 | AG21: 30.438 | AH21: 30.97 | AI21: 31.46 | AJ21: 31.46 | AK21: 33.07 | AM21: 13 | AN21: 7.83 | AO21: 11.14 | AP21: 17.96 | AQ21: 19.82 | AR21: 21.74 | AS21: 22.5 | AT21: 23.02 | AV21: 13 | AW21: 7.641 | AX21: 10.8675 | AY21: 17.525 | AZ21: 19.3375 | BA21: 21.2125 | BB21: 21.95 | BC21: 22.4625 | BE21: 13 | BF21: 9.33 | BG21: 12.64 | BH21: 19.46 | BI21: 21.32 | BJ21: 23.24 | BK21: 24 | BL21: 24.52
A22: 14 | B22: 10.108 | C22: 14.112 | D22: 23.66 | E22: 25.998 | F22: 28.644 | G22: 30.198 | H22: 30.912 | I22: 31.304 | J22: 31.304 | K22: 32.466 | M22: 14 | N22: 10.108 | O22: 14.112 | P22: 23.66 | Q22: 25.998 | R22: 28.644 | S22: 30.198 | T22: 30.912 | U22: 31.304 | V22: 31.304 | W22: 32.466 | AA22: 14 | AB22: 11.608 | AC22: 15.612 | AD22: 25.16 | AE22: 27.498 | AF22: 30.144 | AG22: 31.698 | AH22: 32.412 | AI22: 32.804 | AJ22: 32.804 | AK22: 33.966 | AM22: 14 | AN22: 7.94 | AO22: 11.71 | AP22: 18.81 | AQ22: 20.72 | AR22: 22.63 | AS22: 23.68 | AT22: 24.14 | AV22: 14 | AW22: 7.749 | AX22: 11.421 | AY22: 18.35 | AZ22: 20.2125 | BA22: 22.075 | BB22: 23.1 | BC22: 23.55 | BE22: 14 | BF22: 9.44 | BG22: 13.21 | BH22: 20.31 | BI22: 22.22 | BJ22: 24.13 | BK22: 25.18 | BL22: 25.64
A23: 15 | B23: 10.234 | C23: 14.49 | D23: 24.458 | E23: 27.048 | F23: 28.658 | G23: 31.178 | H23: 32.088 | I23: 32.256 | J23: 32.256 | K23: 33.292 | M23: 15 | N23: 10.234 | O23: 14.49 | P23: 24.458 | Q23: 27.048 | R23: 28.658 | S23: 31.178 | T23: 32.088 | U23: 32.256 | V23: 32.256 | W23: 33.292 | AA23: 15 | AB23: 11.734 | AC23: 15.99 | AD23: 25.958 | AE23: 28.548 | AF23: 30.158 | AG23: 32.678 | AH23: 33.588 | AI23: 33.756 | AJ23: 33.756 | AK23: 34.792 | AM23: 15 | AN23: 8.22 | AO23: 12.15 | AP23: 19.78 | AQ23: 21.6 | AR23: 23.5 | AS23: 24.72 | AT23: 25.32 | AV23: 15 | AW23: 8.019 | AX23: 11.853 | AY23: 19.3 | AZ23: 21.075 | BA23: 22.925 | BB23: 24.1125 | BC23: 24.7 | BE23: 15 | BF23: 9.72 | BG23: 13.65 | BH23: 21.28 | BI23: 23.1 | BJ23: 25 | BK23: 26.22 | BL23: 26.82
A24: 16 | B24: 10.64 | C24: 15.12 | D24: 25.634 | E24: 28.056 | F24: 30.674 | G24: 31.99 | H24: 32.886 | I24: 33.544 | J24: 33.544 | K24: 34.776 | M24: 16 | N24: 10.64 | O24: 15.12 | P24: 25.634 | Q24: 28.056 | R24: 30.674 | S24: 31.99 | T24: 32.886 | U24: 33.544 | V24: 33.544 | W24: 34.776 | AA24: 16 | AB24: 12.14 | AC24: 16.62 | AD24: 27.134 | AE24: 29.556 | AF24: 32.174 | AG24: 33.49 | AH24: 34.386 | AI24: 35.044 | AJ24: 35.044 | AK24: 36.276 | AM24: 16 | AN24: 8.55 | AO24: 12.58 | AP24: 20.46 | AQ24: 22.47 | AR24: 24.37 | AS24: 25.52 | AT24: 26.28 | AV24: 16 | AW24: 8.343 | AX24: 12.2715 | AY24: 19.9625 | AZ24: 21.925 | BA24: 23.775 | BB24: 24.9 | BC24: 25.6375 | BE24: 16 | BF24: 10.05 | BG24: 14.08 | BH24: 21.96 | BI24: 23.97 | BJ24: 25.87 | BK24: 27.02 | BL24: 27.78
A25: 17 | B25: 11.074 | C25: 15.624 | D25: 26.362 | E25: 28.938 | F25: 31.374 | G25: 32.704 | H25: 33.614 | I25: 34.286 | J25: 34.286 | K25: 35.77 | M25: 17 | N25: 11.074 | O25: 15.624 | P25: 26.362 | Q25: 28.938 | R25: 31.374 | S25: 32.704 | T25: 33.614 | U25: 34.286 | V25: 34.286 | W25: 35.77 | AA25: 17 | AB25: 12.574 | AC25: 17.124 | AD25: 27.862 | AE25: 30.438 | AF25: 32.874 | AG25: 34.204 | AH25: 35.114 | AI25: 35.786 | AJ25: 35.786 | AK25: 37.27 | AM25: 17 | AN25: 8.72 | AO25: 12.87 | AP25: 21.45 | AQ25: 23.31 | AR25: 25.18 | AS25: 26.19 | AT25: 26.94 | AV25: 17 | AW25: 8.505 | AX25: 12.555 | AY25: 20.925 | AZ25: 22.7375 | BA25: 24.5625 | BB25: 25.55 | BC25: 26.2875 | BE25: 17 | BF25: 10.22 | BG25: 14.37 | BH25: 22.95 | BI25: 24.81 | BJ25: 26.68 | BK25: 27.69 | BL25: 28.44
A26: 18 | B26: 11.452 | C26: 16.128 | D26: 27.16 | E26: 29.554 | F26: 32.074 | G26: 33.432 | H26: 34.496 | I26: 35.14 | J26: 35.14 | K26: 37.226 | M26: 18 | N26: 11.452 | O26: 16.128 | P26: 27.16 | Q26: 29.554 | R26: 32.074 | S26: 33.432 | T26: 34.496 | U26: 35.14 | V26: 35.14 | W26: 37.226 | AA26: 18 | AB26: 12.952 | AC26: 17.628 | AD26: 28.66 | AE26: 31.054 | AF26: 33.574 | AG26: 34.932 | AH26: 35.996 | AI26: 36.64 | AJ26: 36.64 | AK26: 38.726 | AM26: 18 | AN26: 9.17 | AO26: 13.1 | AP26: 22.05 | AQ26: 24.04 | AR26: 25.77 | AS26: 26.78 | AT26: 27.52 | AV26: 18 | AW26: 8.9505 | AX26: 12.7845 | AY26: 21.5125 | AZ26: 23.45 | BA26: 25.1375 | BB26: 26.125 | BC26: 26.85 | BE26: 18 | BF26: 10.67 | BG26: 14.6 | BH26: 23.55 | BI26: 25.54 | BJ26: 27.27 | BK26: 28.28 | BL26: 29.02
A27: 19 | B27: 11.676 | C27: 16.562 | D27: 27.79 | E27: 30.184 | F27: 32.802 | G27: 34.174 | H27: 35.406 | I27: 36.302 | J27: 36.302 | K27: 38.234 | M27: 19 | N27: 11.676 | O27: 16.562 | P27: 27.79 | Q27: 30.184 | R27: 32.802 | S27: 34.174 | T27: 35.406 | U27: 36.302 | V27: 36.302 | W27: 38.234 | AA27: 19 | AB27: 13.176 | AC27: 18.062 | AD27: 29.29 | AE27: 31.684 | AF27: 34.302 | AG27: 35.674 | AH27: 36.906 | AI27: 37.802 | AJ27: 37.802 | AK27: 39.734 | AM27: 19 | AN27: 9.44 | AO27: 13.45 | AP27: 22.72 | AQ27: 24.55 | AR27: 26.33 | AS27: 27.37 | AT27: 28.26 | AV27: 19 | AW27: 9.207 | AX27: 13.122 | AY27: 22.1625 | AZ27: 23.95 | BA27: 25.6875 | BB27: 26.7 | BC27: 27.575 | BE27: 19 | BF27: 10.94 | BG27: 14.95 | BH27: 24.22 | BI27: 26.05 | BJ27: 27.83 | BK27: 28.87 | BL27: 29.76
A28: 20 | B28: 11.69 | C28: 16.772 | D28: 28.504 | E28: 30.912 | F28: 33.516 | G28: 34.972 | H28: 36.218 | I28: 37.016 | J28: 37.016 | K28: 40.768 | M28: 20 | N28: 11.69 | O28: 16.772 | P28: 28.504 | Q28: 30.912 | R28: 33.516 | S28: 34.972 | T28: 36.218 | U28: 37.016 | V28: 37.016 | W28: 40.768 | AA28: 20 | AB28: 13.19 | AC28: 18.272 | AD28: 30.004 | AE28: 32.412 | AF28: 35.016 | AG28: 36.472 | AH28: 37.718 | AI28: 38.516 | AJ28: 38.516 | AK28: 42.268 | AM28: 20 | AN28: 9.69 | AO28: 13.82 | AP28: 23.25 | AQ28: 25.06 | AR28: 26.93 | AS28: 27.97 | AT28: 28.99 | AV28: 20 | AW28: 9.45 | AX28: 13.4865 | AY28: 22.6875 | AZ28: 24.45 | BA28: 26.275 | BB28: 27.2875 | BC28: 28.2875 | BE28: 20 | BF28: 11.19 | BG28: 15.32 | BH28: 24.75 | BI28: 26.56 | BJ28: 28.43 | BK28: 29.47 | BL28: 30.49
A29: 21 | B29: 12.306 | C29: 17.43 | D29: 29.12 | E29: 31.696 | F29: 34.202 | G29: 35.672 | H29: 37.212 | I29: 37.87 | J29: 37.87 | K29: 41.902 | M29: 21 | N29: 12.306 | O29: 17.43 | P29: 29.12 | Q29: 31.696 | R29: 34.202 | S29: 35.672 | T29: 37.212 | U29: 37.87 | V29: 37.87 | W29: 41.902 | AA29: 21 | AB29: 13.806 | AC29: 18.93 | AD29: 30.62 | AE29: 33.196 | AF29: 35.702 | AG29: 37.172 | AH29: 38.712 | AI29: 39.37 | AJ29: 39.37 | AK29: 43.402 | AM29: 21 | AN29: 9.87 | AO29: 14.22 | AP29: 25.06 | AQ29: 27.24 | AR29: 29.15 | AS29: 30.37 | AT29: 31.47 | AV29: 21 | AW29: 9.6255 | AX29: 13.878 | AY29: 24.45 | AZ29: 26.575 | BA29: 28.4375 | BB29: 29.625 | BC29: 30.7 | BE29: 21 | BF29: 11.37 | BG29: 15.72 | BH29: 26.56 | BI29: 28.74 | BJ29: 30.65 | BK29: 31.87 | BL29: 32.97
A30: 22 | B30: 12.67 | C30: 17.822 | D30: 29.82 | E30: 32.41 | F30: 34.916 | G30: 36.498 | H30: 38.01 | I30: 38.71 | J30: 38.71 | K30: 42.868 | M30: 22 | N30: 12.67 | O30: 17.822 | P30: 29.82 | Q30: 32.41 | R30: 34.916 | S30: 36.498 | T30: 38.01 | U30: 38.71 | V30: 38.71 | W30: 42.868 | AA30: 22 | AB30: 14.17 | AC30: 19.322 | AD30: 31.32 | AE30: 33.91 | AF30: 36.416 | AG30: 37.998 | AH30: 39.51 | AI30: 40.21 | AJ30: 40.21 | AK30: 44.368 | AM30: 22 | AN30: 10.13 | AO30: 14.5 | AP30: 25.73 | AQ30: 27.91 | AR30: 30.01 | AS30: 31.24 | AT30: 32.33 | AV30: 22 | AW30: 9.882 | AX30: 14.148 | AY30: 25.1 | AZ30: 27.225 | BA30: 29.275 | BB30: 30.475 | BC30: 31.5375 | BE30: 22 | BF30: 11.63 | BG30: 16 | BH30: 27.23 | BI30: 29.41 | BJ30: 31.51 | BK30: 32.74 | BL30: 33.83
A31: 23 | B31: 12.922 | C31: 18.186 | D31: 30.534 | E31: 33.208 | F31: 35.728 | G31: 37.282 | H31: 38.906 | I31: 39.76 | J31: 39.76 | K31: 43.568 | M31: 23 | N31: 12.922 | O31: 18.186 | P31: 30.534 | Q31: 33.208 | R31: 35.728 | S31: 37.282 | T31: 38.906 | U31: 39.76 | V31: 39.76 | W31: 43.568 | AA31: 23 | AB31: 14.422 | AC31: 19.686 | AD31: 32.034 | AE31: 34.708 | AF31: 37.228 | AG31: 38.782 | AH31: 40.406 | AI31: 41.26 | AJ31: 41.26 | AK31: 45.068 | AM31: 23 | AN31: 10.49 | AO31: 14.82 | AP31: 26.38 | AQ31: 28.55 | AR31: 30.76 | AS31: 32.08 | AT31: 33.02 | AV31: 23 | AW31: 10.233 | AX31: 14.4585 | AY31: 25.7375 | AZ31: 27.85 | BA31: 30.0125 | BB31: 31.3 | BC31: 32.2125 | BE31: 23 | BF31: 11.99 | BG31: 16.32 | BH31: 27.88 | BI31: 30.05 | BJ31: 32.26 | BK31: 33.58 | BL31: 34.52
A32: 24 | B32: 13.202 | C32: 18.508 | D32: 31.346 | E32: 34.048 | F32: 36.68 | G32: 38.094 | H32: 39.704 | I32: 40.516 | J32: 40.516 | K32: 44.422 | M32: 24 | N32: 13.202 | O32: 18.508 | P32: 31.346 | Q32: 34.048 | R32: 36.68 | S32: 38.094 | T32: 39.704 | U32: 40.516 | V32: 40.516 | W32: 44.422 | AA32: 24 | AB32: 14.702 | AC32: 20.008 | AD32: 32.846 | AE32: 35.548 | AF32: 38.18 | AG32: 39.594 | AH32: 41.204 | AI32: 42.016 | AJ32: 42.016 | AK32: 45.922 | AM32: 24 | AN32: 10.65 | AO32: 15.08 | AP32: 27.11 | AQ32: 29.25 | AR32: 31.47 | AS32: 32.77 | AT32: 33.8 | AV32: 24 | AW32: 10.395 | AX32: 14.715 | AY32: 26.45 | AZ32: 28.5375 | BA32: 30.7 | BB32: 31.975 | BC32: 32.975 | BE32: 24 | BF32: 12.15 | BG32: 16.58 | BH32: 28.61 | BI32: 30.75 | BJ32: 32.97 | BK32: 34.27 | BL32: 35.3
A33: 25 | B33: 13.314 | C33: 18.606 | D33: 32.144 | E33: 34.748 | F33: 37.058 | G33: 39.018 | H33: 40.516 | I33: 41.776 | J33: 41.776 | K33: 44.688 | M33: 25 | N33: 13.314 | O33: 18.606 | P33: 32.144 | Q33: 34.748 | R33: 37.058 | S33: 39.018 | T33: 40.516 | U33: 41.776 | V33: 41.776 | W33: 44.688 | AA33: 25 | AB33: 14.814 | AC33: 20.106 | AD33: 33.644 | AE33: 36.248 | AF33: 38.558 | AG33: =G33+1.5 -> 40.518 | AH33: 42.016 | AI33: 43.276 | AJ33: 43.276 | AK33: 46.188 | AM33: 25 | AN33: 10.93 | AO33: 15.33 | AP33: 27.83 | AQ33: 29.99 | AR33: 32.31 | AS33: 33.49 | AT33: 34.49 | AV33: 25 | AW33: 10.665 | AX33: 14.958 | AY33: 27.15 | AZ33: 29.2625 | BA33: 31.525 | BB33: 32.675 | BC33: 33.65 | BE33: 25 | BF33: 12.43 | BG33: 16.83 | BH33: 29.33 | BI33: 31.49 | BJ33: 33.81 | BK33: 34.99 | BL33: 35.99
A34: 26 | B34: 13.832 | C34: 19.32 | D34: 33.026 | E34: 35.602 | F34: 38.654 | G34: 40.012 | H34: 41.37 | I34: 42.42 | J34: 42.42 | K34: 46.116 | M34: 26 | N34: 13.832 | O34: 19.32 | P34: 33.026 | Q34: 35.602 | R34: 38.654 | S34: 40.012 | T34: 41.37 | U34: 42.42 | V34: 42.42 | W34: 46.116 | AA34: 26 | AB34: =B34+1.5 -> 15.332 | AC34: 20.82 | AD34: 34.526 | AE34: 37.102 | AF34: 40.154 | AG34: 41.512 | AH34: 42.87 | AI34: 43.92 | AJ34: 43.92 | AK34: 47.616 | AM34: 26 | AN34: 11.19 | AO34: 15.66 | AP34: 28.57 | AQ34: 30.96 | AR34: 33.16 | AS34: 34.67 | AT34: 35.34 | AV34: 26 | AW34: 10.9215 | AX34: 15.282 | AY34: 27.875 | AZ34: 30.2 | BA34: 32.35 | BB34: 33.825 | BC34: 34.475 | BE34: 26 | BF34: 12.69 | BG34: 17.16 | BH34: 30.07 | BI34: 32.46 | BJ34: 34.66 | BK34: 36.17 | BL34: 36.84
A35: 27 | B35: 14.084 | C35: 19.684 | D35: 33.838 | E35: 36.624 | F35: 39.718 | G35: 40.88 | H35: 42.154 | I35: 43.302 | J35: 43.302 | K35: 46.9 | M35: 27 | N35: 14.084 | O35: 19.684 | P35: 33.838 | Q35: 36.624 | R35: 39.718 | S35: 40.88 | T35: 42.154 | U35: 43.302 | V35: 43.302 | W35: 46.9 | AA35: 27 | AB35: 15.584 | AC35: 21.184 | AD35: 35.338 | AE35: 38.124 | AF35: 41.218 | AG35: 42.38 | AH35: 43.654 | AI35: 44.802 | AJ35: 44.802 | AK35: 48.4 | AM35: 27 | AN35: 11.43 | AO35: 16.11 | AP35: 29.39 | AQ35: 31.69 | AR35: 33.93 | AS35: 35.39 | AT35: 36.11 | AV35: 27 | AW35: 11.151 | AX35: 15.714 | AY35: 28.675 | AZ35: 30.9125 | BA35: 33.1 | BB35: 34.525 | BC35: 35.225 | BE35: 27 | BF35: 12.93 | BG35: 17.61 | BH35: 30.89 | BI35: 33.19 | BJ35: 35.43 | BK35: 36.89 | BL35: 37.61
A36: 28 | B36: 14.448 | C36: 20.118 | D36: 34.734 | E36: 37.674 | F36: 40.53 | G36: 41.692 | H36: 43.05 | I36: 44.1 | J36: 44.1 | K36: 47.894 | M36: 28 | N36: 14.448 | O36: 20.118 | P36: 34.734 | Q36: 37.674 | R36: 40.53 | S36: 41.692 | T36: 43.05 | U36: 44.1 | V36: 44.1 | W36: 47.894 | AA36: 28 | AB36: 15.948 | AC36: 21.618 | AD36: 36.234 | AE36: 39.174 | AF36: 42.03 | AG36: 43.192 | AH36: 44.55 | AI36: 45.6 | AJ36: 45.6 | AK36: 49.394 | AM36: 28 | AN36: 11.61 | AO36: 16.55 | AP36: 30.15 | AQ36: 32.39 | AR36: 34.58 | AS36: 36.27 | AT36: 37.04 | AV36: 28 | AW36: 11.3265 | AX36: 16.146 | AY36: 29.4125 | AZ36: 31.6 | BA36: 33.7375 | BB36: 35.3875 | BC36: 36.1375 | BE36: 28 | BF36: 13.11 | BG36: 18.05 | BH36: 31.65 | BI36: 33.89 | BJ36: 36.08 | BK36: 37.77 | BL36: 38.54
A37: 29 | B37: 14.588 | C37: 20.454 | D37: 35.616 | E37: 38.472 | F37: 41.398 | G37: 42.602 | H37: 43.96 | I37: 44.814 | J37: 44.814 | K37: 48.986 | M37: 29 | N37: 14.588 | O37: 20.454 | P37: 35.616 | Q37: 38.472 | R37: 41.398 | S37: 42.602 | T37: 43.96 | U37: 44.814 | V37: 44.814 | W37: 48.986 | AA37: 29 | AB37: 16.088 | AC37: 21.954 | AD37: 37.116 | AE37: 39.972 | AF37: 42.898 | AG37: 44.102 | AH37: 45.46 | AI37: 46.314 | AJ37: 46.314 | AK37: 50.486 | AM37: 29 | AN37: 11.96 | AO37: 16.98 | AP37: 30.96 | AQ37: 33.06 | AR37: 35.44 | AS37: 37.11 | AT37: 38.1 | AV37: 29 | AW37: 11.664 | AX37: 16.5645 | AY37: 30.2 | AZ37: 32.25 | BA37: 34.575 | BB37: 36.2 | BC37: 37.175 | BE37: 29 | BF37: 13.46 | BG37: 18.48 | BH37: 32.46 | BI37: 34.56 | BJ37: 36.94 | BK37: 38.61 | BL37: 39.6
A38: 30 | B38: 14.602 | C38: 20.468 | D38: 36.33 | E38: 39.354 | F38: 41.412 | G38: 43.414 | H38: 44.254 | I38: 45.626 | J38: 45.626 | K38: 49.168 | M38: 30 | N38: 14.602 | O38: 20.468 | P38: 36.33 | Q38: 39.354 | R38: 41.412 | S38: 43.414 | T38: 44.254 | U38: 45.626 | V38: 45.626 | W38: 49.168 | AA38: 30 | AB38: 16.102 | AC38: 21.968 | AD38: 37.83 | AE38: 40.854 | AF38: 42.912 | AG38: 44.914 | AH38: 45.754 | AI38: 47.126 | AJ38: 47.126 | AK38: 50.668 | AM38: 30 | AN38: 12.23 | AO38: 17.28 | AP38: 31.65 | AQ38: 33.72 | AR38: 36.11 | AS38: 37.78 | AT38: 39.13 | AV38: 30 | AW38: 11.934 | AX38: 16.8615 | AY38: 30.875 | AZ38: 32.9 | BA38: 35.225 | BB38: 36.8625 | BC38: 38.175 | BE38: 30 | BF38: 13.73 | BG38: 18.78 | BH38: 33.15 | BI38: 35.22 | BJ38: 37.61 | BK38: 39.28 | BL38: 40.63
A39: 31 | B39: 15.26 | C39: 21.224 | D39: 37.114 | E39: 40.25 | F39: 43.078 | G39: 44.296 | H39: 45.752 | I39: 46.452 | J39: 46.452 | K39: 50.778 | M39: 31 | N39: 15.26 | O39: 21.224 | P39: 37.114 | Q39: 40.25 | R39: 43.078 | S39: 44.296 | T39: 45.752 | U39: 46.452 | V39: 46.452 | W39: 50.778 | AA39: 31 | AB39: 16.76 | AC39: 22.724 | AD39: 38.614 | AE39: 41.75 | AF39: 44.578 | AG39: 45.796 | AH39: 47.252 | AI39: 47.952 | AJ39: 47.952 | AK39: 52.278 | AM39: 31 | AN39: 12.41 | AO39: 17.49 | AP39: 32.48 | AQ39: 34.47 | AR39: 36.96 | AS39: 38.46 | AT39: 39.89 | AV39: 31 | AW39: 12.1095 | AX39: 17.064 | AY39: 31.6875 | AZ39: 33.625 | BA39: 36.0625 | BB39: 37.525 | BC39: 38.9125 | BE39: 31 | BF39: 13.91 | BG39: 18.99 | BH39: 33.98 | BI39: 35.97 | BJ39: 38.46 | BK39: 39.96 | BL39: 41.39
A40: 32 | B40: 15.694 | C40: 21.714 | D40: 37.926 | E40: 41.146 | F40: 43.96 | G40: 45.192 | H40: 46.62 | I40: 47.32 | J40: 47.32 | K40: 51.87 | M40: 32 | N40: 15.694 | O40: 21.714 | P40: 37.926 | Q40: 41.146 | R40: 43.96 | S40: 45.192 | T40: 46.62 | U40: 47.32 | V40: 47.32 | W40: 51.87 | AA40: 32 | AB40: 17.194 | AC40: 23.214 | AD40: 39.426 | AE40: 42.646 | AF40: 45.46 | AG40: 46.692 | AH40: 48.12 | AI40: 48.82 | AJ40: 48.82 | AK40: 53.37 | AM40: 32 | AN40: 12.66 | AO40: 17.68 | AP40: 33.16 | AQ40: 35.34 | AR40: 37.78 | AS40: 39.13 | AT40: 40.69 | AV40: 32 | AW40: 12.3525 | AX40: 17.253 | AY40: 32.35 | AZ40: 34.475 | BA40: 36.8625 | BB40: 38.175 | BC40: 39.7 | BE40: 32 | BF40: =AN40+1.5 -> 14.16 | BG40: 19.18 | BH40: 34.66 | BI40: 36.84 | BJ40: 39.28 | BK40: 40.63 | BL40: 42.19
A41: 33 | B41: 16.058 | C41: 22.26 | D41: 38.654 | E41: 42.028 | F41: 44.856 | G41: 46.2 | H41: 47.684 | I41: 48.398 | J41: 48.398 | K41: 52.99 | M41: 33 | N41: 16.058 | O41: 22.26 | P41: 38.654 | Q41: 42.028 | R41: 44.856 | S41: 46.2 | T41: 47.684 | U41: 48.398 | V41: 48.398 | W41: 52.99 | AA41: 33 | AB41: 17.558 | AC41: 23.76 | AD41: 40.154 | AE41: 43.528 | AF41: 46.356 | AG41: 47.7 | AH41: 49.184 | AI41: 49.898 | AJ41: 49.898 | AK41: 54.49 | AM41: 33 | AN41: 12.92 | AO41: 17.97 | AP41: 33.72 | AQ41: 36.11 | AR41: 38.64 | AS41: 39.91 | AT41: 41.47 | AV41: 33 | AW41: 12.609 | AX41: 17.5365 | AY41: 32.9 | AZ41: 35.225 | BA41: 37.7 | BB41: 38.9375 | BC41: 40.4625 | BE41: 33 | BF41: 14.42 | BG41: 19.47 | BH41: 35.22 | BI41: 37.61 | BJ41: 40.14 | BK41: 41.41 | BL41: 42.97
A42: 34 | B42: 16.408 | C42: 22.596 | D42: 39.536 | E42: 42.924 | F42: 45.822 | G42: 47.194 | H42: 48.678 | I42: 49.378 | J42: 49.378 | K42: 53.998 | M42: 34 | N42: 16.408 | O42: 22.596 | P42: 39.536 | Q42: 42.924 | R42: 45.822 | S42: 47.194 | T42: 48.678 | U42: 49.378 | V42: 49.378 | W42: 53.998 | AA42: 34 | AB42: 17.908 | AC42: 24.096 | AD42: 41.036 | AE42: 44.424 | AF42: 47.322 | AG42: 48.694 | AH42: 50.178 | AI42: 50.878 | AJ42: 50.878 | AK42: 55.498 | AM42: 34 | AN42: 13.21 | AO42: 18.35 | AP42: 34.41 | AQ42: 36.85 | AR42: 39.62 | AS42: 40.64 | AT42: 42.4 | AV42: 34 | AW42: 12.8925 | AX42: 17.901 | AY42: 33.575 | AZ42: 35.95 | BA42: 38.65 | BB42: 39.65 | BC42: 41.3625 | BE42: 34 | BF42: 14.71 | BG42: 19.85 | BH42: 35.91 | BI42: 38.35 | BJ42: 41.12 | BK42: 42.14 | BL42: 43.9
A43: 35 | B43: 16.758 | C43: 23.016 | D43: 40.418 | E43: 43.82 | F43: 46.704 | G43: 48.188 | H43: 49.63 | I43: 50.386 | J43: 50.386 | K43: 55.076 | M43: 35 | N43: 16.758 | O43: 23.016 | P43: 40.418 | Q43: 43.82 | R43: 46.704 | S43: 48.188 | T43: 49.63 | U43: 50.386 | V43: 50.386 | W43: 55.076 | AA43: 35 | AB43: 18.258 | AC43: 24.516 | AD43: 41.918 | AE43: 45.32 | AF43: 48.204 | AG43: 49.688 | AH43: 51.13 | AI43: 51.886 | AJ43: 51.886 | AK43: 56.576 | AM43: 35 | AN43: 13.44 | AO43: 18.76 | AP43: 35.25 | AQ43: 37.5 | AR43: 40.47 | AS43: 41.53 | AT43: 43.24 | AV43: 35 | AW43: 13.1085 | AX43: 18.306 | AY43: 34.3875 | AZ43: 36.5875 | BA43: 39.4875 | BB43: 40.5125 | BC43: 42.1875 | BE43: 35 | BF43: 14.94 | BG43: 20.26 | BH43: 36.75 | BI43: 39 | BJ43: 41.97 | BK43: 43.03 | BL43: 44.74
A44: 36 | B44: 17.318 | C44: 23.38 | D44: 41.286 | E44: 44.702 | F44: 47.614 | G44: 49.252 | H44: 50.596 | I44: 51.352 | J44: 51.352 | K44: 56.294 | M44: 36 | N44: 17.318 | O44: 23.38 | P44: 41.286 | Q44: 44.702 | R44: 47.614 | S44: 49.252 | T44: 50.596 | U44: 51.352 | V44: 51.352 | W44: 56.294 | AA44: 36 | AB44: 18.818 | AC44: 24.88 | AD44: 42.786 | AE44: 46.202 | AF44: 49.114 | AG44: 50.752 | AH44: 52.096 | AI44: 52.852 | AJ44: 52.852 | AK44: 57.794 | AM44: 36 | AN44: 13.82 | AO44: 19.12 | AP44: 35.98 | AQ44: 38.27 | AR44: 41.24 | AS44: 42.44 | AT44: 44.06 | AV44: 36 | AW44: 13.4865 | AX44: 18.657 | AY44: 35.1 | AZ44: 37.3375 | BA44: 40.2375 | BB44: 41.4 | BC44: 42.9875 | BE44: 36 | BF44: 15.32 | BG44: 20.62 | BH44: 37.48 | BI44: 39.77 | BJ44: 42.74 | BK44: 43.94 | BL44: 45.56
A45: 37 | B45: 17.332 | C45: 24.052 | D45: 42.098 | E45: 45.612 | F45: 48.566 | G45: 50.344 | H45: 51.66 | I45: 52.444 | J45: 52.444 | K45: 57.204 | M45: 37 | N45: 17.332 | O45: 24.052 | P45: 42.098 | Q45: 45.612 | R45: 48.566 | S45: 50.344 | T45: 51.66 | U45: 52.444 | V45: 52.444 | W45: 57.204 | AA45: 37 | AB45: 18.832 | AC45: 25.552 | AD45: 43.598 | AE45: 47.112 | AF45: 50.066 | AG45: 51.844 | AH45: 53.16 | AI45: 53.944 | AJ45: 53.944 | AK45: 58.704 | AM45: 37 | AN45: 14.07 | AO45: 19.54 | AP45: 36.75 | AQ45: 39.04 | AR45: 42.08 | AS45: 43.23 | AT45: 45.02 | AV45: 37 | AW45: 13.7295 | AX45: 19.062 | AY45: 35.85 | AZ45: 38.0875 | BA45: 41.05 | BB45: 42.175 | BC45: 43.925 | BE45: 37 | BF45: 15.57 | BG45: 21.04 | BH45: 38.25 | BI45: 40.54 | BJ45: 43.58 | BK45: 44.73 | BL45: 46.52
A46: 38 | B46: 17.612 | C46: 24.43 | D46: 42.84 | E46: 46.41 | F46: 49.49 | G46: 51.52 | H46: 52.64 | I46: 53.424 | J46: 53.424 | K46: 58.324 | M46: 38 | N46: 17.612 | O46: 24.43 | P46: 42.84 | Q46: 46.41 | R46: 49.49 | S46: 51.52 | T46: 52.64 | U46: 53.424 | V46: 53.424 | W46: 58.324 | AA46: 38 | AB46: 19.112 | AC46: 25.93 | AD46: 44.34 | AE46: 47.91 | AF46: 50.99 | AG46: 53.02 | AH46: 54.14 | AI46: 54.924 | AJ46: 54.924 | AK46: 59.824 | AM46: 38 | AN46: 14.34 | AO46: 19.8 | AP46: 37.73 | AQ46: 39.99 | AR46: 42.93 | AS46: 43.97 | AT46: 45.6 | AV46: 38 | AW46: 13.986 | AX46: 19.3185 | AY46: 36.8125 | AZ46: 39.0125 | BA46: 41.8875 | BB46: 42.9 | BC46: 44.4875 | BE46: 38 | BF46: 15.84 | BG46: 21.3 | BH46: 39.23 | BI46: 41.49 | BJ46: 44.43 | BK46: 45.47 | BL46: 47.1
A47: 39 | B47: 18.186 | C47: 24.85 | D47: 43.638 | E47: 47.278 | F47: 50.428 | G47: 52.584 | H47: 53.69 | I47: 54.474 | J47: 54.474 | K47: 58.338 | M47: 39 | N47: 18.186 | O47: 24.85 | P47: 43.638 | Q47: 47.278 | R47: 50.428 | S47: 52.584 | T47: 53.69 | U47: 54.474 | V47: 54.474 | W47: 58.338 | AA47: 39 | AB47: 19.686 | AC47: 26.35 | AD47: 45.138 | AE47: 48.778 | AF47: 51.928 | AG47: 54.084 | AH47: 55.19 | AI47: 55.974 | AJ47: 55.974 | AK47: 59.838 | AM47: 39 | AN47: 14.58 | AO47: 20.2 | AP47: 38.57 | AQ47: 40.94 | AR47: 43.79 | AS47: 44.61 | AT47: 46.37 | AV47: 39 | AW47: 14.229 | AX47: 19.71 | AY47: 37.625 | AZ47: 39.9375 | BA47: 42.725 | BB47: 43.525 | BC47: 45.2375 | BE47: 39 | BF47: 16.08 | BG47: 21.7 | BH47: 40.07 | BI47: 42.44 | BJ47: 45.29 | BK47: 46.11 | BL47: 47.87
A48: 40 | B48: 18.2 | C48: 25.27 | D48: 44.436 | E48: 48.174 | F48: 51.324 | G48: 53.592 | H48: 54.768 | I48: 55.566 | J48: 55.566 | K48: 58.352 | M48: 40 | N48: 18.2 | O48: 25.27 | P48: 44.436 | Q48: 48.174 | R48: 51.324 | S48: 53.592 | T48: 54.768 | U48: 55.566 | V48: 55.566 | W48: 58.352 | AA48: 40 | AB48: 19.7 | AC48: 26.77 | AD48: 45.936 | AE48: 49.674 | AF48: 52.824 | AG48: 55.092 | AH48: 56.268 | AI48: 57.066 | AJ48: 57.066 | AK48: 59.852 | AM48: 40 | AN48: 14.96 | AO48: 20.67 | AP48: 39.32 | AQ48: 41.79 | AR48: 44.86 | AS48: 45.39 | AT48: 47.23 | AV48: 40 | AW48: 14.5935 | AX48: 20.169 | AY48: 38.3625 | AZ48: 40.775 | BA48: 43.7625 | BB48: 44.2875 | BC48: 46.075 | BE48: 40 | BF48: 16.46 | BG48: 22.17 | BH48: 40.82 | BI48: 43.29 | BJ48: 46.36 | BK48: 46.89 | BL48: 48.73
A49: 41 | B49: 18.788 | C49: 25.788 | D49: 45.234 | E49: 49.084 | F49: 52.304 | G49: 54.46 | H49: 55.804 | I49: 56.644 | J49: 56.644 | K49: 61.992 | M49: 41 | N49: 18.788 | O49: 25.788 | P49: 45.234 | Q49: 49.084 | R49: 52.304 | S49: 54.46 | T49: 55.804 | U49: 56.644 | V49: 56.644 | W49: 61.992 | AA49: 41 | AB49: 20.288 | AC49: 27.288 | AD49: 46.734 | AE49: 50.584 | AF49: 53.804 | AG49: 55.96 | AH49: 57.304 | AI49: 58.144 | AJ49: 58.144 | AK49: 63.492 | AM49: 41 | AN49: 15.21 | AO49: 21.16 | AP49: 40.05 | AQ49: 42.76 | AR49: 45.8 | AS49: 46.37 | AT49: 48.25 | AV49: 41 | AW49: 14.8365 | AX49: 20.6415 | AY49: 39.075 | AZ49: 41.7125 | BA49: 44.6875 | BB49: 45.2375 | BC49: 47.075 | BE49: 41 | BF49: 16.71 | BG49: 22.66 | BH49: 41.55 | BI49: 44.26 | BJ49: 47.3 | BK49: 47.87 | BL49: 49.75
A50: 42 | B50: 19.068 | C50: 26.306 | D50: 46.116 | E50: 49.966 | F50: 53.368 | G50: 55.734 | H50: 56.938 | I50: 57.806 | J50: 57.806 | K50: 62.972 | M50: 42 | N50: 19.068 | O50: 26.306 | P50: 46.116 | Q50: 49.966 | R50: 53.368 | S50: 55.734 | T50: 56.938 | U50: 57.806 | V50: 57.806 | W50: 62.972 | AA50: 42 | AB50: 20.568 | AC50: 27.806 | AD50: 47.616 | AE50: 51.466 | AF50: 54.868 | AG50: 57.234 | AH50: 58.438 | AI50: 59.306 | AJ50: 59.306 | AK50: 64.472 | AM50: 42 | AN50: 15.47 | AO50: 21.45 | AP50: 40.81 | AQ50: 43.6 | AR50: 46.73 | AS50: 47.23 | AT50: 49.29 | AV50: 42 | AW50: 15.093 | AX50: 20.925 | AY50: 39.8125 | AZ50: 42.5375 | BA50: 45.5875 | BB50: 46.075 | BC50: 48.0875 | BE50: 42 | BF50: 16.97 | BG50: 22.95 | BH50: 42.31 | BI50: 45.1 | BJ50: 48.23 | BK50: 48.73 | BL50: 50.79
A51: 43 | B51: 19.572 | C51: 26.796 | D51: 47.026 | E51: 50.848 | F51: 54.362 | G51: 56.63 | H51: 58.114 | I51: 58.968 | J51: 58.968 | K51: 63.994 | M51: 43 | N51: 19.572 | O51: 26.796 | P51: 47.026 | Q51: 50.848 | R51: 54.362 | S51: 56.63 | T51: 58.114 | U51: 58.968 | V51: 58.968 | W51: 63.994 | AA51: 43 | AB51: 21.072 | AC51: 28.296 | AD51: 48.526 | AE51: 52.348 | AF51: 55.862 | AG51: 58.13 | AH51: 59.614 | AI51: 60.468 | AJ51: 60.468 | AK51: 65.494 | AM51: 43 | AN51: 15.73 | AO51: 21.74 | AP51: 41.53 | AQ51: 44.56 | AR51: 47.68 | AS51: 48.16 | AT51: 50.44 | AV51: 43 | AW51: 15.3495 | AX51: 21.2085 | AY51: 40.5125 | AZ51: 43.475 | BA51: 46.5125 | BB51: 46.9875 | BC51: 49.2125 | BE51: 43 | BF51: 17.23 | BG51: 23.24 | BH51: 43.03 | BI51: 46.06 | BJ51: 49.18 | BK51: 49.66 | BL51: 51.94
A52: 44 | B52: 20.006 | C52: 27.328 | D52: 47.824 | E52: 51.744 | F52: 55.314 | G52: 57.624 | H52: 59.346 | I52: 60.242 | J52: 60.242 | K52: 65.198 | M52: 44 | N52: 20.006 | O52: 27.328 | P52: 47.824 | Q52: 51.744 | R52: 55.314 | S52: 57.624 | T52: 59.346 | U52: 60.242 | V52: 60.242 | W52: 65.198 | AA52: 44 | AB52: 21.506 | AC52: 28.828 | AD52: 49.324 | AE52: 53.244 | AF52: 56.814 | AG52: 59.124 | AH52: 60.846 | AI52: 61.742 | AJ52: 61.742 | AK52: 66.698 | AM52: 44 | AN52: 16 | AO52: 22.22 | AP52: 42.27 | AQ52: 45.5 | AR52: 48.55 | AS52: 49.14 | AT52: 51.57 | AV52: 44 | AW52: 15.606 | AX52: 21.681 | AY52: 41.2375 | AZ52: 44.3875 | BA52: 47.3625 | BB52: 47.9375 | BC52: 50.3125 | BE52: 44 | BF52: 17.5 | BG52: 23.72 | BH52: 43.77 | BI52: 47 | BJ52: 50.05 | BK52: 50.64 | BL52: 53.07
A53: 45 | B53: 20.426 | C53: 27.902 | D53: 48.678 | E53: 52.626 | F53: 56.392 | G53: 58.618 | H53: 60.298 | I53: 61.194 | J53: 61.194 | K53: 66.416 | M53: 45 | N53: 20.426 | O53: 27.902 | P53: 48.678 | Q53: 52.626 | R53: 56.392 | S53: 58.618 | T53: 60.298 | U53: 61.194 | V53: 61.194 | W53: 66.416 | AA53: 45 | AB53: 21.926 | AC53: 29.402 | AD53: 50.178 | AE53: 54.126 | AF53: 57.892 | AG53: 60.118 | AH53: 61.798 | AI53: 62.694 | AJ53: 62.694 | AK53: 67.916 | AM53: 45 | AN53: 16.27 | AO53: 22.6 | AP53: 43.05 | AQ53: 46.37 | AR53: 49.61 | AS53: 49.96 | AT53: 52.72 | AV53: 45 | AW53: 15.876 | AX53: 22.0455 | AY53: 42 | AZ53: 45.2375 | BA53: 48.4 | BB53: 48.7375 | BC53: 51.4375 | BE53: 45 | BF53: 17.77 | BG53: 24.1 | BH53: 44.55 | BI53: 47.87 | BJ53: 51.11 | BK53: 51.46 | BL53: 54.22
A54: 46 | B54: 20.832 | C54: 28.504 | D54: 49.532 | E54: 53.522 | F54: 57.456 | G54: 59.626 | H54: 61.362 | I54: 62.272 | J54: 62.272 | K54: 67.284 | M54: 46 | N54: 20.832 | O54: 28.504 | P54: 49.532 | Q54: 53.522 | R54: 57.456 | S54: 59.626 | T54: 61.362 | U54: 62.272 | V54: 62.272 | W54: 67.284 | AA54: 46 | AB54: 22.332 | AC54: 30.004 | AD54: 51.032 | AE54: 55.022 | AF54: 58.956 | AG54: 61.126 | AH54: 62.862 | AI54: 63.772 | AJ54: 63.772 | AK54: 68.784 | AM54: 46 | AN54: 16.55 | AO54: 23.09 | AP54: 43.79 | AQ54: 47.23 | AR54: 50.53 | AS54: 50.9 | AT54: 53.68 | AV54: 46 | AW54: 16.146 | AX54: 22.5315 | AY54: 42.725 | AZ54: 46.075 | BA54: 49.3 | BB54: 49.6625 | BC54: 52.375 | BE54: 46 | BF54: 18.05 | BG54: 24.59 | BH54: 45.29 | BI54: 48.73 | BJ54: 52.03 | BK54: 52.4 | BL54: 55.18
A55: 47 | B55: 21.182 | C55: 29.106 | D55: 50.4 | E55: 54.334 | F55: 58.52 | G55: 60.494 | H55: 62.328 | I55: 63.266 | J55: 63.266 | K55: 67.298 | M55: 47 | N55: 21.182 | O55: 29.106 | P55: 50.4 | Q55: 54.334 | R55: 58.52 | S55: 60.494 | T55: 62.328 | U55: 63.266 | V55: 63.266 | W55: 67.298 | AA55: 47 | AB55: 22.682 | AC55: 30.606 | AD55: 51.9 | AE55: 55.834 | AF55: 60.02 | AG55: 61.994 | AH55: 63.828 | AI55: 64.766 | AJ55: 64.766 | AK55: 68.798 | AM55: 47 | AN55: 16.8 | AO55: 23.48 | AP55: 44.61 | AQ55: 47.97 | AR55: 51.39 | AS55: 51.89 | AT55: 54.54 | AV55: 47 | AW55: 16.389 | AX55: 22.9095 | AY55: 43.525 | AZ55: 46.8 | BA55: 50.1375 | BB55: 50.625 | BC55: 53.2125 | BE55: 47 | BF55: 18.3 | BG55: 24.98 | BH55: 46.11 | BI55: 49.47 | BJ55: 52.89 | BK55: 53.39 | BL55: 56.04
A56: 48 | B56: 21.322 | C56: 29.68 | D56: 51.114 | E56: 55.23 | F56: 59.584 | G56: 61.586 | H56: 63.49 | I56: 64.442 | J56: 64.442 | K56: 68.782 | M56: 48 | N56: 21.322 | O56: 29.68 | P56: 51.114 | Q56: 55.23 | R56: 59.584 | S56: 61.586 | T56: 63.49 | U56: 64.442 | V56: 64.442 | W56: 68.782 | AA56: 48 | AB56: 22.822 | AC56: 31.18 | AD56: 52.614 | AE56: 56.73 | AF56: 61.084 | AG56: 63.086 | AH56: 64.99 | AI56: 65.942 | AJ56: 65.942 | AK56: 70.282 | AM56: 48 | AN56: 17.14 | AO56: 23.97 | AP56: 45.5 | AQ56: 48.74 | AR56: 52.17 | AS56: 52.93 | AT56: 55.36 | AV56: 48 | AW56: 16.7265 | AX56: 23.382 | AY56: 44.3875 | AZ56: 47.55 | BA56: 50.9 | BB56: 51.6375 | BC56: 54.0125 | BE56: 48 | BF56: 18.64 | BG56: 25.47 | BH56: 47 | BI56: 50.24 | BJ56: 53.67 | BK56: 54.43 | BL56: 56.86
A57: 49 | B57: 21.476 | C57: 30.366 | D57: 51.842 | E57: 55.384 | F57: 59.598 | G57: 62.566 | H57: 64.624 | I57: 65.576 | J57: 65.576 | K57: 68.796 | M57: 49 | N57: 21.476 | O57: 30.366 | P57: 51.842 | Q57: 55.384 | R57: 59.598 | S57: 62.566 | T57: 64.624 | U57: 65.576 | V57: 65.576 | W57: 68.796 | AA57: 49 | AB57: 22.976 | AC57: 31.866 | AD57: 53.342 | AE57: 56.884 | AF57: 61.098 | AG57: 64.066 | AH57: 66.124 | AI57: 67.076 | AJ57: 67.076 | AK57: 70.296 | AM57: 49 | AN57: 17.41 | AO57: 24.45 | AP57: 46.3 | AQ57: 49.61 | AR57: 52.99 | AS57: 53.76 | AT57: 56.16 | AV57: 49 | AW57: 16.983 | AX57: 23.8545 | AY57: 45.175 | AZ57: 48.4 | BA57: 51.7 | BB57: 52.45 | BC57: 54.7875 | BE57: 49 | BF57: 18.91 | BG57: 25.95 | BH57: 47.8 | BI57: 51.11 | BJ57: 54.49 | BK57: 55.26 | BL57: 57.66
A58: 50 | B58: 21.49 | C58: 30.408 | D58: 51.856 | E58: 55.398 | F58: 59.612 | G58: 62.58 | H58: 64.638 | I58: 65.59 | J58: 65.59 | K58: 68.81 | M58: 50 | N58: 21.49 | O58: 30.408 | P58: 51.856 | Q58: 55.398 | R58: 59.612 | S58: 62.58 | T58: 64.638 | U58: 65.59 | V58: 65.59 | W58: 68.81 | AA58: 50 | AB58: 22.99 | AC58: 31.908 | AD58: 53.356 | AE58: 56.898 | AF58: 61.112 | AG58: 64.08 | AH58: 66.138 | AI58: 67.09 | AJ58: 67.09 | AK58: 70.31 | AM58: 50 | AN58: 17.67 | AO58: 24.92 | AP58: 46.97 | AQ58: 50.17 | AR58: 53.8 | AS58: 54.65 | AT58: 56.68 | AV58: 50 | AW58: 17.2395 | AX58: 24.3135 | AY58: 45.825 | AZ58: 48.95 | BA58: 52.4875 | BB58: 53.3125 | BC58: 55.3 | BE58: 50 | BF58: 19.17 | BG58: 26.42 | BH58: 48.47 | BI58: 51.67 | BJ58: 55.3 | BK58: 56.15 | BL58: 58.18
A59: 51 | B59: 22.652 | C59: 31.626 | D59: 53.494 | E59: 57.89 | F59: 62.86 | G59: 64.736 | H59: 67.102 | I59: 68.082 | J59: 68.082 | K59: 71.106 | M59: 51 | N59: 22.652 | O59: 31.626 | P59: 53.494 | Q59: 57.89 | R59: 62.86 | S59: 64.736 | T59: 67.102 | U59: 68.082 | V59: 68.082 | W59: 71.106 | AA59: 51 | AB59: 24.152 | AC59: 33.126 | AD59: 54.994 | AE59: 59.39 | AF59: 64.36 | AG59: 66.236 | AH59: 68.602 | AI59: 69.582 | AJ59: 69.582 | AK59: 72.606 | AM59: 51 | AN59: 18 | AO59: 25.29 | AP59: 46.98 | AQ59: 50.19 | AR59: 53.81 | AS59: 54.66 | AT59: 56.7 | AV59: 51 | AW59: 17.5635 | AX59: 24.678 | AY59: 45.8375 | AZ59: 48.9625 | BA59: 52.5 | BB59: 53.325 | BC59: 55.3125 | BE59: 51 | BF59: 19.5 | BG59: 26.79 | BH59: 48.48 | BI59: 51.69 | BJ59: 55.31 | BK59: 56.16 | BL59: 58.2
A60: 52 | B60: 23.002 | C60: 32.298 | D60: 54.32 | E60: 58.772 | F60: 63.924 | G60: 65.8 | H60: 68.418 | I60: 69.44 | J60: 69.44 | K60: 73.472 | M60: 52 | N60: 23.002 | O60: 32.298 | P60: 54.32 | Q60: 58.772 | R60: 63.924 | S60: 65.8 | T60: 68.418 | U60: 69.44 | V60: 69.44 | W60: 73.472 | AA60: 52 | AB60: 24.502 | AC60: 33.798 | AD60: 55.82 | AE60: 60.272 | AF60: 65.424 | AG60: 67.3 | AH60: 69.918 | AI60: 70.94 | AJ60: 70.94 | AK60: 74.972 | AM60: 52 | AN60: 18.27 | AO60: 25.78 | AP60: 48.47 | AQ60: 51.94 | AR60: 55.36 | AS60: 56.61 | AT60: 58.91 | AV60: 52 | AW60: 17.82 | AX60: 25.1505 | AY60: 47.2875 | AZ60: 50.675 | BA60: 54.0125 | BB60: 55.225 | BC60: 57.475 | BE60: 52 | BF60: 19.77 | BG60: 27.28 | BH60: 49.97 | BI60: 53.44 | BJ60: 56.86 | BK60: 58.11 | BL60: 60.41
A61: 53 | B61: 23.45 | C61: 32.83 | D61: 55.146 | E61: 59.752 | F61: 65.072 | G61: 66.878 | H61: 69.566 | I61: 70.616 | J61: 70.616 | K61: 73.486 | M61: 53 | N61: 23.45 | O61: 32.83 | P61: 55.146 | Q61: 59.752 | R61: 65.072 | S61: 66.878 | T61: 69.566 | U61: 70.616 | V61: 70.616 | W61: 73.486 | AA61: 53 | AB61: 24.95 | AC61: 34.33 | AD61: 56.646 | AE61: 61.252 | AF61: 66.572 | AG61: 68.378 | AH61: 71.066 | AI61: 72.116 | AJ61: 72.116 | AK61: 74.986 | AM61: 53 | AN61: 18.63 | AO61: 26.18 | AP61: 49.21 | AQ61: 52.93 | AR61: 56.16 | AS61: 57.77 | AT61: 60.04 | AV61: 53 | AW61: 18.171 | AX61: 25.542 | AY61: 48.0125 | AZ61: 51.6375 | BA61: 54.7875 | BB61: 56.3625 | BC61: 58.575 | BE61: 53 | BF61: 20.13 | BG61: 27.68 | BH61: 50.71 | BI61: 54.43 | BJ61: 57.66 | BK61: 59.27 | BL61: 61.54
A62: 54 | B62: 23.828 | C62: 33.488 | D62: 56.056 | E62: 60.634 | F62: 66.052 | G62: 68.166 | H62: 70.882 | I62: 71.932 | J62: 71.932 | K62: 75.502 | M62: 54 | N62: 23.828 | O62: 33.488 | P62: 56.056 | Q62: 60.634 | R62: 66.052 | S62: 68.166 | T62: 70.882 | U62: 71.932 | V62: 71.932 | W62: 75.502 | AA62: 54 | AB62: 25.328 | AC62: 34.988 | AD62: 57.556 | AE62: 62.134 | AF62: 67.552 | AG62: 69.666 | AH62: 72.382 | AI62: 73.432 | AJ62: 73.432 | AK62: 77.002 | AM62: 54 | AN62: 18.99 | AO62: 26.73 | AP62: 49.97 | AQ62: 53.85 | AR62: 56.8 | AS62: 59.01 | AT62: 61.28 | AV62: 54 | AW62: 18.522 | AX62: 26.082 | AY62: 48.75 | AZ62: 52.5375 | BA62: 55.4125 | BB62: 57.575 | BC62: 59.7875 | BE62: 54 | BF62: 20.49 | BG62: 28.23 | BH62: 51.47 | BI62: 55.35 | BJ62: 58.3 | BK62: 60.51 | BL62: 62.78
A63: 55 | B63: 24.178 | C63: 34.104 | D63: 57.05 | E63: 61.46 | F63: 67.046 | G63: 69.3 | H63: 71.932 | I63: 73.024 | J63: 73.024 | K63: 77.952 | M63: 55 | N63: 24.178 | O63: 34.104 | P63: 57.05 | Q63: 61.46 | R63: 67.046 | S63: 69.3 | T63: 71.932 | U63: 73.024 | V63: 73.024 | W63: 77.952 | AA63: 55 | AB63: 25.678 | AC63: 35.604 | AD63: 58.55 | AE63: 62.96 | AF63: 68.546 | AG63: 70.8 | AH63: 73.432 | AI63: 74.524 | AJ63: 74.524 | AK63: 79.452 | AM63: 55 | AN63: 19.23 | AO63: 27.23 | AP63: 50.79 | AQ63: 54.94 | AR63: 57.57 | AS63: 60.32 | AT63: 62.4 | AV63: 55 | AW63: 18.765 | AX63: 26.568 | AY63: 49.55 | AZ63: 53.6 | BA63: 56.1625 | BB63: 58.85 | BC63: 60.875 | BE63: 55 | BF63: 20.73 | BG63: 28.73 | BH63: 52.29 | BI63: 56.44 | BJ63: 59.07 | BK63: 61.82 | BL63: 63.9
A64: 56 | B64: 24.626 | C64: 34.748 | D64: 58.086 | E64: 62.174 | F64: 68.096 | G64: 70.588 | H64: 73.094 | I64: 74.186 | J64: 74.186 | K64: 77.966 | M64: 56 | N64: 24.626 | O64: 34.748 | P64: 58.086 | Q64: 62.174 | R64: 68.096 | S64: 70.588 | T64: 73.094 | U64: 74.186 | V64: 74.186 | W64: 77.966 | AA64: 56 | AB64: 26.126 | AC64: 36.248 | AD64: 59.586 | AE64: 63.674 | AF64: 69.596 | AG64: 72.088 | AH64: 74.594 | AI64: 75.686 | AJ64: 75.686 | AK64: 79.466 | AM64: 56 | AN64: 19.59 | AO64: 27.81 | AP64: 51.69 | AQ64: 55.68 | AR64: 58.41 | AS64: 61.18 | AT64: 63.51 | AV64: 56 | AW64: 19.116 | AX64: 27.135 | AY64: 50.425 | AZ64: 54.325 | BA64: 56.9875 | BB64: 59.6875 | BC64: 61.9625 | BE64: 56 | BF64: 21.09 | BG64: 29.31 | BH64: 53.19 | BI64: 57.18 | BJ64: 59.91 | BK64: 62.68 | BL64: 65.01
A65: 57 | B65: 25.102 | C65: 35.35 | D65: 59.136 | E65: 63.28 | F65: 69.076 | G65: 71.736 | H65: 74.34 | I65: 75.432 | J65: 75.432 | K65: 80.234 | M65: 57 | N65: 25.102 | O65: 35.35 | P65: 59.136 | Q65: 63.28 | R65: 69.076 | S65: 71.736 | T65: 74.34 | U65: 75.432 | V65: 75.432 | W65: 80.234 | AA65: 57 | AB65: 26.602 | AC65: 36.85 | AD65: 60.636 | AE65: 64.78 | AF65: 70.576 | AG65: 73.236 | AH65: 75.84 | AI65: 76.932 | AJ65: 76.932 | AK65: 81.734 | AM65: 57 | AN65: 19.94 | AO65: 28.28 | AP65: 52.56 | AQ65: 56.27 | AR65: 59.3 | AS65: 62.47 | AT65: 64.61 | AV65: 57 | AW65: 19.4535 | AX65: 27.594 | AY65: 51.275 | AZ65: 54.9 | BA65: 57.85 | BB65: 60.95 | BC65: 63.0375 | BE65: 57 | BF65: 21.44 | BG65: 29.78 | BH65: 54.06 | BI65: 57.77 | BJ65: 60.8 | BK65: 63.97 | BL65: 66.11
A66: 58 | B66: 25.648 | C66: 35.938 | D66: 60.214 | E66: 64.148 | F66: 70.14 | G66: 73.024 | H66: 75.656 | I66: 76.776 | J66: 76.776 | K66: 80.248 | M66: 58 | N66: 25.648 | O66: 35.938 | P66: 60.214 | Q66: 64.148 | R66: 70.14 | S66: 73.024 | T66: 75.656 | U66: 76.776 | V66: 76.776 | W66: 80.248 | AA66: 58 | AB66: =B66+1.5 -> 27.148 | AC66: 37.438 | AD66: 61.714 | AE66: 65.648 | AF66: 71.64 | AG66: 74.524 | AH66: 77.156 | AI66: 78.276 | AJ66: 78.276 | AK66: 81.748 | AM66: 58 | AN66: 20.38 | AO66: 28.88 | AP66: 53.2 | AQ66: 57.34 | AR66: 60.41 | AS66: 63.59 | AT66: 65.47 | AV66: 58 | AW66: 19.8855 | AX66: 28.1745 | AY66: 51.9 | AZ66: 55.9375 | BA66: 58.9375 | BB66: 62.0375 | BC66: 63.875 | BE66: 58 | BF66: 21.88 | BG66: 30.38 | BH66: 54.7 | BI66: 58.84 | BJ66: 61.91 | BK66: 65.09 | BL66: 66.97
A67: 59 | B67: 26.012 | C67: 36.54 | D67: 61.264 | E67: 64.932 | F67: 71.204 | G67: 74.172 | H67: 76.986 | I67: 78.134 | J67: 78.134 | K67: 81.452 | M67: 59 | N67: 26.012 | O67: 36.54 | P67: 61.264 | Q67: 64.932 | R67: 71.204 | S67: 74.172 | T67: 76.986 | U67: 78.134 | V67: 78.134 | W67: 81.452 | AA67: 59 | AB67: 27.512 | AC67: 38.04 | AD67: 62.764 | AE67: 66.432 | AF67: 72.704 | AG67: 75.672 | AH67: 78.486 | AI67: 79.634 | AJ67: 79.634 | AK67: 82.952 | AM67: 59 | AN67: 20.83 | AO67: 29.54 | AP67: 53.76 | AQ67: 58.12 | AR67: 61.69 | AS67: 64.79 | AT67: 66.68 | AV67: 59 | AW67: 20.3175 | AX67: 28.8225 | AY67: 52.45 | AZ67: 56.7 | BA67: 60.1875 | BB67: 63.2125 | BC67: 65.05 | BE67: 59 | BF67: 22.33 | BG67: 31.04 | BH67: 55.26 | BI67: 59.62 | BJ67: 63.19 | BK67: 66.29 | BL67: 68.18
A68: 60 | B68: 26.278 | C68: 36.792 | D68: 62.258 | E68: 66.038 | F68: 72.352 | G68: 75.432 | H68: 77.924 | I68: 79.072 | J68: 79.072 | K68: 82.488 | M68: 60 | N68: 26.278 | O68: 36.792 | P68: 62.258 | Q68: 66.038 | R68: 72.352 | S68: 75.432 | T68: 77.924 | U68: 79.072 | V68: 79.072 | W68: 82.488 | AA68: 60 | AB68: 27.778 | AC68: 38.292 | AD68: 63.758 | AE68: 67.538 | AF68: 73.852 | AG68: 76.932 | AH68: 79.424 | AI68: 80.572 | AJ68: 80.572 | AK68: 83.988 | AM68: 60 | AN68: 21.19 | AO68: 30.3 | AP68: 54.62 | AQ68: 58.84 | AR68: 62.88 | AS68: 65.86 | AT68: 67.8 | AV68: 60 | AW68: 20.6685 | AX68: 29.565 | AY68: 53.2875 | AZ68: 57.4 | BA68: 61.35 | BB68: 64.25 | BC68: 66.15 | BE68: 60 | BF68: 22.69 | BG68: 31.8 | BH68: 56.12 | BI68: 60.34 | BJ68: 64.38 | BK68: 67.36 | BL68: 69.3
A69: 61 | B69: 26.992 | C69: 37.814 | D69: 63.322 | E69: 66.878 | F69: 73.5 | G69: 76.594 | H69: 77.938 | I69: 80.808 | J69: 80.808 | K69: 85.708 | M69: 61 | N69: 26.992 | O69: 37.814 | P69: 63.322 | Q69: 66.878 | R69: 73.5 | S69: 76.594 | T69: 77.938 | U69: 80.808 | V69: 80.808 | W69: 85.708 | AA69: 61 | AB69: 28.492 | AC69: 39.314 | AD69: 64.822 | AE69: 68.378 | AF69: 75 | AG69: 78.094 | AH69: 79.438 | AI69: 82.308 | AJ69: 82.308 | AK69: 87.208 | AM69: 61 | AN69: 21.52 | AO69: 30.98 | AP69: 55.49 | AQ69: 59.83 | AR69: 63.95 | AS69: 67.06 | AT69: 68.89 | AV69: 61 | AW69: 20.9925 | AX69: 30.2265 | AY69: 54.1375 | AZ69: 58.375 | BA69: 62.3875 | BB69: 65.425 | BC69: 67.2125 | BE69: 61 | BF69: 23.02 | BG69: 32.48 | BH69: 56.99 | BI69: 61.33 | BJ69: 65.45 | BK69: 68.56 | BL69: 70.39
A70: 62 | B70: 27.636 | C70: 38.486 | D70: 64.288 | E70: 68.152 | F70: 74.648 | G70: 77.854 | H70: 80.85 | I70: 82.054 | J70: 82.054 | K70: 86.716 | M70: 62 | N70: 27.636 | O70: 38.486 | P70: 64.288 | Q70: 68.152 | R70: 74.648 | S70: 77.854 | T70: 80.85 | U70: 82.054 | V70: 82.054 | W70: 86.716 | AA70: 62 | AB70: 29.136 | AC70: 39.986 | AD70: 65.788 | AE70: 69.652 | AF70: 76.148 | AG70: 79.354 | AH70: 82.35 | AI70: 83.554 | AJ70: 83.554 | AK70: 88.216 | AM70: 62 | AN70: 21.89 | AO70: 31.55 | AP70: 56.35 | AQ70: 60.54 | AR70: 65.07 | AS70: 68.19 | AT70: 70.08 | AV70: 62 | AW70: 21.357 | AX70: 30.78 | AY70: 54.975 | AZ70: 59.0625 | BA70: 63.4875 | BB70: 66.525 | BC70: 68.375 | BE70: 62 | BF70: 23.39 | BG70: 33.05 | BH70: 57.85 | BI70: 62.04 | BJ70: 66.57 | BK70: 69.69 | BL70: 71.58
A71: 63 | B71: 28.098 | C71: 39.242 | D71: 65.38 | E71: 69.132 | F71: 75.88 | G71: 79.198 | H71: 82.194 | I71: 83.412 | J71: 83.412 | K71: 87.794 | M71: 63 | N71: 28.098 | O71: 39.242 | P71: 65.38 | Q71: 69.132 | R71: 75.88 | S71: 79.198 | T71: 82.194 | U71: 83.412 | V71: 83.412 | W71: 87.794 | AA71: 63 | AB71: 29.598 | AC71: 40.742 | AD71: 66.88 | AE71: 70.632 | AF71: 77.38 | AG71: 80.698 | AH71: 83.694 | AI71: 84.912 | AJ71: 84.912 | AK71: 89.294 | AM71: 63 | AN71: 22.5 | AO71: 32.02 | AP71: 57.22 | AQ71: 61.28 | AR71: 66.23 | AS71: 69.19 | AT71: 71.38 | AV71: 63 | AW71: 21.951 | AX71: 31.239 | AY71: 55.825 | AZ71: 59.7875 | BA71: 64.6125 | BB71: 67.5 | BC71: 69.6375 | BE71: 63 | BF71: 24 | BG71: 33.52 | BH71: 58.72 | BI71: 62.78 | BJ71: 67.73 | BK71: 70.69 | BL71: 72.88
A72: 64 | B72: 28.63 | C72: 40.012 | D72: 66.444 | E72: 70.294 | F72: 77.14 | G72: 80.57 | H72: 83.51 | I72: 84.742 | J72: 84.742 | K72: 89.782 | M72: 64 | N72: 28.63 | O72: 40.012 | P72: 66.444 | Q72: 70.294 | R72: 77.14 | S72: 80.57 | T72: 83.51 | U72: 84.742 | V72: 84.742 | W72: 89.782 | AA72: 64 | AB72: 30.13 | AC72: 41.512 | AD72: 67.944 | AE72: 71.794 | AF72: 78.64 | AG72: 82.07 | AH72: 85.01 | AI72: 86.242 | AJ72: 86.242 | AK72: 91.282 | AM72: 64 | AN72: 22.82 | AO72: 32.64 | AP72: 58.14 | AQ72: 62.23 | AR72: 67.37 | AS72: 70.2 | AT72: 72.67 | AV72: 64 | AW72: 22.2615 | AX72: 31.8465 | AY72: 56.725 | AZ72: 60.7125 | BA72: 65.725 | BB72: 68.4875 | BC72: 70.9 | BE72: 64 | BF72: =AN72+1.5 -> 24.32 | BG72: 34.14 | BH72: 59.64 | BI72: 63.73 | BJ72: 68.87 | BK72: 71.7 | BL72: 74.17
A73: 65 | B73: 28.812 | C73: 40.782 | D73: 67.424 | E73: 71.428 | F73: 78.372 | G73: 81.998 | H73: 84.644 | I73: 84.756 | J73: 84.756 | K73: 89.796 | M73: 65 | N73: 28.812 | O73: 40.782 | P73: 67.424 | Q73: 71.428 | R73: 78.372 | S73: 81.998 | T73: 84.644 | U73: 84.756 | V73: 84.756 | W73: 89.796 | AA73: 65 | AB73: 30.312 | AC73: 42.282 | AD73: 68.924 | AE73: 72.928 | AF73: 79.872 | AG73: 83.498 | AH73: 86.144 | AI73: 86.256 | AJ73: 86.256 | AK73: 91.296 | AM73: 65 | AN73: 23.27 | AO73: 33.28 | AP73: 59.01 | AQ73: 63.19 | AR73: 68.52 | AS73: 71.52 | AT73: 73.95 | AV73: 65 | AW73: 22.707 | AX73: 32.4675 | AY73: 57.575 | AZ73: 61.65 | BA73: 66.85 | BB73: 69.775 | BC73: 72.15 | BE73: 65 | BF73: 24.77 | BG73: 34.78 | BH73: 60.51 | BI73: 64.69 | BJ73: 70.02 | BK73: 73.02 | BL73: 75.45
A74: 66 | B74: 29.652 | C74: 41.524 | D74: 68.502 | E74: 72.59 | F74: 79.604 | G74: 83.342 | H74: 86.156 | I74: 87.444 | J74: 87.444 | K74: 91.518 | M74: 66 | N74: 29.652 | O74: 41.524 | P74: 68.502 | Q74: 72.59 | R74: 79.604 | S74: 83.342 | T74: 86.156 | U74: 87.444 | V74: 87.444 | W74: 91.518 | AA74: 66 | AB74: 31.152 | AC74: 43.024 | AD74: 70.002 | AE74: 74.09 | AF74: 81.104 | AG74: 84.842 | AH74: 87.656 | AI74: 88.944 | AJ74: 88.944 | AK74: 93.018 | AM74: 66 | AN74: 23.63 | AO74: 33.87 | AP74: 59.83 | AQ74: 64.05 | AR74: 69.53 | AS74: 72.65 | AT74: 75.03 | AV74: 66 | AW74: 23.058 | AX74: 33.048 | AY74: 58.375 | AZ74: 62.4875 | BA74: 67.8375 | BB74: 70.875 | BC74: 73.2 | BE74: 66 | BF74: 25.13 | BG74: 35.37 | BH74: 61.33 | BI74: 65.55 | BJ74: 71.03 | BK74: 74.15 | BL74: 76.53
A75: 67 | B75: 29.792 | C75: 42.308 | D75: 69.482 | E75: 73.85 | F75: 80.948 | G75: 84.784 | H75: 87.654 | I75: 88.956 | J75: 88.956 | K75: 93.044 | M75: 67 | N75: 29.792 | O75: 42.308 | P75: 69.482 | Q75: 73.85 | R75: 80.948 | S75: 84.784 | T75: 87.654 | U75: 88.956 | V75: 88.956 | W75: 93.044 | AA75: 67 | AB75: 31.292 | AC75: 43.808 | AD75: 70.982 | AE75: 75.35 | AF75: 82.448 | AG75: 86.284 | AH75: 89.154 | AI75: 90.456 | AJ75: 90.456 | AK75: 94.544 | AM75: 67 | AN75: 24.06 | AO75: 33.89 | AP75: 59.85 | AQ75: 64.06 | AR75: 70.7 | AS75: 73.95 | AT75: 76 | AV75: 67 | AW75: 23.4765 | AX75: 33.0615 | AY75: 58.3875 | AZ75: 62.5 | BA75: 68.975 | BB75: 72.15 | BC75: 74.15 | BE75: 67 | BF75: 25.56 | BG75: 35.39 | BH75: 61.35 | BI75: 65.56 | BJ75: 72.2 | BK75: 75.45 | BL75: 77.5
A76: 68 | B76: 30.716 | C76: 43.05 | D76: 70.546 | E76: 75.082 | F76: 82.194 | G76: 84.798 | H76: 89.068 | I76: 90.384 | J76: 90.384 | K76: 94.99 | M76: 68 | N76: 30.716 | O76: 43.05 | P76: 70.546 | Q76: 75.082 | R76: 82.194 | S76: 84.798 | T76: 89.068 | U76: 90.384 | V76: 90.384 | W76: 94.99 | AA76: 68 | AB76: 32.216 | AC76: 44.55 | AD76: 72.046 | AE76: 76.582 | AF76: 83.694 | AG76: 86.298 | AH76: 90.568 | AI76: 91.884 | AJ76: 91.884 | AK76: 96.49 | AM76: 68 | AN76: 24.42 | AO76: 35.23 | AP76: 61.69 | AQ76: 65.95 | AR76: 71.74 | AS76: 75.03 | AT76: 77.16 | AV76: 68 | AW76: 23.8275 | AX76: 34.371 | AY76: 60.1875 | AZ76: 64.3375 | BA76: 69.9875 | BB76: 73.2 | BC76: 75.275 | BE76: 68 | BF76: 25.92 | BG76: 36.73 | BH76: 63.19 | BI76: 67.45 | BJ76: 73.24 | BK76: 76.53 | BL76: 78.66
A77: 69 | B77: 31.178 | C77: 43.82 | D77: 71.596 | E77: 76.328 | F77: 82.208 | G77: 85.218 | H77: 90.566 | I77: 91.91 | J77: 91.91 | K77: 96.544 | M77: 69 | N77: 31.178 | O77: 43.82 | P77: 71.596 | Q77: 76.328 | R77: 82.208 | S77: 85.218 | T77: 90.566 | U77: 91.91 | V77: 91.91 | W77: 96.544 | AA77: 69 | AB77: 32.678 | AC77: 45.32 | AD77: 73.096 | AE77: 77.828 | AF77: 83.708 | AG77: 86.718 | AH77: 92.066 | AI77: 93.41 | AJ77: 93.41 | AK77: 98.044 | AM77: 69 | AN77: 24.87 | AO77: 35.88 | AP77: 62.61 | AQ77: 66.89 | AR77: 72.85 | AS77: 76.12 | AT77: 78.4 | AV77: 69 | AW77: 24.2595 | AX77: 35.0055 | AY77: 61.0875 | AZ77: 65.2625 | BA77: 71.075 | BB77: 74.2625 | BC77: 76.4875 | BE77: 69 | BF77: 26.37 | BG77: 37.38 | BH77: 64.11 | BI77: 68.39 | BJ77: 74.35 | BK77: 77.62 | BL77: 79.9
A78: 70 | B78: 31.192 | C78: 44.156 | D78: 71.61 | E78: 77.504 | F78: 83.44 | G78: 86.282 | H78: 91.798 | I78: 93.156 | J78: 93.156 | K78: 97.944 | M78: 70 | N78: 31.192 | O78: 44.156 | P78: 71.61 | Q78: 77.504 | R78: 83.44 | S78: 86.282 | T78: 91.798 | U78: 93.156 | V78: 93.156 | W78: 97.944 | AA78: 70 | AB78: 32.692 | AC78: 45.656 | AD78: 73.11 | AE78: 79.004 | AF78: 84.94 | AG78: 87.782 | AH78: 93.298 | AI78: 94.656 | AJ78: 94.656 | AK78: 99.444 | AM78: 70 | AN78: 25.31 | AO78: 36.49 | AP78: 63.36 | AQ78: 67.86 | AR78: 74.12 | AS78: 77.16 | AT78: 79.6 | AV78: 70 | AW78: 24.6915 | AX78: 35.5995 | AY78: 61.8125 | AZ78: 66.2 | BA78: 72.3125 | BB78: 75.275 | BC78: 77.6625 | BE78: 70 | BF78: 26.81 | BG78: 37.99 | BH78: 64.86 | BI78: 69.36 | BJ78: 75.62 | BK78: 78.66 | BL78: 81.1
A79: 71 | B79: 32.256 | C79: 45.402 | D79: 73.668 | E79: 78.736 | F79: 83.832 | G79: 87.472 | H79: 93.464 | I79: 94.85 | J79: 94.85 | K79: 99.386 | M79: 71 | N79: 32.256 | O79: 45.402 | P79: 73.668 | Q79: 78.736 | R79: 83.832 | S79: 87.472 | T79: 93.464 | U79: 94.85 | V79: 94.85 | W79: 99.386 | AA79: 71 | AB79: 33.756 | AC79: 46.902 | AD79: 75.168 | AE79: 80.236 | AF79: 85.332 | AG79: 88.972 | AH79: 94.964 | AI79: 96.35 | AJ79: 96.35 | AK79: 100.886 | AM79: 71 | AN79: 25.82 | AO79: 37.22 | AP79: 64.33 | AQ79: 68.88 | AR79: 75.35 | AS79: 78.18 | AT79: 80.95 | AV79: 71 | AW79: 25.191 | AX79: 36.315 | AY79: 62.7625 | AZ79: 67.2 | BA79: 73.5125 | BB79: 76.275 | BC79: 78.975 | BE79: 71 | BF79: 27.32 | BG79: 38.72 | BH79: 65.83 | BI79: 70.38 | BJ79: 76.85 | BK79: 79.68 | BL79: 82.45
A80: 72 | B80: 32.536 | C80: 45.766 | D80: 73.682 | E80: 79.996 | F80: 84.854 | G80: 88.606 | H80: 93.478 | I80: 94.864 | J80: 94.864 | K80: 101.29 | M80: 72 | N80: 32.536 | O80: 45.766 | P80: 73.682 | Q80: 79.996 | R80: 84.854 | S80: 88.606 | T80: 93.478 | U80: 94.864 | V80: 94.864 | W80: 101.29 | AA80: 72 | AB80: 34.036 | AC80: 47.266 | AD80: 75.182 | AE80: 81.496 | AF80: 86.354 | AG80: 90.106 | AH80: 94.978 | AI80: 96.364 | AJ80: 96.364 | AK80: 102.79 | AM80: 72 | AN80: 26.32 | AO80: 37.83 | AP80: 64.87 | AQ80: 69.75 | AR80: 75.8 | AS80: 78.96 | AT80: 82.09 | AV80: 72 | AW80: 25.677 | AX80: 36.909 | AY80: 63.2875 | AZ80: 68.05 | BA80: 73.95 | BB80: 77.0375 | BC80: 80.0875 | BE80: 72 | BF80: 27.82 | BG80: 39.33 | BH80: 66.37 | BI80: 71.25 | BJ80: 77.3 | BK80: 80.46 | BL80: 83.59
A81: 73 | B81: 32.55 | C81: 47.026 | D81: 73.71 | E81: 80.01 | F81: 86.002 | G81: 90.006 | H81: 95.116 | I81: 96.502 | J81: 96.502 | K81: 104.09 | M81: 73 | N81: 32.55 | O81: 47.026 | P81: 73.71 | Q81: 80.01 | R81: 86.002 | S81: 90.006 | T81: 95.116 | U81: 96.502 | V81: 96.502 | W81: 104.09 | AA81: 73 | AB81: 34.05 | AC81: 48.526 | AD81: 75.21 | AE81: 81.51 | AF81: 87.502 | AG81: 91.506 | AH81: 96.616 | AI81: 98.002 | AJ81: 98.002 | AK81: 105.59 | AM81: 73 | AN81: 26.86 | AO81: 38.41 | AP81: 65.74 | AQ81: 70.7 | AR81: 76.89 | AS81: 80.28 | AT81: 83.51 | AV81: 73 | AW81: 26.2035 | AX81: 37.476 | AY81: 64.1375 | AZ81: 68.975 | BA81: 75.0125 | BB81: 78.325 | BC81: 81.475 | BE81: 73 | BF81: 28.36 | BG81: 39.91 | BH81: 67.24 | BI81: 72.2 | BJ81: 78.39 | BK81: 81.78 | BL81: 85.01
A82: 74 | B82: 32.564 | C82: 47.796 | D82: 74.662 | E82: 82.474 | F82: 87.36 | G82: 93.674 | H82: 95.536 | I82: 96.516 | J82: 96.516 | K82: 104.104 | M82: 74 | N82: 32.564 | O82: 47.796 | P82: 74.662 | Q82: 82.474 | R82: 87.36 | S82: 93.674 | T82: 95.536 | U82: 96.516 | V82: 96.516 | W82: 104.104 | AA82: 74 | AB82: 34.064 | AC82: 49.296 | AD82: 76.162 | AE82: 83.974 | AF82: 88.86 | AG82: 95.174 | AH82: 97.036 | AI82: 98.016 | AJ82: 98.016 | AK82: 105.604 | AM82: 74 | AN82: 27.23 | AO82: 39.27 | AP82: 66.78 | AQ82: 71.74 | AR82: 77.93 | AS82: 81.55 | AT82: 85.05 | AV82: 74 | AW82: 26.568 | AX82: 38.313 | AY82: 65.15 | AZ82: 69.9875 | BA82: 76.025 | BB82: 79.5625 | BC82: 82.975 | BE82: 74 | BF82: 28.73 | BG82: 40.77 | BH82: 68.28 | BI82: 73.24 | BJ82: 79.43 | BK82: 83.05 | BL82: 86.55
A83: 75 | B83: 32.578 | C83: 48.202 | D83: 76.776 | E83: 82.488 | F83: 88.032 | G83: 94.962 | H83: 96.516 | I83: 96.53 | J83: 96.53 | K83: 104.118 | M83: 75 | N83: 32.578 | O83: 48.202 | P83: 76.776 | Q83: 82.488 | R83: 88.032 | S83: 94.962 | T83: 96.516 | U83: 96.53 | V83: 96.53 | W83: 104.118 | AA83: 75 | AB83: 34.078 | AC83: 49.702 | AD83: 78.276 | AE83: 83.988 | AF83: 89.532 | AG83: 96.462 | AH83: 98.016 | AI83: 98.03 | AJ83: 98.03 | AK83: 105.618 | AM83: 75 | AN83: 27.77 | AO83: 39.96 | AP83: 67.65 | AQ83: 72.85 | AR83: 79.16 | AS83: 82.64 | AT83: 86.56 | AV83: 75 | AW83: 27.0945 | AX83: 38.988 | AY83: 66 | AZ83: 71.075 | BA83: 77.225 | BB83: 80.625 | BC83: 84.45 | BE83: 75 | BF83: 29.27 | BG83: 41.46 | BH83: 69.15 | BI83: 74.35 | BJ83: 80.66 | BK83: 84.14 | BL83: 88.06
A84: 76 | B84: 34.622 | C84: 49.392 | D84: 78.82 | E84: 84.882 | F84: 89.754 | G84: 94.962 | H84: 100.002 | I84: 100.548 | J84: 100.548 | K84: 108.71 | M84: 76 | N84: 34.622 | O84: 49.392 | P84: 78.82 | Q84: 84.882 | R84: 89.754 | S84: 94.962 | T84: 100.002 | U84: 100.548 | V84: 100.548 | W84: 108.71 | AA84: 76 | AB84: 36.122 | AC84: 50.892 | AD84: 80.32 | AE84: 86.382 | AF84: 91.254 | AG84: 96.462 | AH84: 101.502 | AI84: 102.048 | AJ84: 102.048 | AK84: 110.21 | AM84: 76 | AN84: 28.19 | AO84: 40.5 | AP84: 68.42 | AQ84: 73.95 | AR84: 79.76 | AS84: 84 | AT84: 87.45 | AV84: 76 | AW84: 27.4995 | AX84: 39.5145 | AY84: 66.75 | AZ84: 72.15 | BA84: 77.8125 | BB84: 81.95 | BC84: 85.3125 | BE84: 76 | BF84: 29.69 | BG84: 42 | BH84: 69.92 | BI84: 75.45 | BJ84: 81.26 | BK84: 85.5 | BL84: 88.95
A85: 77 | B85: 34.636 | C85: 49.7 | D85: 79.17 | E85: 84.896 | F85: 90.93 | G85: 95.536 | H85: 100.212 | I85: 102.844 | J85: 102.844 | K85: 108.724 | M85: 77 | N85: 34.636 | O85: 49.7 | P85: 79.17 | Q85: 84.896 | R85: 90.93 | S85: 95.536 | T85: 100.212 | U85: 102.844 | V85: 102.844 | W85: 108.724 | AA85: 77 | AB85: 36.136 | AC85: 51.2 | AD85: 80.67 | AE85: 86.396 | AF85: 92.43 | AG85: 97.036 | AH85: 101.712 | AI85: 104.344 | AJ85: 104.344 | AK85: 110.224 | AM85: 77 | AN85: 28.62 | AO85: 40.52 | AP85: 69.37 | AQ85: 75.03 | AR85: 81.32 | AS85: 85.24 | AT85: 89.05 | AV85: 77 | AW85: 27.918 | AX85: 39.528 | AY85: 67.675 | AZ85: 73.2 | BA85: 79.3375 | BB85: 83.1625 | BC85: 86.875 | BE85: 77 | BF85: 30.12 | BG85: 42.02 | BH85: 70.87 | BI85: 76.53 | BJ85: 82.82 | BK85: 86.74 | BL85: 90.55
A86: 78 | B86: 34.636 | C86: 49.994 | D86: 79.184 | E86: 85.344 | F86: 92.064 | G86: 96.796 | H86: 101.752 | I86: 104.174 | J86: 104.174 | K86: 109.648 | M86: 78 | N86: 34.636 | O86: 49.994 | P86: 79.184 | Q86: 85.344 | R86: 92.064 | S86: 96.796 | T86: 101.752 | U86: 104.174 | V86: 104.174 | W86: 109.648 | AA86: 78 | AB86: 36.136 | AC86: 51.494 | AD86: 80.684 | AE86: 86.844 | AF86: 93.564 | AG86: 98.296 | AH86: 103.252 | AI86: 105.674 | AJ86: 105.674 | AK86: 111.148 | AM86: 78 | AN86: 29.16 | AO86: 41.8 | AP86: 70.2 | AQ86: 76.23 | AR86: 82.38 | AS86: 86.56 | AT86: 90.57 | AV86: 78 | AW86: 28.4445 | AX86: 40.7835 | AY86: 68.4875 | AZ86: 74.375 | BA86: 80.375 | BB86: 84.45 | BC86: 88.3625 | BE86: 78 | BF86: 30.66 | BG86: 43.3 | BH86: 71.7 | BI86: 77.73 | BJ86: 83.88 | BK86: 88.06 | BL86: 92.07
A87: 79 | B87: 34.65 | C87: 51.128 | D87: 79.464 | E87: 87.766 | F87: 93.254 | G87: 98.14 | H87: 103.236 | I87: 105.518 | J87: 105.518 | K87: 111.734 | M87: 79 | N87: 34.65 | O87: 51.128 | P87: 79.464 | Q87: 87.766 | R87: 93.254 | S87: 98.14 | T87: 103.236 | U87: 105.518 | V87: 105.518 | W87: 111.734 | AA87: 79 | AB87: 36.15 | AC87: 52.628 | AD87: 80.964 | AE87: 89.266 | AF87: 94.754 | AG87: 99.64 | AH87: 104.736 | AI87: 107.018 | AJ87: 107.018 | AK87: 113.234 | AM87: 79 | AN87: 29.58 | AO87: 42.47 | AP87: 71.17 | AQ87: 77.32 | AR87: 83.41 | AS87: 87.7 | AT87: 92.2 | AV87: 79 | AW87: 28.863 | AX87: 41.4315 | AY87: 69.4375 | AZ87: 75.4375 | BA87: 81.375 | BB87: 85.5625 | BC87: 89.95 | BE87: 79 | BF87: 31.08 | BG87: 43.97 | BH87: 72.67 | BI87: 78.82 | BJ87: 84.91 | BK87: 89.2 | BL87: 93.7
A88: 80 | B88: 34.664 | C88: 51.142 | D88: 80.08 | E88: 87.864 | F88: 93.73 | G88: 99.61 | H88: 104.16 | I88: 106.862 | J88: 106.862 | K88: 112.756 | M88: 80 | N88: 34.664 | O88: 51.142 | P88: 80.08 | Q88: 87.864 | R88: 93.73 | S88: 99.61 | T88: 104.16 | U88: 106.862 | V88: 106.862 | W88: 112.756 | AA88: 80 | AB88: 36.164 | AC88: 52.642 | AD88: 81.58 | AE88: 89.364 | AF88: 95.23 | AG88: 101.11 | AH88: 105.66 | AI88: 108.362 | AJ88: 108.362 | AK88: 114.256 | AM88: 80 | AN88: 29.94 | AO88: 43.24 | AP88: 71.99 | AQ88: 78.49 | AR88: 84.5 | AS88: 88.92 | AT88: 93.54 | AV88: 80 | AW88: 29.214 | AX88: 42.1875 | AY88: 70.2375 | AZ88: 76.575 | BA88: 82.4375 | BB88: 86.75 | BC88: 91.2625 | BE88: 80 | BF88: 31.44 | BG88: 44.74 | BH88: 73.49 | BI88: 79.99 | BJ88: 86 | BK88: 90.42 | BL88: 95.04
A89: 81 | B89: 37.002 | C89: 52.15 | D89: 81.046 | E89: 88.928 | F89: 95.228 | G89: 100.898 | H89: 105.812 | I89: 106.876 | J89: 106.876 | K89: 113.064 | M89: 81 | N89: 37.002 | O89: 52.15 | P89: 81.046 | Q89: 88.928 | R89: 95.228 | S89: 100.898 | T89: 105.812 | U89: 106.876 | V89: 106.876 | W89: 113.064 | AA89: 81 | AB89: 38.502 | AC89: 53.65 | AD89: 82.546 | AE89: 90.428 | AF89: 96.728 | AG89: 102.398 | AH89: 107.312 | AI89: 108.376 | AJ89: 108.376 | AK89: 114.564 | AM89: 81 | AN89: 30.01 | AO89: 43.93 | AP89: 72.56 | AQ89: 79.6 | AR89: 84.92 | AS89: 90.25 | AT89: 94.38 | AV89: 81 | AW89: 29.2815 | AX89: 42.8625 | AY89: 70.7875 | AZ89: 77.6625 | BA89: 82.85 | BB89: 88.05 | BC89: 92.075 | BE89: 81 | BF89: 31.51 | BG89: 45.43 | BH89: 74.06 | BI89: 81.1 | BJ89: 86.42 | BK89: 91.75 | BL89: 95.88
A90: 82 | B90: 37.59 | C90: 53.816 | D90: 83.762 | E90: 91.672 | F90: 95.928 | G90: 102.354 | H90: 107.842 | I90: 109.438 | J90: 109.438 | K90: 116.662 | M90: 82 | N90: 37.59 | O90: 53.816 | P90: 83.762 | Q90: 91.672 | R90: 95.928 | S90: 102.354 | T90: 107.842 | U90: 109.438 | V90: 109.438 | W90: 116.662 | AA90: 82 | AB90: 39.09 | AC90: 55.316 | AD90: 85.262 | AE90: 93.172 | AF90: 97.428 | AG90: 103.854 | AH90: 109.342 | AI90: 110.938 | AJ90: 110.938 | AK90: 118.162 | AM90: 82 | AN90: 30.9 | AO90: 44.71 | AP90: 73.43 | AQ90: 80.58 | AR90: 86.28 | AS90: 91.42 | AT90: 95.88 | AV90: 82 | AW90: 30.1455 | AX90: 43.6185 | AY90: 71.6375 | AZ90: 78.6125 | BA90: 84.175 | BB90: 89.1875 | BC90: 93.5375 | BE90: 82 | BF90: 32.4 | BG90: 46.21 | BH90: 74.93 | BI90: 82.08 | BJ90: 87.78 | BK90: 92.92 | BL90: 97.38
A91: 83 | B91: 38.024 | C91: 54.474 | D91: 83.888 | E91: 91.672 | F91: 97.734 | G91: 103.81 | H91: 108.556 | I91: 109.76 | J91: 109.76 | K91: 116.676 | M91: 83 | N91: 38.024 | O91: 54.474 | P91: 83.888 | Q91: 91.672 | R91: 97.734 | S91: 103.81 | T91: 108.556 | U91: 109.76 | V91: 109.76 | W91: 116.676 | AA91: 83 | AB91: 39.524 | AC91: 55.974 | AD91: 85.388 | AE91: 93.172 | AF91: 99.234 | AG91: =G91+1.5 -> 105.31 | AH91: 110.056 | AI91: 111.26 | AJ91: 111.26 | AK91: 118.176 | AM91: 83 | AN91: 31.6 | AO91: 45.4 | AP91: 74.99 | AQ91: 81.73 | AR91: 86.92 | AS91: 92.74 | AT91: 97.08 | AV91: 83 | AW91: 30.834 | AX91: 44.2935 | AY91: 73.1625 | AZ91: 79.7375 | BA91: 84.8 | BB91: 90.475 | BC91: 94.7125 | BE91: 83 | BF91: 33.1 | BG91: 46.9 | BH91: 76.49 | BI91: 83.23 | BJ91: 88.42 | BK91: 94.24 | BL91: 98.58
A92: 84 | B92: 38.038 | C92: 54.558 | D92: 84.798 | E92: 92.288 | F92: 97.748 | G92: 105.308 | H92: 109.76 | I92: 109.788 | J92: 109.788 | K92: 116.69 | M92: 84 | N92: 38.038 | O92: 54.558 | P92: 84.798 | Q92: 92.288 | R92: 97.748 | S92: 105.308 | T92: 109.76 | U92: 109.788 | V92: 109.788 | W92: 116.69 | AA92: 84 | AB92: =B92+1.5 -> 39.538 | AC92: 56.058 | AD92: 86.298 | AE92: 93.788 | AF92: 99.248 | AG92: 106.808 | AH92: 111.26 | AI92: 111.288 | AJ92: 111.288 | AK92: 118.19 | AM92: 84 | AN92: 32.05 | AO92: 46.15 | AP92: 76 | AQ92: 82.59 | AR92: 88.55 | AS92: 94.06 | AT92: 98.36 | AV92: 84 | AW92: 31.266 | AX92: 45.0225 | AY92: 74.15 | AZ92: 80.575 | BA92: 86.3875 | BB92: 91.7625 | BC92: 95.9625 | BE92: 84 | BF92: 33.55 | BG92: 47.65 | BH92: 77.5 | BI92: 84.09 | BJ92: 90.05 | BK92: 95.56 | BL92: 99.86
A93: 85 | B93: 38.052 | C93: 55.244 | D93: 86.156 | E93: 94.948 | F93: 100.072 | G93: 106.666 | H93: 111.104 | I93: 111.202 | J93: 111.202 | K93: 119.322 | M93: 85 | N93: 38.052 | O93: 55.244 | P93: 86.156 | Q93: 94.948 | R93: 100.072 | S93: 106.666 | T93: 111.104 | U93: 111.202 | V93: 111.202 | W93: 119.322 | AA93: 85 | AB93: 39.552 | AC93: 56.744 | AD93: 87.656 | AE93: 96.448 | AF93: 101.572 | AG93: 108.166 | AH93: 112.604 | AI93: 112.702 | AJ93: 112.702 | AK93: 120.822 | AM93: 85 | AN93: 32.39 | AO93: 46.85 | AP93: 76.84 | AQ93: 83.61 | AR93: 88.56 | AS93: 95.41 | AT93: 99.45 | AV93: 85 | AW93: 31.6035 | AX93: 45.711 | AY93: 74.9625 | AZ93: 81.575 | BA93: 86.4 | BB93: 93.0875 | BC93: 97.025 | BE93: 85 | BF93: 33.89 | BG93: 48.35 | BH93: 78.34 | BI93: 85.11 | BJ93: 90.06 | BK93: 96.91 | BL93: 100.95
A94: 86 | B94: 39.284 | C94: 55.916 | D94: 87.99 | E94: 94.962 | F94: 100.086 | G94: 107.996 | H94: 112.434 | I94: 113.568 | J94: 113.568 | K94: 119.336 | M94: 86 | N94: 39.284 | O94: 55.916 | P94: 87.99 | Q94: 94.962 | R94: 100.086 | S94: 107.996 | T94: 112.434 | U94: 113.568 | V94: 113.568 | W94: 119.336 | AA94: 86 | AB94: 40.784 | AC94: 57.416 | AD94: 89.49 | AE94: 96.462 | AF94: 101.586 | AG94: 109.496 | AH94: 113.934 | AI94: 115.068 | AJ94: 115.068 | AK94: 120.836 | AM94: 86 | AN94: 32.55 | AO94: 47.61 | AP94: 78.07 | AQ94: 84.58 | AR94: 90.67 | AS94: 96.64 | AT94: 100.67 | AV94: 86 | AW94: 31.752 | AX94: 46.4535 | AY94: 76.1625 | AZ94: 82.5125 | BA94: 88.4625 | BB94: 94.2875 | BC94: 98.2125 | BE94: 86 | BF94: 34.05 | BG94: 49.11 | BH94: 79.57 | BI94: 86.08 | BJ94: 92.17 | BK94: 98.14 | BL94: 102.17
A95: 87 | B95: 39.298 | C95: 57.106 | D95: 89.348 | E95: 95.872 | F95: 100.086 | G95: 109.508 | H95: 113.666 | I95: 114.842 | J95: 114.842 | K95: 123.172 | M95: 87 | N95: 39.298 | O95: 57.106 | P95: 89.348 | Q95: 95.872 | R95: 100.086 | S95: 109.508 | T95: 113.666 | U95: 114.842 | V95: 114.842 | W95: 123.172 | AA95: 87 | AB95: 40.798 | AC95: 58.606 | AD95: 90.848 | AE95: 97.372 | AF95: 101.586 | AG95: 111.008 | AH95: 115.166 | AI95: 116.342 | AJ95: 116.342 | AK95: 124.672 | AM95: 87 | AN95: 33.24 | AO95: 48.31 | AP95: 79.72 | AQ95: 85.7 | AR95: 90.69 | AS95: 97.85 | AT95: 101.87 | AV95: 87 | AW95: 32.427 | AX95: 47.1285 | AY95: 77.775 | AZ95: 83.6125 | BA95: 88.475 | BB95: 95.4625 | BC95: 99.3875 | BE95: 87 | BF95: 34.74 | BG95: 49.81 | BH95: 81.22 | BI95: 87.2 | BJ95: 92.19 | BK95: 99.35 | BL95: 103.37
A96: 88 | B96: 39.312 | C96: 57.246 | D96: 90.216 | E96: 96.908 | F96: 103.012 | G96: 110.726 | H96: 115.794 | I96: 116.438 | J96: 116.438 | K96: 123.186 | M96: 88 | N96: 39.312 | O96: 57.246 | P96: 90.216 | Q96: 96.908 | R96: 103.012 | S96: 110.726 | T96: 115.794 | U96: 116.438 | V96: 116.438 | W96: 123.186 | AA96: 88 | AB96: 40.812 | AC96: 58.746 | AD96: 91.716 | AE96: 98.408 | AF96: 104.512 | AG96: 112.226 | AH96: 117.294 | AI96: 117.938 | AJ96: 117.938 | AK96: 124.686 | AM96: 88 | AN96: 33.64 | AO96: 49.1 | AP96: 80.95 | AQ96: 86.87 | AR96: 90.69 | AS96: 99.22 | AT96: 102.99 | AV96: 88 | AW96: 32.8185 | AX96: 47.898 | AY96: 78.975 | AZ96: 84.75 | BA96: 88.475 | BB96: 96.8 | BC96: 100.475 | BE96: 88 | BF96: 35.14 | BG96: 50.6 | BH96: 82.45 | BI96: 88.37 | BJ96: 92.19 | BK96: 100.72 | BL96: 104.49
A97: 89 | B97: 39.326 | C97: 57.26 | D97: 92.064 | E97: 97.93 | F97: 108.178 | G97: 111.958 | H97: 116.396 | I97: 118.524 | J97: 118.524 | K97: 126.854 | M97: 89 | N97: 39.326 | O97: 57.26 | P97: 92.064 | Q97: 97.93 | R97: 108.178 | S97: 111.958 | T97: 116.396 | U97: 118.524 | V97: 118.524 | W97: 126.854 | AA97: 89 | AB97: 40.826 | AC97: 58.76 | AD97: 93.564 | AE97: 99.43 | AF97: 109.678 | AG97: 113.458 | AH97: 117.896 | AI97: 120.024 | AJ97: 120.024 | AK97: 128.354 | AM97: 89 | AN97: 33.97 | AO97: 49.86 | AP97: 81.74 | AQ97: 87.8 | AR97: 93.34 | AS97: 100.32 | AT97: 104.18 | AV97: 89 | AW97: 33.1425 | AX97: 48.6405 | AY97: 79.75 | AZ97: 85.6625 | BA97: 91.0625 | BB97: 97.875 | BC97: 101.6375 | BE97: 89 | BF97: 35.47 | BG97: 51.36 | BH97: 83.24 | BI97: 89.3 | BJ97: 94.84 | BK97: 101.82 | BL97: 105.68
A98: 90 | B98: 39.34 | C98: 57.274 | D98: 93.548 | E98: 99.008 | F98: 108.192 | G98: 113.176 | H98: 117.628 | I98: 118.538 | J98: 118.538 | K98: 128.506 | M98: 90 | N98: 39.34 | O98: 57.274 | P98: 93.548 | Q98: 99.008 | R98: 108.192 | S98: 113.176 | T98: 117.628 | U98: 118.538 | V98: 118.538 | W98: 128.506 | AA98: 90 | AB98: 40.84 | AC98: 58.774 | AD98: 95.048 | AE98: 100.508 | AF98: 109.692 | AG98: 114.676 | AH98: 119.128 | AI98: 120.038 | AJ98: 120.038 | AK98: 130.006 | AM98: 90 | AN98: 34.51 | AO98: 50.62 | AP98: 83.41 | AQ98: 88.73 | AR98: 95.02 | AS98: 101.44 | AT98: 105.46 | AV98: 90 | AW98: 33.669 | AX98: 49.383 | AY98: 81.375 | AZ98: 86.5625 | BA98: 92.7 | BB98: 98.9625 | BC98: 102.8875 | BE98: 90 | BF98: 36.01 | BG98: 52.12 | BH98: 84.91 | BI98: 90.23 | BJ98: 96.52 | BK98: 102.94 | BL98: 106.96
A99: 91 | B99: 41.608 | C99: 59.738 | D99: 94.808 | E99: 100.254 | F99: 110.558 | G99: 114.492 | H99: 118.93 | I99: 121.548 | J99: 121.548 | K99: 130.928 | M99: 91 | N99: 41.608 | O99: 59.738 | P99: 94.808 | Q99: 100.254 | R99: 110.558 | S99: 114.492 | T99: 118.93 | U99: 121.548 | V99: 121.548 | W99: 130.928 | AA99: 91 | AB99: 43.108 | AC99: 61.238 | AD99: 96.308 | AE99: 101.754 | AF99: 112.058 | AG99: 115.992 | AH99: 120.43 | AI99: 123.048 | AJ99: 123.048 | AK99: 132.428 | AM99: 91 | AN99: 34.51 | AO99: 51.31 | AP99: 84.75 | AQ99: 89.71 | AR99: 96.07 | AS99: 102.55 | AT99: 106.57 | AV99: 91 | AW99: 33.669 | AX99: 50.058 | AY99: 82.6875 | AZ99: 87.525 | BA99: 93.725 | BB99: 100.05 | BC99: 103.975 | BE99: 91 | BF99: 36.01 | BG99: 52.81 | BH99: 86.25 | BI99: 91.21 | BJ99: 97.57 | BK99: 104.05 | BL99: 108.07
A100: 92 | B100: 41.636 | C100: 59.752 | D100: 96.054 | E100: 101.626 | F100: 110.586 | G100: 116.438 | H100: 120.624 | I100: 122.892 | J100: 122.892 | K100: 132.104 | M100: 92 | N100: 41.636 | O100: 59.752 | P100: 96.054 | Q100: 101.626 | R100: 110.586 | S100: 116.438 | T100: 120.624 | U100: 122.892 | V100: 122.892 | W100: 132.104 | AA100: 92 | AB100: 43.136 | AC100: 61.252 | AD100: 97.554 | AE100: 103.126 | AF100: 112.086 | AG100: 117.938 | AH100: 122.124 | AI100: 124.392 | AJ100: 124.392 | AK100: 133.604 | AM100: 92 | AN100: 35.2 | AO100: 52.08 | AP100: 85.91 | AQ100: 90.84 | AR100: 97.11 | AS100: 103.74 | AT100: 107.75 | AV100: 92 | AW100: 34.344 | AX100: 50.814 | AY100: 83.8125 | AZ100: 88.625 | BA100: 94.7375 | BB100: 101.2125 | BC100: 105.125 | BE100: 92 | BF100: 36.7 | BG100: 53.58 | BH100: 87.41 | BI100: 92.34 | BJ100: 98.61 | BK100: 105.24 | BL100: 109.25
A101: 93 | B101: 41.65 | C101: 59.948 | D101: 97.202 | E101: 102.872 | F101: 110.6 | G101: 117.712 | H101: 121.59 | I101: 124.208 | J101: 124.208 | K101: 132.118 | M101: 93 | N101: 41.65 | O101: 59.948 | P101: 97.202 | Q101: 102.872 | R101: 110.6 | S101: 117.712 | T101: 121.59 | U101: 124.208 | V101: 124.208 | W101: 132.118 | AA101: 93 | AB101: 43.15 | AC101: 61.448 | AD101: 98.702 | AE101: 104.372 | AF101: 112.1 | AG101: 119.212 | AH101: 123.09 | AI101: 125.708 | AJ101: 125.708 | AK101: 133.618 | AM101: 93 | AN101: 35.73 | AO101: 52.68 | AP101: 87.04 | AQ101: 92.08 | AR101: 98.27 | AS101: 104.86 | AT101: 108.97 | AV101: 93 | AW101: 34.857 | AX101: 51.3945 | AY101: 84.9125 | AZ101: 89.8375 | BA101: 95.875 | BB101: 102.3 | BC101: 106.3125 | BE101: 93 | BF101: 37.23 | BG101: 54.18 | BH101: 88.54 | BI101: 93.58 | BJ101: 99.77 | BK101: 106.36 | BL101: 110.47
A102: 94 | B102: 41.664 | C102: 60.55 | D102: 98.392 | E102: 104.034 | F102: 110.866 | G102: 118.286 | H102: 122.822 | I102: 125.468 | J102: 125.468 | K102: 135.478 | M102: 94 | N102: 41.664 | O102: 60.55 | P102: 98.392 | Q102: 104.034 | R102: 110.866 | S102: 118.286 | T102: 122.822 | U102: 125.468 | V102: 125.468 | W102: 135.478 | AA102: 94 | AB102: 43.164 | AC102: 62.05 | AD102: 99.892 | AE102: 105.534 | AF102: 112.366 | AG102: 119.786 | AH102: 124.322 | AI102: 126.968 | AJ102: 126.968 | AK102: 136.978 | AM102: 94 | AN102: 36.17 | AO102: 53.3 | AP102: 88.07 | AQ102: 93.21 | AR102: 99.39 | AS102: 105.95 | AT102: 110.17 | AV102: 94 | AW102: 35.289 | AX102: 52.002 | AY102: 85.925 | AZ102: 90.9375 | BA102: 96.9625 | BB102: 103.3625 | BC102: 107.4875 | BE102: 94 | BF102: 37.67 | BG102: 54.8 | BH102: 89.57 | BI102: 94.71 | BJ102: 100.89 | BK102: 107.45 | BL102: 111.67
A103: 95 | B103: 41.664 | C103: 60.564 | D103: 99.302 | E103: 105.182 | F103: 112.126 | G103: 119.434 | H103: 124.208 | I103: 125.482 | J103: 125.482 | K103: 135.492 | M103: 95 | N103: 41.664 | O103: 60.564 | P103: 99.302 | Q103: 105.182 | R103: 112.126 | S103: 119.434 | T103: 124.208 | U103: 125.482 | V103: 125.482 | W103: 135.492 | AA103: 95 | AB103: 43.164 | AC103: 62.064 | AD103: 100.802 | AE103: 106.682 | AF103: 113.626 | AG103: 120.934 | AH103: 125.708 | AI103: 126.982 | AJ103: 126.982 | AK103: 136.992 | AM103: 95 | AN103: 36.17 | AO103: 53.87 | AP103: 89.15 | AQ103: 94.26 | AR103: 100.45 | AS103: 107.18 | AT103: 111.29 | AV103: 95 | AW103: 35.289 | AX103: 52.5555 | AY103: 86.975 | AZ103: 91.9625 | BA103: 98 | BB103: 104.5625 | BC103: 108.575 | BE103: 95 | BF103: 37.67 | BG103: 55.37 | BH103: 90.65 | BI103: 95.76 | BJ103: 101.95 | BK103: 108.68 | BL103: 112.79
A104: 96 | B104: 44.1 | C104: 62.944 | D104: 100.38 | E104: 106.33 | F104: 113.372 | G104: 120.75 | H104: 125.454 | I104: 125.496 | J104: 125.496 | K104: 135.506 | M104: 96 | N104: 44.1 | O104: 62.944 | P104: 100.38 | Q104: 106.33 | R104: 113.372 | S104: 120.75 | T104: 125.454 | U104: 125.496 | V104: 125.496 | W104: 135.506 | AA104: 96 | AB104: 45.6 | AC104: 64.444 | AD104: 101.88 | AE104: 107.83 | AF104: 114.872 | AG104: 122.25 | AH104: 126.954 | AI104: 126.996 | AJ104: 126.996 | AK104: 137.006 | AM104: 96 | AN104: 36.19 | AO104: 54.49 | AP104: 89.97 | AQ104: 95.3 | AR104: 101.59 | AS104: 108.21 | AT104: 112.55 | AV104: 96 | AW104: 35.3025 | AX104: 53.163 | AY104: 87.775 | AZ104: 92.975 | BA104: 99.1125 | BB104: 105.575 | BC104: 109.8 | BE104: 96 | BF104: =AN104+1.5 -> 37.69 | BG104: 55.99 | BH104: 91.47 | BI104: 96.8 | BJ104: 103.09 | BK104: 109.71 | BL104: 114.05
A105: 97 | B105: 44.492 | C105: 63.028 | D105: 101.402 | E105: 107.618 | F105: 116.704 | G105: 122.808 | H105: 127.624 | I105: 128.31 | J105: 128.31 | K105: 135.52 | M105: 97 | N105: 44.492 | O105: 63.028 | P105: 101.402 | Q105: 107.618 | R105: 116.704 | S105: 122.808 | T105: 127.624 | U105: 128.31 | V105: 128.31 | W105: 135.52 | AA105: 97 | AB105: 45.992 | AC105: 64.528 | AD105: 102.902 | AE105: 109.118 | AF105: 118.204 | AG105: 124.308 | AH105: 129.124 | AI105: 129.81 | AJ105: 129.81 | AK105: 137.02 | AM105: 97 | AN105: 37.67 | AO105: 55.09 | AP105: 90.96 | AQ105: 96.34 | AR105: 102.72 | AS105: 109.41 | AT105: 113.67 | AV105: 97 | AW105: 36.747 | AX105: 53.7435 | AY105: 88.7375 | AZ105: 93.9875 | BA105: 100.2125 | BB105: 106.7375 | BC105: 110.9 | BE105: 97 | BF105: 39.17 | BG105: 56.59 | BH105: 92.46 | BI105: 97.84 | BJ105: 104.22 | BK105: 110.91 | BL105: 115.17
A106: 98 | B106: 44.506 | C106: 63.714 | D106: 102.466 | E106: 107.632 | F106: 116.718 | G106: 123.284 | H106: 128.128 | I106: 128.436 | J106: 128.436 | K106: 141.092 | M106: 98 | N106: 44.506 | O106: 63.714 | P106: 102.466 | Q106: 107.632 | R106: 116.718 | S106: 123.284 | T106: 128.128 | U106: 128.436 | V106: 128.436 | W106: 141.092 | AA106: 98 | AB106: 46.006 | AC106: 65.214 | AD106: 103.966 | AE106: 109.132 | AF106: 118.218 | AG106: 124.784 | AH106: 129.628 | AI106: 129.936 | AJ106: 129.936 | AK106: 142.592 | AM106: 98 | AN106: 37.96 | AO106: 55.7 | AP106: 91.88 | AQ106: 97.5 | AR106: 103.76 | AS106: 110.6 | AT106: 114.86 | AV106: 98 | AW106: 37.0305 | AX106: 54.3375 | AY106: 89.6375 | AZ106: 95.125 | BA106: 101.225 | BB106: 107.9 | BC106: 112.0625 | BE106: 98 | BF106: 39.46 | BG106: 57.2 | BH106: 93.38 | BI106: 99 | BJ106: 105.26 | BK106: 112.1 | BL106: 116.36
A107: 99 | B107: 45.43 | C107: 63.77 | D107: 103.306 | E107: 109.914 | F107: 116.928 | G107: 124.6 | H107: 129.444 | I107: 129.85 | J107: 129.85 | K107: 143.906 | M107: 99 | N107: 45.43 | O107: 63.77 | P107: 103.306 | Q107: 109.914 | R107: 116.928 | S107: 124.6 | T107: 129.444 | U107: 129.85 | V107: 129.85 | W107: 143.906 | AA107: 99 | AB107: 46.93 | AC107: 65.27 | AD107: 104.806 | AE107: 111.414 | AF107: 118.428 | AG107: 126.1 | AH107: 130.944 | AI107: 131.35 | AJ107: 131.35 | AK107: 145.406 | AM107: 99 | AN107: 37.97 | AO107: 56.29 | AP107: 92.84 | AQ107: 97.52 | AR107: 104.91 | AS107: 111.7 | AT107: 116.09 | AV107: 99 | AW107: 37.044 | AX107: 54.918 | AY107: 90.575 | AZ107: 95.1375 | BA107: 102.35 | BB107: 108.975 | BC107: 113.2625 | BE107: 99 | BF107: 39.47 | BG107: 57.79 | BH107: 94.34 | BI107: 99.02 | BJ107: 106.41 | BK107: 113.2 | BL107: 117.59
A108: 100 | B108: 45.808 | C108: 65.016 | D108: 103.992 | E108: 111.076 | F108: 121.072 | G108: 126.084 | H108: 130.816 | I108: 132.916 | J108: 132.916 | K108: 143.92 | M108: 100 | N108: 45.808 | O108: 65.016 | P108: 103.992 | Q108: 111.076 | R108: 121.072 | S108: 126.084 | T108: 130.816 | U108: 132.916 | V108: 132.916 | W108: 143.92 | AA108: 100 | AB108: 47.308 | AC108: 66.516 | AD108: 105.492 | AE108: 112.576 | AF108: 122.572 | AG108: 127.584 | AH108: 132.316 | AI108: 134.416 | AJ108: 134.416 | AK108: 145.42 | AM108: 100 | AN108: 37.98 | AO108: 56.8 | AP108: 93.61 | AQ108: 99.59 | AR108: 105.95 | AS108: 112.89 | AT108: 117.29 | AV108: 100 | AW108: 37.0575 | AX108: 55.4175 | AY108: 91.325 | AZ108: 97.1625 | BA108: 103.3625 | BB108: 110.1375 | BC108: 114.425 | BE108: 100 | BF108: 39.48 | BG108: 58.3 | BH108: 95.11 | BI108: 101.09 | BJ108: 107.45 | BK108: 114.39 | BL108: 118.79
A109: 101 | B109: 46.256 | C109: 65.66 | D109: 105.042 | E109: 112.182 | F109: 122.29 | G109: 127.344 | H109: 132.118 | I109: 134.246 | J109: 134.246 | K109: 145.376 | M109: 101 | N109: 46.256 | O109: 65.66 | P109: 105.042 | Q109: 112.182 | R109: 122.29 | S109: 127.344 | T109: 132.118 | U109: 134.246 | V109: 134.246 | W109: 145.376 | AA109: 101 | AB109: 47.756 | AC109: 67.16 | AD109: 106.542 | AE109: 113.682 | AF109: 123.79 | AG109: 128.844 | AH109: 133.618 | AI109: 135.746 | AJ109: 135.746 | AK109: 146.876 | AM109: 101 | AN109: 38 | AO109: 56.86 | AP109: 94.22 | AQ109: 100.37 | AR109: 106.28 | AS109: 113.42 | AT109: 117.59 | AV109: 101 | AW109: 37.071 | AX109: 55.4715 | AY109: 91.925 | AZ109: 97.925 | BA109: 103.6875 | BB109: 110.65 | BC109: 114.725 | BE109: 101 | BF109: 39.5 | BG109: 58.36 | BH109: 95.72 | BI109: 101.87 | BJ109: 107.78 | BK109: 114.92 | BL109: 119.09
A110: 102 | B110: 46.718 | C110: 66.318 | D110: 106.064 | E110: 113.302 | F110: 123.494 | G110: 128.604 | H110: 133.434 | I110: 135.576 | J110: 135.576 | K110: 146.832 | M110: 102 | N110: 46.718 | O110: 66.318 | P110: 106.064 | Q110: 113.302 | R110: 123.494 | S110: 128.604 | T110: 133.434 | U110: 135.576 | V110: 135.576 | W110: 146.832 | AA110: 102 | AB110: 48.218 | AC110: 67.818 | AD110: 107.564 | AE110: 114.802 | AF110: 124.994 | AG110: 130.104 | AH110: 134.934 | AI110: 137.076 | AJ110: 137.076 | AK110: 148.332 | AM110: 102 | AN110: 38.37 | AO110: 57.43 | AP110: 95.17 | AQ110: 101.37 | AR110: 107.34 | AS110: 114.54 | AT110: 118.77 | AV110: 102 | AW110: 37.4355 | AX110: 56.025 | AY110: 92.85 | AZ110: 98.9 | BA110: 104.725 | BB110: 111.75 | BC110: 115.875 | BE110: 102 | BF110: 39.87 | BG110: 58.93 | BH110: 96.67 | BI110: 102.87 | BJ110: 108.84 | BK110: 116.04 | BL110: 120.27
A111: 103 | B111: 47.18 | C111: 66.962 | D111: 107.114 | E111: 114.408 | F111: 124.712 | G111: 129.864 | H111: 134.736 | I111: 136.906 | J111: 136.906 | K111: 148.288 | M111: 103 | N111: 47.18 | O111: 66.962 | P111: 107.114 | Q111: 114.408 | R111: 124.712 | S111: 129.864 | T111: 134.736 | U111: 136.906 | V111: 136.906 | W111: 148.288 | AA111: 103 | AB111: 48.68 | AC111: 68.462 | AD111: 108.614 | AE111: 115.908 | AF111: 126.212 | AG111: 131.364 | AH111: 136.236 | AI111: 138.406 | AJ111: 138.406 | AK111: 149.788 | AM111: 103 | AN111: 38.76 | AO111: 57.99 | AP111: 96.11 | AQ111: 102.38 | AR111: 108.41 | AS111: 115.68 | AT111: 119.95 | AV111: 103 | AW111: 37.8135 | AX111: 56.5785 | AY111: 93.7625 | AZ111: 99.8875 | BA111: 105.7625 | BB111: 112.8625 | BC111: 117.025 | BE111: 103 | BF111: 40.26 | BG111: 59.49 | BH111: 97.61 | BI111: 103.88 | BJ111: 109.91 | BK111: 117.18 | BL111: 121.45
A112: 104 | B112: 47.628 | C112: 67.62 | D112: 108.15 | E112: 115.514 | F112: 125.916 | G112: 131.124 | H112: 136.052 | I112: 138.236 | J112: 138.236 | K112: 149.744 | M112: 104 | N112: 47.628 | O112: 67.62 | P112: 108.15 | Q112: 115.514 | R112: 125.916 | S112: 131.124 | T112: 136.052 | U112: 138.236 | V112: 138.236 | W112: 149.744 | AA112: 104 | AB112: 49.128 | AC112: 69.12 | AD112: 109.65 | AE112: 117.014 | AF112: 127.416 | AG112: 132.624 | AH112: 137.552 | AI112: 139.736 | AJ112: 139.736 | AK112: 151.244 | AM112: 104 | AN112: 39.13 | AO112: 58.56 | AP112: 97.05 | AQ112: 103.38 | AR112: 109.47 | AS112: 116.81 | AT112: 121.12 | AV112: 104 | AW112: 38.178 | AX112: 57.132 | AY112: 94.6875 | AZ112: 100.8625 | BA112: 106.8 | BB112: 113.9625 | BC112: 118.1625 | BE112: 104 | BF112: 40.63 | BG112: 60.06 | BH112: 98.55 | BI112: 104.88 | BJ112: 110.97 | BK112: 118.31 | BL112: 122.62
A113: 105 | B113: 48.09 | C113: 68.264 | D113: 109.2 | E113: 116.634 | F113: 127.134 | G113: 132.384 | H113: 137.354 | I113: 139.566 | J113: 139.566 | K113: 151.2 | M113: 105 | N113: 48.09 | O113: 68.264 | P113: 109.2 | Q113: 116.634 | R113: 127.134 | S113: 132.384 | T113: 137.354 | U113: 139.566 | V113: 139.566 | W113: 151.2 | AA113: 105 | AB113: 49.59 | AC113: 69.764 | AD113: 110.7 | AE113: 118.134 | AF113: 128.634 | AG113: 133.884 | AH113: 138.854 | AI113: 141.066 | AJ113: 141.066 | AK113: 152.7 | AM113: 105 | AN113: 39.52 | AO113: 59.14 | AP113: 97.99 | AQ113: 104.38 | AR113: 110.53 | AS113: 117.95 | AT113: 122.3 | AV113: 105 | AW113: 38.556 | AX113: 57.699 | AY113: 95.6 | AZ113: 101.8375 | BA113: 107.8375 | BB113: 115.075 | BC113: 119.3125 | BE113: 105 | BF113: 41.02 | BG113: 60.64 | BH113: 99.49 | BI113: 105.88 | BJ113: 112.03 | BK113: 119.45 | BL113: 123.8
A114: 106 | B114: 48.552 | C114: 68.922 | D114: 110.222 | E114: 117.74 | F114: 128.338 | G114: 133.644 | H114: 138.67 | I114: 140.896 | J114: 140.896 | K114: 152.656 | M114: 106 | N114: 48.552 | O114: 68.922 | P114: 110.222 | Q114: 117.74 | R114: 128.338 | S114: 133.644 | T114: 138.67 | U114: 140.896 | V114: 140.896 | W114: 152.656 | AA114: 106 | AB114: 50.052 | AC114: 70.422 | AD114: 111.722 | AE114: 119.24 | AF114: 129.838 | AG114: 135.144 | AH114: 140.17 | AI114: 142.396 | AJ114: 142.396 | AK114: 154.156 | AM114: 106 | AN114: 39.89 | AO114: 59.71 | AP114: 98.94 | AQ114: 105.4 | AR114: 111.6 | AS114: 119.08 | AT114: 123.47 | AV114: 106 | AW114: 38.9205 | AX114: 58.2525 | AY114: 96.525 | AZ114: 102.825 | BA114: 108.875 | BB114: 116.175 | BC114: 120.4625 | BE114: 106 | BF114: 41.39 | BG114: 61.21 | BH114: 100.44 | BI114: 106.9 | BJ114: 113.1 | BK114: 120.58 | BL114: 124.97
A115: 107 | B115: 49.014 | C115: 69.566 | D115: 111.272 | E115: 118.846 | F115: 129.556 | G115: 134.904 | H115: 139.972 | I115: 142.226 | J115: 142.226 | K115: 154.112 | M115: 107 | N115: 49.014 | O115: 69.566 | P115: 111.272 | Q115: 118.846 | R115: 129.556 | S115: 134.904 | T115: 139.972 | U115: 142.226 | V115: 142.226 | W115: 154.112 | AA115: 107 | AB115: 50.514 | AC115: 71.066 | AD115: 112.772 | AE115: 120.346 | AF115: 131.056 | AG115: 136.404 | AH115: 141.472 | AI115: 143.726 | AJ115: 143.726 | AK115: 155.612 | AM115: 107 | AN115: 40.28 | AO115: 60.28 | AP115: 99.87 | AQ115: 106.4 | AR115: 112.65 | AS115: 120.22 | AT115: 124.65 | AV115: 107 | AW115: 39.2985 | AX115: 58.806 | AY115: 97.4375 | AZ115: 103.8 | BA115: 109.9 | BB115: 117.2875 | BC115: 121.6125 | BE115: 107 | BF115: 41.78 | BG115: 61.78 | BH115: 101.37 | BI115: 107.9 | BJ115: 114.15 | BK115: 121.72 | BL115: 126.15
A116: 108 | B116: 49.462 | C116: 70.21 | D116: 112.308 | E116: 119.966 | F116: 130.76 | G116: 136.164 | H116: 141.274 | I116: 143.556 | J116: 143.556 | K116: 155.568 | M116: 108 | N116: 49.462 | O116: 70.21 | P116: 112.308 | Q116: 119.966 | R116: 130.76 | S116: 136.164 | T116: 141.274 | U116: 143.556 | V116: 143.556 | W116: 155.568 | AA116: 108 | AB116: 50.962 | AC116: 71.71 | AD116: 113.808 | AE116: 121.466 | AF116: 132.26 | AG116: 137.664 | AH116: 142.774 | AI116: 145.056 | AJ116: 145.056 | AK116: 157.068 | AM116: 108 | AN116: 40.65 | AO116: 60.84 | AP116: 100.82 | AQ116: 107.39 | AR116: 113.71 | AS116: 121.35 | AT116: 125.82 | AV116: 108 | AW116: 39.663 | AX116: 59.3595 | AY116: 98.3625 | AZ116: 104.775 | BA116: 110.9375 | BB116: 118.3875 | BC116: 122.75 | BE116: 108 | BF116: 42.15 | BG116: 62.34 | BH116: 102.32 | BI116: 108.89 | BJ116: 115.21 | BK116: 122.85 | BL116: 127.32
A117: 109 | B117: 49.924 | C117: 70.868 | D117: 113.358 | E117: 121.072 | F117: 131.978 | G117: 137.424 | H117: 142.59 | I117: 144.886 | J117: 144.886 | K117: 157.024 | M117: 109 | N117: 49.924 | O117: 70.868 | P117: 113.358 | Q117: 121.072 | R117: 131.978 | S117: 137.424 | T117: 142.59 | U117: 144.886 | V117: 144.886 | W117: 157.024 | AA117: 109 | AB117: 51.424 | AC117: 72.368 | AD117: 114.858 | AE117: 122.572 | AF117: 133.478 | AG117: 138.924 | AH117: 144.09 | AI117: 146.386 | AJ117: 146.386 | AK117: 158.524 | AM117: 109 | AN117: 41.04 | AO117: 61.41 | AP117: 101.76 | AQ117: 108.41 | AR117: 114.77 | AS117: 122.49 | AT117: 127 | AV117: 109 | AW117: 40.041 | AX117: 59.913 | AY117: 99.275 | AZ117: 105.7625 | BA117: 111.975 | BB117: 119.5 | BC117: 123.9 | BE117: 109 | BF117: 42.54 | BG117: 62.91 | BH117: 103.26 | BI117: 109.91 | BJ117: 116.27 | BK117: 123.99 | BL117: 128.5
A118: 110 | B118: 50.386 | C118: 71.512 | D118: 114.38 | E118: 122.178 | F118: 133.182 | G118: 138.684 | H118: 143.892 | I118: 146.216 | J118: 146.216 | K118: 158.48 | M118: 110 | N118: 50.386 | O118: 71.512 | P118: 114.38 | Q118: 122.178 | R118: 133.182 | S118: 138.684 | T118: 143.892 | U118: 146.216 | V118: 146.216 | W118: 158.48 | AA118: 110 | AB118: 51.886 | AC118: 73.012 | AD118: 115.88 | AE118: 123.678 | AF118: 134.682 | AG118: 140.184 | AH118: 145.392 | AI118: 147.716 | AJ118: 147.716 | AK118: 159.98 | AM118: 110 | AN118: 41.42 | AO118: 61.98 | AP118: 102.71 | AQ118: 109.41 | AR118: 115.84 | AS118: 123.62 | AT118: 128.18 | AV118: 110 | AW118: 40.4055 | AX118: 60.4665 | AY118: 100.2 | AZ118: 106.7375 | BA118: 113.0125 | BB118: 120.6 | BC118: 125.05 | BE118: 110 | BF118: 42.92 | BG118: 63.48 | BH118: 104.21 | BI118: 110.91 | BJ118: 117.34 | BK118: 125.12 | BL118: 129.68
A119: 111 | B119: 50.834 | C119: 72.17 | D119: 115.43 | E119: 123.298 | F119: 134.4 | G119: 139.944 | H119: 145.208 | I119: 147.546 | J119: 147.546 | K119: 159.936 | M119: 111 | N119: 50.834 | O119: 72.17 | P119: 115.43 | Q119: 123.298 | R119: 134.4 | S119: 139.944 | T119: 145.208 | U119: 147.546 | V119: 147.546 | W119: 159.936 | AA119: 111 | AB119: 52.334 | AC119: 73.67 | AD119: 116.93 | AE119: 124.798 | AF119: 135.9 | AG119: 141.444 | AH119: 146.708 | AI119: 149.046 | AJ119: 149.046 | AK119: 161.436 | AM119: 111 | AN119: 41.8 | AO119: 62.55 | AP119: 103.64 | AQ119: 110.41 | AR119: 116.9 | AS119: 124.76 | AT119: 129.36 | AV119: 111 | AW119: 40.7835 | AX119: 61.02 | AY119: 101.1125 | AZ119: 107.7125 | BA119: 114.05 | BB119: 121.7125 | BC119: 126.2 | BE119: 111 | BF119: 43.3 | BG119: 64.05 | BH119: 105.14 | BI119: 111.91 | BJ119: 118.4 | BK119: 126.26 | BL119: 130.86
A120: 112 | B120: 51.296 | C120: 72.814 | D120: 116.466 | E120: 124.404 | F120: 135.604 | G120: 141.204 | H120: 146.51 | I120: 148.876 | J120: 148.876 | K120: 161.392 | M120: 112 | N120: 51.296 | O120: 72.814 | P120: 116.466 | Q120: 124.404 | R120: 135.604 | S120: 141.204 | T120: 146.51 | U120: 148.876 | V120: 148.876 | W120: 161.392 | AA120: 112 | AB120: 52.796 | AC120: 74.314 | AD120: 117.966 | AE120: 125.904 | AF120: 137.104 | AG120: 142.704 | AH120: 148.01 | AI120: 150.376 | AJ120: 150.376 | AK120: 162.892 | AM120: 112 | AN120: 42.18 | AO120: 63.11 | AP120: 104.59 | AQ120: 111.42 | AR120: 117.96 | AS120: 125.88 | AT120: 130.53 | AV120: 112 | AW120: 41.148 | AX120: 61.5735 | AY120: 102.0375 | AZ120: 108.7 | BA120: 115.0875 | BB120: 122.8125 | BC120: 127.35 | BE120: 112 | BF120: 43.68 | BG120: 64.61 | BH120: 106.09 | BI120: 112.92 | BJ120: 119.46 | BK120: 127.38 | BL120: 132.03
A121: 113 | B121: 51.758 | C121: 73.472 | D121: 117.516 | E121: 125.51 | F121: 136.822 | G121: 142.464 | H121: 147.826 | I121: 150.206 | J121: 150.206 | K121: 162.848 | M121: 113 | N121: 51.758 | O121: 73.472 | P121: 117.516 | Q121: 125.51 | R121: 136.822 | S121: 142.464 | T121: 147.826 | U121: 150.206 | V121: 150.206 | W121: 162.848 | AA121: 113 | AB121: 53.258 | AC121: 74.972 | AD121: 119.016 | AE121: 127.01 | AF121: 138.322 | AG121: 143.964 | AH121: 149.326 | AI121: 151.706 | AJ121: 151.706 | AK121: 164.348 | AM121: 113 | AN121: 42.55 | AO121: 63.68 | AP121: 105.52 | AQ121: 112.42 | AR121: 119.03 | AS121: 127.02 | AT121: 131.7 | AV121: 113 | AW121: 41.5125 | AX121: 62.127 | AY121: 102.95 | AZ121: 109.675 | BA121: 116.125 | BB121: 123.925 | BC121: 128.4875 | BE121: 113 | BF121: 44.05 | BG121: 65.18 | BH121: 107.02 | BI121: 113.92 | BJ121: 120.53 | BK121: 128.52 | BL121: 133.2
A122: 114 | B122: 52.22 | C122: 74.116 | D122: 118.552 | E122: 126.63 | F122: 138.026 | G122: 143.724 | H122: 149.128 | I122: 151.536 | J122: 151.536 | K122: 164.304 | M122: 114 | N122: 52.22 | O122: 74.116 | P122: 118.552 | Q122: 126.63 | R122: 138.026 | S122: 143.724 | T122: 149.128 | U122: 151.536 | V122: 151.536 | W122: 164.304 | AA122: 114 | AB122: 53.72 | AC122: 75.616 | AD122: 120.052 | AE122: 128.13 | AF122: 139.526 | AG122: 145.224 | AH122: 150.628 | AI122: 153.036 | AJ122: 153.036 | AK122: 165.804 | AM122: 114 | AN122: 42.94 | AO122: 64.25 | AP122: 106.47 | AQ122: 113.42 | AR122: 120.09 | AS122: 128.15 | AT122: 132.88 | AV122: 114 | AW122: 41.8905 | AX122: 62.6805 | AY122: 103.875 | AZ122: 110.65 | BA122: 117.1625 | BB122: 125.025 | BC122: 129.6375 | BE122: 114 | BF122: 44.44 | BG122: 65.75 | BH122: 107.97 | BI122: 114.92 | BJ122: 121.59 | BK122: 129.65 | BL122: 134.38
A123: 115 | B123: 52.668 | C123: 74.774 | D123: 119.588 | E123: 127.736 | F123: 139.244 | G123: 144.984 | H123: 150.444 | I123: 152.866 | J123: 152.866 | K123: 165.76 | M123: 115 | N123: 52.668 | O123: 74.774 | P123: 119.588 | Q123: 127.736 | R123: 139.244 | S123: 144.984 | T123: 150.444 | U123: 152.866 | V123: 152.866 | W123: 165.76 | AA123: 115 | AB123: 54.168 | AC123: 76.274 | AD123: 121.088 | AE123: 129.236 | AF123: 140.744 | AG123: 146.484 | AH123: 151.944 | AI123: 154.366 | AJ123: 154.366 | AK123: 167.26 | AM123: 115 | AN123: 43.31 | AO123: 64.81 | AP123: 107.42 | AQ123: 114.43 | AR123: 121.16 | AS123: 129.29 | AT123: 134.06 | AV123: 115 | AW123: 42.255 | AX123: 63.234 | AY123: 104.8 | AZ123: 111.6375 | BA123: 118.2 | BB123: 126.1375 | BC123: 130.7875 | BE123: 115 | BF123: 44.81 | BG123: 66.31 | BH123: 108.92 | BI123: 115.93 | BJ123: 122.66 | BK123: 130.79 | BL123: 135.56
A124: 116 | B124: 53.13 | C124: 75.418 | D124: 120.638 | E124: 128.842 | F124: 140.448 | G124: 146.244 | H124: 151.746 | I124: 154.182 | J124: 154.182 | K124: 167.216 | M124: 116 | N124: 53.13 | O124: 75.418 | P124: 120.638 | Q124: 128.842 | R124: 140.448 | S124: 146.244 | T124: 151.746 | U124: 154.182 | V124: 154.182 | W124: 167.216 | AA124: 116 | AB124: =B124+1.5 -> 54.63 | AC124: 76.918 | AD124: 122.138 | AE124: 130.342 | AF124: 141.948 | AG124: 147.744 | AH124: 153.246 | AI124: 155.682 | AJ124: 155.682 | AK124: 168.716 | AM124: 116 | AN124: 43.7 | AO124: 65.4 | AP124: 108.36 | AQ124: 115.43 | AR124: 122.22 | AS124: 130.42 | AT124: 135.24 | AV124: 116 | AW124: 42.633 | AX124: 63.801 | AY124: 105.7125 | AZ124: 112.6125 | BA124: 119.2375 | BB124: 127.2375 | BC124: 131.9375 | BE124: 116 | BF124: 45.2 | BG124: 66.9 | BH124: 109.86 | BI124: 116.93 | BJ124: 123.72 | BK124: 131.92 | BL124: 136.74
A125: 117 | B125: 53.592 | C125: 76.062 | D125: 121.66 | E125: 129.962 | F125: 141.666 | G125: 147.504 | H125: 153.048 | I125: 155.512 | J125: 155.512 | K125: 168.672 | M125: 117 | N125: 53.592 | O125: 76.062 | P125: 121.66 | Q125: 129.962 | R125: 141.666 | S125: 147.504 | T125: 153.048 | U125: 155.512 | V125: 155.512 | W125: 168.672 | AA125: 117 | AB125: 55.092 | AC125: 77.562 | AD125: 123.16 | AE125: 131.462 | AF125: 143.166 | AG125: 149.004 | AH125: 154.548 | AI125: 157.012 | AJ125: 157.012 | AK125: 170.172 | AM125: 117 | AN125: 44.07 | AO125: 65.96 | AP125: 109.3 | AQ125: 116.43 | AR125: 123.28 | AS125: 131.56 | AT125: 136.4 | AV125: 117 | AW125: 42.9975 | AX125: 64.3545 | AY125: 106.6375 | AZ125: 113.5875 | BA125: 120.275 | BB125: 128.35 | BC125: 133.075 | BE125: 117 | BF125: 45.57 | BG125: 67.46 | BH125: 110.8 | BI125: 117.93 | BJ125: 124.78 | BK125: 133.06 | BL125: 137.9
A126: 118 | B126: 54.04 | C126: 76.72 | D126: 122.71 | E126: 131.068 | F126: 142.87 | G126: 148.778 | H126: 154.364 | I126: 156.842 | J126: 156.842 | K126: 170.128 | M126: 118 | N126: 54.04 | O126: 76.72 | P126: 122.71 | Q126: 131.068 | R126: 142.87 | S126: 148.778 | T126: 154.364 | U126: 156.842 | V126: 156.842 | W126: 170.128 | AA126: 118 | AB126: 55.54 | AC126: 78.22 | AD126: 124.21 | AE126: 132.568 | AF126: 144.37 | AG126: 150.278 | AH126: 155.864 | AI126: 158.342 | AJ126: 158.342 | AK126: 171.628 | AM126: 118 | AN126: 44.46 | AO126: 66.53 | AP126: 110.24 | AQ126: 117.44 | AR126: 124.35 | AS126: 132.69 | AT126: 137.58 | AV126: 118 | AW126: 43.3755 | AX126: 64.908 | AY126: 107.55 | AZ126: 114.575 | BA126: 121.3125 | BB126: 129.45 | BC126: 134.225 | BE126: 118 | BF126: 45.96 | BG126: 68.03 | BH126: 111.74 | BI126: 118.94 | BJ126: 125.85 | BK126: 134.19 | BL126: 139.08
A127: 119 | B127: 54.502 | C127: 77.364 | D127: 123.746 | E127: 132.174 | F127: 144.088 | G127: 150.038 | H127: 155.666 | I127: 158.172 | J127: 158.172 | K127: 171.584 | M127: 119 | N127: 54.502 | O127: 77.364 | P127: 123.746 | Q127: 132.174 | R127: 144.088 | S127: 150.038 | T127: 155.666 | U127: 158.172 | V127: 158.172 | W127: 171.584 | AA127: 119 | AB127: 56.002 | AC127: 78.864 | AD127: 125.246 | AE127: 133.674 | AF127: 145.588 | AG127: 151.538 | AH127: 157.166 | AI127: 159.672 | AJ127: 159.672 | AK127: 173.084 | AM127: 119 | AN127: 44.83 | AO127: 67.1 | AP127: 111.19 | AQ127: 118.44 | AR127: 125.41 | AS127: 133.83 | AT127: 138.76 | AV127: 119 | AW127: 43.74 | AX127: 65.4615 | AY127: 108.475 | AZ127: 115.55 | BA127: 122.35 | BB127: 130.5625 | BC127: 135.375 | BE127: 119 | BF127: 46.33 | BG127: 68.6 | BH127: 112.69 | BI127: 119.94 | BJ127: 126.91 | BK127: 135.33 | BL127: 140.26
A128: 120 | B128: 54.964 | C128: 78.022 | D128: 124.796 | E128: 133.294 | F128: 145.292 | G128: 151.298 | H128: 156.982 | I128: 159.502 | J128: 159.502 | K128: 173.04 | M128: 120 | N128: 54.964 | O128: 78.022 | P128: 124.796 | Q128: 133.294 | R128: 145.292 | S128: 151.298 | T128: 156.982 | U128: 159.502 | V128: 159.502 | W128: 173.04 | AA128: 120 | AB128: 56.464 | AC128: 79.522 | AD128: 126.296 | AE128: 134.794 | AF128: 146.792 | AG128: 152.798 | AH128: 158.482 | AI128: 161.002 | AJ128: 161.002 | AK128: 174.54 | AM128: 120 | AN128: 45.22 | AO128: 67.67 | AP128: 112.12 | AQ128: 119.44 | AR128: 126.47 | AS128: 134.95 | AT128: 139.94 | AV128: 120 | AW128: 44.118 | AX128: 66.015 | AY128: 109.3875 | AZ128: 116.525 | BA128: 123.3875 | BB128: 131.6625 | BC128: 136.525 | BE128: 120 | BF128: 46.72 | BG128: 69.17 | BH128: 113.62 | BI128: 120.94 | BJ128: 127.97 | BK128: 136.45 | BL128: 141.44
A129: 121 | B129: 55.426 | C129: 78.666 | D129: 125.818 | E129: 134.4 | F129: 146.496 | G129: 152.558 | H129: 158.284 | I129: 160.832 | J129: 160.832 | K129: 174.496 | M129: 121 | N129: 55.426 | O129: 78.666 | P129: 125.818 | Q129: 134.4 | R129: 146.496 | S129: 152.558 | T129: 158.284 | U129: 160.832 | V129: 160.832 | W129: 174.496 | AA129: 121 | AB129: 56.926 | AC129: 80.166 | AD129: 127.318 | AE129: 135.9 | AF129: 147.996 | AG129: 154.058 | AH129: 159.784 | AI129: 162.332 | AJ129: 162.332 | AK129: 175.996 | AM129: 121 | AN129: 45.59 | AO129: 68.23 | AP129: 113.07 | AQ129: 120.45 | AR129: 127.54 | AS129: 136.09 | AT129: 141.12 | AV129: 121 | AW129: 44.4825 | AX129: 66.5685 | AY129: 110.3125 | AZ129: 117.5125 | BA129: 124.425 | BB129: 132.775 | BC129: 137.675 | BE129: 121 | BF129: 47.09 | BG129: 69.73 | BH129: 114.57 | BI129: 121.95 | BJ129: 129.04 | BK129: 137.59 | BL129: 142.62
A130: 122 | B130: 55.874 | C130: 79.324 | D130: 126.868 | E130: 135.506 | F130: 147.714 | G130: 153.818 | H130: 159.6 | I130: 162.162 | J130: 162.162 | K130: 175.952 | M130: 122 | N130: 55.874 | O130: 79.324 | P130: 126.868 | Q130: 135.506 | R130: 147.714 | S130: 153.818 | T130: 159.6 | U130: 162.162 | V130: 162.162 | W130: 175.952 | AA130: 122 | AB130: 57.374 | AC130: 80.824 | AD130: 128.368 | AE130: 137.006 | AF130: 149.214 | AG130: 155.318 | AH130: 161.1 | AI130: 163.662 | AJ130: 163.662 | AK130: 177.452 | AM130: 122 | AN130: 45.98 | AO130: 68.8 | AP130: 114.01 | AQ130: 121.45 | AR130: 128.6 | AS130: 137.22 | AT130: 142.28 | AV130: 122 | AW130: 44.8605 | AX130: 67.122 | AY130: 111.225 | AZ130: 118.4875 | BA130: 125.4625 | BB130: 133.875 | BC130: 138.8125 | BE130: 122 | BF130: 47.48 | BG130: 70.3 | BH130: 115.51 | BI130: 122.95 | BJ130: 130.1 | BK130: 138.72 | BL130: 143.78
A131: 123 | B131: 56.336 | C131: 79.968 | D131: 127.904 | E131: 136.626 | F131: 148.918 | G131: 155.078 | H131: 160.902 | I131: 163.492 | J131: 163.492 | K131: 177.408 | M131: 123 | N131: 56.336 | O131: 79.968 | P131: 127.904 | Q131: 136.626 | R131: 148.918 | S131: 155.078 | T131: 160.902 | U131: 163.492 | V131: 163.492 | W131: 177.408 | AA131: 123 | AB131: 57.836 | AC131: 81.468 | AD131: 129.404 | AE131: 138.126 | AF131: 150.418 | AG131: 156.578 | AH131: 162.402 | AI131: 164.992 | AJ131: 164.992 | AK131: 178.908 | AM131: 123 | AN131: 46.36 | AO131: 69.37 | AP131: 114.95 | AQ131: 122.45 | AR131: 129.66 | AS131: 138.36 | AT131: 143.46 | AV131: 123 | AW131: 45.225 | AX131: 67.6755 | AY131: 112.15 | AZ131: 119.4625 | BA131: 126.5 | BB131: 134.9875 | BC131: 139.9625 | BE131: 123 | BF131: 47.86 | BG131: 70.87 | BH131: 116.45 | BI131: 123.95 | BJ131: 131.16 | BK131: 139.86 | BL131: 144.96
A132: 124 | B132: 56.798 | C132: 80.612 | D132: 128.954 | E132: 137.732 | F132: 150.136 | G132: 156.338 | H132: 162.204 | I132: 164.822 | J132: 164.822 | K132: 178.864 | M132: 124 | N132: 56.798 | O132: 80.612 | P132: 128.954 | Q132: 137.732 | R132: 150.136 | S132: 156.338 | T132: 162.204 | U132: 164.822 | V132: 164.822 | W132: 178.864 | AA132: 124 | AB132: 58.298 | AC132: 82.112 | AD132: 130.454 | AE132: 139.232 | AF132: 151.636 | AG132: 157.838 | AH132: 163.704 | AI132: 166.322 | AJ132: 166.322 | AK132: 180.364 | AM132: 124 | AN132: 46.73 | AO132: 69.93 | AP132: 115.89 | AQ132: 123.46 | AR132: 130.73 | AS132: 139.49 | AT132: 144.64 | AV132: 124 | AW132: 45.5895 | AX132: 68.229 | AY132: 113.0625 | AZ132: 120.45 | BA132: 127.5375 | BB132: 136.0875 | BC132: 141.1125 | BE132: 124 | BF132: 48.23 | BG132: 71.43 | BH132: 117.39 | BI132: 124.96 | BJ132: 132.23 | BK132: 140.99 | BL132: 146.14
A133: 125 | B133: 57.246 | C133: 81.27 | D133: 129.976 | E133: 138.838 | F133: 151.34 | G133: 157.598 | H133: 163.52 | I133: 166.152 | J133: 166.152 | K133: 180.32 | M133: 125 | N133: 57.246 | O133: 81.27 | P133: 129.976 | Q133: 138.838 | R133: 151.34 | S133: 157.598 | T133: 163.52 | U133: 166.152 | V133: 166.152 | W133: 180.32 | AA133: 125 | AB133: 58.746 | AC133: 82.77 | AD133: 131.476 | AE133: 140.338 | AF133: 152.84 | AG133: 159.098 | AH133: 165.02 | AI133: 167.652 | AJ133: 167.652 | AK133: 181.82 | AM133: 125 | AN133: 47.12 | AO133: 70.5 | AP133: 116.84 | AQ133: 124.46 | AR133: 131.78 | AS133: 140.63 | AT133: 145.82 | AV133: 125 | AW133: 45.9675 | AX133: 68.7825 | AY133: 113.9875 | AZ133: 121.425 | BA133: 128.5625 | BB133: 137.2 | BC133: 142.2625 | BE133: 125 | BF133: 48.62 | BG133: 72 | BH133: 118.34 | BI133: 125.96 | BJ133: 133.28 | BK133: 142.13 | BL133: 147.32
A134: 126 | B134: 57.708 | C134: 81.914 | D134: 131.026 | E134: 139.958 | F134: 152.558 | G134: 158.858 | H134: 164.822 | I134: 167.482 | J134: 167.482 | K134: 181.776 | M134: 126 | N134: 57.708 | O134: 81.914 | P134: 131.026 | Q134: 139.958 | R134: 152.558 | S134: 158.858 | T134: 164.822 | U134: 167.482 | V134: 167.482 | W134: 181.776 | AA134: 126 | AB134: 59.208 | AC134: 83.414 | AD134: 132.526 | AE134: 141.458 | AF134: 154.058 | AG134: 160.358 | AH134: 166.322 | AI134: 168.982 | AJ134: 168.982 | AK134: 183.276 | AM134: 126 | AN134: 47.49 | AO134: 71.07 | AP134: 117.77 | AQ134: 125.46 | AR134: 132.84 | AS134: 141.76 | AT134: 146.99 | AV134: 126 | AW134: 46.332 | AX134: 69.336 | AY134: 114.9 | AZ134: 122.4 | BA134: 129.6 | BB134: 138.3 | BC134: 143.4 | BE134: 126 | BF134: 48.99 | BG134: 72.57 | BH134: 119.27 | BI134: 126.96 | BJ134: 134.34 | BK134: 143.26 | BL134: 148.49
A135: 127 | B135: 58.17 | C135: 82.572 | D135: 132.062 | E135: 141.064 | F135: 153.762 | G135: 160.118 | H135: 166.138 | I135: 168.812 | J135: 168.812 | K135: 183.232 | M135: 127 | N135: 58.17 | O135: 82.572 | P135: 132.062 | Q135: 141.064 | R135: 153.762 | S135: 160.118 | T135: 166.138 | U135: 168.812 | V135: 168.812 | W135: 183.232 | AA135: 127 | AB135: 59.67 | AC135: 84.072 | AD135: 133.562 | AE135: 142.564 | AF135: 155.262 | AG135: 161.618 | AH135: 167.638 | AI135: 170.312 | AJ135: 170.312 | AK135: 184.732 | AM135: 127 | AN135: 47.88 | AO135: 71.64 | AP135: 118.72 | AQ135: 126.47 | AR135: 133.9 | AS135: 142.9 | AT135: 148.16 | AV135: 127 | AW135: 46.71 | AX135: 69.8895 | AY135: 115.825 | AZ135: 123.3875 | BA135: 130.6375 | BB135: 139.4125 | BC135: 144.55 | BE135: 127 | BF135: 49.38 | BG135: 73.14 | BH135: 120.22 | BI135: 127.97 | BJ135: 135.4 | BK135: 144.4 | BL135: 149.66
A136: 128 | B136: 58.632 | C136: 83.216 | D136: 133.112 | E136: 142.17 | F136: 154.98 | G136: 161.378 | H136: 167.44 | I136: 170.142 | J136: 170.142 | K136: 184.688 | M136: 128 | N136: 58.632 | O136: 83.216 | P136: 133.112 | Q136: 142.17 | R136: 154.98 | S136: 161.378 | T136: 167.44 | U136: 170.142 | V136: 170.142 | W136: 184.688 | AA136: 128 | AB136: 60.132 | AC136: 84.716 | AD136: 134.612 | AE136: 143.67 | AF136: 156.48 | AG136: 162.878 | AH136: 168.94 | AI136: 171.642 | AJ136: 171.642 | AK136: 186.188 | AM136: 128 | AN136: 48.25 | AO136: 72.22 | AP136: 119.66 | AQ136: 127.47 | AR136: 134.97 | AS136: 144.03 | AT136: 149.34 | AV136: 128 | AW136: 47.0745 | AX136: 70.4565 | AY136: 116.7375 | AZ136: 124.3625 | BA136: 131.675 | BB136: 140.5125 | BC136: 145.7 | BE136: 128 | BF136: =AN136+1.5 -> 49.75 | BG136: 73.72 | BH136: 121.16 | BI136: 128.97 | BJ136: 136.47 | BK136: 145.53 | BL136: 150.84
A137: 129 | B137: 59.08 | C137: 83.874 | D137: 134.148 | E137: 143.29 | F137: 156.184 | G137: 162.638 | H137: 168.756 | I137: 171.472 | J137: 171.472 | K137: 186.144 | M137: 129 | N137: 59.08 | O137: 83.874 | P137: 134.148 | Q137: 143.29 | R137: 156.184 | S137: 162.638 | T137: 168.756 | U137: 171.472 | V137: 171.472 | W137: 186.144 | AA137: 129 | AB137: 60.58 | AC137: 85.374 | AD137: 135.648 | AE137: 144.79 | AF137: 157.684 | AG137: 164.138 | AH137: 170.256 | AI137: 172.972 | AJ137: 172.972 | AK137: 187.644 | AM137: 129 | AN137: 48.64 | AO137: 72.79 | AP137: 120.6 | AQ137: 128.47 | AR137: 136.03 | AS137: 145.17 | AT137: 150.52 | AV137: 129 | AW137: 47.4525 | AX137: 71.01 | AY137: 117.6625 | AZ137: 125.3375 | BA137: 132.7125 | BB137: 141.625 | BC137: 146.85 | BE137: 129 | BF137: 50.14 | BG137: 74.29 | BH137: 122.1 | BI137: 129.97 | BJ137: 137.53 | BK137: 146.67 | BL137: 152.02
A138: 130 | B138: 59.542 | C138: 84.518 | D138: 135.184 | E138: 144.396 | F138: 157.402 | G138: 163.898 | H138: 170.058 | I138: 172.802 | J138: 172.802 | K138: 187.6 | M138: 130 | N138: 59.542 | O138: 84.518 | P138: 135.184 | Q138: 144.396 | R138: 157.402 | S138: 163.898 | T138: 170.058 | U138: 172.802 | V138: 172.802 | W138: 187.6 | AA138: 130 | AB138: 61.042 | AC138: 86.018 | AD138: 136.684 | AE138: 145.896 | AF138: 158.902 | AG138: 165.398 | AH138: 171.558 | AI138: 174.302 | AJ138: 174.302 | AK138: 189.1 | AM138: 130 | AN138: 49.01 | AO138: 73.35 | AP138: 121.55 | AQ138: 129.48 | AR138: 137.09 | AS138: 146.29 | AT138: 151.7 | AV138: 130 | AW138: 47.817 | AX138: 71.5635 | AY138: 118.5875 | AZ138: 126.325 | BA138: 133.75 | BB138: 142.725 | BC138: 148 | BE138: 130 | BF138: 50.51 | BG138: 74.85 | BH138: 123.05 | BI138: 130.98 | BJ138: 138.59 | BK138: 147.79 | BL138: 153.2
A139: 131 | B139: 60.004 | C139: 85.176 | D139: 136.234 | E139: 145.502 | F139: 158.606 | G139: 165.158 | H139: 171.374 | I139: 174.132 | J139: 174.132 | K139: 189.056 | M139: 131 | N139: 60.004 | O139: 85.176 | P139: 136.234 | Q139: 145.502 | R139: 158.606 | S139: 165.158 | T139: 171.374 | U139: 174.132 | V139: 174.132 | W139: 189.056 | AA139: 131 | AB139: 61.504 | AC139: 86.676 | AD139: 137.734 | AE139: 147.002 | AF139: 160.106 | AG139: 166.658 | AH139: 172.874 | AI139: 175.632 | AJ139: 175.632 | AK139: 190.556 | AM139: 131 | AN139: 49.4 | AO139: 73.92 | AP139: 122.49 | AQ139: 130.48 | AR139: 138.16 | AS139: 147.43 | AT139: 152.87 | AV139: 131 | AW139: 48.195 | AX139: 72.117 | AY139: 119.5 | AZ139: 127.3 | BA139: 134.7875 | BB139: 143.8375 | BC139: 149.1375 | BE139: 131 | BF139: 50.9 | BG139: 75.42 | BH139: 123.99 | BI139: 131.98 | BJ139: 139.66 | BK139: 148.93 | BL139: 154.37
A140: 132 | B140: 60.452 | C140: 85.82 | D140: 137.256 | E140: 146.622 | F140: 159.824 | G140: 166.418 | H140: 172.676 | I140: 175.448 | J140: 175.448 | K140: 190.512 | M140: 132 | N140: 60.452 | O140: 85.82 | P140: 137.256 | Q140: 146.622 | R140: 159.824 | S140: 166.418 | T140: 172.676 | U140: 175.448 | V140: 175.448 | W140: 190.512 | AA140: 132 | AB140: 61.952 | AC140: 87.32 | AD140: 138.756 | AE140: 148.122 | AF140: 161.324 | AG140: 167.918 | AH140: 174.176 | AI140: 176.948 | AJ140: 176.948 | AK140: 192.012 | AM140: 132 | AN140: 49.77 | AO140: 74.49 | AP140: 123.44 | AQ140: 131.48 | AR140: 139.22 | AS140: 148.56 | AT140: 154.04 | AV140: 132 | AW140: 48.5595 | AX140: 72.6705 | AY140: 120.425 | AZ140: 128.275 | BA140: 135.825 | BB140: 144.9375 | BC140: 150.2875 | BE140: 132 | BF140: 51.27 | BG140: 75.99 | BH140: 124.94 | BI140: 132.98 | BJ140: 140.72 | BK140: 150.06 | BL140: 155.54
A141: 133 | B141: 60.914 | C141: 86.464 | D141: 138.306 | E141: 147.728 | F141: 161.028 | G141: 167.678 | H141: 173.978 | I141: 176.778 | J141: 176.778 | K141: 191.968 | M141: 133 | N141: 60.914 | O141: 86.464 | P141: 138.306 | Q141: 147.728 | R141: 161.028 | S141: 167.678 | T141: 173.978 | U141: 176.778 | V141: 176.778 | W141: 191.968 | AA141: 133 | AB141: 62.414 | AC141: 87.964 | AD141: 139.806 | AE141: 149.228 | AF141: 162.528 | AG141: 169.178 | AH141: 175.478 | AI141: 178.278 | AJ141: 178.278 | AK141: 193.468 | AM141: 133 | AN141: 50.16 | AO141: 75.05 | AP141: 124.37 | AQ141: 132.49 | AR141: 140.28 | AS141: 149.7 | AT141: 155.22 | AV141: 133 | AW141: 48.9375 | AX141: 73.224 | AY141: 121.3375 | AZ141: 129.2625 | BA141: 136.8625 | BB141: 146.05 | BC141: 151.4375 | BE141: 133 | BF141: 51.66 | BG141: 76.55 | BH141: 125.87 | BI141: 133.99 | BJ141: 141.78 | BK141: 151.2 | BL141: 156.72
A142: 134 | B142: 61.376 | C142: 87.122 | D142: 139.342 | E142: 148.834 | F142: 162.246 | G142: 168.938 | H142: 175.294 | I142: 178.108 | J142: 178.108 | K142: 193.424 | M142: 134 | N142: 61.376 | O142: 87.122 | P142: 139.342 | Q142: 148.834 | R142: 162.246 | S142: 168.938 | T142: 175.294 | U142: 178.108 | V142: 178.108 | W142: 193.424 | AA142: 134 | AB142: 62.876 | AC142: 88.622 | AD142: 140.842 | AE142: 150.334 | AF142: 163.746 | AG142: 170.438 | AH142: 176.794 | AI142: 179.608 | AJ142: 179.608 | AK142: 194.924 | AM142: 134 | AN142: 50.53 | AO142: 75.62 | AP142: 125.32 | AQ142: 133.49 | AR142: 141.35 | AS142: 150.83 | AT142: 156.4 | AV142: 134 | AW142: 49.302 | AX142: 73.7775 | AY142: 122.2625 | AZ142: 130.2375 | BA142: 137.9 | BB142: 147.15 | BC142: 152.5875 | BE142: 134 | BF142: 52.03 | BG142: 77.12 | BH142: 126.82 | BI142: 134.99 | BJ142: 142.85 | BK142: 152.33 | BL142: 157.9
A143: 135 | B143: 61.838 | C143: 87.766 | D143: 140.392 | E143: 149.954 | F143: 163.45 | G143: 170.198 | H143: 176.596 | I143: 179.438 | J143: 179.438 | K143: 194.88 | M143: 135 | N143: 61.838 | O143: 87.766 | P143: 140.392 | Q143: 149.954 | R143: 163.45 | S143: 170.198 | T143: 176.596 | U143: 179.438 | V143: 179.438 | W143: 194.88 | AA143: 135 | AB143: 63.338 | AC143: 89.266 | AD143: 141.892 | AE143: 151.454 | AF143: 164.95 | AG143: 171.698 | AH143: 178.096 | AI143: 180.938 | AJ143: 180.938 | AK143: 196.38 | AM143: 135 | AN143: 50.92 | AO143: 76.19 | AP143: 126.25 | AQ143: 134.49 | AR143: 142.41 | AS143: 151.97 | AT143: 157.57 | AV143: 135 | AW143: 49.68 | AX143: 74.331 | AY143: 123.175 | AZ143: 131.2125 | BA143: 138.9375 | BB143: 148.2625 | BC143: 153.725 | BE143: 135 | BF143: 52.42 | BG143: 77.69 | BH143: 127.75 | BI143: 135.99 | BJ143: 143.91 | BK143: 153.47 | BL143: 159.07
A144: 136 | B144: 62.286 | C144: 88.424 | D144: 141.414 | E144: 151.06 | F144: 164.668 | G144: 171.458 | H144: 177.912 | I144: 180.768 | J144: 180.768 | K144: 196.336 | M144: 136 | N144: 62.286 | O144: 88.424 | P144: 141.414 | Q144: 151.06 | R144: 164.668 | S144: 171.458 | T144: 177.912 | U144: 180.768 | V144: 180.768 | W144: 196.336 | AA144: 136 | AB144: 63.786 | AC144: 89.924 | AD144: 142.914 | AE144: 152.56 | AF144: 166.168 | AG144: 172.958 | AH144: 179.412 | AI144: 182.268 | AJ144: 182.268 | AK144: 197.836 | AM144: 136 | AN144: 51.3 | AO144: 76.76 | AP144: 127.2 | AQ144: 135.51 | AR144: 143.47 | AS144: 153.11 | AT144: 158.75 | AV144: 136 | AW144: 50.0445 | AX144: 74.8845 | AY144: 124.1 | AZ144: 132.2 | BA144: 139.975 | BB144: 149.375 | BC144: 154.875 | BE144: 136 | BF144: 52.8 | BG144: 78.26 | BH144: 128.7 | BI144: 137.01 | BJ144: 144.97 | BK144: 154.61 | BL144: 160.25
A145: 137 | B145: 62.748 | C145: 89.068 | D145: 142.464 | E145: 152.166 | F145: 165.872 | G145: 172.732 | H145: 179.214 | I145: 182.098 | J145: 182.098 | K145: 197.792 | M145: 137 | N145: 62.748 | O145: 89.068 | P145: 142.464 | Q145: 152.166 | R145: 165.872 | S145: 172.732 | T145: 179.214 | U145: 182.098 | V145: 182.098 | W145: 197.792 | AA145: 137 | AB145: 64.248 | AC145: 90.568 | AD145: 143.964 | AE145: 153.666 | AF145: 167.372 | AG145: 174.232 | AH145: 180.714 | AI145: 183.598 | AJ145: 183.598 | AK145: 199.292 | AM145: 137 | AN145: 51.67 | AO145: 77.32 | AP145: 128.14 | AQ145: 136.5 | AR145: 144.54 | AS145: 154.24 | AT145: 159.93 | AV145: 137 | AW145: 50.409 | AX145: 75.438 | AY145: 125.0125 | AZ145: 133.175 | BA145: 141.0125 | BB145: 150.475 | BC145: 156.025 | BE145: 137 | BF145: 53.17 | BG145: 78.82 | BH145: 129.64 | BI145: 138 | BJ145: 146.04 | BK145: 155.74 | BL145: 161.43
A146: 138 | B146: 63.21 | C146: 89.726 | D146: 143.5 | E146: 153.286 | F146: 167.09 | G146: 173.992 | H146: 180.53 | I146: 183.428 | J146: 183.428 | K146: 199.248 | M146: 138 | N146: 63.21 | O146: 89.726 | P146: 143.5 | Q146: 153.286 | R146: 167.09 | S146: 173.992 | T146: 180.53 | U146: 183.428 | V146: 183.428 | W146: 199.248 | AA146: 138 | AB146: 64.71 | AC146: 91.226 | AD146: 145 | AE146: 154.786 | AF146: 168.59 | AG146: 175.492 | AH146: 182.03 | AI146: 184.928 | AJ146: 184.928 | AK146: 200.748 | AM146: 138 | AN146: 52.06 | AO146: 77.89 | AP146: 129.09 | AQ146: 137.5 | AR146: 145.6 | AS146: 155.38 | AT146: 161.1 | AV146: 138 | AW146: 50.787 | AX146: 75.9915 | AY146: 125.9375 | AZ146: 134.15 | BA146: 142.05 | BB146: 151.5875 | BC146: 157.175 | BE146: 138 | BF146: 53.56 | BG146: 79.39 | BH146: 130.59 | BI146: 139 | BJ146: 147.1 | BK146: 156.88 | BL146: 162.6
A147: 139 | B147: 63.658 | C147: 90.37 | D147: 144.55 | E147: 154.392 | F147: 168.294 | G147: 175.252 | H147: 181.832 | I147: 184.758 | J147: 184.758 | K147: 200.704 | M147: 139 | N147: 63.658 | O147: 90.37 | P147: 144.55 | Q147: 154.392 | R147: 168.294 | S147: 175.252 | T147: 181.832 | U147: 184.758 | V147: 184.758 | W147: 200.704 | AA147: 139 | AB147: 65.158 | AC147: 91.87 | AD147: 146.05 | AE147: 155.892 | AF147: 169.794 | AG147: 176.752 | AH147: 183.332 | AI147: 186.258 | AJ147: 186.258 | AK147: 202.204 | AM147: 139 | AN147: 52.43 | AO147: 78.47 | AP147: 130.02 | AQ147: 138.52 | AR147: 146.66 | AS147: 156.5 | AT147: 162.27 | AV147: 139 | AW147: 51.1515 | AX147: 76.5585 | AY147: 126.85 | AZ147: 135.1375 | BA147: 143.0875 | BB147: 152.6875 | BC147: 158.3125 | BE147: 139 | BF147: 53.93 | BG147: 79.97 | BH147: 131.52 | BI147: 140.02 | BJ147: 148.16 | BK147: 158 | BL147: 163.77
A148: 140 | B148: 64.12 | C148: 91.014 | D148: 145.572 | E148: 155.498 | F148: 169.512 | G148: 176.512 | H148: 183.134 | I148: 186.088 | J148: 186.088 | K148: 202.16 | M148: 140 | N148: 64.12 | O148: 91.014 | P148: 145.572 | Q148: 155.498 | R148: 169.512 | S148: 176.512 | T148: 183.134 | U148: 186.088 | V148: 186.088 | W148: 202.16 | AA148: 140 | AB148: 65.62 | AC148: 92.514 | AD148: 147.072 | AE148: 156.998 | AF148: 171.012 | AG148: 178.012 | AH148: 184.634 | AI148: 187.588 | AJ148: 187.588 | AK148: 203.66 | AM148: 140 | AN148: 52.82 | AO148: 79.04 | AP148: 130.97 | AQ148: 139.52 | AR148: 147.73 | AS148: 157.65 | AT148: 163.45 | AV148: 140 | AW148: 51.5295 | AX148: 77.112 | AY148: 127.775 | AZ148: 136.1125 | BA148: 144.125 | BB148: 153.8 | BC148: 159.4625 | BE148: 140 | BF148: 54.32 | BG148: 80.54 | BH148: 132.47 | BI148: 141.02 | BJ148: 149.23 | BK148: 159.15 | BL148: 164.95
A149: 141 | B149: 64.582 | C149: 91.672 | D149: 146.622 | E149: 156.618 | F149: 170.716 | G149: 177.772 | H149: 184.45 | I149: 187.418 | J149: 187.418 | K149: 203.616 | M149: 141 | N149: 64.582 | O149: 91.672 | P149: 146.622 | Q149: 156.618 | R149: 170.716 | S149: 177.772 | T149: 184.45 | U149: 187.418 | V149: 187.418 | W149: 203.616 | AA149: 141 | AB149: 66.082 | AC149: 93.172 | AD149: 148.122 | AE149: 158.118 | AF149: 172.216 | AG149: =G149+1.5 -> 179.272 | AH149: =H149+1.5 -> 185.95 | AI149: =I149+1.5 -> 188.918 | AJ149: =J149+1.5 -> 188.918 | AK149: =K149+1.5 -> 205.116 | AM149: 141 | AN149: 53.19 | AO149: 79.61 | AP149: 131.9 | AQ149: 140.51 | AR149: 148.79 | AS149: 158.77 | AT149: 164.63 | AV149: 141 | AW149: 51.894 | AX149: 77.6655 | AY149: 128.6875 | AZ149: 137.0875 | BA149: 145.1625 | BB149: 154.9 | BC149: 160.6125 | BE149: 141 | BF149: 54.69 | BG149: 81.11 | BH149: 133.4 | BI149: 142.01 | BJ149: 150.29 | BK149: 160.27 | BL149: 166.13
A150: 142 | B150: 65.044 | C150: 92.316 | D150: 147.672 | E150: 157.724 | F150: 171.934 | G150: 179.032 | H150: 185.752 | I150: 188.748 | J150: 188.748 | K150: 205.072 | M150: 142 | N150: 65.044 | O150: 92.316 | P150: 147.672 | Q150: 157.724 | R150: 171.934 | S150: 179.032 | T150: 185.752 | U150: 188.748 | V150: 188.748 | W150: 205.072 | AA150: 142 | AB150: =B150+1.5 -> 66.544 | AC150: =C150+1.5 -> 93.816 | AD150: =D150+1.5 -> 149.172 | AE150: =E150+1.5 -> 159.224 | AF150: =F150+1.5 -> 173.434 | AG150: 180.532 | AH150: 187.252 | AI150: 190.248 | AJ150: 190.248 | AK150: 206.572 | AM150: 142 | AN150: 53.58 | AO150: 80.17 | AP150: 132.85 | AQ150: 141.53 | AR150: 149.86 | AS150: 159.91 | AT150: 165.81 | AV150: 142 | AW150: 52.272 | AX150: 78.219 | AY150: 129.6125 | AZ150: 138.075 | BA150: 146.2 | BB150: 156.0125 | BC150: 161.7625 | BE150: 142 | BF150: 55.08 | BG150: 81.67 | BH150: 134.35 | BI150: 143.03 | BJ150: 151.36 | BK150: 161.41 | BL150: 167.31
A151: 143 | B151: 65.492 | C151: 92.974 | D151: 148.708 | E151: 158.83 | F151: 173.138 | G151: 180.292 | H151: 187.068 | I151: 190.078 | J151: 190.078 | K151: 206.528 | M151: 143 | N151: 65.492 | O151: 92.974 | P151: 148.708 | Q151: 158.83 | R151: 173.138 | S151: 180.292 | T151: 187.068 | U151: 190.078 | V151: 190.078 | W151: 206.528 | AA151: 143 | AB151: 66.992 | AC151: 94.474 | AD151: 150.208 | AE151: 160.33 | AF151: 174.638 | AG151: 181.792 | AH151: 188.568 | AI151: 191.578 | AJ151: 191.578 | AK151: 208.028 | AM151: 143 | AN151: 53.95 | AO151: 80.74 | AP151: 133.8 | AQ151: 142.53 | AR151: 150.91 | AS151: 161.04 | AT151: 166.99 | AV151: 143 | AW151: 52.6365 | AX151: 78.7725 | AY151: 130.5375 | AZ151: 139.05 | BA151: 147.225 | BB151: 157.1125 | BC151: 162.9125 | BE151: 143 | BF151: 55.45 | BG151: 82.24 | BH151: 135.3 | BI151: 144.03 | BJ151: 152.41 | BK151: 162.54 | BL151: 168.49
A152: 144 | B152: 65.954 | C152: 93.618 | D152: 149.744 | E152: 159.95 | F152: 174.356 | G152: 181.552 | H152: 188.37 | I152: 191.408 | J152: 191.408 | K152: 207.984 | M152: 144 | N152: 65.954 | O152: 93.618 | P152: 149.744 | Q152: 159.95 | R152: 174.356 | S152: 181.552 | T152: 188.37 | U152: 191.408 | V152: 191.408 | W152: 207.984 | AA152: 144 | AB152: 67.454 | AC152: 95.118 | AD152: 151.244 | AE152: 161.45 | AF152: 175.856 | AG152: 183.052 | AH152: 189.87 | AI152: 192.908 | AJ152: 192.908 | AK152: 209.484 | AM152: 144 | AN152: 54.34 | AO152: 81.31 | AP152: 134.74 | AQ152: 143.53 | AR152: 151.97 | AS152: 162.18 | AT152: 168.15 | AV152: 144 | AW152: 53.0145 | AX152: 79.326 | AY152: 131.45 | AZ152: 140.025 | BA152: 148.2625 | BB152: 158.225 | BC152: 164.05 | BE152: 144 | BF152: 55.84 | BG152: 82.81 | BH152: 136.24 | BI152: 145.03 | BJ152: 153.47 | BK152: 163.68 | BL152: 169.65
A153: 145 | B153: 66.416 | C153: 94.276 | D153: 150.78 | E153: 161.056 | F153: 175.56 | G153: 182.812 | H153: 189.686 | I153: 192.738 | J153: 192.738 | K153: 209.44 | M153: 145 | N153: 66.416 | O153: 94.276 | P153: 150.78 | Q153: 161.056 | R153: 175.56 | S153: 182.812 | T153: 189.686 | U153: 192.738 | V153: 192.738 | W153: 209.44 | AA153: 145 | AB153: 67.916 | AC153: 95.776 | AD153: 152.28 | AE153: 162.556 | AF153: 177.06 | AG153: 184.312 | AH153: 191.186 | AI153: 194.238 | AJ153: 194.238 | AK153: 210.94 | AM153: 145 | AN153: 54.71 | AO153: 81.88 | AP153: 135.68 | AQ153: 144.54 | AR153: 153.03 | AS153: 163.31 | AT153: 169.33 | AV153: 145 | AW153: 53.379 | AX153: 79.8795 | AY153: 132.375 | AZ153: 141.0125 | BA153: 149.3 | BB153: 159.325 | BC153: 165.2 | BE153: 145 | BF153: 56.21 | BG153: 83.38 | BH153: 137.18 | BI153: 146.04 | BJ153: 154.53 | BK153: 164.81 | BL153: 170.83
A154: 146 | B154: 66.864 | C154: 94.92 | D154: 151.83 | E154: 162.162 | F154: 176.764 | G154: 184.072 | H154: 190.988 | I154: 194.068 | J154: 194.068 | K154: 210.896 | M154: 146 | N154: 66.864 | O154: 94.92 | P154: 151.83 | Q154: 162.162 | R154: 176.764 | S154: 184.072 | T154: 190.988 | U154: 194.068 | V154: 194.068 | W154: 210.896 | AA154: 146 | AB154: 68.364 | AC154: 96.42 | AD154: 153.33 | AE154: 163.662 | AF154: 178.264 | AG154: 185.572 | AH154: 192.488 | AI154: 195.568 | AJ154: 195.568 | AK154: 212.396 | AM154: 146 | AN154: 55.1 | AO154: 82.44 | AP154: 136.62 | AQ154: 145.54 | AR154: 154.1 | AS154: 164.45 | AT154: 170.51 | AV154: 146 | AW154: 53.757 | AX154: 80.433 | AY154: 133.2875 | AZ154: 141.9875 | BA154: 150.3375 | BB154: 160.4375 | BC154: 166.35 | BE154: 146 | BF154: 56.6 | BG154: 83.94 | BH154: 138.12 | BI154: 147.04 | BJ154: 155.6 | BK154: 165.95 | BL154: 172.01
A155: 147 | B155: 67.326 | C155: 95.564 | D155: 152.866 | E155: 163.282 | F155: 177.982 | G155: 185.332 | H155: 192.29 | I155: 195.398 | J155: 195.398 | K155: 212.352 | M155: 147 | N155: 67.326 | O155: 95.564 | P155: 152.866 | Q155: 163.282 | R155: 177.982 | S155: 185.332 | T155: 192.29 | U155: 195.398 | V155: 195.398 | W155: 212.352 | AA155: 147 | AB155: 68.826 | AC155: 97.064 | AD155: 154.366 | AE155: 164.782 | AF155: 179.482 | AG155: 186.832 | AH155: 193.79 | AI155: 196.898 | AJ155: 196.898 | AK155: 213.852 | AM155: 147 | AN155: 55.47 | AO155: 83.01 | AP155: 137.57 | AQ155: 146.54 | AR155: 155.16 | AS155: 165.58 | AT155: 171.69 | AV155: 147 | AW155: 54.1215 | AX155: 80.9865 | AY155: 134.2125 | AZ155: 142.9625 | BA155: 151.375 | BB155: 161.5375 | BC155: 167.5 | BE155: 147 | BF155: 56.97 | BG155: 84.51 | BH155: 139.07 | BI155: 148.04 | BJ155: 156.66 | BK155: 167.08 | BL155: 173.19
A156: 148 | B156: 67.788 | C156: 96.222 | D156: 153.902 | E156: 164.388 | F156: 179.186 | G156: 186.592 | H156: 193.606 | I156: 196.728 | J156: 196.728 | K156: 213.808 | M156: 148 | N156: 67.788 | O156: 96.222 | P156: 153.902 | Q156: 164.388 | R156: 179.186 | S156: 186.592 | T156: 193.606 | U156: 196.728 | V156: 196.728 | W156: 213.808 | AA156: 148 | AB156: 69.288 | AC156: 97.722 | AD156: 155.402 | AE156: 165.888 | AF156: 180.686 | AG156: 188.092 | AH156: 195.106 | AI156: 198.228 | AJ156: 198.228 | AK156: 215.308 | AM156: 148 | AN156: 55.85 | AO156: 83.58 | AP156: 138.5 | AQ156: 147.55 | AR156: 156.22 | AS156: 166.72 | AT156: 172.85 | AV156: 148 | AW156: 54.486 | AX156: 81.54 | AY156: 135.125 | AZ156: 143.95 | BA156: 152.4125 | BB156: 162.65 | BC156: 168.6375 | BE156: 148 | BF156: 57.35 | BG156: 85.08 | BH156: 140 | BI156: 149.05 | BJ156: 157.72 | BK156: 168.22 | BL156: 174.35
A157: 149 | B157: 68.236 | C157: 96.866 | D157: 154.938 | E157: 165.494 | F157: 180.404 | G157: 187.852 | H157: 194.908 | I157: 198.044 | J157: 198.044 | K157: 215.264 | M157: 149 | N157: 68.236 | O157: 96.866 | P157: 154.938 | Q157: 165.494 | R157: 180.404 | S157: 187.852 | T157: 194.908 | U157: 198.044 | V157: 198.044 | W157: 215.264 | AA157: 149 | AB157: 69.736 | AC157: 98.366 | AD157: 156.438 | AE157: 166.994 | AF157: 181.904 | AG157: 189.352 | AH157: 196.408 | AI157: 199.544 | AJ157: 199.544 | AK157: 216.764 | AM157: 149 | AN157: 56.24 | AO157: 84.15 | AP157: 139.45 | AQ157: 148.55 | AR157: 157.29 | AS157: 167.84 | AT157: 174.03 | AV157: 149 | AW157: 54.864 | AX157: 82.0935 | AY157: 136.05 | AZ157: 144.925 | BA157: 153.45 | BB157: 163.75 | BC157: 169.7875 | BE157: 149 | BF157: 57.74 | BG157: 85.65 | BH157: 140.95 | BI157: 150.05 | BJ157: 158.79 | BK157: 169.34 | BL157: 175.53
A158: 150 | B158: 68.698 | C158: 97.524 | D158: 155.988 | E158: 166.614 | F158: 181.608 | G158: 189.112 | H158: 196.224 | I158: 199.374 | J158: 199.374 | K158: 216.72 | M158: 150 | N158: 68.698 | O158: 97.524 | P158: 155.988 | Q158: 166.614 | R158: 181.608 | S158: 189.112 | T158: 196.224 | U158: 199.374 | V158: 199.374 | W158: 216.72 | AA158: 150 | AB158: 70.198 | AC158: 99.024 | AD158: 157.488 | AE158: 168.114 | AF158: 183.108 | AG158: 190.612 | AH158: 197.724 | AI158: 200.874 | AJ158: 200.874 | AK158: 218.22 | AM158: 150 | AN158: 56.61 | AO158: 84.73 | AP158: 140.39 | AQ158: 149.55 | AR158: 158.35 | AS158: 168.98 | AT158: 175.21 | AV158: 150 | AW158: 55.2285 | AX158: 82.6605 | AY158: 136.9625 | AZ158: 145.9 | BA158: 154.4875 | BB158: 164.8625 | BC158: 170.9375 | BE158: 150 | BF158: 58.11 | BG158: 86.23 | BH158: 141.89 | BI158: 151.05 | BJ158: 159.85 | BK158: 170.48 | BL158: 176.71
A159: 151+ | B159: 0.4579866667 | C159: 0.65016 | D159: 1.03992 | E159: 1.11076 | F159: 1.21072 | G159: 1.260746667 | H159: 1.30816 | I159: 1.32916 | J159: 1.32916 | K159: 1.4448 | M159: 151+ | N159: =N158/150 -> 0.4579866667 | O159: 0.65016 | P159: 1.03992 | Q159: 1.11076 | R159: 1.21072 | S159: 1.260746667 | T159: 1.30816 | U159: 1.32916 | V159: 1.32916 | W159: 1.4448 | AA159: 151+ | AB159: =AB158/150 -> 0.4679866667 | AC159: 0.66016 | AD159: 1.04992 | AE159: 1.12076 | AF159: 1.22072 | AG159: 1.270746667 | AH159: 1.31816 | AI159: 1.33916 | AJ159: 1.33916 | AK159: 1.4548 | AM159: 151+ | AN159: 0.3774 | AO159: 0.5648666667 | AP159: 0.9359333333 | AQ159: 0.997 | AR159: 1.055666667 | AS159: 1.126533333 | AT159: 1.168066667 | AV159: 151+ | AW159: 0.36819 | AX159: 0.55107 | AY159: 0.9130833333 | AZ159: 0.9726666667 | BA159: 1.029916667 | BB159: 1.099083333 | BC159: 1.139583333 | BE159: 151+ | BF159: =BF158/$A$158 -> 0.3874 | BG159: 0.5748666667 | BH159: 0.9459333333 | BI159: 1.007 | BJ159: 1.065666667 | BK159: 1.136533333 | BL159: =BL158/$A158 -> 1.178066667
A162: Lbs. | B162: Zone 102 | C162: Zone 103 | D162: Zone 104 | E162: Zone 105 | F162: Zone 106 | G162: Zone 107 | H162: Zone 108 | I162: Zone 124 | J162: Zone 125 | K162: Zone 126 | M162: Lbs. | N162: Zone 102 | O162: Zone 103 | P162: Zone 104 | Q162: Zone 105 | R162: Zone 106 | S162: Zone 107 | T162: Zone 108 | U162: Zone 124 | V162: Zone 125 | W162: Zone 126 | AA162: Lbs. | AB162: Zone 102 | AC162: Zone 103 | AD162: Zone 104 | AE162: Zone 105 | AF162: Zone 106 | AG162: Zone 107 | AH162: Zone 108 | AI162: Zone 124 | AJ162: Zone 125 | AK162: Zone 126
A163: Letter | B163: =AN8-B8 -> -0.01 | C163: -0.01 | D163: -0.05 | E163: -0.05 | F163: -0.05 | G163: -0.05 | H163: -0.05 | I163: -8.344 | K163: -3.314 | M163: Letter | N163: 5.6 | O163: 5.6 | P163: 6.454 | Q163: 6.944 | R163: 7 | S163: 7.7 | T163: 7.826 | U163: 8.344 | V163: 8.344 | W163: 8.764 | AA163: Letter | AB163: =BF8-AB8 -> -0.01 | AC163: =BG8-AC8 -> -0.01 | AD163: -0.05 | AE163: -0.05 | AF163: -0.05 | AG163: -0.05 | AH163: -0.05 | AI163: =I163+1.5 -> -6.844 | AK163: -1.814
A164: 1 | B164: -0.05 | C164: -1.892 | D164: -2.748 | E164: -3.402 | F164: -4.262 | G164: -4.6 | H164: -4.526 | I164: 13.104 | J164: 13.104 | K164: 13.118 | M164: 1 | N164: 5.614 | O164: 7.532 | P164: 9.618 | Q164: 10.682 | R164: 11.592 | S164: 12.39 | T164: 12.726 | U164: 13.104 | V164: 13.104 | W164: 13.118 | AA164: 1 | AB164: -0.05 | AC164: -1.892 | AD164: -2.748 | AE164: -3.402 | AF164: -4.262 | AG164: -4.6 | AH164: -4.526 | AI164: 14.604 | AJ164: 14.604 | AK164: 14.618
A165: 2 | B165: -0.086 | C165: -1.724 | D165: -2.806 | E165: -2.916 | F165: -3.434 | G165: -3.34 | H165: -3.61 | I165: 14.308 | J165: 14.308 | K165: 14.322 | M165: 2 | N165: 5.726 | O165: 8.134 | P165: 10.836 | Q165: 11.816 | R165: 13.104 | S165: 13.65 | T165: 14.21 | U165: 14.308 | V165: 14.308 | W165: 14.322 | AA165: 2 | AB165: -0.086 | AC165: -1.724 | AD165: -2.806 | AE165: -2.916 | AF165: -3.434 | AG165: -3.34 | AH165: -3.61 | AI165: 15.808 | AJ165: 15.808 | AK165: 15.822
A166: 3 | B166: -0.814 | C166: -1.928 | D166: -2.938 | E166: -3.24 | F166: -3.598 | G166: -3.658 | H166: -3.71 | I166: 15.974 | J166: 15.974 | K166: 17.92 | M166: 3 | N166: 6.454 | O166: 8.708 | P166: 11.998 | Q166: 13.09 | R166: 14.518 | S166: 15.008 | T166: 15.54 | U166: 15.974 | V166: 15.974 | W166: 17.92 | AA166: 3 | AB166: -0.814 | AC166: -1.928 | AD166: -2.938 | AE166: -3.24 | AF166: -3.598 | AG166: -3.658 | AH166: -3.71 | AI166: 17.474 | AJ166: 17.474 | AK166: 19.42
A167: 4 | B167: -1.318 | C167: -1.948 | D167: -2.976 | E167: -3.402 | F167: -3.738 | G167: -3.848 | H167: -4.062 | I167: 17.444 | J167: 17.444 | K167: 19.544 | M167: 4 | N167: 6.958 | O167: 9.128 | P167: 13.006 | Q167: 14.322 | R167: 15.848 | S167: 16.338 | T167: 16.982 | U167: 17.444 | V167: 17.444 | W167: 19.544 | AA167: 4 | AB167: -1.318 | AC167: -1.948 | AD167: -2.976 | AE167: -3.402 | AF167: -3.738 | AG167: -3.848 | AH167: -4.062 | AI167: 18.944 | AJ167: 18.944 | AK167: 21.044
A168: 5 | B168: -1.188 | C168: -1.856 | D168: -3.344 | E168: -3.696 | F168: -3.982 | G168: -4.106 | H168: -4.196 | I168: 18.872 | J168: 18.872 | K168: 21.042 | M168: 5 | N168: 7.028 | O168: 9.506 | P168: 14.224 | Q168: 15.666 | R168: 17.192 | S168: 17.696 | T168: 18.326 | U168: 18.872 | V168: 18.872 | W168: 21.042 | AA168: 5 | AB168: -1.188 | AC168: -1.856 | AD168: -3.344 | AE168: -3.696 | AF168: -3.982 | AG168: -4.106 | AH168: -4.196 | AI168: 20.372 | AJ168: 20.372 | AK168: 22.542
A169: 6 | B169: -1.774 | C169: -2.278 | D169: -3.496 | E169: -3.884 | F169: -4.51 | G169: -4.452 | H169: -4.754 | I169: 20.216 | J169: 20.216 | K169: 22.652 | M169: 6 | N169: 7.784 | O169: 10.038 | P169: 15.386 | Q169: 16.884 | R169: 18.62 | S169: 18.942 | T169: 19.754 | U169: 20.216 | V169: 20.216 | W169: 22.652 | AA169: 6 | AB169: -1.774 | AC169: -2.278 | AD169: -3.496 | AE169: -3.884 | AF169: -4.51 | AG169: -4.452 | AH169: -4.754 | AI169: 21.716 | AJ169: 21.716 | AK169: 24.152
A170: 7 | B170: -1.798 | C170: -1.812 | D170: -3.59 | E170: -4.284 | F170: -4.646 | G170: -4.878 | H170: -4.918 | I170: 21.56 | J170: 21.56 | K170: 24.248 | M170: 7 | N170: 8.148 | O170: 10.542 | P170: 16.45 | Q170: 18.144 | R170: 19.936 | S170: 20.398 | T170: 21.098 | U170: 21.56 | V170: 21.56 | W170: 24.248 | AA170: 7 | AB170: -1.798 | AC170: -1.812 | AD170: -3.59 | AE170: -4.284 | AF170: -4.646 | AG170: -4.878 | AH170: -4.918 | AI170: 23.06 | AJ170: 23.06 | AK170: 25.748
A171: 8 | B171: -1.738 | C171: -1.95 | D171: -3.754 | E171: -4.256 | F171: -4.916 | G171: -5.136 | H171: -5.176 | I171: 22.876 | J171: 22.876 | K171: 25.452 | M171: 8 | N171: 8.218 | O171: 11.06 | P171: 17.514 | Q171: 19.306 | R171: 21.266 | S171: 21.826 | T171: 22.456 | U171: 22.876 | V171: 22.876 | W171: 25.452 | AA171: 8 | AB171: -1.738 | AC171: -1.95 | AD171: -3.754 | AE171: -4.256 | AF171: -4.916 | AG171: -5.136 | AH171: -5.176 | AI171: 24.376 | AJ171: 24.376 | AK171: 26.952
A172: 9 | B172: -1.506 | C172: -2.096 | D172: -3.848 | E172: -4.522 | F172: -5.136 | G172: -5.384 | H172: -5.508 | I172: 24.332 | J172: 24.332 | K172: 27.118 | M172: 9 | N172: 8.316 | O172: 11.466 | P172: 18.508 | Q172: 20.552 | R172: 22.596 | S172: 23.254 | T172: 23.898 | U172: 24.332 | V172: 24.332 | W172: 27.118 | AA172: 9 | AB172: -1.506 | AC172: -2.096 | AD172: -3.848 | AE172: -4.522 | AF172: -5.136 | AG172: -5.384 | AH172: -5.508 | AI172: 25.832 | AJ172: 25.832 | AK172: 28.618
A173: 10 | B173: -1.16 | C173: -1.7 | D173: -3.882 | E173: -4.56 | F173: -4.07 | G173: -4.228 | H173: -4.968 | I173: 25.76 | J173: 25.76 | K173: 27.132 | M173: 10 | N173: 8.33 | O173: 11.48 | P173: 19.362 | Q173: 21.63 | R173: 22.61 | S173: 23.268 | T173: 24.528 | U173: 25.76 | V173: 25.76 | W173: 27.132 | AA173: 10 | AB173: -1.16 | AC173: -1.7 | AD173: -3.882 | AE173: -4.56 | AF173: -4.07 | AG173: -4.228 | AH173: -4.968 | AI173: 27.26 | AJ173: 27.26 | AK173: 28.632
A174: 11 | B174: -1.878 | C174: -2.416 | D174: -4.184 | E174: -4.832 | F174: -5.616 | G174: -5.918 | H174: -5.954 | I174: 27.202 | J174: 27.202 | K174: 29.988 | M174: 11 | N174: 9.198 | O174: 12.586 | P174: 20.384 | Q174: 22.792 | R174: 25.256 | S174: 26.068 | T174: 26.684 | U174: 27.202 | V174: 27.202 | W174: 29.988 | AA174: 11 | AB174: -1.878 | AC174: -2.416 | AD174: -4.184 | AE174: -4.832 | AF174: -5.616 | AG174: -5.918 | AH174: -5.954 | AI174: 28.702 | AJ174: 28.702 | AK174: 31.488
A175: 12 | B175: -1.996 | C175: -2.494 | D175: -4.436 | E175: -4.906 | F175: -5.772 | G175: -6.152 | H175: -6.262 | I175: 28.532 | J175: 28.532 | K175: 30.688 | M175: 12 | N175: 9.576 | O175: 13.104 | P175: 21.476 | Q175: 23.856 | R175: 26.502 | S175: 27.482 | T175: 28.112 | U175: 28.532 | V175: 28.532 | W175: 30.688 | AA175: 12 | AB175: -1.996 | AC175: -2.494 | AD175: -4.436 | AE175: -4.906 | AF175: -5.772 | AG175: -6.152 | AH175: -6.262 | AI175: 30.032 | AJ175: 30.032 | AK175: 32.188
A176: 13 | B176: -1.886 | C176: -2.454 | D176: -4.538 | E176: -5.128 | F176: -5.826 | G176: -6.438 | H176: -6.45 | I176: 29.96 | J176: 29.96 | K176: 31.57 | M176: 13 | N176: 9.716 | O176: 13.594 | P176: 22.498 | Q176: 24.948 | R176: 27.566 | S176: 28.938 | T176: 29.47 | U176: 29.96 | V176: 29.96 | W176: 31.57 | AA176: 13 | AB176: -1.886 | AC176: -2.454 | AD176: -4.538 | AE176: -5.128 | AF176: -5.826 | AG176: -6.438 | AH176: -6.45 | AI176: 31.46 | AJ176: 31.46 | AK176: 33.07
A177: 14 | B177: -2.168 | C177: -2.402 | D177: -4.85 | E177: -5.278 | F177: -6.014 | G177: -6.518 | H177: -6.772 | I177: 31.304 | J177: 31.304 | K177: 32.466 | M177: 14 | N177: 10.108 | O177: 14.112 | P177: 23.66 | Q177: 25.998 | R177: 28.644 | S177: 30.198 | T177: 30.912 | U177: 31.304 | V177: 31.304 | W177: 32.466 | AA177: 14 | AB177: -2.168 | AC177: -2.402 | AD177: -4.85 | AE177: -5.278 | AF177: -6.014 | AG177: -6.518 | AH177: -6.772 | AI177: 32.804 | AJ177: 32.804 | AK177: 33.966
A178: 15 | B178: -2.014 | C178: -2.34 | D178: -4.678 | E178: -5.448 | F178: -5.158 | G178: -6.458 | H178: -6.768 | I178: 32.256 | J178: 32.256 | K178: 33.292 | M178: 15 | N178: 10.234 | O178: 14.49 | P178: 24.458 | Q178: 27.048 | R178: 28.658 | S178: 31.178 | T178: 32.088 | U178: 32.256 | V178: 32.256 | W178: 33.292 | AA178: 15 | AB178: -2.014 | AC178: -2.34 | AD178: -4.678 | AE178: -5.448 | AF178: -5.158 | AG178: -6.458 | AH178: -6.768 | AI178: 33.756 | AJ178: 33.756 | AK178: 34.792
A179: 16 | B179: =AN24-B24 -> -2.09 | C179: -2.54 | D179: -5.174 | E179: -5.586 | F179: -6.304 | G179: -6.47 | H179: -6.606 | I179: 33.544 | J179: 33.544 | K179: 34.776 | M179: 16 | N179: 10.64 | O179: 15.12 | P179: 25.634 | Q179: 28.056 | R179: 30.674 | S179: 31.99 | T179: 32.886 | U179: 33.544 | V179: 33.544 | W179: 34.776 | AA179: 16 | AB179: -2.09 | AC179: =BG24-AC24 -> -2.54 | AD179: -5.174 | AE179: -5.586 | AF179: -6.304 | AG179: -6.47 | AH179: -6.606 | AI179: =I179+1.5 -> 35.044 | AJ179: 35.044 | AK179: 36.276
A180: 17 | B180: -2.354 | C180: -2.754 | D180: -4.912 | E180: -5.628 | F180: -6.194 | G180: -6.514 | H180: -6.674 | I180: 34.286 | J180: 34.286 | K180: 35.77 | M180: 17 | N180: 11.074 | O180: 15.624 | P180: 26.362 | Q180: 28.938 | R180: 31.374 | S180: 32.704 | T180: 33.614 | U180: 34.286 | V180: 34.286 | W180: 35.77 | AA180: 17 | AB180: =BF25-AB25 -> -2.354 | AC180: -2.754 | AD180: -4.912 | AE180: -5.628 | AF180: -6.194 | AG180: -6.514 | AH180: -6.674 | AI180: 35.786 | AJ180: 35.786 | AK180: 37.27
A181: 18 | B181: -2.282 | C181: -3.028 | D181: -5.11 | E181: -5.514 | F181: -6.304 | G181: -6.652 | H181: -6.976 | I181: 35.14 | J181: 35.14 | K181: 37.226 | M181: 18 | N181: 11.452 | O181: 16.128 | P181: 27.16 | Q181: 29.554 | R181: 32.074 | S181: 33.432 | T181: 34.496 | U181: 35.14 | V181: 35.14 | W181: 37.226 | AA181: 18 | AB181: -2.282 | AC181: -3.028 | AD181: -5.11 | AE181: -5.514 | AF181: -6.304 | AG181: -6.652 | AH181: -6.976 | AI181: 36.64 | AJ181: 36.64 | AK181: 38.726
A182: 19 | B182: -2.236 | C182: -3.112 | D182: -5.07 | E182: -5.634 | F182: -6.472 | G182: -6.804 | H182: -7.146 | I182: 36.302 | J182: 36.302 | K182: 38.234 | M182: 19 | N182: 11.676 | O182: 16.562 | P182: 27.79 | Q182: 30.184 | R182: 32.802 | S182: 34.174 | T182: 35.406 | U182: 36.302 | V182: 36.302 | W182: 38.234 | AA182: 19 | AB182: -2.236 | AC182: -3.112 | AD182: -5.07 | AE182: -5.634 | AF182: -6.472 | AG182: -6.804 | AH182: -7.146 | AI182: 37.802 | AJ182: 37.802 | AK182: 39.734
A183: 20 | B183: -2 | C183: -2.952 | D183: -5.254 | E183: -5.852 | F183: -6.586 | G183: -7.002 | H183: -7.228 | I183: 37.016 | J183: 37.016 | K183: 40.768 | M183: 20 | N183: 11.69 | O183: 16.772 | P183: 28.504 | Q183: 30.912 | R183: 33.516 | S183: 34.972 | T183: 36.218 | U183: 37.016 | V183: 37.016 | W183: 40.768 | AA183: 20 | AB183: -2 | AC183: -2.952 | AD183: -5.254 | AE183: -5.852 | AF183: -6.586 | AG183: -7.002 | AH183: -7.228 | AI183: 38.516 | AJ183: 38.516 | AK183: 42.268
A184: 21 | B184: -2.436 | C184: -3.21 | D184: -4.06 | E184: -4.456 | F184: -5.052 | G184: -5.302 | H184: -5.742 | I184: 37.87 | J184: 37.87 | K184: 41.902 | M184: 21 | N184: 12.306 | O184: 17.43 | P184: 29.12 | Q184: 31.696 | R184: 34.202 | S184: 35.672 | T184: 37.212 | U184: 37.87 | V184: 37.87 | W184: 41.902 | AA184: 21 | AB184: -2.436 | AC184: -3.21 | AD184: -4.06 | AE184: -4.456 | AF184: -5.052 | AG184: -5.302 | AH184: -5.742 | AI184: 39.37 | AJ184: 39.37 | AK184: 43.402
A185: 22 | B185: -2.54 | C185: -3.322 | D185: -4.09 | E185: -4.5 | F185: -4.906 | G185: -5.258 | H185: -5.68 | I185: 38.71 | J185: 38.71 | K185: 42.868 | M185: 22 | N185: 12.67 | O185: 17.822 | P185: 29.82 | Q185: 32.41 | R185: 34.916 | S185: 36.498 | T185: 38.01 | U185: 38.71 | V185: 38.71 | W185: 42.868 | AA185: 22 | AB185: -2.54 | AC185: -3.322 | AD185: -4.09 | AE185: -4.5 | AF185: -4.906 | AG185: -5.258 | AH185: -5.68 | AI185: 40.21 | AJ185: 40.21 | AK185: 44.368
A186: 23 | B186: -2.432 | C186: -3.366 | D186: -4.154 | E186: -4.658 | F186: -4.968 | G186: -5.202 | H186: -5.886 | I186: 39.76 | J186: 39.76 | K186: 43.568 | M186: 23 | N186: 12.922 | O186: 18.186 | P186: 30.534 | Q186: 33.208 | R186: 35.728 | S186: 37.282 | T186: 38.906 | U186: 39.76 | V186: 39.76 | W186: 43.568 | AA186: 23 | AB186: -2.432 | AC186: -3.366 | AD186: -4.154 | AE186: -4.658 | AF186: -4.968 | AG186: -5.202 | AH186: -5.886 | AI186: 41.26 | AJ186: 41.26 | AK186: 45.068
A187: 24 | B187: -2.552 | C187: -3.428 | D187: -4.236 | E187: -4.798 | F187: -5.21 | G187: -5.324 | H187: -5.904 | I187: 40.516 | J187: 40.516 | K187: 44.422 | M187: 24 | N187: 13.202 | O187: 18.508 | P187: 31.346 | Q187: 34.048 | R187: 36.68 | S187: 38.094 | T187: 39.704 | U187: 40.516 | V187: 40.516 | W187: 44.422 | AA187: 24 | AB187: -2.552 | AC187: -3.428 | AD187: -4.236 | AE187: -4.798 | AF187: -5.21 | AG187: -5.324 | AH187: -5.904 | AI187: 42.016 | AJ187: 42.016 | AK187: 45.922
A188: 25 | B188: -2.384 | C188: -3.276 | D188: -4.314 | E188: -4.758 | F188: -4.748 | G188: -5.528 | H188: -6.026 | I188: 41.776 | J188: 41.776 | K188: 44.688 | M188: 25 | N188: 13.314 | O188: 18.606 | P188: 32.144 | Q188: 34.748 | R188: 37.058 | S188: 39.018 | T188: 40.516 | U188: 41.776 | V188: 41.776 | W188: 44.688 | AA188: 25 | AB188: -2.384 | AC188: -3.276 | AD188: -4.314 | AE188: -4.758 | AF188: -4.748 | AG188: -5.528 | AH188: -6.026 | AI188: 43.276 | AJ188: 43.276 | AK188: 46.188
A189: 26 | B189: -2.642 | C189: -3.66 | D189: -4.456 | E189: -4.642 | F189: -5.494 | G189: -5.342 | H189: -6.03 | I189: 42.42 | J189: 42.42 | K189: 46.116 | M189: 26 | N189: 13.832 | O189: 19.32 | P189: 33.026 | Q189: 35.602 | R189: 38.654 | S189: 40.012 | T189: 41.37 | U189: 42.42 | V189: 42.42 | W189: 46.116 | AA189: 26 | AB189: -2.642 | AC189: -3.66 | AD189: -4.456 | AE189: -4.642 | AF189: -5.494 | AG189: -5.342 | AH189: -6.03 | AI189: 43.92 | AJ189: 43.92 | AK189: 47.616
A190: 27 | B190: -2.654 | C190: -3.574 | D190: -4.448 | E190: -4.934 | F190: -5.788 | G190: -5.49 | H190: -6.044 | I190: 43.302 | J190: 43.302 | K190: 46.9 | M190: 27 | N190: 14.084 | O190: 19.684 | P190: 33.838 | Q190: 36.624 | R190: 39.718 | S190: 40.88 | T190: 42.154 | U190: 43.302 | V190: 43.302 | W190: 46.9 | AA190: 27 | AB190: -2.654 | AC190: -3.574 | AD190: -4.448 | AE190: -4.934 | AF190: -5.788 | AG190: -5.49 | AH190: -6.044 | AI190: 44.802 | AJ190: 44.802 | AK190: 48.4
A191: 28 | B191: -2.838 | C191: -3.568 | D191: -4.584 | E191: -5.284 | F191: -5.95 | G191: -5.422 | H191: -6.01 | I191: 44.1 | J191: 44.1 | K191: 47.894 | M191: 28 | N191: 14.448 | O191: 20.118 | P191: 34.734 | Q191: 37.674 | R191: 40.53 | S191: 41.692 | T191: 43.05 | U191: 44.1 | V191: 44.1 | W191: 47.894 | AA191: 28 | AB191: -2.838 | AC191: -3.568 | AD191: -4.584 | AE191: -5.284 | AF191: -5.95 | AG191: -5.422 | AH191: -6.01 | AI191: 45.6 | AJ191: 45.6 | AK191: 49.394
A192: 29 | B192: -2.628 | C192: -3.474 | D192: -4.656 | E192: -5.412 | F192: -5.958 | G192: -5.492 | H192: -5.86 | I192: 44.814 | J192: 44.814 | K192: 48.986 | M192: 29 | N192: 14.588 | O192: 20.454 | P192: 35.616 | Q192: 38.472 | R192: 41.398 | S192: 42.602 | T192: 43.96 | U192: 44.814 | V192: 44.814 | W192: 48.986 | AA192: 29 | AB192: -2.628 | AC192: -3.474 | AD192: -4.656 | AE192: -5.412 | AF192: -5.958 | AG192: -5.492 | AH192: -5.86 | AI192: 46.314 | AJ192: 46.314 | AK192: 50.486
A193: 30 | B193: -2.372 | C193: -3.188 | D193: -4.68 | E193: -5.634 | F193: -5.302 | G193: -5.634 | H193: -5.124 | I193: 45.626 | J193: 45.626 | K193: 49.168 | M193: 30 | N193: 14.602 | O193: 20.468 | P193: 36.33 | Q193: 39.354 | R193: 41.412 | S193: 43.414 | T193: 44.254 | U193: 45.626 | V193: 45.626 | W193: 49.168 | AA193: 30 | AB193: -2.372 | AC193: -3.188 | AD193: -4.68 | AE193: -5.634 | AF193: -5.302 | AG193: -5.634 | AH193: -5.124 | AI193: 47.126 | AJ193: 47.126 | AK193: 50.668
A194: 31 | B194: -2.85 | C194: -3.734 | D194: -4.634 | E194: -5.78 | F194: -6.118 | G194: -5.836 | H194: -5.862 | I194: 46.452 | J194: 46.452 | K194: 50.778 | M194: 31 | N194: 15.26 | O194: 21.224 | P194: 37.114 | Q194: 40.25 | R194: 43.078 | S194: 44.296 | T194: 45.752 | U194: 46.452 | V194: 46.452 | W194: 50.778 | AA194: 31 | AB194: -2.85 | AC194: -3.734 | AD194: -4.634 | AE194: -5.78 | AF194: -6.118 | AG194: -5.836 | AH194: -5.862 | AI194: 47.952 | AJ194: 47.952 | AK194: 52.278
A195: 32 | B195: =AN40-B40 -> -3.034 | C195: -4.034 | D195: -4.766 | E195: -5.806 | F195: -6.18 | G195: -6.062 | H195: -5.93 | I195: 47.32 | J195: 47.32 | K195: 51.87 | M195: 32 | N195: 15.694 | O195: 21.714 | P195: 37.926 | Q195: 41.146 | R195: 43.96 | S195: 45.192 | T195: 46.62 | U195: 47.32 | V195: 47.32 | W195: 51.87 | AA195: 32 | AB195: -3.034 | AC195: -4.034 | AD195: -4.766 | AE195: -5.806 | AF195: -6.18 | AG195: -6.062 | AH195: -5.93 | AI195: 48.82 | AJ195: 48.82 | AK195: 53.37
A196: 33 | B196: -3.138 | C196: -4.29 | D196: -4.934 | E196: -5.918 | F196: -6.216 | G196: -6.29 | H196: -6.214 | I196: 48.398 | J196: 48.398 | K196: 52.99 | M196: 33 | N196: 16.058 | O196: 22.26 | P196: 38.654 | Q196: 42.028 | R196: 44.856 | S196: 46.2 | T196: 47.684 | U196: 48.398 | V196: 48.398 | W196: 52.99 | AA196: 33 | AB196: =BF41-AB41 -> -3.138 | AC196: -4.29 | AD196: -4.934 | AE196: -5.918 | AF196: -6.216 | AG196: -6.29 | AH196: -6.214 | AI196: 49.898 | AJ196: 49.898 | AK196: 54.49
A197: 34 | B197: -3.198 | C197: -4.246 | D197: -5.126 | E197: -6.074 | F197: -6.202 | G197: -6.554 | H197: -6.278 | I197: 49.378 | J197: 49.378 | K197: 53.998 | M197: 34 | N197: 16.408 | O197: 22.596 | P197: 39.536 | Q197: 42.924 | R197: 45.822 | S197: 47.194 | T197: 48.678 | U197: 49.378 | V197: 49.378 | W197: 53.998 | AA197: 34 | AB197: -3.198 | AC197: -4.246 | AD197: -5.126 | AE197: -6.074 | AF197: -6.202 | AG197: -6.554 | AH197: -6.278 | AI197: 50.878 | AJ197: 50.878 | AK197: 55.498
A198: 35 | B198: -3.318 | C198: -4.256 | D198: -5.168 | E198: -6.32 | F198: -6.234 | G198: -6.658 | H198: -6.39 | I198: 50.386 | J198: 50.386 | K198: 55.076 | M198: 35 | N198: 16.758 | O198: 23.016 | P198: 40.418 | Q198: 43.82 | R198: 46.704 | S198: 48.188 | T198: 49.63 | U198: 50.386 | V198: 50.386 | W198: 55.076 | AA198: 35 | AB198: -3.318 | AC198: -4.256 | AD198: -5.168 | AE198: -6.32 | AF198: -6.234 | AG198: -6.658 | AH198: -6.39 | AI198: 51.886 | AJ198: 51.886 | AK198: 56.576
A199: 36 | B199: -3.498 | C199: -4.26 | D199: -5.306 | E199: -6.432 | F199: -6.374 | G199: -6.812 | H199: -6.536 | I199: 51.352 | J199: 51.352 | K199: 56.294 | M199: 36 | N199: 17.318 | O199: 23.38 | P199: 41.286 | Q199: 44.702 | R199: 47.614 | S199: 49.252 | T199: 50.596 | U199: 51.352 | V199: 51.352 | W199: 56.294 | AA199: 36 | AB199: -3.498 | AC199: -4.26 | AD199: -5.306 | AE199: -6.432 | AF199: -6.374 | AG199: -6.812 | AH199: -6.536 | AI199: 52.852 | AJ199: 52.852 | AK199: 57.794
A200: 37 | B200: -3.262 | C200: -4.512 | D200: -5.348 | E200: -6.572 | F200: -6.486 | G200: -7.114 | H200: -6.64 | I200: 52.444 | J200: 52.444 | K200: 57.204 | M200: 37 | N200: 17.332 | O200: 24.052 | P200: 42.098 | Q200: 45.612 | R200: 48.566 | S200: 50.344 | T200: 51.66 | U200: 52.444 | V200: 52.444 | W200: 57.204 | AA200: 37 | AB200: -3.262 | AC200: -4.512 | AD200: -5.348 | AE200: -6.572 | AF200: -6.486 | AG200: -7.114 | AH200: -6.64 | AI200: 53.944 | AJ200: 53.944 | AK200: 58.704
A201: 38 | B201: -3.272 | C201: -4.63 | D201: -5.11 | E201: -6.42 | F201: -6.56 | G201: -7.55 | H201: -7.04 | I201: 53.424 | J201: 53.424 | K201: 58.324 | M201: 38 | N201: 17.612 | O201: 24.43 | P201: 42.84 | Q201: 46.41 | R201: 49.49 | S201: 51.52 | T201: 52.64 | U201: 53.424 | V201: 53.424 | W201: 58.324 | AA201: 38 | AB201: -3.272 | AC201: -4.63 | AD201: -5.11 | AE201: -6.42 | AF201: -6.56 | AG201: -7.55 | AH201: -7.04 | AI201: 54.924 | AJ201: 54.924 | AK201: 59.824
A202: 39 | B202: -3.606 | C202: -4.65 | D202: -5.068 | E202: -6.338 | F202: -6.638 | G202: -7.974 | H202: -7.32 | I202: 54.474 | J202: 54.474 | K202: 58.338 | M202: 39 | N202: 18.186 | O202: 24.85 | P202: 43.638 | Q202: 47.278 | R202: 50.428 | S202: 52.584 | T202: 53.69 | U202: 54.474 | V202: 54.474 | W202: 58.338 | AA202: 39 | AB202: -3.606 | AC202: -4.65 | AD202: -5.068 | AE202: -6.338 | AF202: -6.638 | AG202: -7.974 | AH202: -7.32 | AI202: 55.974 | AJ202: 55.974 | AK202: 59.838
... 112 more rows

Sheet ND Svr
A1: UPS Next Day Saver Service | J1: UPS Next Day Saver Service | N1: Residential Surcharg | Q1: 1.59
A2: - Commercial | J2: - Residential
A3: (Per Package Rates from 48 State Origin) | J3: (Per Package Rates from 48 State Origin)
A4: Rates below do not include Residential Surcharge
A5: Lbs. | B5: Zone 132 | C5: Zone 133 | D5: Zone 134 | E5: Zone 135 | F5: Zone 136 | G5: Zone 137 | H5: Zone 138 | J5: Lbs. | K5: Zone 132 | L5: Zone 133 | M5: Zone 134 | N5: Zone 135 | O5: Zone 136 | P5: Zone 137 | Q5: Zone 138
A6: Letter | B6: 5.89 | C6: 5.89 | D6: 6.88 | E6: 7.4 | F6: 7.47 | G6: 8.23 | H6: 8.37 | J6: Letter | K6: 7.5 | L6: 7.5 | M6: 8.49 | N6: 9.01 | O6: 9.08 | P6: 9.84 | Q6: 9.98
A7: 1 | B7: 5.86 | C7: 5.94 | D7: 7.38 | E7: 7.83 | F7: 7.88 | G7: 8.38 | H7: 8.82 | J7: 1 | K7: 7.47 | L7: 7.55 | M7: 8.99 | N7: 9.44 | O7: 9.49 | P7: 9.99 | Q7: 10.43
A8: 2 | B8: 5.94 | C8: 6.74 | D8: 8.64 | E8: 9.57 | F8: 10.4 | G8: 11.09 | H8: 11.39 | J8: 2 | K8: 7.55 | L8: 8.35 | M8: 10.25 | N8: 11.18 | O8: 12.01 | P8: 12.7 | Q8: 13
A9: 3 | B9: 5.94 | C9: 7.14 | D9: 9.75 | E9: 10.6 | F9: 11.74 | G9: 12.21 | H9: 12.72 | J9: 3 | K9: 7.55 | L9: 8.75 | M9: 11.36 | N9: 12.21 | O9: 13.35 | P9: 13.82 | Q9: 14.33
A10: 4 | B10: 5.94 | C10: 7.56 | D10: 10.78 | E10: 11.74 | F10: 13.02 | G10: 13.43 | H10: 13.89 | J10: 4 | K10: 7.55 | L10: 9.17 | M10: 12.39 | N10: 13.35 | O10: 14.63 | P10: 15.04 | Q10: 15.5
A11: 5 | B11: 6.14 | C11: 8.05 | D11: 11.7 | E11: 12.87 | F11: 14.21 | G11: 14.61 | H11: 15.19 | J11: 5 | K11: 7.75 | L11: 9.65 | M11: 13.31 | N11: 14.48 | O11: 15.82 | P11: 16.22 | Q11: 16.8
A12: 6 | B12: 6.32 | C12: 8.17 | D12: 12.79 | E12: 13.98 | F12: 15.17 | G12: 15.58 | H12: 16.13 | J12: 6 | K12: 7.93 | L12: 9.78 | M12: 14.4 | N12: 15.59 | O12: 16.78 | P12: 17.19 | Q12: 17.74
A13: 7 | B13: 6.68 | C13: 9.18 | D13: 13.83 | E13: 14.9 | F13: 16.45 | G13: 16.69 | H13: 17.4 | J13: 7 | K13: 8.29 | L13: 10.79 | M13: 15.44 | N13: 16.51 | O13: 18.06 | P13: 18.3 | Q13: 19.01
A14: 8 | B14: 6.82 | C14: 9.58 | D14: 14.8 | E14: 16.18 | F14: 17.59 | G14: 17.95 | H14: 18.58 | J14: 8 | K14: 8.43 | L14: 11.19 | M14: 16.41 | N14: 17.79 | O14: 19.2 | P14: 19.56 | Q14: 20.19
A15: 9 | B15: 7.17 | C15: 9.86 | D15: 15.76 | E15: 17.24 | F15: 18.78 | G15: 19.22 | H15: 19.78 | J15: 9 | K15: 8.78 | L15: 11.47 | M15: 17.37 | N15: 18.85 | O15: 20.39 | P15: 20.83 | Q15: 21.39
A16: 10 | B16: 7.55 | C16: 10.29 | D16: 16.65 | E16: 18.36 | F16: 19.94 | G16: 20.48 | H16: 21.04 | J16: 10 | K16: 9.16 | L16: 11.9 | M16: 18.26 | N16: 19.97 | O16: 21.55 | P16: 22.09 | Q16: 22.65
A17: 11 | B17: 7.7 | C17: 10.7 | D17: 17.42 | E17: 19.32 | F17: 21.12 | G17: 21.67 | H17: 22.3 | J17: 11 | K17: 9.31 | L17: 12.31 | M17: 19.03 | N17: 20.93 | O17: 22.73 | P17: 23.28 | Q17: 23.91
A18: 12 | B18: 7.97 | C18: 11.16 | D18: 18.32 | E18: 20.39 | F18: 22.3 | G18: 22.94 | H18: 23.5 | J18: 12 | K18: 9.58 | L18: 12.77 | M18: 19.93 | N18: 22 | O18: 23.91 | P18: 24.55 | Q18: 25.1
A19: 13 | B19: 8.24 | C19: 11.72 | D19: 19.32 | E19: 21.32 | F19: 23.38 | G19: 24.2 | H19: 24.76 | J19: 13 | K19: 9.85 | L19: 13.33 | M19: 20.93 | N19: 22.93 | O19: 24.99 | P19: 25.81 | Q19: 26.36
A20: 14 | B20: 8.35 | C20: 12.32 | D20: 20.22 | E20: 22.29 | F20: 24.34 | G20: 25.47 | H20: 25.96 | J20: 14 | K20: 9.96 | L20: 13.93 | M20: 21.83 | N20: 23.9 | O20: 25.95 | P20: 27.08 | Q20: 27.57
A21: 15 | B21: 8.65 | C21: 12.79 | D21: 21.27 | E21: 23.24 | F21: 25.27 | G21: 26.58 | H21: 27.23 | J21: 15 | K21: 10.26 | L21: 14.4 | M21: 22.88 | N21: 24.85 | O21: 26.88 | P21: 28.19 | Q21: 28.84
A22: 16 | B22: 9 | C22: 13.24 | D22: 22.01 | E22: 24.16 | F22: 26.21 | G22: 27.44 | H22: 28.27 | J22: 16 | K22: 10.61 | L22: 14.85 | M22: 23.62 | N22: 25.77 | O22: 27.82 | P22: 29.05 | Q22: 29.88
A23: 17 | B23: 9.17 | C23: 13.54 | D23: 23.06 | E23: 25.06 | F23: 27.08 | G23: 28.17 | H23: 28.97 | J23: 17 | K23: 10.78 | L23: 15.15 | M23: 24.67 | N23: 26.67 | O23: 28.69 | P23: 29.78 | Q23: 30.58
A24: 18 | B24: 9.65 | C24: 13.79 | D24: 23.72 | E24: 25.85 | F24: 27.72 | G24: 28.8 | H24: 29.6 | J24: 18 | K24: 11.26 | L24: 15.4 | M24: 25.33 | N24: 27.46 | O24: 29.33 | P24: 30.41 | Q24: 31.21
A25: 19 | B25: 9.94 | C25: 14.15 | D25: 24.43 | E25: 26.4 | F25: 28.32 | G25: 29.43 | H25: 30.39 | J25: 19 | K25: 11.54 | L25: 15.76 | M25: 26.04 | N25: 28.01 | O25: 29.93 | P25: 31.04 | Q25: 32
A26: 20 | B26: 10.19 | C26: 14.54 | D26: 25 | E26: 26.94 | F26: 28.96 | G26: 30.08 | H26: 31.18 | J26: 20 | K26: 11.8 | L26: 16.15 | M26: 26.61 | N26: 28.55 | O26: 30.57 | P26: 31.69 | Q26: 32.79
A27: 21 | B27: 10.39 | C27: 14.96 | D27: 26.94 | E27: 29.3 | F27: 31.34 | G27: 32.67 | H27: 33.84 | J27: 21 | K27: 12 | L27: 16.57 | M27: 28.55 | N27: 30.91 | O27: 32.95 | P27: 34.28 | Q27: 35.45
A28: 22 | B28: 10.66 | C28: 15.25 | D28: 27.68 | E28: 30.01 | F28: 32.27 | G28: 33.6 | H28: 34.76 | J28: 22 | K28: 12.27 | L28: 16.86 | M28: 29.29 | N28: 31.62 | O28: 33.88 | P28: 35.21 | Q28: 36.37
A29: 23 | B29: 11.04 | C29: 15.59 | D29: 28.37 | E29: 30.7 | F29: 33.08 | G29: 34.5 | H29: 35.52 | J29: 23 | K29: 12.65 | L29: 17.2 | M29: 29.98 | N29: 32.31 | O29: 34.69 | P29: 36.11 | Q29: 37.13
A30: 24 | B30: 11.21 | C30: 15.87 | D30: 29.15 | E30: 31.45 | F30: 33.84 | G30: 35.24 | H30: 36.34 | J30: 24 | K30: 12.82 | L30: 17.48 | M30: 30.76 | N30: 33.06 | O30: 35.45 | P30: 36.85 | Q30: 37.95
A31: 25 | B31: 11.5 | C31: 16.13 | D31: 29.93 | E31: 32.25 | F31: 34.74 | G31: 36.02 | H31: 37.1 | J31: 25 | K31: 13.11 | L31: 17.74 | M31: 31.54 | N31: 33.86 | O31: 36.35 | P31: 37.63 | Q31: 38.71
A32: 26 | B32: 11.77 | C32: 16.48 | D32: 30.72 | E32: 33.3 | F32: 35.66 | G32: 37.28 | H32: 38.01 | J32: 26 | K32: 13.38 | L32: 18.09 | M32: 32.33 | N32: 34.91 | O32: 37.27 | P32: 38.89 | Q32: 39.62
A33: 27 | B33: 12.03 | C33: 16.95 | D33: 31.61 | E33: 34.08 | F33: 36.5 | G33: 38.06 | H33: 38.83 | J33: 27 | K33: 13.64 | L33: 18.56 | M33: 33.22 | N33: 35.69 | O33: 38.11 | P33: 39.67 | Q33: 40.44
A34: 28 | B34: 12.22 | C34: 17.41 | D34: 32.42 | E34: 34.83 | F34: 37.19 | G34: 39.01 | H34: 39.83 | J34: 28 | K34: 13.83 | L34: 19.02 | M34: 34.03 | N34: 36.44 | O34: 38.8 | P34: 40.62 | Q34: 41.44
A35: 29 | B35: 12.59 | C35: 17.87 | D35: 33.3 | E35: 35.56 | F35: 38.11 | G35: 39.92 | H35: 40.98 | J35: 29 | K35: 14.2 | L35: 19.48 | M35: 34.91 | N35: 37.17 | O35: 39.72 | P35: 41.53 | Q35: 42.59
A36: 30 | B36: 12.87 | C36: 18.19 | D36: 34.04 | E36: 36.26 | F36: 38.83 | G36: 40.63 | H36: 42.08 | J36: 30 | K36: 14.48 | L36: 19.8 | M36: 35.65 | N36: 37.87 | O36: 40.44 | P36: 42.24 | Q36: 43.69
A37: 31 | B37: 13.05 | C37: 18.4 | D37: 34.93 | E37: 37.08 | F37: 39.74 | G37: 41.36 | H37: 42.9 | J37: 31 | K37: 14.66 | L37: 20.01 | M37: 36.54 | N37: 38.69 | O37: 41.35 | P37: 42.97 | Q37: 44.51
A38: 32 | B38: 13.32 | C38: 18.6 | D38: 35.66 | E38: 38.01 | F38: 40.63 | G38: 42.08 | H38: 43.77 | J38: 32 | K38: 14.93 | L38: 20.21 | M38: 37.27 | N38: 39.62 | O38: 42.24 | P38: 43.69 | Q38: 45.38
A39: 33 | B39: 13.59 | C39: 18.91 | D39: 36.26 | E39: 38.83 | F39: 41.56 | G39: 42.92 | H39: 44.59 | J39: 33 | K39: 15.2 | L39: 20.52 | M39: 37.87 | N39: 40.44 | O39: 43.17 | P39: 44.53 | Q39: 46.2
A40: 34 | B40: 13.9 | C40: 19.31 | D40: 37 | E40: 39.63 | F40: 42.61 | G40: 43.7 | H40: 45.6 | J40: 34 | K40: 15.51 | L40: 20.92 | M40: 38.61 | N40: 41.24 | O40: 44.22 | P40: 45.31 | Q40: 47.21
A41: 35 | B41: 14.14 | C41: 19.74 | D41: 37.91 | E41: 40.33 | F41: 43.52 | G41: 44.66 | H41: 46.5 | J41: 35 | K41: 15.75 | L41: 21.35 | M41: 39.52 | N41: 41.94 | O41: 45.13 | P41: 46.27 | Q41: 48.11
A42: 36 | B42: 14.54 | C42: 20.12 | D42: 38.69 | E42: 41.16 | F42: 44.36 | G42: 45.64 | H42: 47.38 | J42: 36 | K42: 16.15 | L42: 21.73 | M42: 40.3 | N42: 42.76 | O42: 45.97 | P42: 47.25 | Q42: 48.99
A43: 37 | B43: 14.81 | C43: 20.56 | D43: 39.52 | E43: 41.98 | F43: 45.26 | G43: 46.49 | H43: 48.42 | J43: 37 | K43: 16.42 | L43: 22.17 | M43: 41.13 | N43: 43.59 | O43: 46.86 | P43: 48.1 | Q43: 50.03
A44: 38 | B44: 15.09 | C44: 20.83 | D44: 40.58 | E44: 43 | F44: 46.16 | G44: 47.29 | H44: 49.03 | J44: 38 | K44: 16.7 | L44: 22.44 | M44: 42.19 | N44: 44.61 | O44: 47.77 | P44: 48.9 | Q44: 50.64
A45: 39 | B45: 15.35 | C45: 21.25 | D45: 41.49 | E45: 44.03 | F45: 47.09 | G45: 47.97 | H45: 49.87 | J45: 39 | K45: 16.96 | L45: 22.86 | M45: 43.1 | N45: 45.64 | O45: 48.7 | P45: 49.58 | Q45: 51.48
A46: 40 | B46: 15.74 | C46: 21.75 | D46: 42.29 | E46: 44.95 | F46: 48.25 | G46: 48.82 | H46: 50.79 | J46: 40 | K46: 17.35 | L46: 23.36 | M46: 43.9 | N46: 46.56 | O46: 49.86 | P46: 50.43 | Q46: 52.4
A47: 41 | B47: 16.01 | C47: 22.27 | D47: 43.07 | E47: 45.99 | F47: 49.25 | G47: 49.87 | H47: 51.89 | J47: 41 | K47: 17.62 | L47: 23.88 | M47: 44.68 | N47: 47.6 | O47: 50.86 | P47: 51.48 | Q47: 53.5
A48: 42 | B48: 16.28 | C48: 22.58 | D48: 43.89 | E48: 46.89 | F48: 50.25 | G48: 50.79 | H48: 53 | J48: 42 | K48: 17.89 | L48: 24.19 | M48: 45.5 | N48: 48.5 | O48: 51.86 | P48: 52.4 | Q48: 54.61
A49: 43 | B49: 16.55 | C49: 22.88 | D49: 44.66 | E49: 47.92 | F49: 51.28 | G49: 51.79 | H49: 54.24 | J49: 43 | K49: 18.16 | L49: 24.49 | M49: 46.27 | N49: 49.53 | O49: 52.89 | P49: 53.4 | Q49: 55.85
A50: 44 | B50: 16.83 | C50: 23.38 | D50: 45.46 | E50: 48.93 | F50: 52.22 | G50: 52.85 | H50: 55.46 | J50: 44 | K50: 18.44 | L50: 24.99 | M50: 47.07 | N50: 50.54 | O50: 53.83 | P50: 54.46 | Q50: 57.07
A51: 45 | B51: 17.12 | C51: 23.78 | D51: 46.3 | E51: 49.87 | F51: 53.35 | G51: 53.73 | H51: 56.7 | J51: 45 | K51: 18.73 | L51: 25.39 | M51: 47.91 | N51: 51.48 | O51: 54.96 | P51: 55.34 | Q51: 58.31
A52: 46 | B52: 17.41 | C52: 24.3 | D52: 47.09 | E52: 50.79 | F52: 54.34 | G52: 54.74 | H52: 57.73 | J52: 46 | K52: 19.02 | L52: 25.91 | M52: 48.7 | N52: 52.4 | O52: 55.95 | P52: 56.35 | Q52: 59.34
A53: 47 | B53: 17.68 | C53: 24.7 | D53: 47.97 | E53: 51.6 | F53: 55.26 | G53: 55.8 | H53: 58.65 | J53: 47 | K53: 19.29 | L53: 26.31 | M53: 49.58 | N53: 53.21 | O53: 56.87 | P53: 57.41 | Q53: 60.26
A54: 48 | B54: 18.03 | C54: 25.22 | D54: 48.93 | E54: 52.41 | F54: 56.11 | G54: 56.91 | H54: 59.54 | J54: 48 | K54: 19.64 | L54: 26.83 | M54: 50.54 | N54: 54.02 | O54: 57.72 | P54: 58.52 | Q54: 61.15
A55: 49 | B55: 18.32 | C55: 25.73 | D55: 49.79 | E55: 53.35 | F55: 56.99 | G55: 57.81 | H55: 60.4 | J55: 49 | K55: 19.93 | L55: 27.34 | M55: 51.4 | N55: 54.96 | O55: 58.6 | P55: 59.42 | Q55: 62.01
A56: 50 | B56: 18.59 | C56: 26.22 | D56: 50.51 | E56: 53.95 | F56: 57.85 | G56: 58.77 | H56: 60.95 | J56: 50 | K56: 20.2 | L56: 27.83 | M56: 52.12 | N56: 55.56 | O56: 59.46 | P56: 60.38 | Q56: 62.56
A57: 51 | B57: 18.94 | C57: 26.61 | D57: 50.52 | E57: 53.97 | F57: 57.86 | G57: 58.78 | H57: 60.98 | J57: 51 | K57: 20.55 | L57: 28.22 | M57: 52.13 | N57: 55.58 | O57: 59.47 | P57: 60.39 | Q57: 62.59
A58: 52 | B58: 19.23 | C58: 27.13 | D58: 52.13 | E58: 55.85 | F58: 59.54 | G58: 60.88 | H58: 63.36 | J58: 52 | K58: 20.84 | L58: 28.74 | M58: 53.74 | N58: 57.46 | O58: 61.15 | P58: 62.49 | Q58: 64.97
A59: 53 | B59: 19.6 | C59: 27.54 | D59: 52.92 | E59: 56.91 | F59: 60.4 | G59: 62.13 | H59: 64.57 | J59: 53 | K59: 21.21 | L59: 29.15 | M59: 54.53 | N59: 58.52 | O59: 62.01 | P59: 63.74 | Q59: 66.18
A60: 54 | B60: 19.98 | C60: 28.13 | D60: 53.74 | E60: 57.91 | F60: 61.09 | G60: 63.46 | H60: 65.9 | J60: 54 | K60: 21.59 | L60: 29.74 | M60: 55.35 | N60: 59.52 | O60: 62.7 | P60: 65.07 | Q60: 67.51
A61: 55 | B61: 20.23 | C61: 28.65 | D61: 54.62 | E61: 59.08 | F61: 61.91 | G61: 64.88 | H61: 67.11 | J61: 55 | K61: 21.84 | L61: 30.26 | M61: 56.23 | N61: 60.69 | O61: 63.52 | P61: 66.49 | Q61: 68.72
A62: 56 | B62: 20.61 | C62: 29.27 | D62: 55.59 | E62: 59.88 | F62: 62.82 | G62: 65.8 | H62: 68.31 | J62: 56 | K62: 22.22 | L62: 30.88 | M62: 57.2 | N62: 61.49 | O62: 64.43 | P62: 67.41 | Q62: 69.92
A63: 57 | B63: 20.99 | C63: 29.75 | D63: 56.53 | E63: 60.52 | F63: 63.77 | G63: 67.18 | H63: 69.48 | J63: 57 | K63: 22.6 | L63: 31.36 | M63: 58.14 | N63: 62.13 | O63: 65.38 | P63: 68.79 | Q63: 71.09
A64: 58 | B64: 21.45 | C64: 30.39 | D64: 57.21 | E64: 61.67 | F64: 64.97 | G64: 68.39 | H64: 70.4 | J64: 58 | K64: 23.06 | L64: 32 | M64: 58.82 | N64: 63.28 | O64: 66.58 | P64: 70 | Q64: 72.01
A65: 59 | B65: 21.91 | C65: 31.09 | D65: 57.81 | E65: 62.5 | F65: 66.34 | G65: 69.68 | H65: 71.71 | J65: 59 | K65: 23.52 | L65: 32.7 | M65: 59.42 | N65: 64.11 | O65: 67.95 | P65: 71.29 | Q65: 73.32
A66: 60 | B66: 22.3 | C66: 31.88 | D66: 58.73 | E66: 63.28 | F66: 67.61 | G66: 70.83 | H66: 72.91 | J66: 60 | K66: 23.91 | L66: 33.49 | M66: 60.34 | N66: 64.89 | O66: 69.22 | P66: 72.44 | Q66: 74.52
A67: 61 | B67: 22.65 | C67: 32.6 | D67: 59.67 | E67: 64.35 | F67: 68.78 | G67: 72.13 | H67: 74.09 | J67: 61 | K67: 24.26 | L67: 34.21 | M67: 61.28 | N67: 65.96 | O67: 70.39 | P67: 73.74 | Q67: 75.7
A68: 62 | B68: 23.03 | C68: 33.2 | D68: 60.6 | E68: 65.1 | F68: 69.98 | G68: 73.34 | H68: 75.36 | J68: 62 | K68: 24.64 | L68: 34.81 | M68: 62.21 | N68: 66.71 | O68: 71.59 | P68: 74.95 | Q68: 76.97
A69: 63 | B69: 23.68 | C69: 33.7 | D69: 61.54 | E69: 65.9 | F69: 71.23 | G69: 74.41 | H69: 76.76 | J69: 63 | K69: 25.29 | L69: 35.31 | M69: 63.15 | N69: 67.51 | O69: 72.84 | P69: 76.02 | Q69: 78.37
A70: 64 | B70: 24.01 | C70: 34.35 | D70: 62.52 | E70: 66.92 | F70: 72.45 | G70: 75.49 | H70: 78.15 | J70: 64 | K70: 25.62 | L70: 35.96 | M70: 64.13 | N70: 68.53 | O70: 74.06 | P70: 77.1 | Q70: 79.76
A71: 65 | B71: 24.49 | C71: 35.02 | D71: 63.46 | E71: 67.95 | F71: 73.69 | G71: 76.91 | H71: 79.53 | J71: 65 | K71: 26.1 | L71: 36.63 | M71: 65.07 | N71: 69.56 | O71: 75.3 | P71: 78.52 | Q71: 81.14
A72: 66 | B72: 24.87 | C72: 35.64 | D72: 64.35 | E72: 68.88 | F72: 74.77 | G72: 78.13 | H72: 80.69 | J72: 66 | K72: 26.48 | L72: 37.25 | M72: 65.96 | N72: 70.49 | O72: 76.38 | P72: 79.74 | Q72: 82.3
A73: 67 | B73: 25.31 | C73: 35.66 | D73: 64.37 | E73: 68.89 | F73: 76.04 | G73: 79.53 | H73: 81.73 | J73: 67 | K73: 26.92 | L73: 37.27 | M73: 65.98 | N73: 70.5 | O73: 77.65 | P73: 81.14 | Q73: 83.34
A74: 68 | B74: 25.69 | C74: 37.08 | D74: 66.34 | E74: 70.92 | F74: 77.16 | G74: 80.69 | H74: 82.98 | J74: 68 | K74: 27.3 | L74: 38.69 | M74: 67.95 | N74: 72.53 | O74: 78.77 | P74: 82.3 | Q74: 84.59
A75: 69 | B75: 26.17 | C75: 37.76 | D75: 67.34 | E75: 71.93 | F75: 78.34 | G75: 81.86 | H75: 84.3 | J75: 69 | K75: 27.78 | L75: 39.37 | M75: 68.95 | N75: 73.54 | O75: 79.95 | P75: 83.47 | Q75: 85.91
A76: 70 | B76: 26.63 | C76: 38.4 | D76: 68.13 | E76: 72.97 | F76: 79.71 | G76: 82.98 | H76: 85.6 | J76: 70 | K76: 28.24 | L76: 40.01 | M76: 69.74 | N76: 74.58 | O76: 81.32 | P76: 84.59 | Q76: 87.21
A77: 71 | B77: 27.17 | C77: 39.16 | D77: 69.18 | E77: 74.08 | F77: 81.04 | G77: 84.08 | H77: 87.05 | J77: 71 | K77: 28.78 | L77: 40.77 | M77: 70.79 | N77: 75.69 | O77: 82.65 | P77: 85.69 | Q77: 88.66
A78: 72 | B78: 27.7 | C78: 39.8 | D78: 69.76 | E78: 75.01 | F78: 81.51 | G78: 84.92 | H78: 88.29 | J78: 72 | K78: 29.31 | L78: 41.41 | M78: 71.37 | N78: 76.62 | O78: 83.12 | P78: 86.53 | Q78: 89.9
A79: 73 | B79: 28.27 | C79: 40.42 | D79: 70.7 | E79: 76.04 | F79: 82.69 | G79: 86.34 | H79: 89.81 | J79: 73 | K79: 29.88 | L79: 42.03 | M79: 72.31 | N79: 77.65 | O79: 84.3 | P79: 87.95 | Q79: 91.42
A80: 74 | B80: 28.65 | C80: 41.32 | D80: 71.82 | E80: 77.16 | F80: 83.81 | G80: 87.7 | H80: 91.46 | J80: 74 | K80: 30.26 | L80: 42.93 | M80: 73.43 | N80: 78.77 | O80: 85.42 | P80: 89.31 | Q80: 93.07
A81: 75 | B81: 29.22 | C81: 42.05 | D81: 72.76 | E81: 78.34 | F81: 85.13 | G81: 88.88 | H81: 93.08 | J81: 75 | K81: 30.83 | L81: 43.66 | M81: 74.37 | N81: 79.95 | O81: 86.74 | P81: 90.49 | Q81: 94.69
A82: 76 | B82: 29.66 | C82: 42.62 | D82: 73.58 | E82: 79.53 | F82: 85.77 | G82: 90.33 | H82: 94.04 | J82: 76 | K82: 31.27 | L82: 44.23 | M82: 75.19 | N82: 81.14 | O82: 87.38 | P82: 91.94 | Q82: 95.65
A83: 77 | B83: 30.11 | C83: 42.64 | D83: 74.61 | E83: 80.69 | F83: 87.45 | G83: 91.68 | H83: 95.77 | J83: 77 | K83: 31.72 | L83: 44.25 | M83: 76.22 | N83: 82.3 | O83: 89.06 | P83: 93.29 | Q83: 97.38
A84: 78 | B84: 30.68 | C84: 43.98 | D84: 75.49 | E84: 81.98 | F84: 88.59 | G84: 93.08 | H84: 97.4 | J84: 78 | K84: 32.29 | L84: 45.59 | M84: 77.1 | N84: 83.59 | O84: 90.2 | P84: 94.69 | Q84: 99.01
A85: 79 | B85: 31.13 | C85: 44.69 | D85: 76.54 | E85: 83.15 | F85: 89.7 | G85: 94.31 | H85: 99.15 | J85: 79 | K85: 32.74 | L85: 46.3 | M85: 78.15 | N85: 84.76 | O85: 91.31 | P85: 95.92 | Q85: 100.76
A86: 80 | B86: 31.51 | C86: 45.5 | D86: 77.41 | E86: 84.42 | F86: 90.87 | G86: 95.63 | H86: 100.6 | J86: 80 | K86: 33.12 | L86: 47.11 | M86: 79.02 | N86: 86.03 | O86: 92.48 | P86: 97.24 | Q86: 102.21
A87: 81 | B87: 31.58 | C87: 46.23 | D87: 78.03 | E87: 85.6 | F87: 91.33 | G87: 97.06 | H87: 101.5 | J87: 81 | K87: 33.19 | L87: 47.84 | M87: 79.64 | N87: 87.21 | O87: 92.94 | P87: 98.67 | Q87: 103.11
A88: 82 | B88: 32.51 | C88: 47.05 | D88: 78.97 | E88: 86.66 | F88: 92.79 | G88: 98.32 | H88: 103.11 | J88: 82 | K88: 34.12 | L88: 48.66 | M88: 80.58 | N88: 88.27 | O88: 94.4 | P88: 99.93 | Q88: 104.72
A89: 83 | B89: 33.25 | C89: 47.78 | D89: 80.65 | E89: 87.9 | F89: 93.47 | G89: 99.73 | H89: 104.41 | J89: 83 | K89: 34.86 | L89: 49.38 | M89: 82.26 | N89: 89.51 | O89: 95.08 | P89: 101.34 | Q89: 106.02
A90: 84 | B90: 33.73 | C90: 48.56 | D90: 81.73 | E90: 88.83 | F90: 95.23 | G90: 101.16 | H90: 105.77 | J90: 84 | K90: 35.34 | L90: 50.17 | M90: 83.34 | N90: 90.44 | O90: 96.84 | P90: 102.77 | Q90: 107.38
A91: 85 | B91: 34.08 | C91: 49.3 | D91: 82.63 | E91: 89.92 | F91: 95.24 | G91: 102.6 | H91: 106.95 | J91: 85 | K91: 35.69 | L91: 50.91 | M91: 84.24 | N91: 91.53 | O91: 96.85 | P91: 104.21 | Q91: 108.56
A92: 86 | B92: 34.26 | C92: 50.1 | D92: 83.96 | E92: 90.95 | F92: 97.5 | G92: 103.94 | H92: 108.25 | J92: 86 | K92: 35.87 | L92: 51.71 | M92: 85.57 | N92: 92.56 | O92: 99.11 | P92: 105.55 | Q92: 109.86
A93: 87 | B93: 34.98 | C93: 50.83 | D93: 85.73 | E93: 92.17 | F93: 97.53 | G93: 105.23 | H93: 109.55 | J93: 87 | K93: 36.59 | L93: 52.44 | M93: 87.34 | N93: 93.78 | O93: 99.14 | P93: 106.84 | Q93: 111.16
A94: 88 | B94: 35.4 | C94: 51.67 | D94: 87.05 | E94: 93.42 | F94: 97.53 | G94: 106.7 | H94: 110.76 | J94: 88 | K94: 37.01 | L94: 53.28 | M94: 88.66 | N94: 95.03 | O94: 99.14 | P94: 108.31 | Q94: 112.37
A95: 89 | B95: 35.74 | C95: 52.46 | D95: 87.91 | E95: 94.42 | F95: 100.37 | G95: 107.89 | H95: 112.03 | J95: 89 | K95: 37.35 | L95: 54.07 | M95: 89.52 | N95: 96.03 | O95: 101.98 | P95: 109.5 | Q95: 113.64
A96: 90 | B96: 36.31 | C96: 53.27 | D96: 89.7 | E96: 95.42 | F96: 102.19 | G96: 109.09 | H96: 113.42 | J96: 90 | K96: 37.92 | L96: 54.88 | M96: 91.31 | N96: 97.03 | O96: 103.8 | P96: 110.7 | Q96: 115.03
A97: 91 | B97: 36.31 | C97: 53.99 | D97: 91.14 | E97: 96.47 | F97: 103.32 | G97: 110.29 | H97: 114.6 | J97: 91 | K97: 37.92 | L97: 55.6 | M97: 92.75 | N97: 98.08 | O97: 104.93 | P97: 111.9 | Q97: 116.21
A98: 92 | B98: 37.04 | C98: 54.8 | D98: 92.39 | E98: 97.69 | F98: 104.44 | G98: 111.56 | H98: 115.87 | J98: 92 | K98: 38.65 | L98: 56.41 | M98: 94 | N98: 99.3 | O98: 106.05 | P98: 113.17 | Q98: 117.48
A99: 93 | B99: 37.6 | C99: 55.44 | D99: 93.6 | E99: 99.03 | F99: 105.68 | G99: 112.78 | H99: 117.19 | J99: 93 | K99: 39.21 | L99: 57.05 | M99: 95.21 | N99: 100.64 | O99: 107.29 | P99: 114.39 | Q99: 118.8
A100: 94 | B100: 38.06 | C100: 56.09 | D100: 94.71 | E100: 100.24 | F100: 106.89 | G100: 113.94 | H100: 118.48 | J100: 94 | K100: 39.67 | L100: 57.7 | M100: 96.32 | N100: 101.85 | O100: 108.5 | P100: 115.55 | Q100: 120.09
A101: 95 | B101: 38.06 | C101: 56.69 | D101: 95.87 | E101: 101.36 | F101: 108.03 | G101: 115.27 | H101: 119.69 | J101: 95 | K101: 39.67 | L101: 58.3 | M101: 97.48 | N101: 102.97 | O101: 109.64 | P101: 116.88 | Q101: 121.3
A102: 96 | B102: 38.08 | C102: 57.34 | D102: 96.76 | E102: 102.49 | F102: 109.24 | G102: 116.37 | H102: 121.04 | J102: 96 | K102: 39.69 | L102: 58.95 | M102: 98.37 | N102: 104.1 | O102: 110.85 | P102: 117.98 | Q102: 122.65
A103: 97 | B103: 39.64 | C103: 57.97 | D103: 97.82 | E103: 103.61 | F103: 110.46 | G103: 117.66 | H103: 122.25 | J103: 97 | K103: 41.25 | L103: 59.58 | M103: 99.43 | N103: 105.22 | O103: 112.07 | P103: 119.27 | Q103: 123.86
A104: 98 | B104: 39.95 | C104: 58.61 | D104: 98.8 | E104: 104.86 | F104: 111.58 | G104: 118.94 | H104: 123.53 | J104: 98 | K104: 41.56 | L104: 60.22 | M104: 100.41 | N104: 106.46 | O104: 113.19 | P104: 120.55 | Q104: 125.14
A105: 99 | B105: 39.96 | C105: 59.23 | D105: 99.84 | E105: 104.88 | F105: 112.83 | G105: 120.13 | H105: 124.84 | J105: 99 | K105: 41.57 | L105: 60.84 | M105: 101.45 | N105: 106.49 | O105: 114.44 | P105: 121.74 | Q105: 126.45
A106: 100 | B106: 39.97 | C106: 59.77 | D106: 100.67 | E106: 107.1 | F106: 113.94 | G106: 121.4 | H106: 126.14 | J106: 100 | K106: 41.58 | L106: 61.38 | M106: 102.28 | N106: 108.71 | O106: 115.55 | P106: 123.01 | Q106: 127.75
A107: 101 | B107: 39.99 | C107: 59.83 | D107: 101.32 | E107: 107.94 | F107: 114.29 | G107: 121.98 | H107: 126.46 | J107: 101 | K107: 41.6 | L107: 61.44 | M107: 102.93 | N107: 109.55 | O107: 115.9 | P107: 123.59 | Q107: 128.07
A108: 102 | B108: 40.38 | C108: 60.44 | D108: 102.35 | E108: 109.02 | F108: 115.43 | G108: 123.18 | H108: 127.72 | J108: 102 | K108: 41.99 | L108: 62.05 | M108: 103.96 | N108: 110.63 | O108: 117.04 | P108: 124.79 | Q108: 129.33
A109: 103 | B109: 40.78 | C109: 61.03 | D109: 103.36 | E109: 110.1 | F109: 116.59 | G109: 124.39 | H109: 129 | J109: 103 | K109: 42.39 | L109: 62.64 | M109: 104.97 | N109: 111.71 | O109: 118.2 | P109: 126 | Q109: 130.61
A110: 104 | B110: 41.18 | C110: 61.62 | D110: 104.37 | E110: 111.18 | F110: 117.72 | G110: 125.62 | H110: 130.25 | J110: 104 | K110: 42.79 | L110: 63.23 | M110: 105.98 | N110: 112.79 | O110: 119.33 | P110: 127.23 | Q110: 131.86
A111: 105 | B111: 41.59 | C111: 62.23 | D111: 105.38 | E111: 112.26 | F111: 118.86 | G111: 126.84 | H111: 131.52 | J111: 105 | K111: 43.2 | L111: 63.84 | M111: 106.99 | N111: 113.87 | O111: 120.47 | P111: 128.45 | Q111: 133.13
A112: 106 | B112: 41.97 | C112: 62.83 | D112: 106.4 | E112: 113.35 | F112: 120.03 | G112: 128.06 | H112: 132.78 | J112: 106 | K112: 43.58 | L112: 64.44 | M112: 108.01 | N112: 114.96 | O112: 121.64 | P112: 129.67 | Q112: 134.39
A113: 107 | B113: 42.38 | C113: 63.43 | D113: 107.41 | E113: 114.43 | F113: 121.15 | G113: 129.28 | H113: 134.05 | J113: 107 | K113: 43.99 | L113: 65.04 | M113: 109.02 | N113: 116.04 | O113: 122.76 | P113: 130.89 | Q113: 135.66
A114: 108 | B114: 42.78 | C114: 64.02 | D114: 108.43 | E114: 115.48 | F114: 122.29 | G114: 130.5 | H114: 135.31 | J114: 108 | K114: 44.39 | L114: 65.63 | M114: 110.04 | N114: 117.09 | O114: 123.9 | P114: 132.11 | Q114: 136.92
A115: 109 | B115: 43.19 | C115: 64.62 | D115: 109.44 | E115: 116.59 | F115: 123.42 | G115: 131.73 | H115: 136.57 | J115: 109 | K115: 44.8 | L115: 66.23 | M115: 111.05 | N115: 118.2 | O115: 125.03 | P115: 133.34 | Q115: 138.18
A116: 110 | B116: 43.58 | C116: 65.22 | D116: 110.45 | E116: 117.66 | F116: 124.58 | G116: 132.95 | H116: 137.85 | J116: 110 | K116: 45.19 | L116: 66.83 | M116: 112.06 | N116: 119.27 | O116: 126.19 | P116: 134.56 | Q116: 139.46
A117: 111 | B117: 43.98 | C117: 65.82 | D117: 111.45 | E117: 118.74 | F117: 125.72 | G117: 134.16 | H117: 139.12 | J117: 111 | K117: 45.59 | L117: 67.43 | M117: 113.06 | N117: 120.35 | O117: 127.33 | P117: 135.77 | Q117: 140.73
A118: 112 | B118: 44.39 | C118: 66.41 | D118: 112.48 | E118: 119.82 | F118: 126.86 | G118: 135.37 | H118: 140.37 | J118: 112 | K118: 46 | L118: 68.02 | M118: 114.09 | N118: 121.43 | O118: 128.47 | P118: 136.98 | Q118: 141.98
A119: 113 | B119: 44.77 | C119: 67 | D119: 113.48 | E119: 120.89 | F119: 128.01 | G119: 136.59 | H119: 141.63 | J119: 113 | K119: 46.38 | L119: 68.61 | M119: 115.09 | N119: 122.5 | O119: 129.62 | P119: 138.2 | Q119: 143.24
A120: 114 | B120: 45.18 | C120: 67.6 | D120: 114.5 | E120: 121.98 | F120: 129.15 | G120: 137.82 | H120: 142.9 | J120: 114 | K120: 46.79 | L120: 69.21 | M120: 116.11 | N120: 123.59 | O120: 130.76 | P120: 139.43 | Q120: 144.51
A121: 115 | B121: 45.58 | C121: 68.19 | D121: 115.51 | E121: 123.06 | F121: 130.3 | G121: 139.04 | H121: 144.17 | J121: 115 | K121: 47.19 | L121: 69.8 | M121: 117.12 | N121: 124.67 | O121: 131.91 | P121: 140.65 | Q121: 145.78
A122: 116 | B122: 45.99 | C122: 68.82 | D122: 116.53 | E122: 124.14 | F122: 131.44 | G122: 140.26 | H122: 145.44 | J122: 116 | K122: 47.6 | L122: 70.43 | M122: 118.14 | N122: 125.75 | O122: 133.05 | P122: 141.87 | Q122: 147.05
A123: 117 | B123: 46.37 | C123: 69.41 | D123: 117.54 | E123: 125.21 | F123: 132.57 | G123: 141.48 | H123: 146.68 | J123: 117 | K123: 47.98 | L123: 71.02 | M123: 119.15 | N123: 126.82 | O123: 134.18 | P123: 143.09 | Q123: 148.29
A124: 118 | B124: 46.78 | C124: 70.01 | D124: 118.56 | E124: 126.29 | F124: 133.73 | G124: 142.7 | H124: 147.96 | J124: 118 | K124: 48.39 | L124: 71.62 | M124: 120.17 | N124: 127.9 | O124: 135.34 | P124: 144.3 | Q124: 149.57
A125: 119 | B125: 47.18 | C125: 70.61 | D125: 119.58 | E125: 127.38 | F125: 134.87 | G125: 143.91 | H125: 149.22 | J125: 119 | K125: 48.79 | L125: 72.22 | M125: 121.19 | N125: 128.99 | O125: 136.48 | P125: 145.52 | Q125: 150.83
A126: 120 | B126: 47.58 | C126: 71.21 | D126: 120.58 | E126: 128.45 | F126: 136 | G126: 145.13 | H126: 150.49 | J126: 120 | K126: 49.19 | L126: 72.82 | M126: 122.19 | N126: 130.06 | O126: 137.61 | P126: 146.74 | Q126: 152.1
A127: 121 | B127: 47.97 | C127: 71.8 | D127: 121.6 | E127: 129.54 | F127: 137.16 | G127: 146.35 | H127: 151.76 | J127: 121 | K127: 49.58 | L127: 73.41 | M127: 123.21 | N127: 131.15 | O127: 138.77 | P127: 147.96 | Q127: 153.37
A128: 122 | B128: 48.38 | C128: 72.4 | D128: 122.61 | E128: 130.61 | F128: 138.3 | G128: 147.57 | H128: 153.01 | J128: 122 | K128: 49.99 | L128: 74.01 | M128: 124.22 | N128: 132.22 | O128: 139.91 | P128: 149.18 | Q128: 154.62
A129: 123 | B129: 48.79 | C129: 72.99 | D129: 123.62 | E129: 131.69 | F129: 139.43 | G129: 148.79 | H129: 154.28 | J129: 123 | K129: 50.4 | L129: 74.6 | M129: 125.23 | N129: 133.3 | O129: 141.04 | P129: 150.4 | Q129: 155.89
A130: 124 | B130: 49.17 | C130: 73.58 | D130: 124.63 | E130: 132.77 | F130: 140.6 | G130: 150.01 | H130: 155.54 | J130: 124 | K130: 50.78 | L130: 75.19 | M130: 126.24 | N130: 134.38 | O130: 142.21 | P130: 151.62 | Q130: 157.15
A131: 125 | B131: 49.58 | C131: 74.18 | D131: 125.65 | E131: 133.84 | F131: 141.72 | G131: 151.24 | H131: 156.82 | J131: 125 | K131: 51.19 | L131: 75.79 | M131: 127.26 | N131: 135.45 | O131: 143.33 | P131: 152.85 | Q131: 158.43
A132: 126 | B132: 49.97 | C132: 74.78 | D132: 126.65 | E132: 134.92 | F132: 142.86 | G132: 152.45 | H132: 158.07 | J132: 126 | K132: 51.58 | L132: 76.39 | M132: 128.26 | N132: 136.53 | O132: 144.47 | P132: 154.06 | Q132: 159.68
A133: 127 | B133: 50.38 | C133: 75.38 | D133: 127.67 | E133: 136 | F133: 144.01 | G133: 153.67 | H133: 159.33 | J133: 127 | K133: 51.99 | L133: 76.99 | M133: 129.28 | N133: 137.61 | O133: 145.62 | P133: 155.28 | Q133: 160.94
A134: 128 | B134: 50.77 | C134: 75.99 | D134: 128.68 | E134: 137.08 | F134: 145.15 | G134: 154.89 | H134: 160.6 | J134: 128 | K134: 52.38 | L134: 77.6 | M134: 130.29 | N134: 138.69 | O134: 146.76 | P134: 156.5 | Q134: 162.21
A135: 129 | B135: 51.18 | C135: 76.6 | D135: 129.69 | E135: 138.16 | F135: 146.29 | G135: 156.11 | H135: 161.87 | J135: 129 | K135: 52.79 | L135: 78.21 | M135: 131.3 | N135: 139.77 | O135: 147.9 | P135: 157.72 | Q135: 163.48
A136: 130 | B136: 51.58 | C136: 77.19 | D136: 130.72 | E136: 139.25 | F136: 147.44 | G136: 157.33 | H136: 163.14 | J136: 130 | K136: 53.19 | L136: 78.8 | M136: 132.33 | N136: 140.86 | O136: 149.05 | P136: 158.94 | Q136: 164.75
A137: 131 | B137: 51.98 | C137: 77.79 | D137: 131.73 | E137: 140.32 | F137: 148.58 | G137: 158.55 | H137: 164.39 | J137: 131 | K137: 53.59 | L137: 79.4 | M137: 133.34 | N137: 141.93 | O137: 150.19 | P137: 160.16 | Q137: 166
A138: 132 | B138: 52.37 | C138: 78.39 | D138: 132.75 | E138: 141.39 | F138: 149.72 | G138: 159.77 | H138: 165.66 | J138: 132 | K138: 53.98 | L138: 80 | M138: 134.36 | N138: 143 | O138: 151.33 | P138: 161.38 | Q138: 167.27
A139: 133 | B139: 52.78 | C139: 78.97 | D139: 133.75 | E139: 142.48 | F139: 150.86 | G139: 160.99 | H139: 166.92 | J139: 133 | K139: 54.39 | L139: 80.58 | M139: 135.36 | N139: 144.09 | O139: 152.47 | P139: 162.59 | Q139: 168.53
A140: 134 | B140: 53.18 | C140: 79.57 | D140: 134.77 | E140: 143.56 | F140: 152.01 | G140: 162.2 | H140: 168.19 | J140: 134 | K140: 54.79 | L140: 81.18 | M140: 136.38 | N140: 145.17 | O140: 153.62 | P140: 163.81 | Q140: 169.8
A141: 135 | B141: 53.58 | C141: 80.17 | D141: 135.78 | E141: 144.64 | F141: 153.15 | G141: 163.43 | H141: 169.45 | J141: 135 | K141: 55.19 | L141: 81.78 | M141: 137.39 | N141: 146.25 | O141: 154.76 | P141: 165.04 | Q141: 171.06
A142: 136 | B142: 53.98 | C142: 80.77 | D142: 136.8 | E142: 145.73 | F142: 154.29 | G142: 164.66 | H142: 170.72 | J142: 136 | K142: 55.59 | L142: 82.38 | M142: 138.41 | N142: 147.34 | O142: 155.9 | P142: 166.27 | Q142: 172.33
A143: 137 | B143: 54.37 | C143: 81.36 | D143: 137.81 | E143: 146.8 | F143: 155.44 | G143: 165.87 | H143: 171.99 | J143: 137 | K143: 55.98 | L143: 82.97 | M143: 139.42 | N143: 148.4 | O143: 157.05 | P143: 167.48 | Q143: 173.6
A144: 138 | B144: 54.78 | C144: 81.96 | D144: 138.82 | E144: 147.88 | F144: 156.58 | G144: 167.1 | H144: 173.24 | J144: 138 | K144: 56.39 | L144: 83.57 | M144: 140.43 | N144: 149.49 | O144: 158.19 | P144: 168.71 | Q144: 174.85
A145: 139 | B145: 55.17 | C145: 82.57 | D145: 139.82 | E145: 148.97 | F145: 157.72 | G145: 168.3 | H145: 174.5 | J145: 139 | K145: 56.78 | L145: 84.18 | M145: 141.43 | N145: 150.58 | O145: 159.33 | P145: 169.91 | Q145: 176.11
A146: 140 | B146: 55.58 | C146: 83.17 | D146: 140.85 | E146: 150.04 | F146: 158.87 | G146: 169.55 | H146: 175.78 | J146: 140 | K146: 57.19 | L146: 84.78 | M146: 142.46 | N146: 151.65 | O146: 160.48 | P146: 171.16 | Q146: 177.39
A147: 141 | B147: 55.98 | C147: 83.77 | D147: 141.85 | E147: 151.1 | F147: 160 | G147: 170.74 | H147: 177.04 | J147: 141 | K147: 57.58 | L147: 85.38 | M147: 143.46 | N147: 152.71 | O147: 161.61 | P147: 172.35 | Q147: 178.65
A148: 142 | B148: 56.38 | C148: 84.37 | D148: 142.87 | E148: 152.2 | F148: 161.16 | G148: 171.97 | H148: 178.31 | J148: 142 | K148: 57.99 | L148: 85.98 | M148: 144.48 | N148: 153.81 | O148: 162.77 | P148: 173.58 | Q148: 179.92
A149: 143 | B149: 56.77 | C149: 84.96 | D149: 143.88 | E149: 153.28 | F149: 162.29 | G149: 173.18 | H149: 179.58 | J149: 143 | K149: 58.38 | L149: 86.57 | M149: 145.49 | N149: 154.89 | O149: 163.9 | P149: 174.79 | Q149: 181.19
A150: 144 | B150: 57.18 | C150: 85.56 | D150: 144.89 | E150: 154.35 | F150: 163.43 | G150: 174.41 | H150: 180.83 | J150: 144 | K150: 58.79 | L150: 87.17 | M150: 146.5 | N150: 155.96 | O150: 165.04 | P150: 176.02 | Q150: 182.44
A151: 145 | B151: 57.57 | C151: 86.16 | D151: 145.91 | E151: 155.44 | F151: 164.58 | G151: 175.62 | H151: 182.1 | J151: 145 | K151: 59.18 | L151: 87.77 | M151: 147.52 | N151: 157.05 | O151: 166.19 | P151: 177.23 | Q151: 183.71
A152: 146 | B152: 57.98 | C152: 86.75 | D152: 146.93 | E152: 156.51 | F152: 165.73 | G152: 176.86 | H152: 183.36 | J152: 146 | K152: 59.59 | L152: 88.36 | M152: 148.54 | N152: 158.12 | O152: 167.34 | P152: 178.47 | Q152: 184.97
A153: 147 | B153: 58.37 | C153: 87.35 | D153: 147.95 | E153: 157.59 | F153: 166.86 | G153: 178.07 | H153: 184.65 | J153: 147 | K153: 59.98 | L153: 88.96 | M153: 149.56 | N153: 159.2 | O153: 168.47 | P153: 179.68 | Q153: 186.26
A154: 148 | B154: 58.77 | C154: 87.95 | D154: 148.95 | E154: 158.68 | F154: 168.01 | G154: 179.3 | H154: 185.88 | J154: 148 | K154: 60.38 | L154: 89.56 | M154: 150.56 | N154: 160.29 | O154: 169.62 | P154: 180.91 | Q154: 187.49
A155: 149 | B155: 59.18 | C155: 88.55 | D155: 149.97 | E155: 159.76 | F155: 169.15 | G155: 180.49 | H155: 187.15 | J155: 149 | K155: 60.79 | L155: 90.16 | M155: 151.58 | N155: 161.37 | O155: 170.76 | P155: 182.1 | Q155: 188.76
A156: 150 | B156: 59.57 | C156: 89.16 | D156: 150.98 | E156: 160.83 | F156: 170.29 | G156: 181.72 | H156: 188.41 | J156: 150 | K156: 61.18 | L156: 90.77 | M156: 152.59 | N156: 162.44 | O156: 171.9 | P156: 183.33 | Q156: 190.02
A157: 151+ | B157: 0.39 | C157: 0.58 | D157: 0.99 | E157: 1.05 | F157: 1.11 | G157: 1.19 | H157: 1.24 | J157: 151+ | K157: 0.4 | L157: 0.6 | M157: 1 | N157: 1.06 | O157: 1.12 | P157: 1.21 | Q157: 1.25

Sheet 2DA
A1: UPS Second Day Air Service | M1: UPS Second Day Air Service
A2: - Commercial | M2: - Residential | R2: Residential Surcharg | U2: 1.59
A3: (Per Package Rates from 48 State Origin) | M3: (Per Package Rates from 48 State Origin)
A4: Rates below do not include Residential Surcharge
A5: Lbs. | B5: Zone 202 | C5: Zone 203 | D5: Zone 204 | E5: Zone 205 | F5: Zone 206 | G5: Zone 207 | H5: Zone 208 | I5: Zone 224 | J5: Zone 225 | K5: Zone 226 | M5: Lbs. | N5: Zone 202 | O5: Zone 203 | P5: Zone 204 | Q5: Zone 205 | R5: Zone 206 | S5: Zone 207 | T5: Zone 208 | U5: Zone 224 | V5: Zone 225 | W5: Zone 226
A6: Letter | B6: 4.85 | C6: 4.85 | D6: 4.85 | E6: 4.85 | F6: 5.91 | G6: 6.16 | H6: 6.21 | I6: 9.99 | J6: 9.99 | K6: 11.11 | M6: Letter | N6: 6.46 | O6: 6.46 | P6: 6.46 | Q6: 6.46 | R6: 7.52 | S6: 7.77 | T6: 7.82 | U6: 11.6 | V6: 11.6 | W6: 12.72
A7: 1 | B7: 4.91 | C7: 4.91 | D7: 4.91 | E7: 4.91 | F7: 5.84 | G7: 6.1 | H7: 6.2 | I7: 9.56 | J7: 9.56 | K7: 10.21 | M7: 1 | N7: 6.52 | O7: 6.52 | P7: 6.52 | Q7: 6.52 | R7: 7.44 | S7: 7.71 | T7: 7.81 | U7: 11.17 | V7: 11.17 | W7: 11.82
A8: 2 | B8: 4.91 | C8: 4.91 | D8: 4.91 | E8: 5.17 | F8: 6.44 | G8: 7.01 | H8: 7.31 | I8: 10.68 | J8: 10.68 | K8: 12.64 | M8: 2 | N8: 6.52 | O8: 6.52 | P8: 6.52 | Q8: 6.78 | R8: 8.05 | S8: 8.62 | T8: 8.92 | U8: 12.29 | V8: 12.29 | W8: 14.25
A9: 3 | B9: 4.91 | C9: 4.91 | D9: 4.91 | E9: 5.67 | F9: 7.4 | G9: 8.14 | H9: 8.4 | I9: 12.19 | J9: 12.19 | K9: 13.21 | M9: 3 | N9: 6.52 | O9: 6.52 | P9: 6.52 | Q9: 7.28 | R9: 9.01 | S9: 9.75 | T9: 10.01 | U9: 13.8 | V9: 13.8 | W9: 14.82
A10: 4 | B10: 4.91 | C10: 4.91 | D10: 4.97 | E10: 6.61 | F10: 8.55 | G10: 9.27 | H10: 9.57 | I10: 13 | J10: 13 | K10: 13.88 | M10: 4 | N10: 6.52 | O10: 6.52 | P10: 6.58 | Q10: 8.22 | R10: 10.16 | S10: 10.88 | T10: 11.18 | U10: 14.61 | V10: 14.61 | W10: 15.49
A11: 5 | B11: 4.91 | C11: 4.91 | D11: 5.42 | E11: 7.33 | F11: 9.54 | G11: 10.31 | H11: 10.9 | I11: 14.12 | J11: 14.12 | K11: 14.45 | M11: 5 | N11: 6.52 | O11: 6.52 | P11: 7.03 | Q11: 8.94 | R11: 11.15 | S11: 11.92 | T11: 12.51 | U11: 15.73 | V11: 15.73 | W11: 16.06
A12: 6 | B12: 4.91 | C12: 4.91 | D12: 5.89 | E12: 7.99 | F12: 10.61 | G12: 11.46 | H12: 11.92 | I12: 14.97 | J12: 14.97 | K12: 15.35 | M12: 6 | N12: 6.52 | O12: 6.52 | P12: 7.5 | Q12: 9.6 | R12: 12.22 | S12: 13.07 | T12: 13.53 | U12: 16.58 | V12: 16.58 | W12: 16.96
A13: 7 | B13: 4.91 | C13: 5.25 | D13: 6.37 | E13: 8.75 | F13: 11.92 | G13: 12.71 | H13: 13.12 | I13: 16.15 | J13: 16.15 | K13: 16.12 | M13: 7 | N13: 6.52 | O13: 6.86 | P13: 7.98 | Q13: 10.36 | R13: 13.53 | S13: 14.32 | T13: 14.73 | U13: 17.76 | V13: 17.76 | W13: 17.73
A14: 8 | B14: 4.91 | C14: 5.73 | D14: 6.83 | E14: 9.52 | F14: 13.19 | G14: 14 | H14: 14.44 | I14: 16.97 | J14: 16.97 | K14: 17 | M14: 8 | N14: 6.52 | O14: 7.34 | P14: 8.44 | Q14: 11.13 | R14: 14.8 | S14: 15.61 | T14: 16.05 | U14: 18.58 | V14: 18.58 | W14: 18.61
A15: 9 | B15: 5.17 | C15: 5.98 | D15: 7.36 | E15: 10.22 | F15: 14.32 | G15: 15.35 | H15: 15.85 | I15: 18.18 | J15: 18.18 | K15: 18.01 | M15: 9 | N15: 6.78 | O15: 7.59 | P15: 8.97 | Q15: 11.83 | R15: 15.93 | S15: 16.96 | T15: 17.46 | U15: 19.79 | V15: 19.79 | W15: 19.62
A16: 10 | B16: 5.4 | C16: 6.34 | D16: 7.94 | E16: 10.93 | F16: 15.3 | G16: 16.69 | H16: 17.14 | I16: 19.69 | J16: 19.69 | K16: 18.87 | M16: 10 | N16: 7.01 | O16: 7.95 | P16: 9.55 | Q16: 12.54 | R16: 16.9 | S16: 18.3 | T16: 18.75 | U16: 21.3 | V16: 21.3 | W16: 20.48
A17: 11 | B17: 5.64 | C17: 6.68 | D17: 8.3 | E17: 11.68 | F17: 16.53 | G17: 17.9 | H17: 18.54 | I17: 20.87 | J17: 20.87 | K17: 20.47 | M17: 11 | N17: 7.25 | O17: 8.29 | P17: 9.91 | Q17: 13.29 | R17: 18.14 | S17: 19.51 | T17: 20.15 | U17: 22.48 | V17: 22.48 | W17: 22.08
A18: 12 | B18: 5.94 | C18: 7.07 | D18: 8.77 | E18: 12.33 | F18: 17.79 | G18: 19.18 | H18: 19.83 | I18: 21.63 | J18: 21.63 | K18: 21.36 | M18: 12 | N18: 7.55 | O18: 8.68 | P18: 10.38 | Q18: 13.94 | R18: 19.4 | S18: 20.79 | T18: 21.44 | U18: 23.24 | V18: 23.24 | W18: 22.97
A19: 13 | B19: 6.34 | C19: 7.44 | D19: 9.08 | E19: 13.07 | F19: 18.95 | G19: 20.11 | H19: 20.96 | I19: 22.4 | J19: 22.4 | K19: 21.98 | M19: 13 | N19: 7.95 | O19: 9.05 | P19: 10.69 | Q19: 14.68 | R19: 20.56 | S19: 21.72 | T19: 22.57 | U19: 24.01 | V19: 24.01 | W19: 23.59
A20: 14 | B20: 6.64 | C20: 7.83 | D20: 9.67 | E20: 13.83 | F20: 20.11 | G20: 21.16 | H20: 21.9 | I20: 23.28 | J20: 23.28 | K20: 22.89 | M20: 14 | N20: 8.25 | O20: 9.44 | P20: 11.28 | Q20: 15.44 | R20: 21.72 | S20: 22.77 | T20: 23.51 | U20: 24.89 | V20: 24.89 | W20: 24.5
A21: 15 | B21: 6.9 | C21: 8.01 | D21: 10.14 | E21: 14.37 | F21: 21.16 | G21: 22.11 | H21: 22.91 | I21: 24.34 | J21: 24.34 | K21: 24.18 | M21: 15 | N21: 8.51 | O21: 9.62 | P21: 11.75 | Q21: 15.98 | R21: 22.77 | S21: 23.72 | T21: 24.52 | U21: 25.95 | V21: 25.95 | W21: 25.79
A22: 16 | B22: 7.07 | C22: 8.28 | D22: 10.59 | E22: 14.83 | F22: 22.11 | G22: 23.23 | H22: 23.87 | I22: 25.34 | J22: 25.34 | K22: 24.54 | M22: 16 | N22: 8.68 | O22: 9.89 | P22: 12.2 | Q22: 16.44 | R22: 23.72 | S22: 24.84 | T22: 25.48 | U22: 26.95 | V22: 26.95 | W22: 26.15
A23: 17 | B23: 7.29 | C23: 8.54 | D23: 11.03 | E23: 15.52 | F23: 23.09 | G23: 24.47 | H23: 24.99 | I23: 26.55 | J23: 26.55 | K23: 25.64 | M23: 17 | N23: 8.9 | O23: 10.15 | P23: 12.64 | Q23: 17.13 | R23: 24.7 | S23: 26.08 | T23: 26.6 | U23: 28.16 | V23: 28.16 | W23: 27.25
A24: 18 | B24: 7.56 | C24: 8.82 | D24: 11.44 | E24: 16.08 | F24: 24.04 | G24: 25.56 | H24: 26.47 | I24: 28.13 | J24: 28.13 | K24: 27.81 | M24: 18 | N24: 9.17 | O24: 10.43 | P24: 13.05 | Q24: 17.69 | R24: 25.65 | S24: 27.17 | T24: 28.08 | U24: 29.74 | V24: 29.74 | W24: 29.42
A25: 19 | B25: 7.83 | C25: 9.06 | D25: 11.77 | E25: 16.73 | F25: 24.93 | G25: 26.75 | H25: 27.34 | I25: 29.06 | J25: 29.06 | K25: 28.25 | M25: 19 | N25: 9.44 | O25: 10.67 | P25: 13.38 | Q25: 18.34 | R25: 26.54 | S25: 28.36 | T25: 28.95 | U25: 30.67 | V25: 30.67 | W25: 29.86
A26: 20 | B26: 8.12 | C26: 9.45 | D26: 12.23 | E26: 17.51 | F26: 25.8 | G26: 27.65 | H26: 28.33 | I26: 30.08 | J26: 30.08 | K26: 29.33 | M26: 20 | N26: 9.73 | O26: 11.06 | P26: 13.84 | Q26: 19.11 | R26: 27.41 | S26: 29.26 | T26: 29.94 | U26: 31.69 | V26: 31.69 | W26: 30.94
A27: 21 | B27: 8.5 | C27: 9.83 | D27: 12.69 | E27: 18.08 | F27: 26.75 | G27: 28.58 | H27: 29.65 | I27: 31.49 | J27: 31.49 | K27: 30.77 | M27: 21 | N27: 10.11 | O27: 11.44 | P27: 14.3 | Q27: 19.69 | R27: 28.36 | S27: 30.19 | T27: 31.26 | U27: 33.1 | V27: 33.1 | W27: 32.38
A28: 22 | B28: 8.75 | C28: 10.29 | D28: 13.03 | E28: 18.58 | F28: 27.61 | G28: 29.66 | H28: 30.74 | I28: 32.66 | J28: 32.66 | K28: 32.08 | M28: 22 | N28: 10.36 | O28: 11.9 | P28: 14.64 | Q28: 20.19 | R28: 29.22 | S28: 31.27 | T28: 32.35 | U28: 34.27 | V28: 34.27 | W28: 33.69
A29: 23 | B29: 8.96 | C29: 10.51 | D29: 13.49 | E29: 19.13 | F29: 28.58 | G29: 30.64 | H29: 31.89 | I29: 33.88 | J29: 33.88 | K29: 33.21 | M29: 23 | N29: 10.57 | O29: 12.12 | P29: 15.1 | Q29: 20.74 | R29: 30.19 | S29: 32.25 | T29: 33.5 | U29: 35.49 | V29: 35.49 | W29: 34.82
A30: 24 | B30: 9.15 | C30: 10.93 | D30: 13.92 | E30: 19.86 | F30: 29.63 | G30: 31.84 | H30: 33.03 | I30: 35.07 | J30: 35.07 | K30: 34.47 | M30: 24 | N30: 10.76 | O30: 12.54 | P30: 15.53 | Q30: 21.47 | R30: 31.24 | S30: 33.45 | T30: 34.64 | U30: 36.68 | V30: 36.68 | W30: 36.08
A31: 25 | B31: 9.45 | C31: 11.24 | D31: 14.19 | E31: 20.56 | F31: 30.59 | G31: 32.98 | H31: 34.15 | I31: 36.31 | J31: 36.31 | K31: 35.73 | M31: 25 | N31: 11.06 | O31: 12.85 | P31: 15.8 | Q31: 22.17 | R31: 32.2 | S31: 34.59 | T31: 35.76 | U31: 37.92 | V31: 37.92 | W31: 37.34
A32: 26 | B32: 9.73 | C32: 11.54 | D32: 14.73 | E32: 21.21 | F32: 31.64 | G32: 34.08 | H32: 35.07 | I32: 37.27 | J32: 37.27 | K32: 36.91 | M32: 26 | N32: 11.34 | O32: 13.15 | P32: 16.34 | Q32: 22.82 | R32: 33.25 | S32: 35.69 | T32: 36.68 | U32: 38.88 | V32: 38.88 | W32: 38.52
A33: 27 | B33: 10.05 | C33: 11.87 | D33: 15.11 | E33: 21.97 | F33: 32.72 | G33: 35.24 | H33: 36.18 | I33: 38.46 | J33: 38.46 | K33: 38.08 | M33: 27 | N33: 11.66 | O33: 13.48 | P33: 16.72 | Q33: 23.58 | R33: 34.33 | S33: 36.85 | T33: 37.79 | U33: 40.07 | V33: 40.07 | W33: 39.69
A34: 28 | B34: 10.37 | C34: 12.28 | D34: 15.43 | E34: 22.49 | F34: 33.52 | G34: 36.13 | H34: 37.08 | I34: 39.7 | J34: 39.7 | K34: 39.51 | M34: 28 | N34: 11.98 | O34: 13.89 | P34: 17.04 | Q34: 24.1 | R34: 35.13 | S34: 37.74 | T34: 38.69 | U34: 41.31 | V34: 41.31 | W34: 41.12
A35: 29 | B35: 10.66 | C35: 12.48 | D35: 15.91 | E35: 23.01 | F35: 34.44 | G35: 37.08 | H35: 38.16 | I35: 40.72 | J35: 40.72 | K35: 40.67 | M35: 29 | N35: 12.27 | O35: 14.09 | P35: 17.52 | Q35: 24.62 | R35: 36.05 | S35: 38.69 | T35: 39.77 | U35: 42.33 | V35: 42.33 | W35: 42.28
A36: 30 | B36: 10.84 | C36: 12.82 | D36: 16.45 | E36: 23.76 | F36: 35.38 | G36: 38.05 | H36: 39.13 | I36: 41.97 | J36: 41.97 | K36: 41.76 | M36: 30 | N36: 12.45 | O36: 14.43 | P36: 18.06 | Q36: 25.37 | R36: 36.99 | S36: 39.66 | T36: 40.74 | U36: 43.58 | V36: 43.58 | W36: 43.37
A37: 31 | B37: 11.16 | C37: 13.25 | D37: 16.91 | E37: 24.3 | F37: 36.18 | G37: 38.88 | H37: 40.16 | I37: 43.01 | J37: 43.01 | K37: 43.09 | M37: 31 | N37: 12.77 | O37: 14.86 | P37: 18.52 | Q37: 25.91 | R37: 37.79 | S37: 40.49 | T37: 41.77 | U37: 44.62 | V37: 44.62 | W37: 44.7
A38: 32 | B38: 11.33 | C38: 13.54 | D38: 17.37 | E38: 24.9 | F38: 37.23 | G38: 39.96 | H38: 41.14 | I38: 44.38 | J38: 44.38 | K38: 44.3 | M38: 32 | N38: 12.94 | O38: 15.15 | P38: 18.98 | Q38: 26.51 | R38: 38.84 | S38: 41.57 | T38: 42.75 | U38: 45.99 | V38: 45.99 | W38: 45.91
A39: 33 | B39: 11.65 | C39: 13.88 | D39: 17.85 | E39: 25.42 | F39: 38.24 | G39: 40.88 | H39: 42.18 | I39: 45.59 | J39: 45.59 | K39: 45.45 | M39: 33 | N39: 13.26 | O39: 15.49 | P39: 19.46 | Q39: 27.03 | R39: 39.85 | S39: 42.49 | T39: 43.79 | U39: 47.2 | V39: 47.2 | W39: 47.06
A40: 34 | B40: 12.02 | C40: 14.16 | D40: 18.24 | E40: 26.3 | F40: 39.4 | G40: 41.88 | H40: 43.23 | I40: 46.77 | J40: 46.77 | K40: 46.7 | M40: 34 | N40: 13.63 | O40: 15.77 | P40: 19.85 | Q40: 27.91 | R40: 41.01 | S40: 43.49 | T40: 44.84 | U40: 48.38 | V40: 48.38 | W40: 48.31
A41: 35 | B41: 12.26 | C41: 14.56 | D41: 18.64 | E41: 26.83 | F41: 40.58 | G41: 42.94 | H41: 44.3 | I41: 48.05 | J41: 48.05 | K41: 48.03 | M41: 35 | N41: 13.87 | O41: 16.17 | P41: 20.25 | Q41: 28.44 | R41: 42.19 | S41: 44.55 | T41: 45.91 | U41: 49.66 | V41: 49.66 | W41: 49.64
A42: 36 | B42: 12.42 | C42: 14.9 | D42: 18.99 | E42: 27.37 | F42: 41.68 | G42: 44.3 | H42: 45.42 | I42: 49.15 | J42: 49.15 | K42: 49.12 | M42: 36 | N42: 14.03 | O42: 16.51 | P42: 20.6 | Q42: 28.98 | R42: 43.29 | S42: 45.91 | T42: 47.03 | U42: 50.76 | V42: 50.76 | W42: 50.73
A43: 37 | B43: 12.67 | C43: 15.12 | D43: 19.46 | E43: 28.07 | F43: 42.8 | G43: 45.47 | H43: 46.63 | I43: 50.44 | J43: 50.44 | K43: 50.56 | M43: 37 | N43: 14.28 | O43: 16.73 | P43: 21.07 | Q43: 29.68 | R43: 44.41 | S43: 47.08 | T43: 48.24 | U43: 52.05 | V43: 52.05 | W43: 52.17
A44: 38 | B44: 12.89 | C44: 15.37 | D44: 19.96 | E44: 28.65 | F44: 43.9 | G44: 46.66 | H44: 47.89 | I44: 51.6 | J44: 51.6 | K44: 51.67 | M44: 38 | N44: 14.5 | O44: 16.98 | P44: 21.57 | Q44: 30.26 | R44: 45.51 | S44: 48.27 | T44: 49.5 | U44: 53.21 | V44: 53.21 | W44: 53.28
A45: 39 | B45: 13.28 | C45: 15.76 | D45: 20.29 | E45: 29.21 | F45: 44.96 | G45: 47.89 | H45: 49.14 | I45: 52.83 | J45: 52.83 | K45: 52.94 | M45: 39 | N45: 14.89 | O45: 17.37 | P45: 21.9 | Q45: 30.82 | R45: 46.57 | S45: 49.5 | T45: 50.75 | U45: 54.44 | V45: 54.44 | W45: 54.55
A46: 40 | B46: 13.63 | C46: 16.17 | D46: 20.76 | E46: 29.89 | F46: 45.99 | G46: 49.07 | H46: 50.23 | I46: 53.87 | J46: 53.87 | K46: 54.24 | M46: 40 | N46: 15.24 | O46: 17.78 | P46: 22.37 | Q46: 31.5 | R46: 47.6 | S46: 50.68 | T46: 51.84 | U46: 55.48 | V46: 55.48 | W46: 55.85
A47: 41 | B47: 13.99 | C47: 16.57 | D47: 21.01 | E47: 30.45 | F47: 47 | G47: 50.33 | H47: 51.6 | I47: 55.04 | J47: 55.04 | K47: 54.76 | M47: 41 | N47: 15.6 | O47: 18.18 | P47: 22.62 | Q47: 32.06 | R47: 48.61 | S47: 51.94 | T47: 53.21 | U47: 56.65 | V47: 56.65 | W47: 56.37
A48: 42 | B48: 14.19 | C48: 16.95 | D48: 21.43 | E48: 31.05 | F48: 48.01 | G48: 51.6 | H48: 52.89 | I48: 56.3 | J48: 56.3 | K48: 56 | M48: 42 | N48: 15.8 | O48: 18.56 | P48: 23.04 | Q48: 32.66 | R48: 49.62 | S48: 53.21 | T48: 54.5 | U48: 57.91 | V48: 57.91 | W48: 57.61
A49: 43 | B49: 14.51 | C49: 17.3 | D49: 21.77 | E49: 31.58 | F49: 49.14 | G49: 52.55 | H49: 53.98 | I49: 57.34 | J49: 57.34 | K49: 57.41 | M49: 43 | N49: 16.12 | O49: 18.91 | P49: 23.38 | Q49: 33.19 | R49: 50.75 | S49: 54.16 | T49: 55.59 | U49: 58.95 | V49: 58.95 | W49: 59.02
A50: 44 | B50: 14.8 | C50: 17.55 | D50: 22.24 | E50: 32.15 | F50: 50.1 | G50: 53.44 | H50: 55.05 | I50: 58.47 | J50: 58.47 | K50: 58.41 | M50: 44 | N50: 16.41 | O50: 19.16 | P50: 23.84 | Q50: 33.76 | R50: 51.71 | S50: 55.05 | T50: 56.66 | U50: 60.08 | V50: 60.08 | W50: 60.02
A51: 45 | B51: 15.11 | C51: 17.95 | D51: 22.58 | E51: 32.6 | F51: 50.99 | G51: 54.43 | H51: 55.86 | I51: 59.34 | J51: 59.34 | K51: 59.57 | M51: 45 | N51: 16.72 | O51: 19.56 | P51: 24.19 | Q51: 34.21 | R51: 52.6 | S51: 56.04 | T51: 57.47 | U51: 60.95 | V51: 60.95 | W51: 61.18
A52: 46 | B52: 15.27 | C52: 18.17 | D52: 23.03 | E52: 33.09 | F52: 51.88 | G52: 55.29 | H52: 57.21 | I52: 60.78 | J52: 60.78 | K52: 60.81 | M52: 46 | N52: 16.88 | O52: 19.78 | P52: 24.64 | Q52: 34.7 | R52: 53.48 | S52: 56.9 | T52: 58.82 | U52: 62.39 | V52: 62.39 | W52: 62.42
A53: 47 | B53: 15.6 | C53: 18.51 | D53: 23.44 | E53: 33.56 | F53: 52.89 | G53: 56.17 | H53: 58.32 | I53: 61.93 | J53: 61.93 | K53: 62.25 | M53: 47 | N53: 17.21 | O53: 20.12 | P53: 25.05 | Q53: 35.17 | R53: 54.5 | S53: 57.78 | T53: 59.93 | U53: 63.54 | V53: 63.54 | W53: 63.86
A54: 48 | B54: 15.91 | C54: 18.94 | D54: 23.86 | E54: 34.05 | F54: 53.82 | G54: 57.13 | H54: 59.3 | I54: 62.98 | J54: 62.98 | K54: 63.32 | M54: 48 | N54: 17.52 | O54: 20.55 | P54: 25.47 | Q54: 35.66 | R54: 55.43 | S54: 58.74 | T54: 60.91 | U54: 64.59 | V54: 64.59 | W54: 64.93
A55: 49 | B55: 16.22 | C55: 19.38 | D55: 24.25 | E55: 34.64 | F55: 54.73 | G55: 57.95 | H55: 60.43 | I55: 64.16 | J55: 64.16 | K55: 63.69 | M55: 49 | N55: 17.83 | O55: 20.99 | P55: 25.86 | Q55: 36.25 | R55: 56.34 | S55: 59.56 | T55: 62.04 | U55: 65.77 | V55: 65.77 | W55: 65.3
A56: 50 | B56: 16.47 | C56: 19.64 | D56: 24.63 | E56: 35.24 | F56: 55.67 | G56: 58.84 | H56: 61.38 | I56: 65.2 | J56: 65.2 | K56: 63.71 | M56: 50 | N56: 18.08 | O56: 21.25 | P56: 26.24 | Q56: 36.85 | R56: 57.28 | S56: 60.45 | T56: 62.99 | U56: 66.81 | V56: 66.81 | W56: 65.32
A57: 51 | B57: 16.71 | C57: 19.86 | D57: 25.04 | E57: 35.74 | F57: 56.59 | G57: 59.92 | H57: 62.45 | I57: 66.32 | J57: 66.32 | K57: 65.28 | M57: 51 | N57: 18.32 | O57: 21.47 | P57: 26.65 | Q57: 37.35 | R57: 58.2 | S57: 61.53 | T57: 64.06 | U57: 67.93 | V57: 67.93 | W57: 66.89
A58: 52 | B58: 16.91 | C58: 20.17 | D58: 25.51 | E58: 36.6 | F58: 57.44 | G58: 61.01 | H58: 63.53 | I58: 67.48 | J58: 67.48 | K58: 67.82 | M58: 52 | N58: 18.52 | O58: 21.78 | P58: 27.12 | Q58: 38.21 | R58: 59.05 | S58: 62.62 | T58: 65.14 | U58: 69.09 | V58: 69.09 | W58: 69.43
A59: 53 | B59: 17.23 | C59: 20.56 | D59: 25.86 | E59: 37.14 | F59: 58.32 | G59: 62.1 | H59: 64.32 | I59: 67.5 | J59: 67.5 | K59: 67.84 | M59: 53 | N59: 18.84 | O59: 22.17 | P59: 27.47 | Q59: 38.75 | R59: 59.93 | S59: 63.71 | T59: 65.93 | U59: 69.11 | V59: 69.11 | W59: 69.45
A60: 54 | B60: 17.46 | C60: 20.9 | D60: 26.25 | E60: 37.72 | F60: 59.3 | G60: 63.31 | H60: 65.28 | I60: 69.35 | J60: 69.35 | K60: 67.86 | M60: 54 | N60: 19.07 | O60: 22.51 | P60: 27.86 | Q60: 39.33 | R60: 60.91 | S60: 64.92 | T60: 66.89 | U60: 70.96 | V60: 70.96 | W60: 69.47
A61: 55 | B61: 17.8 | C61: 21.24 | D61: 26.57 | E61: 38.4 | F61: 60.34 | G61: 64.52 | H61: 66.26 | I61: 70.36 | J61: 70.36 | K61: 71.33 | M61: 55 | N61: 19.41 | O61: 22.85 | P61: 28.18 | Q61: 40.01 | R61: 61.95 | S61: 66.13 | T61: 67.87 | U61: 71.97 | V61: 71.97 | W61: 72.94
A62: 56 | B62: 18.06 | C62: 21.53 | D62: 26.95 | E62: 39.02 | F62: 61.27 | G62: 65.53 | H62: 67.45 | I62: 71.65 | J62: 71.65 | K62: 71.9 | M62: 56 | N62: 19.67 | O62: 23.14 | P62: 28.56 | Q62: 40.63 | R62: 62.88 | S62: 67.14 | T62: 69.06 | U62: 73.26 | V62: 73.26 | W62: 73.51
A63: 57 | B63: 18.29 | C63: 21.87 | D63: 27.39 | E63: 39.55 | F63: 62.34 | G63: 66.61 | H63: 68.68 | I63: 72.95 | J63: 72.95 | K63: 71.91 | M63: 57 | N63: 19.9 | O63: 23.48 | P63: 29 | Q63: 41.16 | R63: 63.95 | S63: 68.22 | T63: 70.29 | U63: 74.56 | V63: 74.56 | W63: 73.52
A64: 58 | B64: 18.64 | C64: 22.24 | D64: 27.88 | E64: 40.2 | F64: 63.53 | G64: 67.76 | H64: 69.74 | I64: 74.05 | J64: 74.05 | K64: 73.04 | M64: 58 | N64: 20.25 | O64: 23.84 | P64: 29.49 | Q64: 41.81 | R64: 65.14 | S64: 69.37 | T64: 71.35 | U64: 75.66 | V64: 75.66 | W64: 74.65
A65: 59 | B65: 18.87 | C65: 22.49 | D65: 28.41 | E65: 40.94 | F65: 64.7 | G65: 68.85 | H65: 70.87 | I65: 75.28 | J65: 75.28 | K65: 73.94 | M65: 59 | N65: 20.48 | O65: 24.1 | P65: 30.02 | Q65: 42.55 | R65: 66.31 | S65: 70.46 | T65: 72.48 | U65: 76.89 | V65: 76.89 | W65: 75.55
A66: 60 | B66: 19.03 | C66: 22.72 | D66: 28.86 | E66: 41.52 | F66: 65.85 | G66: 70.03 | H66: 71.76 | I66: 76.19 | J66: 76.19 | K66: 74.78 | M66: 60 | N66: 20.64 | O66: 24.33 | P66: 30.46 | Q66: 43.13 | R66: 67.46 | S66: 71.64 | T66: 73.37 | U66: 77.8 | V66: 77.8 | W66: 76.39
A67: 61 | B67: 19.38 | C67: 23.03 | D67: 29.25 | E67: 42.05 | F67: 66.83 | G67: 70.83 | H67: 72.91 | I67: 76.35 | J67: 76.35 | K67: 78.47 | M67: 61 | N67: 20.99 | O67: 24.64 | P67: 30.86 | Q67: 43.66 | R67: 68.44 | S67: 72.44 | T67: 74.52 | U67: 77.96 | V67: 77.96 | W67: 80.08
A68: 62 | B68: 19.74 | C68: 23.47 | D68: 29.6 | E68: 42.74 | F68: 67.76 | G68: 72.03 | H68: 74.19 | I68: 78.8 | J68: 78.8 | K68: 80.3 | M68: 62 | N68: 21.35 | O68: 25.08 | P68: 31.21 | Q68: 44.35 | R68: 69.37 | S68: 73.64 | T68: 75.8 | U68: 80.41 | V68: 80.41 | W68: 81.91
A69: 63 | B69: 20.06 | C69: 23.86 | D69: 29.97 | E69: 43.29 | F69: 68.74 | G69: 73.22 | H69: 75.62 | I69: 80.2 | J69: 80.2 | K69: 80.32 | M69: 63 | N69: 21.67 | O69: 25.47 | P69: 31.58 | Q69: 44.9 | R69: 70.35 | S69: 74.83 | T69: 77.23 | U69: 81.81 | V69: 81.81 | W69: 81.93
A70: 64 | B70: 20.42 | C70: 24.2 | D70: 30.32 | E70: 43.89 | F70: 69.76 | G70: 74.41 | H70: 76.6 | I70: 80.22 | J70: 80.22 | K70: 80.33 | M70: 64 | N70: 22.03 | O70: 25.81 | P70: 31.93 | Q70: 45.5 | R70: 71.37 | S70: 76.02 | T70: 78.21 | U70: 81.83 | V70: 81.83 | W70: 81.94
A71: 65 | B71: 20.73 | C71: 24.56 | D71: 30.79 | E71: 44.54 | F71: 70.8 | G71: 75.64 | H71: 77.93 | I71: 82.76 | J71: 82.76 | K71: 81.33 | M71: 65 | N71: 22.34 | O71: 26.17 | P71: 32.4 | Q71: 46.15 | R71: 72.4 | S71: 77.25 | T71: 79.54 | U71: 84.37 | V71: 84.37 | W71: 82.94
A72: 66 | B72: 20.99 | C72: 24.81 | D72: 31.22 | E72: 45.27 | F72: 71.95 | G72: 76.6 | H72: 79.32 | I72: 83.05 | J72: 83.05 | K72: 82.93 | M72: 66 | N72: 22.6 | O72: 26.42 | P72: 32.83 | Q72: 46.88 | R72: 73.56 | S72: 78.21 | T72: 80.93 | U72: 84.66 | V72: 84.66 | W72: 84.54
A73: 67 | B73: 21.17 | C73: 25.28 | D73: 31.71 | E73: 46 | F73: 72.84 | G73: 77.72 | H73: 80.46 | I73: 85.45 | J73: 85.45 | K73: 84.21 | M73: 67 | N73: 22.78 | O73: 26.89 | P73: 33.32 | Q73: 47.61 | R73: 74.45 | S73: 79.33 | T73: 82.07 | U73: 87.06 | V73: 87.06 | W73: 85.82
A74: 68 | B74: 21.43 | C74: 25.51 | D74: 32.15 | E74: 46.79 | F74: 73.82 | G74: 78.76 | H74: 81.47 | I74: 86.53 | J74: 86.53 | K74: 85.24 | M74: 68 | N74: 23.04 | O74: 27.12 | P74: 33.76 | Q74: 48.4 | R74: 75.43 | S74: 80.37 | T74: 83.08 | U74: 88.14 | V74: 88.14 | W74: 86.85
A75: 69 | B75: 21.78 | C75: 25.87 | D75: 32.55 | E75: 47.65 | F75: 74.74 | G75: 79.83 | H75: 82.9 | I75: 86.83 | J75: 86.83 | K75: 85.73 | M75: 69 | N75: 23.39 | O75: 27.48 | P75: 34.16 | Q75: 49.26 | R75: 76.35 | S75: 81.44 | T75: 84.51 | U75: 88.44 | V75: 88.44 | W75: 87.34
A76: 70 | B76: 22.12 | C76: 26.27 | D76: 33.08 | E76: 48.47 | F76: 75.64 | G76: 80.83 | H76: 83.83 | I76: 87.78 | J76: 87.78 | K76: 86.76 | M76: 70 | N76: 23.73 | O76: 27.88 | P76: 34.69 | Q76: 50.08 | R76: 77.25 | S76: 82.44 | T76: 85.44 | U76: 89.39 | V76: 89.39 | W76: 88.37
A77: 71 | B77: 22.4 | C77: 26.62 | D77: 33.52 | E77: 49.14 | F77: 76.67 | G77: 81.76 | H77: 84.93 | I77: 88.94 | J77: 88.94 | K77: 88.91 | M77: 71 | N77: 24.01 | O77: 28.23 | P77: 35.13 | Q77: 50.75 | R77: 78.28 | S77: 83.37 | T77: 86.54 | U77: 90.55 | V77: 90.55 | W77: 90.52
A78: 72 | B78: 22.68 | C78: 27.11 | D78: 33.94 | E78: 49.88 | F78: 77.72 | G78: 82.93 | H78: 86.2 | I78: 90.27 | J78: 90.27 | K78: 89.26 | M78: 72 | N78: 24.29 | O78: 28.72 | P78: 35.55 | Q78: 51.49 | R78: 79.33 | S78: 84.54 | T78: 87.81 | U78: 91.88 | V78: 91.88 | W78: 90.87
A79: 73 | B79: 22.89 | C79: 27.33 | D79: 34.44 | E79: 50.72 | F79: 78.83 | G79: 84.07 | H79: 87.18 | I79: 91.3 | J79: 91.3 | K79: 90.26 | M79: 73 | N79: 24.5 | O79: 28.94 | P79: 36.05 | Q79: 52.33 | R79: 80.44 | S79: 85.68 | T79: 88.79 | U79: 92.9 | V79: 92.9 | W79: 91.87
A80: 74 | B80: 23.21 | C80: 27.67 | D80: 34.91 | E80: 51.37 | F80: 79.88 | G80: 85.35 | H80: 88.51 | I80: 94 | J80: 94 | K80: 92.81 | M80: 74 | N80: 24.82 | O80: 29.28 | P80: 36.52 | Q80: 52.98 | R80: 81.49 | S80: 86.96 | T80: 90.12 | U80: 95.61 | V80: 95.61 | W80: 94.42
A81: 75 | B81: 23.54 | C81: 28.12 | D81: 35.29 | E81: 52.08 | F81: 80.97 | G81: 86.48 | H81: 89.67 | I81: 95.2 | J81: 95.2 | K81: 93.98 | M81: 75 | N81: 25.15 | O81: 29.73 | P81: 36.9 | Q81: 53.69 | R81: 82.58 | S81: 88.09 | T81: 91.28 | U81: 96.81 | V81: 96.81 | W81: 95.59
A82: 76 | B82: 23.78 | C82: 28.43 | D82: 35.72 | E82: 52.68 | F82: 81.43 | G82: 87.74 | H82: 90.64 | I82: 96.07 | J82: 96.07 | K82: 95.26 | M82: 76 | N82: 25.39 | O82: 30.04 | P82: 37.33 | Q82: 54.29 | R82: 83.04 | S82: 89.35 | T82: 92.25 | U82: 97.68 | V82: 97.68 | W82: 96.87
A83: 77 | B83: 24.2 | C83: 28.8 | D83: 36.17 | E83: 53.34 | F83: 83.18 | G83: 88.74 | H83: 91.74 | I83: 96.09 | J83: 96.09 | K83: 95.3 | M83: 77 | N83: 25.81 | O83: 30.41 | P83: 37.78 | Q83: 54.95 | R83: 84.79 | S83: 90.35 | T83: 93.35 | U83: 97.7 | V83: 97.7 | W83: 96.91
A84: 78 | B84: 24.43 | C84: 29.04 | D84: 36.69 | E84: 54.12 | F84: 83.2 | G84: 89.89 | H84: 92.48 | I84: 96.86 | J84: 96.86 | K84: 95.85 | M84: 78 | N84: 26.04 | O84: 30.65 | P84: 38.3 | Q84: 55.73 | R84: 84.81 | S84: 91.5 | T84: 94.09 | U84: 98.47 | V84: 98.47 | W84: 97.46
A85: 79 | B85: 24.7 | C85: 29.4 | D85: 37.19 | E85: 54.91 | F85: 85.4 | G85: 90.92 | H85: 94.04 | I85: 98.48 | J85: 98.48 | K85: 97.44 | M85: 79 | N85: 26.31 | O85: 31.01 | P85: 38.8 | Q85: 56.52 | R85: 87.01 | S85: 92.53 | T85: 95.65 | U85: 100.09 | V85: 100.09 | W85: 99.05
A86: 80 | B86: 25.1 | C86: 29.74 | D86: 37.72 | E86: 55.61 | F86: 86.48 | G86: 92.04 | H86: 94.05 | I86: 99.69 | J86: 99.69 | K86: 98.66 | M86: 80 | N86: 26.71 | O86: 31.35 | P86: 39.33 | Q86: 57.22 | R86: 88.09 | S86: 93.65 | T86: 95.66 | U86: 101.3 | V86: 101.3 | W86: 100.27
A87: 81 | B87: 25.31 | C87: 30.08 | D87: 37.74 | E87: 55.63 | F87: 86.5 | G87: 92.06 | H87: 94.07 | I87: 100.42 | J87: 100.42 | K87: 98.97 | M87: 81 | N87: 26.92 | O87: 31.69 | P87: 39.35 | Q87: 57.24 | R87: 88.11 | S87: 93.67 | T87: 95.68 | U87: 102.03 | V87: 102.03 | W87: 100.58
A88: 82 | B88: 25.6 | C88: 30.46 | D88: 38.56 | E88: 57.04 | F88: 88.49 | G88: 94.35 | H88: 97.45 | I88: 102.05 | J88: 102.05 | K88: 101.11 | M88: 82 | N88: 27.21 | O88: 32.07 | P88: 40.17 | Q88: 58.65 | R88: 90.1 | S88: 95.96 | T88: 99.06 | U88: 103.66 | V88: 103.66 | W88: 102.72
A89: 83 | B89: 25.79 | C89: 30.81 | D89: 39.07 | E89: 57.06 | F89: 89.5 | G89: 94.71 | H89: 98.61 | I89: 103.23 | J89: 103.23 | K89: 102.42 | M89: 83 | N89: 27.4 | O89: 32.42 | P89: 40.68 | Q89: 58.67 | R89: 91.11 | S89: 96.32 | T89: 100.22 | U89: 104.84 | V89: 104.84 | W89: 104.03
A90: 84 | B90: 26.11 | C90: 31.22 | D90: 39.41 | E90: 58.05 | F90: 89.52 | G90: 96.9 | H90: 99.58 | I90: 104.27 | J90: 104.27 | K90: 103.52 | M90: 84 | N90: 27.72 | O90: 32.83 | P90: 41.02 | Q90: 59.66 | R90: 91.13 | S90: 98.51 | T90: 101.19 | U90: 105.88 | V90: 105.88 | W90: 105.13
A91: 85 | B91: 26.42 | C91: 31.63 | D91: 39.79 | E91: 58.98 | F91: 91.49 | G91: 98.19 | H91: 100.64 | I91: 105.39 | J91: 105.39 | K91: 104.71 | M91: 85 | N91: 28.03 | O91: 33.24 | P91: 41.4 | Q91: 60.59 | R91: 93.1 | S91: 99.8 | T91: 102.25 | U91: 107 | V91: 107 | W91: 106.32
A92: 86 | B92: 26.79 | C92: 31.65 | D92: 40.26 | E92: 59.66 | F92: 91.5 | G92: 99.46 | H92: 101.82 | I92: 106.6 | J92: 106.6 | K92: 105.87 | M92: 86 | N92: 28.4 | O92: 33.26 | P92: 41.87 | Q92: 61.27 | R92: 93.11 | S92: 101.07 | T92: 103.43 | U92: 108.21 | V92: 108.21 | W92: 107.48
A93: 87 | B93: 26.98 | C93: 32.28 | D93: 40.71 | E93: 60.33 | F93: 91.52 | G93: 99.48 | H93: 102.83 | I93: 107.66 | J93: 107.66 | K93: 107 | M93: 87 | N93: 28.59 | O93: 33.89 | P93: 42.32 | Q93: 61.94 | R93: 93.13 | S93: 101.09 | T93: 104.44 | U93: 109.27 | V93: 109.27 | W93: 108.61
A94: 88 | B94: 27.22 | C94: 32.68 | D94: 41.2 | E94: 60.89 | F94: 91.54 | G94: 99.51 | H94: 102.85 | I94: 108.86 | J94: 108.86 | K94: 108.21 | M94: 88 | N94: 28.83 | O94: 34.29 | P94: 42.81 | Q94: 62.5 | R94: 93.15 | S94: 101.12 | T94: 104.46 | U94: 110.47 | V94: 110.47 | W94: 109.82
A95: 89 | B95: 27.51 | C95: 32.87 | D95: 41.61 | E95: 61.47 | F95: 91.55 | G95: 99.52 | H95: 102.86 | I95: 110.24 | J95: 110.24 | K95: 109.42 | M95: 89 | N95: 29.12 | O95: 34.48 | P95: 43.22 | Q95: 63.08 | R95: 93.16 | S95: 101.13 | T95: 104.47 | U95: 111.85 | V95: 111.85 | W95: 111.03
A96: 90 | B96: 27.98 | C96: 33.21 | D96: 42 | E96: 62.11 | F96: 95.42 | G96: 104.21 | H96: 106.38 | I96: 111.41 | J96: 111.41 | K96: 110.7 | M96: 90 | N96: 29.59 | O96: 34.82 | P96: 43.61 | Q96: 63.72 | R96: 97.03 | S96: 105.82 | T96: 107.99 | U96: 113.02 | V96: 113.02 | W96: 112.31
A97: 91 | B97: 28.37 | C97: 33.64 | D97: 42.02 | E97: 62.9 | F97: 95.44 | G97: 105.52 | H97: 107.54 | I97: 112.6 | J97: 112.6 | K97: 111.96 | M97: 91 | N97: 29.98 | O97: 35.25 | P97: 43.63 | Q97: 64.51 | R97: 97.05 | S97: 107.13 | T97: 109.15 | U97: 114.21 | V97: 114.21 | W97: 113.57
A98: 92 | B98: 28.73 | C98: 33.98 | D98: 42.89 | E98: 62.93 | F98: 95.46 | G98: 105.54 | H98: 108.62 | I98: 113.75 | J98: 113.75 | K98: 113.13 | M98: 92 | N98: 30.34 | O98: 35.59 | P98: 44.5 | Q98: 64.54 | R98: 97.07 | S98: 107.15 | T98: 110.23 | U98: 115.36 | V98: 115.36 | W98: 114.74
A99: 93 | B99: 28.97 | C99: 34.47 | D99: 42.9 | E99: 62.95 | F99: 95.48 | G99: 105.56 | H99: 108.65 | I99: 114.86 | J99: 114.86 | K99: 114.33 | M99: 93 | N99: 30.58 | O99: 36.08 | P99: 44.51 | Q99: 64.56 | R99: 97.09 | S99: 107.17 | T99: 110.26 | U99: 116.47 | V99: 116.47 | W99: 115.94
A100: 94 | B100: 29.21 | C100: 34.49 | D100: 43.39 | E100: 62.96 | F100: 95.5 | G100: 108.79 | H100: 109.72 | I100: 114.88 | J100: 114.88 | K100: 114.34 | M100: 94 | N100: 30.82 | O100: 36.1 | P100: 45 | Q100: 64.57 | R100: 97.11 | S100: 110.4 | T100: 111.33 | U100: 116.49 | V100: 116.49 | W100: 115.95
A101: 95 | B101: 29.45 | C101: 34.51 | D101: 44.28 | E101: 62.98 | F101: 95.52 | G101: 108.8 | H101: 111.86 | I101: 117.1 | J101: 117.1 | K101: 116.44 | M101: 95 | N101: 31.06 | O101: 36.12 | P101: 45.89 | Q101: 64.59 | R101: 97.13 | S101: 110.41 | T101: 113.47 | U101: 118.71 | V101: 118.71 | W101: 118.05
A102: 96 | B102: 29.67 | C102: 34.91 | D102: 44.66 | E102: 63.35 | F102: 96.31 | G102: 108.82 | H102: 113.02 | I102: 118.37 | J102: 118.37 | K102: 117.6 | M102: 96 | N102: 31.28 | O102: 36.52 | P102: 46.27 | Q102: 64.96 | R102: 97.92 | S102: 110.43 | T102: 114.63 | U102: 119.98 | V102: 119.98 | W102: 119.21
A103: 97 | B103: 29.97 | C103: 34.93 | D103: 44.67 | E103: 66.34 | F103: 103.55 | G103: 108.85 | H103: 113.61 | I103: 119.51 | J103: 119.51 | K103: 118.7 | M103: 97 | N103: 31.58 | O103: 36.54 | P103: 46.28 | Q103: 67.95 | R103: 105.16 | S103: 110.46 | T103: 115.22 | U103: 121.12 | V103: 121.12 | W103: 120.31
A104: 98 | B104: 30.23 | C104: 34.95 | D104: 45.17 | E104: 66.36 | F104: 103.57 | G104: 113.15 | H104: 113.63 | I104: 119.54 | J104: 119.54 | K104: 118.79 | M104: 98 | N104: 31.84 | O104: 36.56 | P104: 46.78 | Q104: 67.97 | R104: 105.18 | S104: 114.76 | T104: 115.24 | U104: 121.15 | V104: 121.15 | W104: 120.4
A105: 99 | B105: 30.5 | C105: 35.31 | D105: 45.19 | E105: 66.39 | F105: 103.6 | G105: 113.17 | H105: 113.64 | I105: 119.58 | J105: 119.58 | K105: 118.84 | M105: 99 | N105: 32.11 | O105: 36.92 | P105: 46.8 | Q105: 68 | R105: 105.21 | S105: 114.78 | T105: 115.25 | U105: 121.19 | V105: 121.19 | W105: 120.45
A106: 100 | B106: 30.73 | C106: 35.33 | D106: 45.21 | E106: 66.4 | F106: 105.39 | G106: 113.51 | H106: 115.87 | I106: 123.6 | J106: 123.6 | K106: 123.51 | M106: 100 | N106: 32.34 | O106: 36.94 | P106: 46.82 | Q106: 68.01 | R106: 107 | S106: 115.12 | T106: 117.48 | U106: 125.21 | V106: 125.21 | W106: 125.12
A107: 101 | B107: 31.03 | C107: 35.68 | D107: 45.66 | E107: 67.05 | F107: 106.44 | G107: 114.62 | H107: 117.03 | I107: 124.84 | J107: 124.84 | K107: 124.77 | M107: 101 | N107: 32.64 | O107: 37.29 | P107: 47.27 | Q107: 68.66 | R107: 108.05 | S107: 116.23 | T107: 118.64 | U107: 126.45 | V107: 126.45 | W107: 126.38
A108: 102 | B108: 31.34 | C108: 35.7 | D108: 46.1 | E108: 67.73 | F108: 107.51 | G108: 115.77 | H108: 118.19 | I108: 126.07 | J108: 126.07 | K108: 126.03 | M108: 102 | N108: 32.95 | O108: 37.31 | P108: 47.71 | Q108: 69.34 | R108: 109.12 | S108: 117.38 | T108: 119.8 | U108: 127.68 | V108: 127.68 | W108: 127.64
A109: 103 | B109: 31.65 | C109: 36.02 | D109: 46.58 | E109: 68.4 | F109: 108.56 | G109: 116.91 | H109: 119.34 | I109: 127.32 | J109: 127.32 | K109: 127.29 | M109: 103 | N109: 33.26 | O109: 37.63 | P109: 48.19 | Q109: 70.01 | R109: 110.17 | S109: 118.52 | T109: 120.95 | U109: 128.93 | V109: 128.93 | W109: 128.9
A110: 104 | B110: 31.96 | C110: 36.37 | D110: 47.01 | E110: 69.05 | F110: 109.61 | G110: 118.04 | H110: 120.49 | I110: 128.55 | J110: 128.55 | K110: 128.55 | M110: 104 | N110: 33.57 | O110: 37.98 | P110: 48.62 | Q110: 70.66 | R110: 111.22 | S110: 119.65 | T110: 122.1 | U110: 130.16 | V110: 130.16 | W110: 130.16
A111: 105 | B111: 32.26 | C111: 36.71 | D111: 47.45 | E111: 69.71 | F111: 110.66 | G111: 119.18 | H111: 121.66 | I111: 129.79 | J111: 129.79 | K111: 129.79 | M111: 105 | N111: 33.87 | O111: 38.32 | P111: 49.06 | Q111: 71.32 | R111: 112.27 | S111: 120.79 | T111: 123.27 | U111: 131.4 | V111: 131.4 | W111: 131.4
A112: 106 | B112: 32.58 | C112: 37.07 | D112: 47.93 | E112: 70.38 | F112: 111.71 | G112: 120.31 | H112: 122.81 | I112: 131.01 | J112: 131.01 | K112: 131.05 | M112: 106 | N112: 34.19 | O112: 38.68 | P112: 49.54 | Q112: 71.99 | R112: 113.32 | S112: 121.91 | T112: 124.42 | U112: 132.62 | V112: 132.62 | W112: 132.66
A113: 107 | B113: 32.87 | C113: 37.42 | D113: 48.37 | E113: 71.04 | F113: 112.78 | G113: 121.44 | H113: 123.97 | I113: 132.25 | J113: 132.25 | K113: 132.32 | M113: 107 | N113: 34.48 | O113: 39.03 | P113: 49.98 | Q113: 72.65 | R113: 114.39 | S113: 123.05 | T113: 125.58 | U113: 133.86 | V113: 133.86 | W113: 133.93
A114: 108 | B114: 33.19 | C114: 37.77 | D114: 48.83 | E114: 71.7 | F114: 113.82 | G114: 122.58 | H114: 125.13 | I114: 133.49 | J114: 133.49 | K114: 133.57 | M114: 108 | N114: 34.8 | O114: 39.38 | P114: 50.44 | Q114: 73.31 | R114: 115.43 | S114: 124.19 | T114: 126.74 | U114: 135.1 | V114: 135.1 | W114: 135.18
A115: 109 | B115: 33.49 | C115: 38.12 | D115: 49.26 | E115: 72.38 | F115: 114.87 | G115: 123.72 | H115: 126.28 | I115: 134.72 | J115: 134.72 | K115: 134.83 | M115: 109 | N115: 35.1 | O115: 39.73 | P115: 50.87 | Q115: 73.98 | R115: 116.48 | S115: 125.33 | T115: 127.89 | U115: 136.33 | V115: 136.33 | W115: 136.44
A116: 110 | B116: 33.81 | C116: 38.46 | D116: 49.73 | E116: 73.03 | F116: 115.93 | G116: 124.84 | H116: 127.46 | I116: 135.96 | J116: 135.96 | K116: 136.06 | M116: 110 | N116: 35.42 | O116: 40.07 | P116: 51.34 | Q116: 74.64 | R116: 117.54 | S116: 126.45 | T116: 129.07 | U116: 137.57 | V116: 137.57 | W116: 137.67
A117: 111 | B117: 34.1 | C117: 38.81 | D117: 50.18 | E117: 73.7 | F117: 116.99 | G117: 125.97 | H117: 128.62 | I117: 137.19 | J117: 137.19 | K117: 137.34 | M117: 111 | N117: 35.71 | O117: 40.42 | P117: 51.79 | Q117: 75.31 | R117: 118.6 | S117: 127.58 | T117: 130.23 | U117: 138.8 | V117: 138.8 | W117: 138.94
A118: 112 | B118: 34.42 | C118: 39.16 | D118: 50.63 | E118: 74.37 | F118: 118.04 | G118: 127.12 | H118: 129.78 | I118: 138.45 | J118: 138.45 | K118: 138.6 | M118: 112 | N118: 36.03 | O118: 40.77 | P118: 52.24 | Q118: 75.98 | R118: 119.65 | S118: 128.73 | T118: 131.39 | U118: 140.06 | V118: 140.06 | W118: 140.2
A119: 113 | B119: 34.71 | C119: 39.51 | D119: 51.09 | E119: 75.04 | F119: 119.1 | G119: 128.26 | H119: 130.93 | I119: 139.67 | J119: 139.67 | K119: 139.84 | M119: 113 | N119: 36.32 | O119: 41.12 | P119: 52.7 | Q119: 76.65 | R119: 120.71 | S119: 129.87 | T119: 132.54 | U119: 141.28 | V119: 141.28 | W119: 141.45
A120: 114 | B120: 35.03 | C120: 39.85 | D120: 51.54 | E120: 75.69 | F120: 120.15 | G120: 129.37 | H120: 132.08 | I120: 140.9 | J120: 140.9 | K120: 141.1 | M120: 114 | N120: 36.64 | O120: 41.46 | P120: 53.15 | Q120: 77.3 | R120: 121.76 | S120: 130.98 | T120: 133.69 | U120: 142.51 | V120: 142.51 | W120: 142.71
A121: 115 | B121: 35.33 | C121: 40.2 | D121: 51.98 | E121: 76.35 | F121: 121.19 | G121: 130.52 | H121: 133.24 | I121: 142.14 | J121: 142.14 | K121: 142.35 | M121: 115 | N121: 36.94 | O121: 41.81 | P121: 53.59 | Q121: 77.96 | R121: 122.8 | S121: 132.13 | T121: 134.84 | U121: 143.75 | V121: 143.75 | W121: 143.96
A122: 116 | B122: 35.65 | C122: 40.57 | D122: 52.44 | E122: 77.02 | F122: 122.27 | G122: 131.65 | H122: 134.39 | I122: 143.38 | J122: 143.38 | K122: 143.61 | M122: 116 | N122: 37.26 | O122: 42.18 | P122: 54.05 | Q122: 78.63 | R122: 123.88 | S122: 133.26 | T122: 136 | U122: 144.99 | V122: 144.99 | W122: 145.22
A123: 117 | B123: 35.95 | C123: 40.91 | D123: 52.9 | E123: 77.68 | F123: 123.31 | G123: 132.8 | H123: 135.55 | I123: 144.63 | J123: 144.63 | K123: 144.87 | M123: 117 | N123: 37.56 | O123: 42.52 | P123: 54.51 | Q123: 79.29 | R123: 124.92 | S123: 134.41 | T123: 137.16 | U123: 146.24 | V123: 146.24 | W123: 146.48
A124: 118 | B124: 36.26 | C124: 41.27 | D124: 53.34 | E124: 78.35 | F124: 124.35 | G124: 133.94 | H124: 136.72 | I124: 145.84 | J124: 145.84 | K124: 146.12 | M124: 118 | N124: 37.87 | O124: 42.88 | P124: 54.95 | Q124: 79.96 | R124: 125.96 | S124: 135.55 | T124: 138.33 | U124: 147.45 | V124: 147.45 | W124: 147.73
A125: 119 | B125: 36.56 | C125: 41.61 | D125: 53.8 | E125: 79.02 | F125: 125.41 | G125: 135.06 | H125: 137.87 | I125: 147.09 | J125: 147.09 | K125: 147.39 | M125: 119 | N125: 38.17 | O125: 43.22 | P125: 55.41 | Q125: 80.63 | R125: 127.02 | S125: 136.67 | T125: 139.48 | U125: 148.7 | V125: 148.7 | W125: 149
A126: 120 | B126: 36.87 | C126: 41.95 | D126: 54.25 | E126: 79.67 | F126: 126.48 | G126: 136.2 | H126: 139.05 | I126: 148.31 | J126: 148.31 | K126: 148.63 | M126: 120 | N126: 38.48 | O126: 43.56 | P126: 55.86 | Q126: 81.28 | R126: 128.09 | S126: 137.81 | T126: 140.66 | U126: 149.92 | V126: 149.92 | W126: 150.24
A127: 121 | B127: 37.18 | C127: 42.31 | D127: 54.69 | E127: 80.34 | F127: 127.52 | G127: 137.34 | H127: 140.21 | I127: 149.55 | J127: 149.55 | K127: 149.89 | M127: 121 | N127: 38.79 | O127: 43.92 | P127: 56.3 | Q127: 81.95 | R127: 129.13 | S127: 138.94 | T127: 141.82 | U127: 151.16 | V127: 151.16 | W127: 151.5
A128: 122 | B128: 37.49 | C128: 42.66 | D128: 55.15 | E128: 81 | F128: 128.58 | G128: 138.48 | H128: 141.36 | I128: 150.8 | J128: 150.8 | K128: 151.15 | M128: 122 | N128: 39.1 | O128: 44.27 | P128: 56.76 | Q128: 82.61 | R128: 130.19 | S128: 140.09 | T128: 142.97 | U128: 152.41 | V128: 152.41 | W128: 152.76
A129: 123 | B129: 37.79 | C129: 43.01 | D129: 55.61 | E129: 81.66 | F129: 129.63 | G129: 139.6 | H129: 142.52 | I129: 152.02 | J129: 152.02 | K129: 152.41 | M129: 123 | N129: 39.4 | O129: 44.62 | P129: 57.22 | Q129: 83.27 | R129: 131.24 | S129: 141.21 | T129: 144.13 | U129: 153.63 | V129: 153.63 | W129: 154.02
A130: 124 | B130: 38.1 | C130: 43.35 | D130: 56.06 | E130: 82.33 | F130: 130.68 | G130: 140.73 | H130: 143.67 | I130: 153.27 | J130: 153.27 | K130: 153.67 | M130: 124 | N130: 39.71 | O130: 44.96 | P130: 57.67 | Q130: 83.94 | R130: 132.29 | S130: 142.34 | T130: 145.28 | U130: 154.88 | V130: 154.88 | W130: 155.28
A131: 125 | B131: 38.4 | C131: 43.7 | D131: 56.5 | E131: 83 | F131: 131.75 | G131: 141.88 | H131: 144.82 | I131: 154.51 | J131: 154.51 | K131: 154.91 | M131: 125 | N131: 40.01 | O131: 45.31 | P131: 58.11 | Q131: 84.61 | R131: 133.36 | S131: 143.49 | T131: 146.43 | U131: 156.12 | V131: 156.12 | W131: 156.52
A132: 126 | B132: 38.72 | C132: 44.06 | D132: 56.95 | E132: 83.64 | F132: 132.8 | G132: 143.02 | H132: 145.98 | I132: 155.75 | J132: 155.75 | K132: 156.18 | M132: 126 | N132: 40.33 | O132: 45.67 | P132: 58.56 | Q132: 85.25 | R132: 134.41 | S132: 144.63 | T132: 147.59 | U132: 157.36 | V132: 157.36 | W132: 157.79
A133: 127 | B133: 39.04 | C133: 44.42 | D133: 57.41 | E133: 84.31 | F133: 133.84 | G133: 144.15 | H133: 147.14 | I133: 156.98 | J133: 156.98 | K133: 157.44 | M133: 127 | N133: 40.65 | O133: 46.03 | P133: 59.02 | Q133: 85.92 | R133: 135.45 | S133: 145.76 | T133: 148.75 | U133: 158.59 | V133: 158.59 | W133: 159.05
A134: 128 | B134: 39.34 | C134: 44.76 | D134: 57.86 | E134: 85 | F134: 134.9 | G134: 145.28 | H134: 148.29 | I134: 158.2 | J134: 158.2 | K134: 158.69 | M134: 128 | N134: 40.95 | O134: 46.37 | P134: 59.47 | Q134: 86.61 | R134: 136.51 | S134: 146.89 | T134: 149.9 | U134: 159.81 | V134: 159.81 | W134: 160.3
A135: 129 | B135: 39.65 | C135: 45.1 | D135: 58.31 | E135: 85.65 | F135: 135.94 | G135: 146.41 | H135: 149.45 | I135: 159.45 | J135: 159.45 | K135: 159.95 | M135: 129 | N135: 41.26 | O135: 46.71 | P135: 59.92 | Q135: 87.26 | R135: 137.55 | S135: 148.02 | T135: 151.06 | U135: 161.06 | V135: 161.06 | W135: 161.56
A136: 130 | B136: 39.95 | C136: 45.46 | D136: 58.78 | E136: 86.31 | F136: 137.01 | G136: 147.55 | H136: 150.64 | I136: 160.69 | J136: 160.69 | K136: 161.2 | M136: 130 | N136: 41.56 | O136: 47.07 | P136: 60.39 | Q136: 87.92 | R136: 138.62 | S136: 149.16 | T136: 152.25 | U136: 162.3 | V136: 162.3 | W136: 162.81
A137: 131 | B137: 40.26 | C137: 45.8 | D137: 59.22 | E137: 86.98 | F137: 138.07 | G137: 148.69 | H137: 151.79 | I137: 161.92 | J137: 161.92 | K137: 162.46 | M137: 131 | N137: 41.87 | O137: 47.41 | P137: 60.83 | Q137: 88.59 | R137: 139.68 | S137: 150.29 | T137: 153.4 | U137: 163.53 | V137: 163.53 | W137: 164.07
A138: 132 | B138: 40.57 | C138: 46.16 | D138: 59.66 | E138: 87.63 | F138: 139.12 | G138: 149.81 | H138: 152.95 | I138: 163.15 | J138: 163.15 | K138: 163.73 | M138: 132 | N138: 42.18 | O138: 47.77 | P138: 61.27 | Q138: 89.24 | R138: 140.73 | S138: 151.42 | T138: 154.56 | U138: 164.76 | V138: 164.76 | W138: 165.34
A139: 133 | B139: 40.88 | C139: 46.5 | D139: 60.14 | E139: 88.31 | F139: 140.16 | G139: 150.95 | H139: 154.11 | I139: 164.39 | J139: 164.39 | K139: 164.97 | M139: 133 | N139: 42.49 | O139: 48.11 | P139: 61.75 | Q139: 89.92 | R139: 141.77 | S139: 152.56 | T139: 155.72 | U139: 166 | V139: 166 | W139: 166.58
